Workbook

Sheet Data
A1: A | C1: WF Mojave | D1: EF Mojave | E1: Combined Inflow | F1: Combined Inflow | G1: Ungaged Inflow | H1: Synthetic Inflow | I1: Natural Inflow | J1: WF Mojave Release | K1: LFR | L1: OPERATION_DATA | M1: EB SWP | N1: SB Tunnel | O1: SWP Inflow | P1: CLAWA | Q1: CLAWA | R1: SWP | S1: Natural Outflow | T1: Total Inflow | U1: Total Outflow
A2: B | C2: 10260550 | D2: 10260700 | E2: WF+EF | F2: WF+EF | J2: 10260820 | K2: 10260822 | L2: SILVERWOOD | M2: 10260780 | N2: 11063682 | P2: SWP | Q2: Water Right | R2: Release | Z2: Slvrwd Storage 10260790
A3: C | C3: FLOW | D3: FLOW | J3: FLOW | K3: FLOW | L3: FLOW_OUTFLOW_CLAWA_DEL | M3: Flow | N3: Flow | O3: Flow | P3: Flow | Q3: Flow | R3: Flow | S3: Flow | T3: Flow | U3: Flow | Z3: Storage
A4: E
A5: F | C5: USGS | D5: USGS | E5: USGS | J5: USGS | K5: USGS | L5: DWR-TABLE29 | M5: USGS | N5: USGS | O5: Calculation | Z5: SYNTHETIC
A6: Units | C6: CFS | D6: CFS | E6: CFS | F6: AF | G6: CFS | H6: AF | I6: CFS | J6: CFS | K6: CFS | L6: CFS | M6: CFS | N6: CFS | O6: CFS | P6: CFS | Q6: CFS | R6: CFS | S6: CFS | T6: CFS | U6: CFS | Z6: AF
A7: Type | C7: PER-AVER | D7: PER-AVER | E7: PER-AVER | F7: PER-AVER | G7: PER-AVER | H7: PER-AVER | I7: PER-AVER | J7: PER-AVER | K7: PER-AVER | L7: PER-AVER | M7: PER-AVER | N7: PER-AVER | O7: PER-AVER | P7: PER-AVER | Q7: PER-AVER | R7: PER-AVER | S7: PER-AVER | T7: PER-AVER | U7: PER-AVER | Z7: PER-AVER
A8: 1 | B8: 2005-09-30 | L8: 1.512500048
A9: 2 | B9: 2005-10-01 | C9: 0.7099999785 | D9: 0.200000003 | E9: =SUM(C9:D9) -> 0.9099999815 | F9: =IF(E9*60*60*24/43560=0,0.000001,E9*60*60*24/43560) -> 1.804958641 | G9: =IF(I9-E9=0,0.000001,I9-E9) -> 0.7058333516 | H9: =IF(interpolation($F9,Lookup!$A$4:$A$245,Lookup!$B$4:$B$245)=0,0.00001,interpolation($F9,Lookup!$A$4:$A$245,Lookup!$B$4:$B$245)) -> 3.204958677 | I9: =IF(H9/60/60/24*43560=0,0.00001,H9/60/60/24*43560) -> 1.615833333 | J9: 0 | K9: 8 | L9: 1.512500048 | M9: 1310 | N9: 1350 | O9: =IF(M9+K9=0,0.00001,M9+K9) -> 1318 | P9: 1.512500048 | Q9: 0 | R9: =IF(N9+P9=0,0.000001,N9+P9) -> 1351.5125 | S9: =IF(J9+K9+Q9=0,0.000001,J9+K9+Q9) -> 8 | T9: =IF(O9+I9=0,0.000001,O9+I9) -> 1319.615833 | U9: =IF(S9+R9=0,0.000001,S9+R9) -> 1359.5125 | V9: =P9/VLOOKUP(MONTH(B9)&"*"&YEAR(B9),$W$9:$Y$159,3,FALSE) -> 0.03529410217 | W9: =MONTH(X9)&"*"&YEAR(X9) -> 10*2005 | X9: 2005-10-01 | Y9: =SUM(IF((MONTH($B$9:$B$4391)=MONTH(X9))*(YEAR($B$9:$B$4391)=YEAR(X9)),$P$9:$P$4177)) -> 42.85418681 | Z9: 71683
A10: 3 | B10: 2005-10-02 | C10: 0.7099999785 | D10: 0.200000003 | E10: =SUM(C10:D10) -> 0.9099999815 | F10: =IF(E10*60*60*24/43560=0,0.000001,E10*60*60*24/43560) -> 1.804958641 | G10: =IF(I10-E10=0,0.000001,I10-E10) -> 0.7058333516 | H10: =IF(interpolation($F10,Lookup!$A$4:$A$245,Lookup!$B$4:$B$245)=0,0.00001,interpolation($F10,Lookup!$A$4:$A$245,Lookup!$B$4:$B$245)) -> 3.204958677 | I10: =IF(H10/60/60/24*43560=0,0.00001,H10/60/60/24*43560) -> 1.615833333 | J10: 0 | K10: 8 | L10: 1.512500048 | M10: 1340 | N10: 1380 | O10: =IF(M10+K10=0,0.00001,M10+K10) -> 1348 | P10: 1.512500048 | Q10: 0 | R10: =IF(N10+P10=0,0.000001,N10+P10) -> 1381.5125 | S10: =IF(J10+K10+Q10=0,0.000001,J10+K10+Q10) -> 8 | T10: =IF(O10+I10=0,0.000001,O10+I10) -> 1349.615833 | U10: =IF(S10+R10=0,0.000001,S10+R10) -> 1389.5125 | V10: =P10/VLOOKUP(MONTH(B10)&"*"&YEAR(B10),$W$9:$Y$159,3,FALSE) -> 0.03529410217 | W10: =MONTH(X10)&"*"&YEAR(X10) -> 11*2005 | X10: 2005-11-01 | Y10: =SUM(IF((MONTH($B$9:$B$4391)=MONTH(X10))*(YEAR($B$9:$B$4391)=YEAR(X10)),$P$9:$P$4177)) -> 37.83774925 | Z10: 71530
A11: 4 | B11: 2005-10-03 | C11: 0.7099999785 | D11: 0.200000003 | E11: 0.9099999815 | F11: 1.804958641 | G11: 0.7058333516 | H11: =IF(interpolation($F11,Lookup!$A$4:$A$245,Lookup!$B$4:$B$245)=0,0.00001,interpolation($F11,Lookup!$A$4:$A$245,Lookup!$B$4:$B$245)) -> 3.204958677 | I11: 1.615833333 | J11: 0 | K11: 8 | L11: 1.008333325 | M11: 1160 | N11: 1460 | O11: 1168 | P11: 1.008333325 | Q11: 0 | R11: 1461.008333 | S11: 8 | T11: 1169.615833 | U11: 1469.008333 | V11: 0.02352940052 | W11: 12*2005 | X11: 2005-12-01 | Y11: =SUM(IF((MONTH($B$9:$B$4391)=MONTH(X11))*(YEAR($B$9:$B$4391)=YEAR(X11)),$P$9:$P$4177)) -> 22.68753024 | Z11: 70840
A12: 5 | B12: 2005-10-04 | C12: 0.7099999785 | D12: 0.200000003 | E12: 0.9099999815 | F12: 1.804958641 | G12: 0.7058333516 | H12: =IF(interpolation($F12,Lookup!$A$4:$A$245,Lookup!$B$4:$B$245)=0,0.00001,interpolation($F12,Lookup!$A$4:$A$245,Lookup!$B$4:$B$245)) -> 3.204958677 | I12: 1.615833333 | J12: 0 | K12: 8 | L12: 1.512500048 | M12: 1080 | N12: 1310 | O12: 1088 | P12: 1.512500048 | Q12: 0 | R12: 1311.5125 | S12: 8 | T12: 1089.615833 | U12: 1319.5125 | V12: 0.03529410217 | W12: 1*2006 | X12: 2006-01-01 | Y12: =SUM(IF((MONTH($B$9:$B$4391)=MONTH(X12))*(YEAR($B$9:$B$4391)=YEAR(X12)),$P$9:$P$4177)) -> 0 | Z12: 70410
A13: 6 | B13: 2005-10-05 | C13: 0.7099999785 | D13: 0.200000003 | E13: 0.9099999815 | F13: 1.804958641 | G13: 0.7058333516 | H13: =IF(interpolation($F13,Lookup!$A$4:$A$245,Lookup!$B$4:$B$245)=0,0.00001,interpolation($F13,Lookup!$A$4:$A$245,Lookup!$B$4:$B$245)) -> 3.204958677 | I13: 1.615833333 | J13: 0 | K13: 8 | L13: 2.520833254 | M13: 1220 | N13: 1340 | O13: 1228 | P13: 2.520833254 | Q13: 0 | R13: 1342.520833 | S13: 8 | T13: 1229.615833 | U13: 1350.520833 | V13: 0.05882349991 | W13: 2*2006 | X13: 2006-02-01 | Y13: =SUM(IF((MONTH($B$9:$B$4391)=MONTH(X13))*(YEAR($B$9:$B$4391)=YEAR(X13)),$P$9:$P$4177)) -> 0.1109173934 | Z13: 70330
A14: 7 | B14: 2005-10-06 | C14: 0.7099999785 | D14: 0.200000003 | E14: 0.9099999815 | F14: 1.804958641 | G14: 0.7058333516 | H14: =IF(interpolation($F14,Lookup!$A$4:$A$245,Lookup!$B$4:$B$245)=0,0.00001,interpolation($F14,Lookup!$A$4:$A$245,Lookup!$B$4:$B$245)) -> 3.204958677 | I14: 1.615833333 | J14: 0 | K14: 8 | L14: 2.016666651 | M14: 1360 | N14: 1380 | O14: 1368 | P14: 2.016666651 | Q14: 0 | R14: 1382.016667 | S14: 8 | T14: 1369.615833 | U14: 1390.016667 | V14: 0.04705880104 | W14: 3*2006 | X14: 2006-03-01 | Y14: =SUM(IF((MONTH($B$9:$B$4391)=MONTH(X14))*(YEAR($B$9:$B$4391)=YEAR(X14)),$P$9:$P$4177)) -> 0.04796648851 | Z14: 70330
A15: 8 | B15: 2005-10-07 | C15: 0.7099999785 | D15: 0.200000003 | E15: 0.9099999815 | F15: 1.804958641 | G15: 0.7058333516 | H15: =IF(interpolation($F15,Lookup!$A$4:$A$245,Lookup!$B$4:$B$245)=0,0.00001,interpolation($F15,Lookup!$A$4:$A$245,Lookup!$B$4:$B$245)) -> 3.204958677 | I15: 1.615833333 | J15: 0 | K15: 8 | L15: 2.520833254 | M15: 1210 | N15: 1380 | O15: 1218 | P15: 2.520833254 | Q15: 0 | R15: =IF(N15+P15=0,0.000001,N15+P15) -> 1382.520833 | S15: 8 | T15: 1219.615833 | U15: 1390.520833 | V15: 0.05882349991 | W15: 4*2006 | X15: 2006-04-01 | Y15: =SUM(IF((MONTH($B$9:$B$4391)=MONTH(X15))*(YEAR($B$9:$B$4391)=YEAR(X15)),$P$9:$P$4177)) -> 0 | Z15: 69880
A16: 9 | B16: 2005-10-08 | C16: 0.7099999785 | D16: 0.200000003 | E16: 0.9099999815 | F16: 1.804958641 | G16: 0.7058333516 | H16: =IF(interpolation($F16,Lookup!$A$4:$A$245,Lookup!$B$4:$B$245)=0,0.00001,interpolation($F16,Lookup!$A$4:$A$245,Lookup!$B$4:$B$245)) -> 3.204958677 | I16: 1.615833333 | J16: 0 | K16: 8 | L16: 2.520833254 | M16: 1310 | N16: 1250 | O16: 1318 | P16: 2.520833254 | Q16: 0 | R16: 1252.520833 | S16: 8 | T16: 1319.615833 | U16: 1260.520833 | V16: 0.05882349991 | W16: 5*2006 | X16: 2006-05-01 | Y16: =SUM(IF((MONTH($B$9:$B$4391)=MONTH(X16))*(YEAR($B$9:$B$4391)=YEAR(X16)),$P$9:$P$4177)) -> 0.1260518167 | Z16: 70020
A17: 10 | B17: 2005-10-09 | C17: 0.7099999785 | D17: 0.200000003 | E17: 0.9099999815 | F17: 1.804958641 | G17: 0.7058333516 | H17: =IF(interpolation($F17,Lookup!$A$4:$A$245,Lookup!$B$4:$B$245)=0,0.00001,interpolation($F17,Lookup!$A$4:$A$245,Lookup!$B$4:$B$245)) -> 3.204958677 | I17: 1.615833333 | J17: 0 | K17: 8 | L17: 1.512500048 | M17: 1650 | N17: 1410 | O17: 1658 | P17: 1.512500048 | Q17: 0 | R17: 1411.5125 | S17: 8 | T17: 1659.615833 | U17: 1419.5125 | V17: 0.03529410217 | W17: 6*2006 | X17: 2006-06-01 | Y17: =SUM(IF((MONTH($B$9:$B$4391)=MONTH(X17))*(YEAR($B$9:$B$4391)=YEAR(X17)),$P$9:$P$4177)) -> 0 | Z17: 70540
A18: 11 | B18: 2005-10-10 | C18: 0.6600000262 | D18: 0.2199999988 | E18: 0.880000025 | F18: 1.745454595 | G18: 0.6783332646 | H18: =IF(interpolation($F18,Lookup!$A$4:$A$245,Lookup!$B$4:$B$245)=0,0.00001,interpolation($F18,Lookup!$A$4:$A$245,Lookup!$B$4:$B$245)) -> 3.090909004 | I18: 1.55833329 | J18: 0 | K18: 8 | L18: 2.016666651 | M18: 1190 | N18: 1400 | O18: 1198 | P18: 2.016666651 | Q18: 0 | R18: 1402.016667 | S18: 8 | T18: 1199.558333 | U18: 1410.016667 | V18: 0.04705880104 | W18: 7*2006 | X18: 2006-07-01 | Y18: =SUM(IF((MONTH($B$9:$B$4391)=MONTH(X18))*(YEAR($B$9:$B$4391)=YEAR(X18)),$P$9:$P$4177)) -> 49.40834352 | Z18: 70090
A19: 12 | B19: 2005-10-11 | C19: 0.6499999762 | D19: 0.2300000042 | E19: 0.8799999803 | F19: 1.745454506 | G19: 0.6783333093 | H19: =IF(interpolation($F19,Lookup!$A$4:$A$245,Lookup!$B$4:$B$245)=0,0.00001,interpolation($F19,Lookup!$A$4:$A$245,Lookup!$B$4:$B$245)) -> 3.090909004 | I19: 1.55833329 | J19: 0 | K19: 8 | L19: 2.016666651 | M19: 1530 | N19: 1600 | O19: 1538 | P19: 2.016666651 | Q19: 0 | R19: 1602.016667 | S19: 8 | T19: 1539.558333 | U19: 1610.016667 | V19: 0.04705880104 | W19: 8*2006 | X19: 2006-08-01 | Y19: =SUM(IF((MONTH($B$9:$B$4391)=MONTH(X19))*(YEAR($B$9:$B$4391)=YEAR(X19)),$P$9:$P$4177)) -> 70.97154164 | Z19: 70020
A20: 13 | B20: 2005-10-12 | C20: 0.6499999762 | D20: 0.2199999988 | E20: 0.869999975 | F20: 1.725619785 | G20: 0.6683332682 | H20: =IF(interpolation($F20,Lookup!$A$4:$A$245,Lookup!$B$4:$B$245)=0,0.00001,interpolation($F20,Lookup!$A$4:$A$245,Lookup!$B$4:$B$245)) -> 3.051239491 | I20: 1.538333243 | J20: 0 | K20: 8 | L20: 1.512500048 | M20: 1430 | N20: 1540 | O20: 1438 | P20: 1.512500048 | Q20: 0 | R20: 1541.5125 | S20: 8 | T20: 1439.538333 | U20: 1549.5125 | V20: 0.03529410217 | W20: 9*2006 | X20: 2006-09-01 | Y20: =SUM(IF((MONTH($B$9:$B$4391)=MONTH(X20))*(YEAR($B$9:$B$4391)=YEAR(X20)),$P$9:$P$4177)) -> 73.01089609 | Z20: 69800
A21: 14 | B21: 2005-10-13 | C21: 0.6499999762 | D21: 0.200000003 | E21: 0.8499999791 | F21: 1.685950372 | G21: 0.6483332912 | H21: =IF(interpolation($F21,Lookup!$A$4:$A$245,Lookup!$B$4:$B$245)=0,0.00001,interpolation($F21,Lookup!$A$4:$A$245,Lookup!$B$4:$B$245)) -> 2.971900702 | I21: 1.49833327 | J21: 0 | K21: 8 | L21: 2.016666651 | M21: 1680 | N21: 1670 | O21: 1688 | P21: 2.016666651 | Q21: 0 | R21: 1672.016667 | S21: 8 | T21: 1689.498333 | U21: 1680.016667 | V21: 0.04705880104 | W21: 10*2006 | X21: 2006-10-01 | Y21: =SUM(IF((MONTH($B$9:$B$4391)=MONTH(X21))*(YEAR($B$9:$B$4391)=YEAR(X21)),$P$9:$P$4177)) -> 52.30729246 | Z21: 69880
A22: 15 | B22: 2005-10-14 | C22: 0.6499999762 | D22: 0.200000003 | E22: 0.8499999791 | F22: 1.685950372 | G22: 0.6483332912 | H22: =IF(interpolation($F22,Lookup!$A$4:$A$245,Lookup!$B$4:$B$245)=0,0.00001,interpolation($F22,Lookup!$A$4:$A$245,Lookup!$B$4:$B$245)) -> 2.971900702 | I22: 1.49833327 | J22: 0 | K22: 8 | L22: 2.016666651 | M22: 1690 | N22: 1640 | O22: 1698 | P22: 2.016666651 | Q22: 0 | R22: 1642.016667 | S22: 8 | T22: 1699.498333 | U22: 1650.016667 | V22: 0.04705880104 | W22: 11*2006 | X22: 2006-11-01 | Y22: =SUM(IF((MONTH($B$9:$B$4391)=MONTH(X22))*(YEAR($B$9:$B$4391)=YEAR(X22)),$P$9:$P$4177)) -> 40.33333421 | Z22: 69910
A23: 16 | B23: 2005-10-15 | C23: 0.6499999762 | D23: 0.200000003 | E23: 0.8499999791 | F23: 1.685950372 | G23: 0.6483332912 | H23: =IF(interpolation($F23,Lookup!$A$4:$A$245,Lookup!$B$4:$B$245)=0,0.00001,interpolation($F23,Lookup!$A$4:$A$245,Lookup!$B$4:$B$245)) -> 2.971900702 | I23: 1.49833327 | J23: 0 | K23: 8.100000381 | L23: 1.008333325 | M23: 1610 | N23: 1570 | O23: 1618.1 | P23: 1.008333325 | Q23: 0 | R23: 1571.008333 | S23: 8.100000381 | T23: 1619.598334 | U23: 1579.108334 | V23: 0.02352940052 | W23: 12*2006 | X23: 2006-12-01 | Y23: =SUM(IF((MONTH($B$9:$B$4391)=MONTH(X23))*(YEAR($B$9:$B$4391)=YEAR(X23)),$P$9:$P$4177)) -> 40.00058413 | Z23: 70120
A24: 17 | B24: 2005-10-16 | C24: 0.8600000143 | D24: 0.3300000131 | E24: 1.190000027 | F24: 2.360330633 | G24: 0.9379166424 | H24: =IF(interpolation($F24,Lookup!$A$4:$A$245,Lookup!$B$4:$B$245)=0,0.00001,interpolation($F24,Lookup!$A$4:$A$245,Lookup!$B$4:$B$245)) -> 4.220661163 | I24: 2.12791667 | J24: 0 | K24: 8.199999809 | L24: 1.512500048 | M24: 1740 | N24: 1550 | O24: 1748.2 | P24: 1.512500048 | Q24: 0 | R24: 1551.5125 | S24: 8.199999809 | T24: 1750.327916 | U24: 1559.7125 | V24: 0.03529410217 | W24: 1*2007 | X24: 2007-01-01 | Y24: =SUM(IF((MONTH($B$9:$B$4391)=MONTH(X24))*(YEAR($B$9:$B$4391)=YEAR(X24)),$P$9:$P$4177)) -> 65.46604252 | Z24: 70440
A25: 18 | B25: 2005-10-17 | C25: 1.399999976 | D25: 1 | E25: 2.399999976 | F25: 4.760330531 | G25: 1.996666694 | H25: =IF(interpolation($F25,Lookup!$A$4:$A$245,Lookup!$B$4:$B$245)=0,0.00001,interpolation($F25,Lookup!$A$4:$A$245,Lookup!$B$4:$B$245)) -> 8.720661163 | I25: 4.39666667 | J25: 0 | K25: 8.300000191 | L25: 1.512500048 | M25: 1690 | N25: 1510 | O25: 1698.3 | P25: 1.512500048 | Q25: 0 | R25: 1511.5125 | S25: 8.300000191 | T25: 1702.696667 | U25: 1519.8125 | V25: 0.03529410217 | W25: 2*2007 | X25: 2007-02-01 | Y25: =SUM(IF((MONTH($B$9:$B$4391)=MONTH(X25))*(YEAR($B$9:$B$4391)=YEAR(X25)),$P$9:$P$4177)) -> 4.450480172e-07 | Z25: 70940
A26: 19 | B26: 2005-10-18 | C26: 2.400000095 | D26: 2 | E26: 4.400000095 | F26: 8.727272916 | G26: 3.946250359 | H26: =IF(interpolation($F26,Lookup!$A$4:$A$245,Lookup!$B$4:$B$245)=0,0.00001,interpolation($F26,Lookup!$A$4:$A$245,Lookup!$B$4:$B$245)) -> 16.55454636 | I26: 8.346250455 | J26: 0 | K26: 8.600000381 | L26: 1.008333325 | M26: 1570 | N26: 1360 | O26: 1578.6 | P26: 1.008333325 | Q26: 0 | R26: 1361.008333 | S26: 8.600000381 | T26: 1586.946251 | U26: 1369.608334 | V26: 0.02352940052 | W26: 3*2007 | X26: 2007-03-01 | Y26: =SUM(IF((MONTH($B$9:$B$4391)=MONTH(X26))*(YEAR($B$9:$B$4391)=YEAR(X26)),$P$9:$P$4177)) -> 35.98640796 | Z26: 71290
A27: 20 | B27: 2005-10-19 | C27: 1.200000048 | D27: 0.8799999952 | E27: 2.080000043 | F27: 4.12561992 | G27: 1.727083441 | H27: =IF(interpolation($F27,Lookup!$A$4:$A$245,Lookup!$B$4:$B$245)=0,0.00001,interpolation($F27,Lookup!$A$4:$A$245,Lookup!$B$4:$B$245)) -> 7.551239967 | I27: 3.807083484 | J27: 0 | K27: 8.600000381 | L27: 1.512500048 | M27: 1150 | N27: 1140 | O27: 1158.6 | P27: 1.512500048 | Q27: 0 | R27: 1141.5125 | S27: 8.600000381 | T27: 1162.407084 | U27: 1150.1125 | V27: 0.03529410217 | W27: 4*2007 | X27: 2007-04-01 | Y27: =SUM(IF((MONTH($B$9:$B$4391)=MONTH(X27))*(YEAR($B$9:$B$4391)=YEAR(X27)),$P$9:$P$4177)) -> 51.8207711 | Z27: 71400
A28: 21 | B28: 2005-10-20 | C28: 0.9599999785 | D28: 0.6800000072 | E28: 1.639999986 | F28: 3.252892534 | G28: 1.310833506 | H28: =IF(interpolation($F28,Lookup!$A$4:$A$245,Lookup!$B$4:$B$245)=0,0.00001,interpolation($F28,Lookup!$A$4:$A$245,Lookup!$B$4:$B$245)) -> 5.852892876 | I28: 2.950833491 | J28: 0 | K28: 8.399999619 | L28: 1.512500048 | M28: 1210 | N28: 1250 | O28: 1218.4 | P28: 1.512500048 | Q28: 0 | R28: 1251.5125 | S28: 8.399999619 | T28: 1221.350833 | U28: 1259.9125 | V28: 0.03529410217 | W28: 5*2007 | X28: 2007-05-01 | Y28: =SUM(IF((MONTH($B$9:$B$4391)=MONTH(X28))*(YEAR($B$9:$B$4391)=YEAR(X28)),$P$9:$P$4177)) -> 99.81340447 | Z28: 71290
A29: 22 | B29: 2005-10-21 | C29: 0.9200000167 | D29: 0.6000000238 | E29: 1.520000041 | F29: 3.014876113 | G29: 1.217500103 | H29: =IF(interpolation($F29,Lookup!$A$4:$A$245,Lookup!$B$4:$B$245)=0,0.00001,interpolation($F29,Lookup!$A$4:$A$245,Lookup!$B$4:$B$245)) -> 5.42975235 | I29: 2.737500143 | J29: 0 | K29: 8.399999619 | L29: 1.008333325 | M29: 1650 | N29: 1140 | O29: 1658.4 | P29: 1.008333325 | Q29: 0 | R29: 1141.008333 | S29: 8.399999619 | T29: 1661.1375 | U29: 1149.408333 | V29: 0.02352940052 | W29: 6*2007 | X29: 2007-06-01 | Y29: =SUM(IF((MONTH($B$9:$B$4391)=MONTH(X29))*(YEAR($B$9:$B$4391)=YEAR(X29)),$P$9:$P$4177)) -> 138.1416657 | Z29: 72440
A30: 23 | B30: 2005-10-22 | C30: 0.9200000167 | D30: 0.5600000024 | E30: 1.480000019 | F30: 2.935537228 | G30: 1.177499938 | H30: =IF(interpolation($F30,Lookup!$A$4:$A$245,Lookup!$B$4:$B$245)=0,0.00001,interpolation($F30,Lookup!$A$4:$A$245,Lookup!$B$4:$B$245)) -> 5.271074295 | I30: 2.657499957 | J30: 0 | K30: 8.399999619 | L30: 1.512500048 | M30: 1500 | N30: 1110 | O30: 1508.4 | P30: 1.512500048 | Q30: 0 | R30: 1111.5125 | S30: 8.399999619 | T30: 1511.0575 | U30: 1119.9125 | V30: 0.03529410217 | W30: 7*2007 | X30: 2007-07-01 | Y30: =SUM(IF((MONTH($B$9:$B$4391)=MONTH(X30))*(YEAR($B$9:$B$4391)=YEAR(X30)),$P$9:$P$4177)) -> 168.8454156 | Z30: 73170
A31: 24 | B31: 2005-10-23 | C31: 0.9200000167 | D31: 0.5299999714 | E31: 1.449999988 | F31: 2.876033034 | G31: 1.14749983 | H31: =IF(interpolation($F31,Lookup!$A$4:$A$245,Lookup!$B$4:$B$245)=0,0.00001,interpolation($F31,Lookup!$A$4:$A$245,Lookup!$B$4:$B$245)) -> 5.152065754 | I31: 2.597499818 | J31: 0 | K31: 8.399999619 | L31: 0.5041666627 | M31: 1360 | N31: 1300 | O31: 1368.4 | P31: 0.5041666627 | Q31: 0 | R31: 1300.504167 | S31: 8.399999619 | T31: 1370.997499 | U31: 1308.904166 | V31: 0.01176470026 | W31: 8*2007 | X31: 2007-08-01 | Y31: =SUM(IF((MONTH($B$9:$B$4391)=MONTH(X31))*(YEAR($B$9:$B$4391)=YEAR(X31)),$P$9:$P$4177)) -> 172.8968987 | Z31: 73330
A32: 25 | B32: 2005-10-24 | C32: 0.9200000167 | D32: 0.5 | E32: 1.420000017 | F32: 2.816528959 | G32: 1.117500142 | H32: =IF(interpolation($F32,Lookup!$A$4:$A$245,Lookup!$B$4:$B$245)=0,0.00001,interpolation($F32,Lookup!$A$4:$A$245,Lookup!$B$4:$B$245)) -> 5.033058167 | I32: 2.537500159 | J32: 0 | K32: 8.399999619 | L32: 1.008333325 | M32: 1200 | N32: 1490 | O32: 1208.4 | P32: 1.008333325 | Q32: 0 | R32: 1491.008333 | S32: 8.399999619 | T32: 1210.9375 | U32: 1499.408333 | V32: 0.02352940052 | W32: 9*2007 | X32: 2007-09-01 | Y32: =SUM(IF((MONTH($B$9:$B$4391)=MONTH(X32))*(YEAR($B$9:$B$4391)=YEAR(X32)),$P$9:$P$4177)) -> 161.3333325 | Z32: 72730
A33: 26 | B33: 2005-10-25 | C33: 0.8999999762 | D33: 0.5 | E33: 1.399999976 | F33: 2.776859457 | G33: 1.09750009 | H33: =IF(interpolation($F33,Lookup!$A$4:$A$245,Lookup!$B$4:$B$245)=0,0.00001,interpolation($F33,Lookup!$A$4:$A$245,Lookup!$B$4:$B$245)) -> 4.953719139 | I33: 2.497500066 | J33: 0 | K33: 8.399999619 | L33: 1.008333325 | M33: 1360 | N33: 1250 | O33: 1368.4 | P33: 1.008333325 | Q33: 0 | R33: 1251.008333 | S33: 8.399999619 | T33: 1370.8975 | U33: 1259.408333 | V33: 0.02352940052 | W33: 10*2007 | X33: 2007-10-01 | Y33: =SUM(IF((MONTH($B$9:$B$4391)=MONTH(X33))*(YEAR($B$9:$B$4391)=YEAR(X33)),$P$9:$P$4177)) -> 141.0406229 | Z33: 73060
A34: 27 | B34: 2005-10-26 | C34: 0.8500000238 | D34: 0.5400000215 | E34: 1.390000045 | F34: 2.757024883 | G34: 1.087499974 | H34: =IF(interpolation($F34,Lookup!$A$4:$A$245,Lookup!$B$4:$B$245)=0,0.00001,interpolation($F34,Lookup!$A$4:$A$245,Lookup!$B$4:$B$245)) -> 4.914049625 | I34: 2.477500019 | J34: 0 | K34: 8.399999619 | L34: 1.512500048 | M34: 1140 | N34: 1280 | O34: 1148.4 | P34: 1.512500048 | Q34: 0 | R34: 1281.5125 | S34: 8.399999619 | T34: 1150.8775 | U34: 1289.9125 | V34: 0.03529410217 | W34: 11*2007 | X34: 2007-11-01 | Y34: =SUM(IF((MONTH($B$9:$B$4391)=MONTH(X34))*(YEAR($B$9:$B$4391)=YEAR(X34)),$P$9:$P$4177)) -> 133.9192684 | Z34: 72790
A35: 28 | B35: 2005-10-27 | C35: 0.8500000238 | D35: 0.5299999714 | E35: 1.379999995 | F35: 2.737190073 | G35: 1.077499978 | H35: =IF(interpolation($F35,Lookup!$A$4:$A$245,Lookup!$B$4:$B$245)=0,0.00001,interpolation($F35,Lookup!$A$4:$A$245,Lookup!$B$4:$B$245)) -> 4.874380112 | I35: 2.457499973 | J35: 0 | K35: 8.300000191 | L35: 1.008333325 | M35: 1020 | N35: 1470 | O35: 1028.3 | P35: 1.008333325 | Q35: 0 | R35: 1471.008333 | S35: 8.300000191 | T35: 1030.7575 | U35: 1479.308334 | V35: 0.02352940052 | W35: 12*2007 | X35: 2007-12-01 | Y35: =SUM(IF((MONTH($B$9:$B$4391)=MONTH(X35))*(YEAR($B$9:$B$4391)=YEAR(X35)),$P$9:$P$4177)) -> 79.60287463 | Z35: 71800
A36: 29 | B36: 2005-10-28 | C36: 0.8500000238 | D36: 0.5 | E36: 1.350000024 | F36: 2.677685998 | G36: 1.04750005 | H36: =IF(interpolation($F36,Lookup!$A$4:$A$245,Lookup!$B$4:$B$245)=0,0.00001,interpolation($F36,Lookup!$A$4:$A$245,Lookup!$B$4:$B$245)) -> 4.755372047 | I36: 2.397500074 | J36: 0 | K36: 8.300000191 | L36: 0 | M36: 1420 | N36: 1440 | O36: 1428.3 | P36: 1e-05 | Q36: 0 | R36: 1440.00001 | S36: 8.300000191 | T36: 1430.6975 | U36: 1448.30001 | V36: 2.333494285e-07 | W36: 1*2008 | X36: 2008-01-01 | Y36: =SUM(IF((MONTH($B$9:$B$4391)=MONTH(X36))*(YEAR($B$9:$B$4391)=YEAR(X36)),$P$9:$P$4177)) -> 25.29756963 | Z36: 71770
A37: 30 | B37: 2005-10-29 | C37: 0.8500000238 | D37: 0.5500000119 | E37: 1.400000036 | F37: 2.776859575 | G37: 1.09750003 | H37: =IF(interpolation($F37,Lookup!$A$4:$A$245,Lookup!$B$4:$B$245)=0,0.00001,interpolation($F37,Lookup!$A$4:$A$245,Lookup!$B$4:$B$245)) -> 4.953719139 | I37: 2.497500066 | J37: 0 | K37: 8.300000191 | L37: 0.5041666627 | M37: 1490 | N37: 1360 | O37: 1498.3 | P37: 0.5041666627 | Q37: 0 | R37: 1360.504167 | S37: 8.300000191 | T37: 1500.7975 | U37: 1368.804167 | V37: 0.01176470026 | W37: 2*2008 | X37: 2008-02-01 | Y37: =SUM(IF((MONTH($B$9:$B$4391)=MONTH(X37))*(YEAR($B$9:$B$4391)=YEAR(X37)),$P$9:$P$4177)) -> 16.46357177 | Z37: 72090
A38: 31 | B38: 2005-10-30 | C38: 0.8500000238 | D38: 0.5600000024 | E38: 1.410000026 | F38: 2.796694267 | G38: 1.107500086 | H38: =IF(interpolation($F38,Lookup!$A$4:$A$245,Lookup!$B$4:$B$245)=0,0.00001,interpolation($F38,Lookup!$A$4:$A$245,Lookup!$B$4:$B$245)) -> 4.993388653 | I38: 2.517500112 | J38: 0 | K38: 8.100000381 | L38: 0 | M38: 1850 | N38: 1470 | O38: 1858.1 | P38: 1e-05 | Q38: 0 | R38: 1470.00001 | S38: 8.100000381 | T38: 1860.6175 | U38: 1478.10001 | V38: 2.333494285e-07 | W38: 3*2008 | X38: 2008-03-01 | Y38: =SUM(IF((MONTH($B$9:$B$4391)=MONTH(X38))*(YEAR($B$9:$B$4391)=YEAR(X38)),$P$9:$P$4177)) -> 22.18333298 | Z38: 72900
A39: 32 | B39: 2005-10-31 | C39: 0.8500000238 | D39: 0.5299999714 | E39: 1.379999995 | F39: 2.737190073 | G39: 1.077499978 | H39: =IF(interpolation($F39,Lookup!$A$4:$A$245,Lookup!$B$4:$B$245)=0,0.00001,interpolation($F39,Lookup!$A$4:$A$245,Lookup!$B$4:$B$245)) -> 4.874380112 | I39: 2.457499973 | J39: 0 | K39: 8 | L39: 0.5041666627 | M39: 1260 | N39: 1530 | O39: 1268 | P39: 0.5041666627 | Q39: 0 | R39: 1530.504167 | S39: 8 | T39: 1270.4575 | U39: 1538.504167 | V39: 0.01176470026 | W39: 4*2008 | X39: 2008-04-01 | Y39: =SUM(IF((MONTH($B$9:$B$4391)=MONTH(X39))*(YEAR($B$9:$B$4391)=YEAR(X39)),$P$9:$P$4177)) -> 27.72916642 | Z39: 72260
A40: 33 | B40: 2005-11-01 | C40: 0.8500000238 | D40: 0.5 | E40: 1.350000024 | F40: 2.677685998 | G40: 1.04750005 | H40: =IF(interpolation($F40,Lookup!$A$4:$A$245,Lookup!$B$4:$B$245)=0,0.00001,interpolation($F40,Lookup!$A$4:$A$245,Lookup!$B$4:$B$245)) -> 4.755372047 | I40: 2.397500074 | J40: 50 | K40: 8 | L40: 1.512500048 | M40: 1390 | N40: 1520 | O40: 1398 | P40: 1.512500048 | Q40: 0 | R40: 1521.5125 | S40: 58 | T40: 1400.3975 | U40: 1579.5125 | V40: 0.03997330914 | W40: 5*2008 | X40: 2008-05-01 | Y40: =SUM(IF((MONTH($B$9:$B$4391)=MONTH(X40))*(YEAR($B$9:$B$4391)=YEAR(X40)),$P$9:$P$4177)) -> 43.9230004 | Z40: 72230
A41: 34 | B41: 2005-11-02 | C41: 0.8500000238 | D41: 0.5 | E41: 1.350000024 | F41: 2.677685998 | G41: 1.04750005 | H41: =IF(interpolation($F41,Lookup!$A$4:$A$245,Lookup!$B$4:$B$245)=0,0.00001,interpolation($F41,Lookup!$A$4:$A$245,Lookup!$B$4:$B$245)) -> 4.755372047 | I41: 2.397500074 | J41: 79 | K41: 8 | L41: 1.008333325 | M41: 1360 | N41: 1530 | O41: 1368 | P41: 1.008333325 | Q41: 0 | R41: 1531.008333 | S41: 87 | T41: 1370.3975 | U41: 1618.008333 | V41: 0.02664887171 | W41: 6*2008 | X41: 2008-06-01 | Y41: =SUM(IF((MONTH($B$9:$B$4391)=MONTH(X41))*(YEAR($B$9:$B$4391)=YEAR(X41)),$P$9:$P$4177)) -> 63.371229 | Z41: 71580
A42: 35 | B42: 2005-11-03 | C42: 0.8500000238 | D42: 0.5 | E42: 1.350000024 | F42: 2.677685998 | G42: 1.04750005 | H42: =IF(interpolation($F42,Lookup!$A$4:$A$245,Lookup!$B$4:$B$245)=0,0.00001,interpolation($F42,Lookup!$A$4:$A$245,Lookup!$B$4:$B$245)) -> 4.755372047 | I42: 2.397500074 | J42: 35 | K42: 8 | L42: 1.512500048 | M42: 1420 | N42: 1310 | O42: 1428 | P42: 1.512500048 | Q42: 0 | R42: 1311.5125 | S42: 43 | T42: 1430.3975 | U42: 1354.5125 | V42: 0.03997330914 | W42: 7*2008 | X42: 2008-07-01 | Y42: =SUM(IF((MONTH($B$9:$B$4391)=MONTH(X42))*(YEAR($B$9:$B$4391)=YEAR(X42)),$P$9:$P$4177)) -> 100.704771 | Z42: 71630
A43: 36 | B43: 2005-11-04 | C43: 0.7900000215 | D43: 0.5 | E43: 1.290000021 | F43: 2.558677729 | G43: 1.008333306 | H43: =IF(interpolation($F43,Lookup!$A$4:$A$245,Lookup!$B$4:$B$245)=0,0.00001,interpolation($F43,Lookup!$A$4:$A$245,Lookup!$B$4:$B$245)) -> 4.558677673 | I43: 2.298333327 | J43: 25 | K43: 8 | L43: 1.512500048 | M43: 1320 | N43: 1300 | O43: 1328 | P43: 1.512500048 | Q43: 0 | R43: 1301.5125 | S43: 33 | T43: 1330.298333 | U43: 1334.5125 | V43: 0.03997330914 | W43: 8*2008 | X43: 2008-08-01 | Y43: =SUM(IF((MONTH($B$9:$B$4391)=MONTH(X43))*(YEAR($B$9:$B$4391)=YEAR(X43)),$P$9:$P$4177)) -> 107.9597297 | Z43: 71580
A44: 37 | B44: 2005-11-05 | C44: 0.7799999714 | D44: 0.5 | E44: 1.279999971 | F44: 2.538842918 | G44: 1.008333453 | H44: =IF(interpolation($F44,Lookup!$A$4:$A$245,Lookup!$B$4:$B$245)=0,0.00001,interpolation($F44,Lookup!$A$4:$A$245,Lookup!$B$4:$B$245)) -> 4.538843155 | I44: 2.288333424 | J44: 25 | K44: 8 | L44: 0.5041666627 | M44: 1520 | N44: 1170 | O44: 1528 | P44: 0.5041666627 | Q44: 0 | R44: 1170.504167 | S44: 33 | T44: 1530.288333 | U44: 1203.504167 | V44: 0.01332443585 | W44: 9*2008 | X44: 2008-09-01 | Y44: =SUM(IF((MONTH($B$9:$B$4391)=MONTH(X44))*(YEAR($B$9:$B$4391)=YEAR(X44)),$P$9:$P$4177)) -> 78.32481241 | Z44: 72420
A45: 38 | B45: 2005-11-06 | C45: 0.7799999714 | D45: 0.5 | E45: 1.279999971 | F45: 2.538842918 | G45: 1.008333453 | H45: =IF(interpolation($F45,Lookup!$A$4:$A$245,Lookup!$B$4:$B$245)=0,0.00001,interpolation($F45,Lookup!$A$4:$A$245,Lookup!$B$4:$B$245)) -> 4.538843155 | I45: 2.288333424 | J45: 25 | K45: 8 | L45: 0 | M45: 1380 | N45: 1250 | O45: 1388 | P45: 1e-05 | Q45: 0 | R45: 1250.00001 | S45: 33 | T45: 1390.288333 | U45: 1283.00001 | V45: 2.642863331e-07 | W45: 10*2008 | X45: 2008-10-01 | Y45: =SUM(IF((MONTH($B$9:$B$4391)=MONTH(X45))*(YEAR($B$9:$B$4391)=YEAR(X45)),$P$9:$P$4177)) -> 64.8030622 | Z45: 72690
A46: 39 | B46: 2005-11-07 | C46: 0.7799999714 | D46: 0.5 | E46: 1.279999971 | F46: 2.538842918 | G46: 1.008333453 | H46: =IF(interpolation($F46,Lookup!$A$4:$A$245,Lookup!$B$4:$B$245)=0,0.00001,interpolation($F46,Lookup!$A$4:$A$245,Lookup!$B$4:$B$245)) -> 4.538843155 | I46: 2.288333424 | J46: 25 | K46: 8 | L46: 0 | M46: 1180 | N46: 1650 | O46: 1188 | P46: 1e-05 | Q46: 0 | R46: 1650.00001 | S46: 33 | T46: 1190.288333 | U46: 1683.00001 | V46: 2.642863331e-07 | W46: 11*2008 | X46: 2008-11-01 | Y46: =SUM(IF((MONTH($B$9:$B$4391)=MONTH(X46))*(YEAR($B$9:$B$4391)=YEAR(X46)),$P$9:$P$4177)) -> 42.28445876 | Z46: 71610
A47: 40 | B47: 2005-11-08 | C47: 0.7799999714 | D47: 0.5 | E47: 1.279999971 | F47: 2.538842918 | G47: 1.008333453 | H47: =IF(interpolation($F47,Lookup!$A$4:$A$245,Lookup!$B$4:$B$245)=0,0.00001,interpolation($F47,Lookup!$A$4:$A$245,Lookup!$B$4:$B$245)) -> 4.538843155 | I47: 2.288333424 | J47: 25 | K47: 8 | L47: 1.512500048 | M47: 1100 | N47: 1260 | O47: 1108 | P47: 1.512500048 | Q47: 0 | R47: 1261.5125 | S47: 33 | T47: 1110.288333 | U47: 1294.5125 | V47: 0.03997330914 | W47: 12*2008 | X47: 2008-12-01 | Y47: =SUM(IF((MONTH($B$9:$B$4391)=MONTH(X47))*(YEAR($B$9:$B$4391)=YEAR(X47)),$P$9:$P$4177)) -> 41.52073615 | Z47: 71370
A48: 41 | B48: 2005-11-09 | C48: 0.7799999714 | D48: 0.5 | E48: 1.279999971 | F48: 2.538842918 | G48: 1.008333453 | H48: =IF(interpolation($F48,Lookup!$A$4:$A$245,Lookup!$B$4:$B$245)=0,0.00001,interpolation($F48,Lookup!$A$4:$A$245,Lookup!$B$4:$B$245)) -> 4.538843155 | I48: 2.288333424 | J48: 25 | K48: 8 | L48: 1.699041605 | M48: 1230 | N48: 1310 | O48: 1238 | P48: 1.699041605 | Q48: 0 | R48: 1311.699042 | S48: 33 | T48: 1240.288333 | U48: 1344.699042 | V48: 0.04490334755 | W48: 1*2009 | X48: 2009-01-01 | Y48: =SUM(IF((MONTH($B$9:$B$4391)=MONTH(X48))*(YEAR($B$9:$B$4391)=YEAR(X48)),$P$9:$P$4177)) -> 61.59908402 | Z48: 71290
A49: 42 | B49: 2005-11-10 | C49: 0.7799999714 | D49: 0.5 | E49: 1.279999971 | F49: 2.538842918 | G49: 1.008333453 | H49: =IF(interpolation($F49,Lookup!$A$4:$A$245,Lookup!$B$4:$B$245)=0,0.00001,interpolation($F49,Lookup!$A$4:$A$245,Lookup!$B$4:$B$245)) -> 4.538843155 | I49: 2.288333424 | J49: 25 | K49: 8 | L49: 1.512500048 | M49: 1190 | N49: 1380 | O49: 1198 | P49: 1.512500048 | Q49: 0 | R49: 1381.5125 | S49: 33 | T49: 1200.288333 | U49: 1414.5125 | V49: 0.03997330914 | W49: 2*2009 | X49: 2009-02-01 | Y49: =SUM(IF((MONTH($B$9:$B$4391)=MONTH(X49))*(YEAR($B$9:$B$4391)=YEAR(X49)),$P$9:$P$4177)) -> 14.26539665 | Z49: 70750
A50: 43 | B50: 2005-11-11 | C50: 0.7799999714 | D50: 0.5299999714 | E50: 1.309999943 | F50: 2.598346994 | G50: 1.00833319 | H50: =IF(interpolation($F50,Lookup!$A$4:$A$245,Lookup!$B$4:$B$245)=0,0.00001,interpolation($F50,Lookup!$A$4:$A$245,Lookup!$B$4:$B$245)) -> 4.59834671 | I50: 2.318333133 | J50: 25 | K50: 8 | L50: 1.512500048 | M50: 1340 | N50: 1360 | O50: 1348 | P50: 1.512500048 | Q50: 0 | R50: 1361.5125 | S50: 33 | T50: 1350.318333 | U50: 1394.5125 | V50: 0.03997330914 | W50: 3*2009 | X50: 2009-03-01 | Y50: =SUM(IF((MONTH($B$9:$B$4391)=MONTH(X50))*(YEAR($B$9:$B$4391)=YEAR(X50)),$P$9:$P$4177)) -> 13.54191766 | Z50: 70730
A51: 44 | B51: 2005-11-12 | C51: 0.7799999714 | D51: 0.5600000024 | E51: 1.339999974 | F51: 2.657851188 | G51: 1.037500054 | H51: =IF(interpolation($F51,Lookup!$A$4:$A$245,Lookup!$B$4:$B$245)=0,0.00001,interpolation($F51,Lookup!$A$4:$A$245,Lookup!$B$4:$B$245)) -> 4.715702534 | I51: 2.377500027 | J51: 25 | K51: 8 | L51: 0 | M51: 1590 | N51: 1110 | O51: 1598 | P51: 1e-05 | Q51: 0 | R51: 1110.00001 | S51: 33 | T51: 1600.3775 | U51: 1143.00001 | V51: 2.642863331e-07 | W51: 4*2009 | X51: 2009-04-01 | Y51: =SUM(IF((MONTH($B$9:$B$4391)=MONTH(X51))*(YEAR($B$9:$B$4391)=YEAR(X51)),$P$9:$P$4177)) -> 13.61252073 | Z51: 71660
A52: 45 | B52: 2005-11-13 | C52: 0.7799999714 | D52: 0.5899999738 | E52: 1.369999945 | F52: 2.717355263 | G52: 1.067499981 | H52: =IF(interpolation($F52,Lookup!$A$4:$A$245,Lookup!$B$4:$B$245)=0,0.00001,interpolation($F52,Lookup!$A$4:$A$245,Lookup!$B$4:$B$245)) -> 4.834710598 | I52: 2.437499926 | J52: 25 | K52: 8 | L52: 1.512500048 | M52: 1450 | N52: 1160 | O52: 1458 | P52: 1.512500048 | Q52: 0 | R52: 1161.5125 | S52: 33 | T52: 1460.4375 | U52: 1194.5125 | V52: 0.03997330914 | W52: 5*2009 | X52: 2009-05-01 | Y52: =SUM(IF((MONTH($B$9:$B$4391)=MONTH(X52))*(YEAR($B$9:$B$4391)=YEAR(X52)),$P$9:$P$4177)) -> 1.924898148e-05 | Z52: 72140
A53: 46 | B53: 2005-11-14 | C53: 0.7799999714 | D53: 0.6100000143 | E53: 1.389999986 | F53: 2.757024765 | G53: 1.087500034 | H53: =IF(interpolation($F53,Lookup!$A$4:$A$245,Lookup!$B$4:$B$245)=0,0.00001,interpolation($F53,Lookup!$A$4:$A$245,Lookup!$B$4:$B$245)) -> 4.914049625 | I53: 2.477500019 | J53: 111 | K53: 8 | L53: 1.482249975 | M53: 1350 | N53: 1470 | O53: 1358 | P53: 1.482249975 | Q53: 0 | R53: 1471.48225 | S53: 119 | T53: 1360.4775 | U53: 1590.48225 | V53: 0.03917384106 | W53: 6*2009 | X53: 2009-06-01 | Y53: =SUM(IF((MONTH($B$9:$B$4391)=MONTH(X53))*(YEAR($B$9:$B$4391)=YEAR(X53)),$P$9:$P$4177)) -> 0 | Z53: 71740
A54: 47 | B54: 2005-11-15 | C54: 0.7799999714 | D54: 0.6100000143 | E54: 1.389999986 | F54: 2.757024765 | G54: 1.087500034 | H54: =IF(interpolation($F54,Lookup!$A$4:$A$245,Lookup!$B$4:$B$245)=0,0.00001,interpolation($F54,Lookup!$A$4:$A$245,Lookup!$B$4:$B$245)) -> 4.914049625 | I54: 2.477500019 | J54: 201 | K54: 8 | L54: 1.512500048 | M54: 1060 | N54: 1430 | O54: 1068 | P54: 1.512500048 | Q54: 0 | R54: 1431.5125 | S54: 209 | T54: 1070.4775 | U54: 1640.5125 | V54: 0.03997330914 | W54: 7*2009 | X54: 2009-07-01 | Y54: =SUM(IF((MONTH($B$9:$B$4391)=MONTH(X54))*(YEAR($B$9:$B$4391)=YEAR(X54)),$P$9:$P$4177)) -> 37.01591765 | Z54: 70600
A55: 48 | B55: 2005-11-16 | C55: 0.7799999714 | D55: 0.6100000143 | E55: 1.389999986 | F55: 2.757024765 | G55: 1.087500034 | H55: =IF(interpolation($F55,Lookup!$A$4:$A$245,Lookup!$B$4:$B$245)=0,0.00001,interpolation($F55,Lookup!$A$4:$A$245,Lookup!$B$4:$B$245)) -> 4.914049625 | I55: 2.477500019 | J55: 201 | K55: 8 | L55: 1.512500048 | M55: 1360 | N55: 1680 | O55: 1368 | P55: 1.512500048 | Q55: 0 | R55: 1681.5125 | S55: 209 | T55: 1370.4775 | U55: 1890.5125 | V55: 0.03997330914 | W55: 8*2009 | X55: 2009-08-01 | Y55: =SUM(IF((MONTH($B$9:$B$4391)=MONTH(X55))*(YEAR($B$9:$B$4391)=YEAR(X55)),$P$9:$P$4177)) -> 97.10754275 | Z55: 69640
A56: 49 | B56: 2005-11-17 | C56: 0.7799999714 | D56: 0.6100000143 | E56: 1.389999986 | F56: 2.757024765 | G56: 1.087500034 | H56: =IF(interpolation($F56,Lookup!$A$4:$A$245,Lookup!$B$4:$B$245)=0,0.00001,interpolation($F56,Lookup!$A$4:$A$245,Lookup!$B$4:$B$245)) -> 4.914049625 | I56: 2.477500019 | J56: 201 | K56: 8 | L56: 1.512500048 | M56: 1470 | N56: 1630 | O56: 1478 | P56: 1.512500048 | Q56: 0 | R56: 1631.5125 | S56: 209 | T56: 1480.4775 | U56: 1840.5125 | V56: 0.03997330914 | W56: 9*2009 | X56: 2009-09-01 | Y56: =SUM(IF((MONTH($B$9:$B$4391)=MONTH(X56))*(YEAR($B$9:$B$4391)=YEAR(X56)),$P$9:$P$4177)) -> 90.26600122 | Z56: 68940
A57: 50 | B57: 2005-11-18 | C57: 0.7799999714 | D57: 0.6100000143 | E57: 1.389999986 | F57: 2.757024765 | G57: 1.087500034 | H57: =IF(interpolation($F57,Lookup!$A$4:$A$245,Lookup!$B$4:$B$245)=0,0.00001,interpolation($F57,Lookup!$A$4:$A$245,Lookup!$B$4:$B$245)) -> 4.914049625 | I57: 2.477500019 | J57: 201 | K57: 8 | L57: 1.512500048 | M57: 1430 | N57: 1590 | O57: 1438 | P57: 1.512500048 | Q57: 0 | R57: 1591.5125 | S57: 209 | T57: 1440.4775 | U57: 1800.5125 | V57: 0.03997330914 | W57: 10*2009 | X57: 2009-10-01 | Y57: =SUM(IF((MONTH($B$9:$B$4391)=MONTH(X57))*(YEAR($B$9:$B$4391)=YEAR(X57)),$P$9:$P$4177)) -> 78.14583135 | Z57: 68130
A58: 51 | B58: 2005-11-19 | C58: 0.7799999714 | D58: 0.6399999857 | E58: 1.419999957 | F58: 2.81652884 | G58: 1.117499961 | H58: =IF(interpolation($F58,Lookup!$A$4:$A$245,Lookup!$B$4:$B$245)=0,0.00001,interpolation($F58,Lookup!$A$4:$A$245,Lookup!$B$4:$B$245)) -> 5.03305769 | I58: 2.537499919 | J58: 201 | K58: 8 | L58: 0 | M58: 1470 | N58: 1420 | O58: 1478 | P58: 1e-05 | Q58: 0 | R58: 1420.00001 | S58: 209 | T58: 1480.5375 | U58: 1629.00001 | V58: 2.642863331e-07 | W58: 11*2009 | X58: 2009-11-01 | Y58: =SUM(IF((MONTH($B$9:$B$4391)=MONTH(X58))*(YEAR($B$9:$B$4391)=YEAR(X58)),$P$9:$P$4177)) -> 58.48081243 | Z58: 67890
A59: 52 | B59: 2005-11-20 | C59: 0.7799999714 | D59: 0.6700000167 | E59: 1.449999988 | F59: 2.876033034 | G59: 1.14749983 | H59: =IF(interpolation($F59,Lookup!$A$4:$A$245,Lookup!$B$4:$B$245)=0,0.00001,interpolation($F59,Lookup!$A$4:$A$245,Lookup!$B$4:$B$245)) -> 5.152065754 | I59: 2.597499818 | J59: 201 | K59: 8 | L59: 1.512500048 | M59: 1810 | N59: 1110 | O59: 1818 | P59: 1.512500048 | Q59: 0 | R59: 1111.5125 | S59: 209 | T59: 1820.5975 | U59: 1320.5125 | V59: 0.03997330914 | W59: 12*2009 | X59: 2009-12-01 | Y59: =SUM(IF((MONTH($B$9:$B$4391)=MONTH(X59))*(YEAR($B$9:$B$4391)=YEAR(X59)),$P$9:$P$4177)) -> 57.68927113 | Z59: 68880
A60: 53 | B60: 2005-11-21 | C60: 0.7799999714 | D60: 0.6700000167 | E60: 1.449999988 | F60: 2.876033034 | G60: 1.14749983 | H60: =IF(interpolation($F60,Lookup!$A$4:$A$245,Lookup!$B$4:$B$245)=0,0.00001,interpolation($F60,Lookup!$A$4:$A$245,Lookup!$B$4:$B$245)) -> 5.152065754 | I60: 2.597499818 | J60: 201 | K60: 8 | L60: 1.512500048 | M60: 1580 | N60: 1190 | O60: 1588 | P60: 1.512500048 | Q60: 0 | R60: 1191.5125 | S60: 209 | T60: 1590.5975 | U60: 1400.5125 | V60: 0.03997330914 | W60: 1*2010 | X60: 2010-01-01 | Y60: =SUM(IF((MONTH($B$9:$B$4391)=MONTH(X60))*(YEAR($B$9:$B$4391)=YEAR(X60)),$P$9:$P$4177)) -> 5.568560872 | Z60: 69300
A61: 54 | B61: 2005-11-22 | C61: 0.7799999714 | D61: 0.6700000167 | E61: 1.449999988 | F61: 2.876033034 | G61: 1.14749983 | H61: =IF(interpolation($F61,Lookup!$A$4:$A$245,Lookup!$B$4:$B$245)=0,0.00001,interpolation($F61,Lookup!$A$4:$A$245,Lookup!$B$4:$B$245)) -> 5.152065754 | I61: 2.597499818 | J61: 201 | K61: 8 | L61: 1.512500048 | M61: 1300 | N61: 1120 | O61: 1308 | P61: 1.512500048 | Q61: 0 | R61: 1121.5125 | S61: 209 | T61: 1310.5975 | U61: 1330.5125 | V61: 0.03997330914 | W61: 2*2010 | X61: 2010-02-01 | Y61: =SUM(IF((MONTH($B$9:$B$4391)=MONTH(X61))*(YEAR($B$9:$B$4391)=YEAR(X61)),$P$9:$P$4177)) -> 6.587007638 | Z61: 69380
A62: 55 | B62: 2005-11-23 | C62: 0.7799999714 | D62: 0.6700000167 | E62: 1.449999988 | F62: 2.876033034 | G62: 1.14749983 | H62: =IF(interpolation($F62,Lookup!$A$4:$A$245,Lookup!$B$4:$B$245)=0,0.00001,interpolation($F62,Lookup!$A$4:$A$245,Lookup!$B$4:$B$245)) -> 5.152065754 | I62: 2.597499818 | J62: 201 | K62: 8 | L62: 1.512500048 | M62: 1250 | N62: 1080 | O62: 1258 | P62: 1.512500048 | Q62: 0 | R62: 1081.5125 | S62: 209 | T62: 1260.5975 | U62: 1290.5125 | V62: 0.03997330914 | W62: 3*2010 | X62: 2010-03-01 | Y62: =SUM(IF((MONTH($B$9:$B$4391)=MONTH(X62))*(YEAR($B$9:$B$4391)=YEAR(X62)),$P$9:$P$4177)) -> 0 | Z62: 69280
A63: 56 | B63: 2005-11-24 | C63: 0.7799999714 | D63: 0.6800000072 | E63: 1.459999979 | F63: 2.895867726 | G63: 1.157499886 | H63: =IF(interpolation($F63,Lookup!$A$4:$A$245,Lookup!$B$4:$B$245)=0,0.00001,interpolation($F63,Lookup!$A$4:$A$245,Lookup!$B$4:$B$245)) -> 5.191735268 | I63: 2.617499864 | J63: 201 | K63: 8 | L63: 1.512500048 | M63: 1750 | N63: 948 | O63: 1758 | P63: 1.512500048 | Q63: 0 | R63: 949.5125 | S63: 209 | T63: 1760.6175 | U63: 1158.5125 | V63: 0.03997330914 | W63: 4*2010 | X63: 2010-04-01 | Y63: =SUM(IF((MONTH($B$9:$B$4391)=MONTH(X63))*(YEAR($B$9:$B$4391)=YEAR(X63)),$P$9:$P$4177)) -> 0.1211301071 | Z63: 70700
A64: 57 | B64: 2005-11-25 | C64: 0.8000000119 | D64: 0.7400000095 | E64: 1.540000021 | F64: 3.054545497 | G64: 1.237499974 | H64: =IF(interpolation($F64,Lookup!$A$4:$A$245,Lookup!$B$4:$B$245)=0,0.00001,interpolation($F64,Lookup!$A$4:$A$245,Lookup!$B$4:$B$245)) -> 5.5090909 | I64: 2.777499996 | J64: 201 | K64: 8 | L64: 1.512500048 | M64: 1150 | N64: 1310 | O64: 1158 | P64: 1.512500048 | Q64: 0 | R64: 1311.5125 | S64: 209 | T64: 1160.7775 | U64: 1520.5125 | V64: 0.03997330914 | W64: 5*2010 | X64: 2010-05-01 | Y64: =SUM(IF((MONTH($B$9:$B$4391)=MONTH(X64))*(YEAR($B$9:$B$4391)=YEAR(X64)),$P$9:$P$4177)) -> 0 | Z64: 69830
A65: 58 | B65: 2005-11-26 | C65: 0.8500000238 | D65: 0.7400000095 | E65: 1.590000033 | F65: 3.153719074 | G65: 1.287500195 | H65: =IF(interpolation($F65,Lookup!$A$4:$A$245,Lookup!$B$4:$B$245)=0,0.00001,interpolation($F65,Lookup!$A$4:$A$245,Lookup!$B$4:$B$245)) -> 5.707438469 | I65: 2.877500228 | J65: 201 | K65: 8 | L65: 1.381416678 | M65: 974 | N65: 1010 | O65: 982 | P65: 1.381416678 | Q65: 0 | R65: 1011.381417 | S65: 209 | T65: 984.8775002 | U65: 1220.381417 | V65: 0.03650895484 | W65: 6*2010 | X65: 2010-06-01 | Y65: =SUM(IF((MONTH($B$9:$B$4391)=MONTH(X65))*(YEAR($B$9:$B$4391)=YEAR(X65)),$P$9:$P$4177)) -> 0 | Z65: 69330
A66: 59 | B66: 2005-11-27 | C66: 0.8500000238 | D66: 0.7400000095 | E66: 1.590000033 | F66: 3.153719074 | G66: 1.287500195 | H66: =IF(interpolation($F66,Lookup!$A$4:$A$245,Lookup!$B$4:$B$245)=0,0.00001,interpolation($F66,Lookup!$A$4:$A$245,Lookup!$B$4:$B$245)) -> 5.707438469 | I66: 2.877500228 | J66: 201 | K66: 8 | L66: 1.512500048 | M66: 1730 | N66: 1100 | O66: 1738 | P66: 1.512500048 | Q66: 0 | R66: 1101.5125 | S66: 209 | T66: 1740.8775 | U66: 1310.5125 | V66: 0.03997330914 | W66: 7*2010 | X66: 2010-07-01 | Y66: =SUM(IF((MONTH($B$9:$B$4391)=MONTH(X66))*(YEAR($B$9:$B$4391)=YEAR(X66)),$P$9:$P$4177)) -> 0.08066604137 | Z66: 70250
A67: 60 | B67: 2005-11-28 | C67: 0.8500000238 | D67: 0.7400000095 | E67: 1.590000033 | F67: 3.153719074 | G67: 1.287500195 | H67: =IF(interpolation($F67,Lookup!$A$4:$A$245,Lookup!$B$4:$B$245)=0,0.00001,interpolation($F67,Lookup!$A$4:$A$245,Lookup!$B$4:$B$245)) -> 5.707438469 | I67: 2.877500228 | J67: 83 | K67: 8 | L67: 1.512500048 | M67: 1150 | N67: 1160 | O67: 1158 | P67: 1.512500048 | Q67: 0 | R67: 1161.5125 | S67: 91 | T67: 1160.8775 | U67: 1252.5125 | V67: 0.03997330914 | W67: 8*2010 | X67: 2010-08-01 | Y67: =SUM(IF((MONTH($B$9:$B$4391)=MONTH(X67))*(YEAR($B$9:$B$4391)=YEAR(X67)),$P$9:$P$4177)) -> 30.75416735 | Z67: 70020
A68: 61 | B68: 2005-11-29 | C68: 0.8500000238 | D68: 0.7400000095 | E68: 1.590000033 | F68: 3.153719074 | G68: 1.287500195 | H68: =IF(interpolation($F68,Lookup!$A$4:$A$245,Lookup!$B$4:$B$245)=0,0.00001,interpolation($F68,Lookup!$A$4:$A$245,Lookup!$B$4:$B$245)) -> 5.707438469 | I68: 2.877500228 | J68: 0 | K68: 7.900000095 | L68: 1.512500048 | M68: 1240 | N68: 1150 | O68: 1247.9 | P68: 1.512500048 | Q68: 0 | R68: 1151.5125 | S68: 7.900000095 | T68: 1250.7775 | U68: 1159.4125 | V68: 0.03997330914 | W68: 9*2010 | X68: 2010-09-01 | Y68: =SUM(IF((MONTH($B$9:$B$4391)=MONTH(X68))*(YEAR($B$9:$B$4391)=YEAR(X68)),$P$9:$P$4177)) -> 60.97643673 | Z68: 70250
A69: 62 | B69: 2005-11-30 | C69: 0.8500000238 | D69: 0.7400000095 | E69: 1.590000033 | F69: 3.153719074 | G69: 1.287500195 | H69: =IF(interpolation($F69,Lookup!$A$4:$A$245,Lookup!$B$4:$B$245)=0,0.00001,interpolation($F69,Lookup!$A$4:$A$245,Lookup!$B$4:$B$245)) -> 5.707438469 | I69: 2.877500228 | J69: 0 | K69: 7.900000095 | L69: 1.512500048 | M69: 1080 | N69: 1160 | O69: 1087.9 | P69: 1.512500048 | Q69: 0 | R69: 1161.5125 | S69: 7.900000095 | T69: 1090.7775 | U69: 1169.4125 | V69: 0.03997330914 | W69: 10*2010 | X69: 2010-10-01 | Y69: =SUM(IF((MONTH($B$9:$B$4391)=MONTH(X69))*(YEAR($B$9:$B$4391)=YEAR(X69)),$P$9:$P$4177)) -> 40.83758992 | Z69: 70200
A70: 63 | B70: 2005-12-01 | C70: 0.8500000238 | D70: 0.7400000095 | E70: 1.590000033 | F70: 3.153719074 | G70: 1.287500195 | H70: =IF(interpolation($F70,Lookup!$A$4:$A$245,Lookup!$B$4:$B$245)=0,0.00001,interpolation($F70,Lookup!$A$4:$A$245,Lookup!$B$4:$B$245)) -> 5.707438469 | I70: 2.877500228 | J70: 100 | K70: 7.900000095 | L70: 1.008333325 | M70: 1200 | N70: 1040 | O70: 1207.9 | P70: 1.008333325 | Q70: 0 | R70: 1041.008333 | S70: 107.9000001 | T70: 1210.7775 | U70: 1148.908333 | V70: 0.04444438486 | W70: 11*2010 | X70: 2010-11-01 | Y70: =SUM(IF((MONTH($B$9:$B$4391)=MONTH(X70))*(YEAR($B$9:$B$4391)=YEAR(X70)),$P$9:$P$4177)) -> 19.66268012 | Z70: 70410
A71: 64 | B71: 2005-12-02 | C71: 0.8500000238 | D71: 0.7400000095 | E71: 1.590000033 | F71: 3.153719074 | G71: 1.287500195 | H71: =IF(interpolation($F71,Lookup!$A$4:$A$245,Lookup!$B$4:$B$245)=0,0.00001,interpolation($F71,Lookup!$A$4:$A$245,Lookup!$B$4:$B$245)) -> 5.707438469 | I71: 2.877500228 | J71: 100 | K71: 7.900000095 | L71: 1.512500048 | M71: 1070 | N71: 892 | O71: 1077.9 | P71: 1.512500048 | Q71: 0 | R71: 893.5125 | S71: 107.9000001 | T71: 1080.7775 | U71: 1001.4125 | V71: 0.06666657991 | W71: 12*2010 | X71: 2010-12-01 | Y71: =SUM(IF((MONTH($B$9:$B$4391)=MONTH(X71))*(YEAR($B$9:$B$4391)=YEAR(X71)),$P$9:$P$4177)) -> 28.78049495 | Z71: 70440
A72: 65 | B72: 2005-12-03 | C72: 0.8500000238 | D72: 0.8100000024 | E72: 1.660000026 | F72: 3.292562035 | G72: 1.310833271 | H72: =IF(interpolation($F72,Lookup!$A$4:$A$245,Lookup!$B$4:$B$245)=0,0.00001,interpolation($F72,Lookup!$A$4:$A$245,Lookup!$B$4:$B$245)) -> 5.892561913 | I72: 2.970833298 | J72: 200 | K72: 8 | L72: 0.5041666627 | M72: 1220 | N72: 647 | O72: 1228 | P72: 0.5041666627 | Q72: 0 | R72: 647.5041667 | S72: 208 | T72: 1230.970833 | U72: 855.5041667 | V72: 0.02222219243 | W72: 1*2011 | X72: 2011-01-01 | Y72: =SUM(IF((MONTH($B$9:$B$4391)=MONTH(X72))*(YEAR($B$9:$B$4391)=YEAR(X72)),$P$9:$P$4177)) -> 25.93960451 | Z72: 71100
A73: 66 | B73: 2005-12-04 | C73: 0.8500000238 | D73: 0.8100000024 | E73: 1.660000026 | F73: 3.292562035 | G73: 1.310833271 | H73: =IF(interpolation($F73,Lookup!$A$4:$A$245,Lookup!$B$4:$B$245)=0,0.00001,interpolation($F73,Lookup!$A$4:$A$245,Lookup!$B$4:$B$245)) -> 5.892561913 | I73: 2.970833298 | J73: 200 | K73: 8 | L73: 0.5041666627 | M73: 1340 | N73: 738 | O73: 1348 | P73: 0.5041666627 | Q73: 0 | R73: 738.5041667 | S73: 208 | T73: 1350.970833 | U73: 946.5041667 | V73: 0.02222219243 | W73: 2*2011 | X73: 2011-02-01 | Y73: =SUM(IF((MONTH($B$9:$B$4391)=MONTH(X73))*(YEAR($B$9:$B$4391)=YEAR(X73)),$P$9:$P$4177)) -> 0.0001801708666 | Z73: 72040
A74: 67 | B74: 2005-12-05 | C74: 0.8500000238 | D74: 0.8100000024 | E74: =SUM(C74:D74) -> 1.660000026 | F74: =IF(E74*60*60*24/43560=0,0.000001,E74*60*60*24/43560) -> 3.292562035 | G74: =IF(I74-E74=0,0.000001,I74-E74) -> 1.310833271 | H74: =IF(interpolation($F74,Lookup!$A$4:$A$245,Lookup!$B$4:$B$245)=0,0.00001,interpolation($F74,Lookup!$A$4:$A$245,Lookup!$B$4:$B$245)) -> 5.892561913 | I74: =IF(H74/60/60/24*43560=0,0.00001,H74/60/60/24*43560) -> 2.970833298 | J74: 202 | K74: 8 | L74: 0.5041666627 | M74: 846 | N74: 965 | O74: =IF(M74+K74=0,0.00001,M74+K74) -> 854 | P74: 0.5041666627 | Q74: 0 | R74: =IF(N74+P74=0,0.000001,N74+P74) -> 965.5041667 | S74: =IF(J74+K74+Q74=0,0.000001,J74+K74+Q74) -> 210 | T74: =IF(O74+I74=0,0.000001,O74+I74) -> 856.9708333 | U74: =IF(S74+R74=0,0.000001,S74+R74) -> 1175.504167 | V74: =P74/VLOOKUP(MONTH(B74)&"*"&YEAR(B74),$W$9:$Y$159,3,FALSE) -> 0.02222219243 | W74: =MONTH(X74)&"*"&YEAR(X74) -> 3*2011 | X74: 2011-03-01 | Y74: =SUM(IF((MONTH($B$9:$B$4391)=MONTH(X74))*(YEAR($B$9:$B$4391)=YEAR(X74)),$P$9:$P$4177)) -> 0.0001402622604 | Z74: 71260
A75: 68 | B75: 2005-12-06 | C75: 0.8500000238 | D75: 0.7799999714 | E75: 1.629999995 | F75: 3.233057842 | G75: 1.310833353 | H75: =IF(interpolation($F75,Lookup!$A$4:$A$245,Lookup!$B$4:$B$245)=0,0.00001,interpolation($F75,Lookup!$A$4:$A$245,Lookup!$B$4:$B$245)) -> 5.83305788 | I75: 2.940833348 | J75: 150 | K75: 8 | L75: 0.5041666627 | M75: 345 | N75: 1120 | O75: 353 | P75: 0.5041666627 | Q75: 0 | R75: 1120.504167 | S75: 158 | T75: 355.9408333 | U75: 1278.504167 | V75: 0.02222219243 | W75: 4*2011 | X75: 2011-04-01 | Y75: =SUM(IF((MONTH($B$9:$B$4391)=MONTH(X75))*(YEAR($B$9:$B$4391)=YEAR(X75)),$P$9:$P$4177)) -> 0.0001404808108 | Z75: 69540
A76: 69 | B76: 2005-12-07 | C76: 0.8500000238 | D76: 0.8100000024 | E76: 1.660000026 | F76: 3.292562035 | G76: 1.310833271 | H76: =IF(interpolation($F76,Lookup!$A$4:$A$245,Lookup!$B$4:$B$245)=0,0.00001,interpolation($F76,Lookup!$A$4:$A$245,Lookup!$B$4:$B$245)) -> 5.892561913 | I76: 2.970833298 | J76: 200 | K76: 8 | L76: 0.5041666627 | M76: 1120 | N76: 1090 | O76: 1128 | P76: 0.5041666627 | Q76: 0 | R76: 1090.504167 | S76: 208 | T76: 1130.970833 | U76: 1298.504167 | V76: 0.02222219243 | W76: 5*2011 | X76: 2011-05-01 | Y76: =SUM(IF((MONTH($B$9:$B$4391)=MONTH(X76))*(YEAR($B$9:$B$4391)=YEAR(X76)),$P$9:$P$4177)) -> 0.1009433385 | Z76: 69300
A77: 70 | B77: 2005-12-08 | C77: 0.8500000238 | D77: 0.8100000024 | E77: 1.660000026 | F77: 3.292562035 | G77: 1.310833271 | H77: =IF(interpolation($F77,Lookup!$A$4:$A$245,Lookup!$B$4:$B$245)=0,0.00001,interpolation($F77,Lookup!$A$4:$A$245,Lookup!$B$4:$B$245)) -> 5.892561913 | I77: 2.970833298 | J77: 200 | K77: 8 | L77: 0.5041666627 | M77: 878 | N77: 1140 | O77: 886 | P77: 0.5041666627 | Q77: 0 | R77: 1140.504167 | S77: 208 | T77: 888.9708333 | U77: 1348.504167 | V77: 0.02222219243 | W77: 6*2011 | X77: 2011-06-01 | Y77: =SUM(IF((MONTH($B$9:$B$4391)=MONTH(X77))*(YEAR($B$9:$B$4391)=YEAR(X77)),$P$9:$P$4177)) -> 0.00773255559 | Z77: 68340
A78: 71 | B78: 2005-12-09 | C78: 0.8500000238 | D78: 0.8600000143 | E78: 1.710000038 | F78: 3.391735613 | G78: 1.357083168 | H78: =IF(interpolation($F78,Lookup!$A$4:$A$245,Lookup!$B$4:$B$245)=0,0.00001,interpolation($F78,Lookup!$A$4:$A$245,Lookup!$B$4:$B$245)) -> 6.083470821 | I78: 3.067083206 | J78: 201 | K78: 8 | L78: 0.5041666627 | M78: 914 | N78: 1060 | O78: 922 | P78: 0.5041666627 | Q78: 0 | R78: 1060.504167 | S78: 209 | T78: 925.0670832 | U78: 1269.504167 | V78: 0.02222219243 | W78: 7*2011 | X78: 2011-07-01 | Y78: =SUM(IF((MONTH($B$9:$B$4391)=MONTH(X78))*(YEAR($B$9:$B$4391)=YEAR(X78)),$P$9:$P$4177)) -> 28.32660507 | Z78: 67720
A79: 72 | B79: 2005-12-10 | C79: 0.8500000238 | D79: 0.8199999928 | E79: 1.670000017 | F79: 3.312396727 | G79: 1.317083484 | H79: =IF(interpolation($F79,Lookup!$A$4:$A$245,Lookup!$B$4:$B$245)=0,0.00001,interpolation($F79,Lookup!$A$4:$A$245,Lookup!$B$4:$B$245)) -> 5.92479372 | I79: 2.987083501 | J79: 200 | K79: 8 | L79: 0.5041666627 | M79: 1260 | N79: 1040 | O79: 1268 | P79: 0.5041666627 | Q79: 0 | R79: 1040.504167 | S79: 208 | T79: 1270.987084 | U79: 1248.504167 | V79: 0.02222219243 | W79: 8*2011 | X79: 2011-08-01 | Y79: =SUM(IF((MONTH($B$9:$B$4391)=MONTH(X79))*(YEAR($B$9:$B$4391)=YEAR(X79)),$P$9:$P$4177)) -> 67.639 | Z79: 67790
A80: 73 | B80: 2005-12-11 | C80: 0.8500000238 | D80: 0.8100000024 | E80: 1.660000026 | F80: 3.292562035 | G80: 1.310833271 | H80: =IF(interpolation($F80,Lookup!$A$4:$A$245,Lookup!$B$4:$B$245)=0,0.00001,interpolation($F80,Lookup!$A$4:$A$245,Lookup!$B$4:$B$245)) -> 5.892561913 | I80: 2.970833298 | J80: 200 | K80: 8 | L80: 0.5041666627 | M80: 1710 | N80: 965 | O80: 1718 | P80: 0.5041666627 | Q80: 0 | R80: 965.5041667 | S80: 208 | T80: 1720.970833 | U80: 1173.504167 | V80: 0.02222219243 | W80: 9*2011 | X80: 2011-09-01 | Y80: =SUM(IF((MONTH($B$9:$B$4391)=MONTH(X80))*(YEAR($B$9:$B$4391)=YEAR(X80)),$P$9:$P$4177)) -> 54.95416784 | Z80: 68910
A81: 74 | B81: 2005-12-12 | C81: 0.8500000238 | D81: 0.8100000024 | E81: 1.660000026 | F81: 3.292562035 | G81: 1.310833271 | H81: =IF(interpolation($F81,Lookup!$A$4:$A$245,Lookup!$B$4:$B$245)=0,0.00001,interpolation($F81,Lookup!$A$4:$A$245,Lookup!$B$4:$B$245)) -> 5.892561913 | I81: 2.970833298 | J81: 202 | K81: 8 | L81: 0.5041666627 | M81: 955 | N81: 1050 | O81: 963 | P81: 0.5041666627 | Q81: 0 | R81: 1050.504167 | S81: 210 | T81: 965.9708333 | U81: 1260.504167 | V81: 0.02222219243 | W81: 10*2011 | X81: 2011-10-01 | Y81: =SUM(IF((MONTH($B$9:$B$4391)=MONTH(X81))*(YEAR($B$9:$B$4391)=YEAR(X81)),$P$9:$P$4177)) -> 53.38620847 | Z81: 68280
A82: 75 | B82: 2005-12-13 | C82: 0.8500000238 | D82: 0.8100000024 | E82: 1.660000026 | F82: 3.292562035 | G82: 1.310833271 | H82: =IF(interpolation($F82,Lookup!$A$4:$A$245,Lookup!$B$4:$B$245)=0,0.00001,interpolation($F82,Lookup!$A$4:$A$245,Lookup!$B$4:$B$245)) -> 5.892561913 | I82: 2.970833298 | J82: 200 | K82: 8 | L82: 0.5041666627 | M82: 1070 | N82: 1140 | O82: 1078 | P82: 0.5041666627 | Q82: 0 | R82: 1140.504167 | S82: 208 | T82: 1080.970833 | U82: 1348.504167 | V82: 0.02222219243 | W82: 11*2011 | X82: 2011-11-01 | Y82: =SUM(IF((MONTH($B$9:$B$4391)=MONTH(X82))*(YEAR($B$9:$B$4391)=YEAR(X82)),$P$9:$P$4177)) -> 10.70849984 | Z82: 67920
A83: 76 | B83: 2005-12-14 | C83: 0.8500000238 | D83: 0.8399999738 | E83: 1.689999998 | F83: 3.352066111 | G83: 1.337083115 | H83: =IF(interpolation($F83,Lookup!$A$4:$A$245,Lookup!$B$4:$B$245)=0,0.00001,interpolation($F83,Lookup!$A$4:$A$245,Lookup!$B$4:$B$245)) -> 6.004131794 | I83: 3.027083113 | J83: 200 | K83: 8 | L83: 0.5041666627 | M83: 1070 | N83: 1160 | O83: 1078 | P83: 0.5041666627 | Q83: 0 | R83: 1160.504167 | S83: 208 | T83: 1081.027083 | U83: 1368.504167 | V83: 0.02222219243 | W83: 12*2011 | X83: 2011-12-01 | Y83: =SUM(IF((MONTH($B$9:$B$4391)=MONTH(X83))*(YEAR($B$9:$B$4391)=YEAR(X83)),$P$9:$P$4177)) -> 18.99202817 | Z83: 67190
A84: 77 | B84: 2005-12-15 | C84: 0.8500000238 | D84: 0.8799999952 | E84: 1.730000019 | F84: 3.431404997 | G84: 1.37708328 | H84: =IF(interpolation($F84,Lookup!$A$4:$A$245,Lookup!$B$4:$B$245)=0,0.00001,interpolation($F84,Lookup!$A$4:$A$245,Lookup!$B$4:$B$245)) -> 6.162809849 | I84: 3.107083299 | J84: 200 | K84: 8 | L84: 0.5041666627 | M84: 1130 | N84: 1020 | O84: 1138 | P84: 0.5041666627 | Q84: 0 | R84: 1020.504167 | S84: 208 | T84: 1141.107083 | U84: 1228.504167 | V84: 0.02222219243 | W84: 1*2012 | X84: 2012-01-01 | Y84: =SUM(IF((MONTH($B$9:$B$4391)=MONTH(X84))*(YEAR($B$9:$B$4391)=YEAR(X84)),$P$9:$P$4177)) -> 20.6432644 | Z84: 67120
A85: 78 | B85: 2005-12-16 | C85: 0.8500000238 | D85: 0.8799999952 | E85: 1.730000019 | F85: 3.431404997 | G85: 1.37708328 | H85: =IF(interpolation($F85,Lookup!$A$4:$A$245,Lookup!$B$4:$B$245)=0,0.00001,interpolation($F85,Lookup!$A$4:$A$245,Lookup!$B$4:$B$245)) -> 6.162809849 | I85: 3.107083299 | J85: 275 | K85: 8 | L85: 0.5041666627 | M85: 1350 | N85: 1090 | O85: 1358 | P85: 0.5041666627 | Q85: 0 | R85: 1090.504167 | S85: 283 | T85: 1361.107083 | U85: 1373.504167 | V85: 0.02222219243 | W85: 2*2012 | X85: 2012-02-01 | Y85: =SUM(IF((MONTH($B$9:$B$4391)=MONTH(X85))*(YEAR($B$9:$B$4391)=YEAR(X85)),$P$9:$P$4177)) -> 23.87746358 | Z85: 67270
A86: 79 | B86: 2005-12-17 | C86: 0.8500000238 | D86: 0.8799999952 | E86: 1.730000019 | F86: 3.431404997 | G86: 1.37708328 | H86: =IF(interpolation($F86,Lookup!$A$4:$A$245,Lookup!$B$4:$B$245)=0,0.00001,interpolation($F86,Lookup!$A$4:$A$245,Lookup!$B$4:$B$245)) -> 6.162809849 | I86: 3.107083299 | J86: 300 | K86: 8 | L86: 0.5041666627 | M86: 1420 | N86: 1140 | O86: 1428 | P86: 0.5041666627 | Q86: 0 | R86: 1140.504167 | S86: 308 | T86: 1431.107083 | U86: 1448.504167 | V86: 0.02222219243 | W86: 3*2012 | X86: 2012-03-01 | Y86: =SUM(IF((MONTH($B$9:$B$4391)=MONTH(X86))*(YEAR($B$9:$B$4391)=YEAR(X86)),$P$9:$P$4177)) -> 0.1791595915 | Z86: 67140
A87: 80 | B87: 2005-12-18 | C87: 0.8500000238 | D87: 0.8799999952 | E87: 1.730000019 | F87: 3.431404997 | G87: 1.37708328 | H87: =IF(interpolation($F87,Lookup!$A$4:$A$245,Lookup!$B$4:$B$245)=0,0.00001,interpolation($F87,Lookup!$A$4:$A$245,Lookup!$B$4:$B$245)) -> 6.162809849 | I87: 3.107083299 | J87: 300 | K87: 8 | L87: 0.5041666627 | M87: 1320 | N87: 1100 | O87: 1328 | P87: 0.5041666627 | Q87: 0 | R87: 1100.504167 | S87: 308 | T87: 1331.107083 | U87: 1408.504167 | V87: 0.02222219243 | W87: 4*2012 | X87: 2012-04-01 | Y87: =SUM(IF((MONTH($B$9:$B$4391)=MONTH(X87))*(YEAR($B$9:$B$4391)=YEAR(X87)),$P$9:$P$4177)) -> 8.991655349e-05 | Z87: 66960
A88: 81 | B88: 2005-12-19 | C88: 0.8500000238 | D88: 0.8799999952 | E88: 1.730000019 | F88: 3.431404997 | G88: 1.37708328 | H88: =IF(interpolation($F88,Lookup!$A$4:$A$245,Lookup!$B$4:$B$245)=0,0.00001,interpolation($F88,Lookup!$A$4:$A$245,Lookup!$B$4:$B$245)) -> 6.162809849 | I88: 3.107083299 | J88: 302 | K88: 8 | L88: 0.5041666627 | M88: 1760 | N88: 1200 | O88: 1768 | P88: 0.5041666627 | Q88: 0 | R88: 1200.504167 | S88: 310 | T88: 1771.107083 | U88: 1510.504167 | V88: 0.02222219243 | W88: 5*2012 | X88: 2012-05-01 | Y88: =SUM(IF((MONTH($B$9:$B$4391)=MONTH(X88))*(YEAR($B$9:$B$4391)=YEAR(X88)),$P$9:$P$4177)) -> 0 | Z88: 67590
A89: 82 | B89: 2005-12-20 | C89: 0.8500000238 | D89: 0.8100000024 | E89: 1.660000026 | F89: 3.292562035 | G89: 1.310833271 | H89: =IF(interpolation($F89,Lookup!$A$4:$A$245,Lookup!$B$4:$B$245)=0,0.00001,interpolation($F89,Lookup!$A$4:$A$245,Lookup!$B$4:$B$245)) -> 5.892561913 | I89: 2.970833298 | J89: 102 | K89: 8 | L89: 1.512500048 | M89: 1770 | N89: 1410 | O89: 1778 | P89: 1.512500048 | Q89: 0 | R89: 1411.5125 | S89: 110 | T89: 1780.970833 | U89: 1521.5125 | V89: 0.06666657991 | W89: 6*2012 | X89: 2012-06-01 | Y89: =SUM(IF((MONTH($B$9:$B$4391)=MONTH(X89))*(YEAR($B$9:$B$4391)=YEAR(X89)),$P$9:$P$4177)) -> 1.047683716e-05 | Z89: 68200
A90: 83 | B90: 2005-12-21 | C90: 0.8500000238 | D90: 0.8100000024 | E90: 1.660000026 | F90: 3.292562035 | G90: 1.310833271 | H90: =IF(interpolation($F90,Lookup!$A$4:$A$245,Lookup!$B$4:$B$245)=0,0.00001,interpolation($F90,Lookup!$A$4:$A$245,Lookup!$B$4:$B$245)) -> 5.892561913 | I90: 2.970833298 | J90: 0 | K90: 8 | L90: 1.008333325 | M90: 1670 | N90: 1460 | O90: 1678 | P90: 1.008333325 | Q90: 0 | R90: 1461.008333 | S90: 8 | T90: 1680.970833 | U90: 1469.008333 | V90: 0.04444438486 | W90: 7*2012 | X90: 2012-07-01 | Y90: =SUM(IF((MONTH($B$9:$B$4391)=MONTH(X90))*(YEAR($B$9:$B$4391)=YEAR(X90)),$P$9:$P$4177)) -> 10.35810413 | Z90: 68620
A91: 84 | B91: 2005-12-22 | C91: 0.8500000238 | D91: 0.8100000024 | E91: 1.660000026 | F91: 3.292562035 | G91: 1.310833271 | H91: =IF(interpolation($F91,Lookup!$A$4:$A$245,Lookup!$B$4:$B$245)=0,0.00001,interpolation($F91,Lookup!$A$4:$A$245,Lookup!$B$4:$B$245)) -> 5.892561913 | I91: 2.970833298 | J91: 0 | K91: 8 | L91: 1.512500048 | M91: 1720 | N91: 1470 | O91: 1728 | P91: 1.512500048 | Q91: 0 | R91: 1471.5125 | S91: 8 | T91: 1730.970833 | U91: 1479.5125 | V91: 0.06666657991 | W91: 8*2012 | X91: 2012-08-01 | Y91: =SUM(IF((MONTH($B$9:$B$4391)=MONTH(X91))*(YEAR($B$9:$B$4391)=YEAR(X91)),$P$9:$P$4177)) -> 72.46891618 | Z91: 69380
A92: 85 | B92: 2005-12-23 | C92: 0.8500000238 | D92: 0.8100000024 | E92: 1.660000026 | F92: 3.292562035 | G92: 1.310833271 | H92: =IF(interpolation($F92,Lookup!$A$4:$A$245,Lookup!$B$4:$B$245)=0,0.00001,interpolation($F92,Lookup!$A$4:$A$245,Lookup!$B$4:$B$245)) -> 5.892561913 | I92: 2.970833298 | J92: 0 | K92: 8 | L92: 1.512500048 | M92: 1840 | N92: 1570 | O92: 1848 | P92: 1.512500048 | Q92: 0 | R92: 1571.5125 | S92: 8 | T92: 1850.970833 | U92: 1579.5125 | V92: 0.06666657991 | W92: 9*2012 | X92: 2012-09-01 | Y92: =SUM(IF((MONTH($B$9:$B$4391)=MONTH(X92))*(YEAR($B$9:$B$4391)=YEAR(X92)),$P$9:$P$4177)) -> 86.7771666 | Z92: 69620
A93: 86 | B93: 2005-12-24 | C93: 0.8500000238 | D93: 0.8100000024 | E93: 1.660000026 | F93: 3.292562035 | G93: 1.310833271 | H93: =IF(interpolation($F93,Lookup!$A$4:$A$245,Lookup!$B$4:$B$245)=0,0.00001,interpolation($F93,Lookup!$A$4:$A$245,Lookup!$B$4:$B$245)) -> 5.892561913 | I93: 2.970833298 | J93: 0 | K93: 8 | L93: 0.5041666627 | M93: 1710 | N93: 1390 | O93: 1718 | P93: 0.5041666627 | Q93: 0 | R93: 1390.504167 | S93: 8 | T93: 1720.970833 | U93: 1398.504167 | V93: 0.02222219243 | W93: 10*2012 | X93: 2012-10-01 | Y93: =SUM(IF((MONTH($B$9:$B$4391)=MONTH(X93))*(YEAR($B$9:$B$4391)=YEAR(X93)),$P$9:$P$4177)) -> 50.88308039 | Z93: 70470
A94: 87 | B94: 2005-12-25 | C94: 0.8500000238 | D94: 0.8100000024 | E94: 1.660000026 | F94: 3.292562035 | G94: 1.310833271 | H94: =IF(interpolation($F94,Lookup!$A$4:$A$245,Lookup!$B$4:$B$245)=0,0.00001,interpolation($F94,Lookup!$A$4:$A$245,Lookup!$B$4:$B$245)) -> 5.892561913 | I94: 2.970833298 | J94: 0 | K94: 8 | L94: 0 | M94: 1750 | N94: 1570 | O94: 1758 | P94: 1e-05 | Q94: 0 | R94: 1570.00001 | S94: 8 | T94: 1760.970833 | U94: 1578.00001 | V94: 4.407707624e-07 | W94: 11*2012 | X94: 2012-11-01 | Y94: =SUM(IF((MONTH($B$9:$B$4391)=MONTH(X94))*(YEAR($B$9:$B$4391)=YEAR(X94)),$P$9:$P$4177)) -> 28.67699987 | Z94: 70840
A95: 88 | B95: 2005-12-26 | C95: 0.8500000238 | D95: 0.8100000024 | E95: 1.660000026 | F95: 3.292562035 | G95: 1.310833271 | H95: =IF(interpolation($F95,Lookup!$A$4:$A$245,Lookup!$B$4:$B$245)=0,0.00001,interpolation($F95,Lookup!$A$4:$A$245,Lookup!$B$4:$B$245)) -> 5.892561913 | I95: 2.970833298 | J95: 0 | K95: 8 | L95: 0 | M95: 1740 | N95: 1590 | O95: 1748 | P95: 1e-05 | Q95: 0 | R95: 1590.00001 | S95: 8 | T95: 1750.970833 | U95: 1598.00001 | V95: 4.407707624e-07 | W95: 12*2012 | X95: 2012-12-01 | Y95: =SUM(IF((MONTH($B$9:$B$4391)=MONTH(X95))*(YEAR($B$9:$B$4391)=YEAR(X95)),$P$9:$P$4177)) -> 26.72093384 | Z95: 71160
A96: 89 | B96: 2005-12-27 | C96: 0.8500000238 | D96: 0.8100000024 | E96: 1.660000026 | F96: 3.292562035 | G96: 1.310833271 | H96: =IF(interpolation($F96,Lookup!$A$4:$A$245,Lookup!$B$4:$B$245)=0,0.00001,interpolation($F96,Lookup!$A$4:$A$245,Lookup!$B$4:$B$245)) -> 5.892561913 | I96: 2.970833298 | J96: 0 | K96: 8 | L96: 0 | M96: 1640 | N96: 1610 | O96: 1648 | P96: 1e-05 | Q96: 0 | R96: 1610.00001 | S96: 8 | T96: 1650.970833 | U96: 1618.00001 | V96: 4.407707624e-07 | W96: 1*2013 | X96: 2013-01-01 | Y96: =SUM(IF((MONTH($B$9:$B$4391)=MONTH(X96))*(YEAR($B$9:$B$4391)=YEAR(X96)),$P$9:$P$4177)) -> 51.19560415 | Z96: 71240
A97: 90 | B97: 2005-12-28 | C97: 0.8500000238 | D97: 0.8100000024 | E97: 1.660000026 | F97: 3.292562035 | G97: 1.310833271 | H97: =IF(interpolation($F97,Lookup!$A$4:$A$245,Lookup!$B$4:$B$245)=0,0.00001,interpolation($F97,Lookup!$A$4:$A$245,Lookup!$B$4:$B$245)) -> 5.892561913 | I97: 2.970833298 | J97: 0 | K97: 8 | L97: 1.008333325 | M97: 1340 | N97: 1620 | O97: 1348 | P97: 1.008333325 | Q97: 0 | R97: 1621.008333 | S97: 8 | T97: 1350.970833 | U97: 1629.008333 | V97: 0.04444438486 | W97: 2*2013 | X97: 2013-02-01 | Y97: =SUM(IF((MONTH($B$9:$B$4391)=MONTH(X97))*(YEAR($B$9:$B$4391)=YEAR(X97)),$P$9:$P$4177)) -> 22.97238441 | Z97: 70730
A98: 91 | B98: 2005-12-29 | C98: 0.8500000238 | D98: 0.8100000024 | E98: 1.660000026 | F98: 3.292562035 | G98: 1.310833271 | H98: =IF(interpolation($F98,Lookup!$A$4:$A$245,Lookup!$B$4:$B$245)=0,0.00001,interpolation($F98,Lookup!$A$4:$A$245,Lookup!$B$4:$B$245)) -> 5.892561913 | I98: 2.970833298 | J98: 0 | K98: 8 | L98: 1.512500048 | M98: 1290 | N98: 1380 | O98: 1298 | P98: 1.512500048 | Q98: 0 | R98: 1381.5125 | S98: 8 | T98: 1300.970833 | U98: 1389.5125 | V98: 0.06666657991 | W98: 3*2013 | X98: 2013-03-01 | Y98: =SUM(IF((MONTH($B$9:$B$4391)=MONTH(X98))*(YEAR($B$9:$B$4391)=YEAR(X98)),$P$9:$P$4177)) -> 39.12586467 | Z98: 70470
A99: 92 | B99: 2005-12-30 | C99: 0.8500000238 | D99: 0.8100000024 | E99: 1.660000026 | F99: 3.292562035 | G99: 1.310833271 | H99: =IF(interpolation($F99,Lookup!$A$4:$A$245,Lookup!$B$4:$B$245)=0,0.00001,interpolation($F99,Lookup!$A$4:$A$245,Lookup!$B$4:$B$245)) -> 5.892561913 | I99: 2.970833298 | J99: 0 | K99: 8 | L99: 1.512500048 | M99: 1420 | N99: 1240 | O99: 1428 | P99: 1.512500048 | Q99: 0 | R99: 1241.5125 | S99: 8 | T99: 1430.970833 | U99: 1249.5125 | V99: 0.06666657991 | W99: 4*2013 | X99: 2013-04-01 | Y99: =SUM(IF((MONTH($B$9:$B$4391)=MONTH(X99))*(YEAR($B$9:$B$4391)=YEAR(X99)),$P$9:$P$4177)) -> 42.85420716 | Z99: 71000
A100: 93 | B100: 2005-12-31 | C100: 5.5 | D100: 4.300000191 | E100: 9.800000191 | F100: 19.43801691 | G100: 9.547916842 | H100: =IF(interpolation($F100,Lookup!$A$4:$A$245,Lookup!$B$4:$B$245)=0,0.00001,interpolation($F100,Lookup!$A$4:$A$245,Lookup!$B$4:$B$245)) -> 38.37603378 | I100: 19.34791703 | J100: 0 | K100: 8 | L100: 1.512500048 | M100: 1290 | N100: 1190 | O100: 1298 | P100: 1.512500048 | Q100: 0 | R100: 1191.5125 | S100: 8 | T100: 1317.347917 | U100: 1199.5125 | V100: 0.06666657991 | W100: 5*2013 | X100: 2013-05-01 | Y100: =SUM(IF((MONTH($B$9:$B$4391)=MONTH(X100))*(YEAR($B$9:$B$4391)=YEAR(X100)),$P$9:$P$4177)) -> 64.53338139 | Z100: 71260
A101: 94 | B101: 2006-01-01 | C101: 3.799999952 | D101: 3.799999952 | E101: 7.599999905 | F101: 15.07437998 | G101: 7.247082798 | H101: =IF(interpolation($F101,Lookup!$A$4:$A$245,Lookup!$B$4:$B$245)=0,0.00001,interpolation($F101,Lookup!$A$4:$A$245,Lookup!$B$4:$B$245)) -> 29.44875908 | I101: 14.8470827 | J101: 0 | K101: 7.800000191 | L101: 1.512500048 | M101: 1690 | N101: 1390 | O101: 1697.8 | P101: 0 | Q101: 1.520816513 | R101: 1390 | S101: 9.320816703 | T101: 1712.647083 | U101: 1399.320817 | W101: 6*2013 | X101: 2013-06-01 | Y101: =SUM(IF((MONTH($B$9:$B$4391)=MONTH(X101))*(YEAR($B$9:$B$4391)=YEAR(X101)),$P$9:$P$4177)) -> 70.07918671 | Z101: 71960
A102: 95 | B102: 2006-01-02 | C102: 183 | D102: 132 | E102: 315 | F102: 624.7933884 | G102: 345.2500076 | H102: =IF(interpolation($F102,Lookup!$A$4:$A$245,Lookup!$B$4:$B$245)=0,0.00001,interpolation($F102,Lookup!$A$4:$A$245,Lookup!$B$4:$B$245)) -> 1309.586792 | I102: 660.2500076 | J102: 151 | K102: 7.800000191 | L102: 1.512500048 | M102: 1120 | N102: 1340 | O102: 1127.8 | P102: 0 | Q102: 1.520816513 | R102: 1340 | S102: 160.3208167 | T102: 1788.050008 | U102: 1500.320817 | W102: 7*2013 | X102: 2013-07-01 | Y102: =SUM(IF((MONTH($B$9:$B$4391)=MONTH(X102))*(YEAR($B$9:$B$4391)=YEAR(X102)),$P$9:$P$4177)) -> 82.17412519 | Z102: 72520
A103: 96 | B103: 2006-01-03 | C103: 39 | D103: 28 | E103: 67 | F103: 132.892562 | G103: 76.72499555 | H103: =IF(interpolation($F103,Lookup!$A$4:$A$245,Lookup!$B$4:$B$245)=0,0.00001,interpolation($F103,Lookup!$A$4:$A$245,Lookup!$B$4:$B$245)) -> 285.0743713 | I103: 143.7249955 | J103: 175 | K103: 7.800000191 | L103: 1.008333325 | M103: 1130 | N103: 1330 | O103: 1137.8 | P103: 0 | Q103: 1.013877635 | R103: 1330 | S103: 183.8138778 | T103: 1281.524996 | U103: 1513.813878 | W103: 8*2013 | X103: 2013-08-01 | Y103: =SUM(IF((MONTH($B$9:$B$4391)=MONTH(X103))*(YEAR($B$9:$B$4391)=YEAR(X103)),$P$9:$P$4177)) -> 95.2874999 | Z103: 71800
A104: 97 | B104: 2006-01-04 | C104: 14 | D104: 10 | E104: 24 | F104: 47.60330579 | G104: 25.00833337 | H104: =IF(interpolation($F104,Lookup!$A$4:$A$245,Lookup!$B$4:$B$245)=0,0.00001,interpolation($F104,Lookup!$A$4:$A$245,Lookup!$B$4:$B$245)) -> 97.20661163 | I104: 49.00833337 | J104: 50 | K104: 9.699999809 | L104: 1.512500048 | M104: 1430 | N104: 1270 | O104: 1439.7 | P104: 0 | Q104: 1.520816513 | R104: 1270 | S104: 61.22081632 | T104: 1488.708333 | U104: 1331.220816 | W104: 9*2013 | X104: 2013-09-01 | Y104: =SUM(IF((MONTH($B$9:$B$4391)=MONTH(X104))*(YEAR($B$9:$B$4391)=YEAR(X104)),$P$9:$P$4177)) -> 74.71497869 | Z104: 72300
A105: 98 | B105: 2006-01-05 | C105: 9.699999809 | D105: 7.400000095 | E105: 17.0999999 | F105: 33.91735518 | G105: 17.0999993 | H105: =IF(interpolation($F105,Lookup!$A$4:$A$245,Lookup!$B$4:$B$245)=0,0.00001,interpolation($F105,Lookup!$A$4:$A$245,Lookup!$B$4:$B$245)) -> 67.83470917 | I105: 34.19999921 | J105: 0 | K105: 12 | L105: 1.512500048 | M105: 905 | N105: 1420 | O105: 917 | P105: 0 | Q105: 1.520816513 | R105: 1420 | S105: 13.52081651 | T105: 951.1999992 | U105: 1433.520817 | W105: 10*2013 | X105: 2013-10-01 | Y105: =SUM(IF((MONTH($B$9:$B$4391)=MONTH(X105))*(YEAR($B$9:$B$4391)=YEAR(X105)),$P$9:$P$4177)) -> 55.56924987 | Z105: 71370
A106: 99 | B106: 2006-01-06 | C106: 7.699999809 | D106: 5.699999809 | E106: 13.39999962 | F106: 26.57851164 | G106: 13.40000017 | H106: =IF(interpolation($F106,Lookup!$A$4:$A$245,Lookup!$B$4:$B$245)=0,0.00001,interpolation($F106,Lookup!$A$4:$A$245,Lookup!$B$4:$B$245)) -> 53.15702438 | I106: 26.79999979 | J106: 0 | K106: 12 | L106: 1.008333325 | M106: 1420 | N106: 1560 | O106: 1432 | P106: 0 | Q106: 1.013877635 | R106: 1560 | S106: 13.01387764 | T106: 1458.8 | U106: 1573.013878 | W106: 11*2013 | X106: 2013-11-01 | Y106: =SUM(IF((MONTH($B$9:$B$4391)=MONTH(X106))*(YEAR($B$9:$B$4391)=YEAR(X106)),$P$9:$P$4177)) -> 41.18288495 | Z106: 71210
A107: 100 | B107: 2006-01-07 | C107: 5.199999809 | D107: 3.599999905 | E107: 8.799999714 | F107: 17.45454489 | G107: 8.497499657 | H107: =IF(interpolation($F107,Lookup!$A$4:$A$245,Lookup!$B$4:$B$245)=0,0.00001,interpolation($F107,Lookup!$A$4:$A$245,Lookup!$B$4:$B$245)) -> 34.30908966 | I107: 17.29749937 | J107: 0 | K107: 12 | L107: 1.512500048 | M107: 1480 | N107: 1420 | O107: 1492 | P107: 0 | Q107: 1.520816513 | R107: 1420 | S107: 13.52081651 | T107: 1509.297499 | U107: 1433.520817 | W107: 12*2013 | X107: 2013-12-01 | Y107: =SUM(IF((MONTH($B$9:$B$4391)=MONTH(X107))*(YEAR($B$9:$B$4391)=YEAR(X107)),$P$9:$P$4177)) -> 51.8259027 | Z107: 71210
A108: 101 | B108: 2006-01-08 | C108: 2.900000095 | D108: 2.700000048 | E108: 5.600000143 | F108: 11.1074383 | G108: 5.19666698 | H108: =IF(interpolation($F108,Lookup!$A$4:$A$245,Lookup!$B$4:$B$245)=0,0.00001,interpolation($F108,Lookup!$A$4:$A$245,Lookup!$B$4:$B$245)) -> 21.41487694 | I108: 10.79666712 | J108: 0 | K108: 12 | L108: 1.008333325 | M108: 1400 | N108: 1450 | O108: 1412 | P108: 0 | Q108: 1.013877635 | R108: 1450 | S108: 13.01387764 | T108: 1422.796667 | U108: 1463.013878 | W108: 1*2014 | X108: 2014-01-01 | Y108: =SUM(IF((MONTH($B$9:$B$4391)=MONTH(X108))*(YEAR($B$9:$B$4391)=YEAR(X108)),$P$9:$P$4177)) -> 58.45308363 | Z108: 71180
A109: 102 | B109: 2006-01-09 | C109: 2.799999952 | D109: 2.299999952 | E109: 5.099999905 | F109: 10.11570229 | G109: 4.652083635 | H109: =IF(interpolation($F109,Lookup!$A$4:$A$245,Lookup!$B$4:$B$245)=0,0.00001,interpolation($F109,Lookup!$A$4:$A$245,Lookup!$B$4:$B$245)) -> 19.34297562 | I109: 9.75208354 | J109: 0 | K109: 12 | L109: 1.008333325 | M109: 1720 | N109: 1550 | O109: 1732 | P109: 0 | Q109: 1.013877635 | R109: 1550 | S109: 13.01387764 | T109: 1741.752084 | U109: 1563.013878 | W109: 2*2014 | X109: 2014-02-01 | Y109: =SUM(IF((MONTH($B$9:$B$4391)=MONTH(X109))*(YEAR($B$9:$B$4391)=YEAR(X109)),$P$9:$P$4177)) -> 33.94050068 | Z109: 71610
A110: 103 | B110: 2006-01-10 | C110: 2.599999905 | D110: 2 | E110: 4.599999905 | F110: 9.123966753 | G110: 4.146250518 | H110: =IF(interpolation($F110,Lookup!$A$4:$A$245,Lookup!$B$4:$B$245)=0,0.00001,interpolation($F110,Lookup!$A$4:$A$245,Lookup!$B$4:$B$245)) -> 17.34793472 | I110: 8.746250423 | J110: 0 | K110: 12 | L110: 1.394020915 | M110: 1390 | N110: 1640 | O110: 1402 | P110: 0 | Q110: 1.401685924 | R110: 1640 | S110: 13.40168592 | T110: 1410.74625 | U110: 1653.401686 | W110: 3*2014 | X110: 2014-03-01 | Y110: =SUM(IF((MONTH($B$9:$B$4391)=MONTH(X110))*(YEAR($B$9:$B$4391)=YEAR(X110)),$P$9:$P$4177)) -> 0 | Z110: 71210
A111: 104 | B111: 2006-01-11 | C111: 2.299999952 | D111: 1.899999976 | E111: 4.199999928 | F111: 8.330578371 | G111: 3.746250558 | H111: =IF(interpolation($F111,Lookup!$A$4:$A$245,Lookup!$B$4:$B$245)=0,0.00001,interpolation($F111,Lookup!$A$4:$A$245,Lookup!$B$4:$B$245)) -> 15.76115799 | I111: 7.946250486 | J111: 0 | K111: 12 | L111: 1.008333325 | M111: 1600 | N111: 1530 | O111: 1612 | P111: 0 | Q111: 1.013877635 | R111: 1530 | S111: 13.01387764 | T111: 1619.94625 | U111: 1543.013878 | W111: 4*2014 | X111: 2014-04-01 | Y111: =SUM(IF((MONTH($B$9:$B$4391)=MONTH(X111))*(YEAR($B$9:$B$4391)=YEAR(X111)),$P$9:$P$4177)) -> 0.2218437735 | Z111: 71260
A112: 105 | B112: 2006-01-12 | C112: 2.200000048 | D112: 1.899999976 | E112: 4.100000024 | F112: 8.132231452 | G112: 3.646250478 | H112: =IF(interpolation($F112,Lookup!$A$4:$A$245,Lookup!$B$4:$B$245)=0,0.00001,interpolation($F112,Lookup!$A$4:$A$245,Lookup!$B$4:$B$245)) -> 15.36446381 | I112: 7.746250502 | J112: 0 | K112: 12 | L112: 0.6604583263 | M112: 1710 | N112: 1650 | O112: 1722 | P112: 0 | Q112: 0.6640898492 | R112: 1650 | S112: 12.66408985 | T112: 1729.746251 | U112: 1662.66409 | W112: 5*2014 | X112: 2014-05-01 | Y112: =SUM(IF((MONTH($B$9:$B$4391)=MONTH(X112))*(YEAR($B$9:$B$4391)=YEAR(X112)),$P$9:$P$4177)) -> 65.4156443 | Z112: 71500
A113: 106 | B113: 2006-01-13 | C113: 2.700000048 | D113: 2.700000048 | E113: 5.400000095 | F113: 10.71074399 | G113: 4.982084068 | H113: =IF(interpolation($F113,Lookup!$A$4:$A$245,Lookup!$B$4:$B$245)=0,0.00001,interpolation($F113,Lookup!$A$4:$A$245,Lookup!$B$4:$B$245)) -> 20.59256363 | I113: 10.38208416 | J113: 0 | K113: 12 | L113: 0.5041666627 | M113: 1420 | N113: 1640 | O113: 1432 | P113: 0 | Q113: 0.5069388176 | R113: 1640 | S113: 12.50693882 | T113: 1442.382084 | U113: 1652.506939 | W113: 6*2014 | X113: 2014-06-01 | Y113: =SUM(IF((MONTH($B$9:$B$4391)=MONTH(X113))*(YEAR($B$9:$B$4391)=YEAR(X113)),$P$9:$P$4177)) -> 107.8916667 | Z113: 71070
A114: 107 | B114: 2006-01-14 | C114: 6.900000095 | D114: 5.099999905 | E114: 12 | F114: 23.80165289 | G114: 11.93958325 | H114: =IF(interpolation($F114,Lookup!$A$4:$A$245,Lookup!$B$4:$B$245)=0,0.00001,interpolation($F114,Lookup!$A$4:$A$245,Lookup!$B$4:$B$245)) -> 47.48347092 | I114: 23.93958325 | J114: 0 | K114: 12 | L114: 0.6251666546 | M114: 1630 | N114: 1480 | O114: 1642 | P114: 0 | Q114: 0.6286041266 | R114: 1480 | S114: 12.62860413 | T114: 1665.939583 | U114: 1492.628604 | W114: 7*2014 | X114: 2014-07-01 | Y114: =SUM(IF((MONTH($B$9:$B$4391)=MONTH(X114))*(YEAR($B$9:$B$4391)=YEAR(X114)),$P$9:$P$4177)) -> 116.8330822 | Z114: 71420
A115: 108 | B115: 2006-01-15 | C115: 4.400000095 | D115: 4.199999809 | E115: 8.599999905 | F115: 17.05785105 | G115: 8.297501421 | H115: =IF(interpolation($F115,Lookup!$A$4:$A$245,Lookup!$B$4:$B$245)=0,0.00001,interpolation($F115,Lookup!$A$4:$A$245,Lookup!$B$4:$B$245)) -> 33.51570511 | I115: 16.89750133 | J115: 0 | K115: 12 | L115: 0.5041666627 | M115: 1720 | N115: 1430 | O115: 1732 | P115: 0 | Q115: 0.5069388176 | R115: 1430 | S115: 12.50693882 | T115: 1748.897501 | U115: 1442.506939 | W115: 8*2014 | X115: 2014-08-01 | Y115: =SUM(IF((MONTH($B$9:$B$4391)=MONTH(X115))*(YEAR($B$9:$B$4391)=YEAR(X115)),$P$9:$P$4177)) -> 116.2104361 | Z115: 72090
A116: 109 | B116: 2006-01-16 | C116: 2.900000095 | D116: 3 | E116: 5.900000095 | F116: 11.70247953 | G116: 5.49666698 | H116: =IF(interpolation($F116,Lookup!$A$4:$A$245,Lookup!$B$4:$B$245)=0,0.00001,interpolation($F116,Lookup!$A$4:$A$245,Lookup!$B$4:$B$245)) -> 22.60495949 | I116: 11.39666708 | J116: 0 | K116: 12 | L116: 0.5041666627 | M116: 1580 | N116: 1440 | O116: 1592 | P116: 0 | Q116: 0.5069388176 | R116: 1440 | S116: 12.50693882 | T116: 1603.396667 | U116: 1452.506939 | W116: 9*2014 | X116: 2014-09-01 | Y116: =SUM(IF((MONTH($B$9:$B$4391)=MONTH(X116))*(YEAR($B$9:$B$4391)=YEAR(X116)),$P$9:$P$4177)) -> 71.81097949 | Z116: 72300
A117: 110 | B117: 2006-01-17 | C117: 2.299999952 | D117: 2.299999952 | E117: 4.599999905 | F117: 9.123966753 | G117: 4.146250518 | H117: =IF(interpolation($F117,Lookup!$A$4:$A$245,Lookup!$B$4:$B$245)=0,0.00001,interpolation($F117,Lookup!$A$4:$A$245,Lookup!$B$4:$B$245)) -> 17.34793472 | I117: 8.746250423 | J117: 0 | K117: 12 | L117: 0.6327291727 | M117: 1570 | N117: 1390 | O117: 1582 | P117: 0 | Q117: 0.6362082272 | R117: 1390 | S117: 12.63620823 | T117: 1590.74625 | U117: 1402.636208 | W117: 10*2014 | X117: 2014-10-01 | Y117: =SUM(IF((MONTH($B$9:$B$4391)=MONTH(X117))*(YEAR($B$9:$B$4391)=YEAR(X117)),$P$9:$P$4177)) -> 63.0208423 | Z117: 72730
A118: 111 | B118: 2006-01-18 | C118: 2 | D118: 2.099999905 | E118: 4.099999905 | F118: 8.132231216 | G118: 3.646249636 | H118: =IF(interpolation($F118,Lookup!$A$4:$A$245,Lookup!$B$4:$B$245)=0,0.00001,interpolation($F118,Lookup!$A$4:$A$245,Lookup!$B$4:$B$245)) -> 15.3644619 | I118: 7.746249541 | J118: 0 | K118: 12 | L118: 0.5041666627 | M118: 1540 | N118: 1420 | O118: 1552 | P118: 0 | Q118: 0.5069388176 | R118: 1420 | S118: 12.50693882 | T118: 1559.74625 | U118: 1432.506939 | W118: 11*2014 | X118: 2014-11-01 | Y118: =SUM(IF((MONTH($B$9:$B$4391)=MONTH(X118))*(YEAR($B$9:$B$4391)=YEAR(X118)),$P$9:$P$4177)) -> 51.15781144 | Z118: 72960
A119: 112 | B119: 2006-01-19 | C119: 2 | D119: 1.899999976 | E119: 3.899999976 | F119: 7.735537143 | G119: 3.446249596 | H119: =IF(interpolation($F119,Lookup!$A$4:$A$245,Lookup!$B$4:$B$245)=0,0.00001,interpolation($F119,Lookup!$A$4:$A$245,Lookup!$B$4:$B$245)) -> 14.57107353 | I119: 7.346249572 | J119: 0 | K119: 12 | L119: 0.597437501 | M119: 1430 | N119: 1490 | O119: 1442 | P119: 0 | Q119: 0.6007225045 | R119: 1490 | S119: 12.6007225 | T119: 1449.34625 | U119: 1502.600723 | W119: 12*2014 | X119: 2014-12-01 | Y119: =SUM(IF((MONTH($B$9:$B$4391)=MONTH(X119))*(YEAR($B$9:$B$4391)=YEAR(X119)),$P$9:$P$4177)) -> 41.84592331 | Z119: 72930
A120: 113 | B120: 2006-01-20 | C120: 1.899999976 | D120: 1.799999952 | E120: 3.699999928 | F120: 7.338842833 | G120: 3.246249676 | H120: =IF(interpolation($F120,Lookup!$A$4:$A$245,Lookup!$B$4:$B$245)=0,0.00001,interpolation($F120,Lookup!$A$4:$A$245,Lookup!$B$4:$B$245)) -> 13.77768517 | I120: 6.946249604 | J120: 0 | K120: 12 | L120: 0.5041666627 | M120: 1370 | N120: 1530 | O120: 1382 | P120: 0 | Q120: 0.5069388176 | R120: 1530 | S120: 12.50693882 | T120: 1388.94625 | U120: 1542.506939 | W120: 1*2015 | X120: 2015-01-01 | Y120: =SUM(IF((MONTH($B$9:$B$4391)=MONTH(X120))*(YEAR($B$9:$B$4391)=YEAR(X120)),$P$9:$P$4177)) -> 53.44174708 | Z120: 72600
A121: 114 | B121: 2006-01-21 | C121: 1.5 | D121: 1.700000048 | E121: 3.200000048 | F121: 6.347107533 | G121: 2.746249636 | H121: =IF(interpolation($F121,Lookup!$A$4:$A$245,Lookup!$B$4:$B$245)=0,0.00001,interpolation($F121,Lookup!$A$4:$A$245,Lookup!$B$4:$B$245)) -> 11.79421425 | I121: 5.946249684 | J121: 0 | K121: 12 | L121: 0.5041666627 | M121: 1410 | N121: 1450 | O121: 1422 | P121: 0 | Q121: 0.5069388176 | R121: 1450 | S121: 12.50693882 | T121: 1427.94625 | U121: 1462.506939 | W121: 2*2015 | X121: 2015-02-01 | Y121: =SUM(IF((MONTH($B$9:$B$4391)=MONTH(X121))*(YEAR($B$9:$B$4391)=YEAR(X121)),$P$9:$P$4177)) -> 39.82916772 | Z121: 72550
A122: 115 | B122: 2006-01-22 | C122: 1.399999976 | D122: 1.700000048 | E122: 3.100000024 | F122: 6.148760378 | G122: 2.646250157 | H122: =IF(interpolation($F122,Lookup!$A$4:$A$245,Lookup!$B$4:$B$245)=0,0.00001,interpolation($F122,Lookup!$A$4:$A$245,Lookup!$B$4:$B$245)) -> 11.39752102 | I122: 5.74625018 | J122: 0 | K122: 12 | L122: 0.5041666627 | M122: 1420 | N122: 1440 | O122: 1432 | P122: 0 | Q122: 0.5069388176 | R122: 1440 | S122: 12.50693882 | T122: 1437.74625 | U122: 1452.506939 | W122: 3*2015 | X122: 2015-03-01 | Y122: =SUM(IF((MONTH($B$9:$B$4391)=MONTH(X122))*(YEAR($B$9:$B$4391)=YEAR(X122)),$P$9:$P$4177)) -> 27.72916737 | Z122: 72570
A123: 116 | B123: 2006-01-23 | C123: 1.299999952 | D123: 1.600000024 | E123: 2.899999976 | F123: 5.752066068 | G123: 2.446249755 | H123: =IF(interpolation($F123,Lookup!$A$4:$A$245,Lookup!$B$4:$B$245)=0,0.00001,interpolation($F123,Lookup!$A$4:$A$245,Lookup!$B$4:$B$245)) -> 10.6041317 | I123: 5.346249731 | J123: 0 | K123: 12 | L123: 0 | M123: 1080 | N123: 1580 | O123: 1092 | P123: 0 | Q123: 1.005498489e-05 | R123: 1580 | S123: 12.00001005 | T123: 1097.34625 | U123: 1592.00001 | W123: 4*2015 | X123: 2015-04-01 | Y123: =SUM(IF((MONTH($B$9:$B$4391)=MONTH(X123))*(YEAR($B$9:$B$4391)=YEAR(X123)),$P$9:$P$4177)) -> 44.87087405 | Z123: 71400
A124: 117 | B124: 2006-01-24 | C124: 1.299999952 | D124: 1.600000024 | E124: 2.899999976 | F124: 5.752066068 | G124: 2.446249755 | H124: =IF(interpolation($F124,Lookup!$A$4:$A$245,Lookup!$B$4:$B$245)=0,0.00001,interpolation($F124,Lookup!$A$4:$A$245,Lookup!$B$4:$B$245)) -> 10.6041317 | I124: 5.346249731 | J124: 0 | K124: 12 | L124: 1.512500048 | M124: 1540 | N124: 1520 | O124: 1552 | P124: 0 | Q124: 1.520816513 | R124: 1520 | S124: 13.52081651 | T124: 1557.34625 | U124: 1533.520817 | W124: 5*2015 | X124: 2015-05-01 | Y124: =SUM(IF((MONTH($B$9:$B$4391)=MONTH(X124))*(YEAR($B$9:$B$4391)=YEAR(X124)),$P$9:$P$4177)) -> 65.54170591 | Z124: 71400
A125: 118 | B125: 2006-01-25 | C125: 1.299999952 | D125: 1.5 | E125: 2.799999952 | F125: 5.553718914 | G125: 2.357916669 | H125: =IF(interpolation($F125,Lookup!$A$4:$A$245,Lookup!$B$4:$B$245)=0,0.00001,interpolation($F125,Lookup!$A$4:$A$245,Lookup!$B$4:$B$245)) -> 10.23057842 | I125: 5.157916621 | J125: 0 | K125: 12 | L125: 1.598208427 | M125: 1340 | N125: 1590 | O125: 1352 | P125: 0 | Q125: 1.606996159 | R125: 1590 | S125: 13.60699616 | T125: 1357.157917 | U125: 1603.606996 | W125: 6*2015 | X125: 2015-06-01 | Y125: =SUM(IF((MONTH($B$9:$B$4391)=MONTH(X125))*(YEAR($B$9:$B$4391)=YEAR(X125)),$P$9:$P$4177)) -> 58.9875 | Z125: 70860
A126: 119 | B126: 2006-01-26 | C126: 1.299999952 | D126: 1.5 | E126: 2.799999952 | F126: 5.553718914 | G126: 2.357916669 | H126: =IF(interpolation($F126,Lookup!$A$4:$A$245,Lookup!$B$4:$B$245)=0,0.00001,interpolation($F126,Lookup!$A$4:$A$245,Lookup!$B$4:$B$245)) -> 10.23057842 | I126: 5.157916621 | J126: 0 | K126: 12 | L126: 1.512500048 | M126: 1490 | N126: 1630 | O126: 1502 | P126: 0 | Q126: 1.520816513 | R126: 1630 | S126: 13.52081651 | T126: 1507.157917 | U126: 1643.520817 | W126: 7*2015 | X126: 2015-07-01 | Y126: =SUM(IF((MONTH($B$9:$B$4391)=MONTH(X126))*(YEAR($B$9:$B$4391)=YEAR(X126)),$P$9:$P$4177)) -> 53.94583333 | Z126: 70620
A127: 120 | B127: 2006-01-27 | C127: 1.299999952 | D127: 1.600000024 | E127: 2.899999976 | F127: 5.752066068 | G127: 2.446249755 | H127: =IF(interpolation($F127,Lookup!$A$4:$A$245,Lookup!$B$4:$B$245)=0,0.00001,interpolation($F127,Lookup!$A$4:$A$245,Lookup!$B$4:$B$245)) -> 10.6041317 | I127: 5.346249731 | J127: 0 | K127: 12 | L127: 1.512500048 | M127: 1460 | N127: 1710 | O127: 1472 | P127: 0 | Q127: 1.520816513 | R127: 1710 | S127: 13.52081651 | T127: 1477.34625 | U127: 1723.520817 | W127: 8*2015 | X127: 2015-08-01 | Y127: =SUM(IF((MONTH($B$9:$B$4391)=MONTH(X127))*(YEAR($B$9:$B$4391)=YEAR(X127)),$P$9:$P$4177)) -> 81.675 | Z127: 70090
A128: 121 | B128: 2006-01-28 | C128: 1.700000048 | D128: 1.899999976 | E128: 3.600000024 | F128: 7.140495915 | G128: 3.146250077 | H128: =IF(interpolation($F128,Lookup!$A$4:$A$245,Lookup!$B$4:$B$245)=0,0.00001,interpolation($F128,Lookup!$A$4:$A$245,Lookup!$B$4:$B$245)) -> 13.38099194 | I128: 6.746250101 | J128: 0 | K128: 12 | L128: 1.512500048 | M128: 1710 | N128: 1620 | O128: 1722 | P128: 0 | Q128: 1.520816513 | R128: 1620 | S128: 13.52081651 | T128: 1728.74625 | U128: 1633.520817 | W128: 9*2015 | X128: 2015-09-01 | Y128: =SUM(IF((MONTH($B$9:$B$4391)=MONTH(X128))*(YEAR($B$9:$B$4391)=YEAR(X128)),$P$9:$P$4177)) -> 54.45 | Z128: 70490
A129: 122 | B129: 2006-01-29 | C129: 2.099999905 | D129: 1.899999976 | E129: 3.999999881 | F129: 7.933884061 | G129: 3.546250157 | H129: =IF(interpolation($F129,Lookup!$A$4:$A$245,Lookup!$B$4:$B$245)=0,0.00001,interpolation($F129,Lookup!$A$4:$A$245,Lookup!$B$4:$B$245)) -> 14.96776867 | I129: 7.546250037 | J129: 0 | K129: 12 | L129: 1.37385416 | M129: 1660 | N129: 1630 | O129: 1672 | P129: 0 | Q129: 1.381408282 | R129: 1630 | S129: 13.38140828 | T129: 1679.54625 | U129: 1643.381408 | W129: 10*2015 | X129: 2015-10-01 | Y129: =SUM(IF((MONTH($B$9:$B$4391)=MONTH(X129))*(YEAR($B$9:$B$4391)=YEAR(X129)),$P$9:$P$4177)) -> 51.92916667 | Z129: 70540
A130: 123 | B130: 2006-01-30 | C130: 1.799999952 | D130: 1.799999952 | E130: 3.599999905 | F130: 7.140495679 | G130: 3.146250196 | H130: =IF(interpolation($F130,Lookup!$A$4:$A$245,Lookup!$B$4:$B$245)=0,0.00001,interpolation($F130,Lookup!$A$4:$A$245,Lookup!$B$4:$B$245)) -> 13.38099194 | I130: 6.746250101 | J130: 0 | K130: 12 | L130: 1.512500048 | M130: 1630 | N130: 1540 | O130: 1642 | P130: 0 | Q130: 1.520816513 | R130: 1540 | S130: 13.52081651 | T130: 1648.74625 | U130: 1553.520817 | W130: 11*2015 | X130: 2015-11-01 | Y130: =SUM(IF((MONTH($B$9:$B$4391)=MONTH(X130))*(YEAR($B$9:$B$4391)=YEAR(X130)),$P$9:$P$4177)) -> 44.36666667 | Z130: 70650
A131: 124 | B131: 2006-01-31 | C131: 1.5 | D131: 1.700000048 | E131: 3.200000048 | F131: 6.347107533 | G131: 2.746249636 | H131: =IF(interpolation($F131,Lookup!$A$4:$A$245,Lookup!$B$4:$B$245)=0,0.00001,interpolation($F131,Lookup!$A$4:$A$245,Lookup!$B$4:$B$245)) -> 11.79421425 | I131: 5.946249684 | J131: 0 | K131: 12 | L131: 1.512500048 | M131: 1470 | N131: 1440 | O131: 1482 | P131: 0 | Q131: 1.520816513 | R131: 1440 | S131: 13.52081651 | T131: 1487.94625 | U131: 1453.520817 | W131: 12*2015 | X131: 2015-12-01 | Y131: =SUM(IF((MONTH($B$9:$B$4391)=MONTH(X131))*(YEAR($B$9:$B$4391)=YEAR(X131)),$P$9:$P$4177)) -> 54.45 | Z131: 70810
A132: 125 | B132: 2006-02-01 | C132: 1.399999976 | D132: 1.700000048 | E132: 3.100000024 | F132: 6.148760378 | G132: 2.646250157 | H132: =IF(interpolation($F132,Lookup!$A$4:$A$245,Lookup!$B$4:$B$245)=0,0.00001,interpolation($F132,Lookup!$A$4:$A$245,Lookup!$B$4:$B$245)) -> 11.39752102 | I132: 5.74625018 | J132: 0 | K132: 12 | L132: 1.512500048 | M132: 1430 | N132: 1450 | O132: 1442 | P132: 0.004483322341 | Q132: 1.508016725 | R132: 1450.004483 | S132: 13.50801673 | T132: 1447.74625 | U132: 1463.5125 | V132: 0.04042037236 | W132: 1*2016 | X132: 2016-01-01 | Y132: =SUM(IF((MONTH($B$9:$B$4391)=MONTH(X132))*(YEAR($B$9:$B$4391)=YEAR(X132)),$P$9:$P$4177)) -> 2.520833333 | Z132: 70750
A133: 126 | B133: 2006-02-02 | C133: 1.399999976 | D133: 1.600000024 | E133: 3 | F133: 5.950413223 | G133: 2.546250196 | H133: =IF(interpolation($F133,Lookup!$A$4:$A$245,Lookup!$B$4:$B$245)=0,0.00001,interpolation($F133,Lookup!$A$4:$A$245,Lookup!$B$4:$B$245)) -> 11.00082684 | I133: 5.546250196 | J133: 0 | K133: 12 | L133: 1.512500048 | M133: 1210 | N133: 1410 | O133: 1222 | P133: 0.004483322341 | Q133: 1.508016725 | R133: 1410.004483 | S133: 13.50801673 | T133: 1227.54625 | U133: 1423.5125 | V133: 0.04042037236 | W133: 2*2016 | X133: 2016-02-01 | Y133: =SUM(IF((MONTH($B$9:$B$4391)=MONTH(X133))*(YEAR($B$9:$B$4391)=YEAR(X133)),$P$9:$P$4177)) -> 0 | Z133: 70380
A134: 127 | B134: 2006-02-03 | C134: 1.399999976 | D134: 1.5 | E134: 2.899999976 | F134: 5.752066068 | G134: 2.446249755 | H134: =IF(interpolation($F134,Lookup!$A$4:$A$245,Lookup!$B$4:$B$245)=0,0.00001,interpolation($F134,Lookup!$A$4:$A$245,Lookup!$B$4:$B$245)) -> 10.6041317 | I134: 5.346249731 | J134: 0 | K134: 12 | L134: 1.008333325 | M134: 1440 | N134: 1510 | O134: 1452 | P134: 0.002988881443 | Q134: 1.005344444 | R134: 1510.002989 | S134: 13.00534444 | T134: 1457.34625 | U134: 1523.008333 | V134: 0.02694691384 | W134: 3*2016 | X134: 2016-03-01 | Y134: =SUM(IF((MONTH($B$9:$B$4391)=MONTH(X134))*(YEAR($B$9:$B$4391)=YEAR(X134)),$P$9:$P$4177)) -> 0 | Z134: 70220
A135: 128 | B135: 2006-02-04 | C135: 1.399999976 | D135: 1.5 | E135: 2.899999976 | F135: 5.752066068 | G135: 2.446249755 | H135: =IF(interpolation($F135,Lookup!$A$4:$A$245,Lookup!$B$4:$B$245)=0,0.00001,interpolation($F135,Lookup!$A$4:$A$245,Lookup!$B$4:$B$245)) -> 10.6041317 | I135: 5.346249731 | J135: 0 | K135: 12 | L135: 1.512500048 | M135: 1700 | N135: 1620 | O135: 1712 | P135: 0.004483322341 | Q135: 1.508016725 | R135: 1620.004483 | S135: 13.50801673 | T135: 1717.34625 | U135: 1633.5125 | V135: 0.04042037236 | W135: 4*2016 | X135: 2016-04-01 | Y135: =SUM(IF((MONTH($B$9:$B$4391)=MONTH(X135))*(YEAR($B$9:$B$4391)=YEAR(X135)),$P$9:$P$4177)) -> 38.31666667 | Z135: 70520
A136: 129 | B136: 2006-02-05 | C136: 1.399999976 | D136: 1.5 | E136: 2.899999976 | F136: 5.752066068 | G136: 2.446249755 | H136: =IF(interpolation($F136,Lookup!$A$4:$A$245,Lookup!$B$4:$B$245)=0,0.00001,interpolation($F136,Lookup!$A$4:$A$245,Lookup!$B$4:$B$245)) -> 10.6041317 | I136: 5.346249731 | J136: 0 | K136: 12 | L136: 1.512500048 | M136: 1810 | N136: 1670 | O136: 1822 | P136: 0.004483322341 | Q136: 1.508016725 | R136: 1670.004483 | S136: 13.50801673 | T136: 1827.34625 | U136: 1683.5125 | V136: 0.04042037236 | W136: 5*2016 | X136: 2016-05-01 | Y136: =SUM(IF((MONTH($B$9:$B$4391)=MONTH(X136))*(YEAR($B$9:$B$4391)=YEAR(X136)),$P$9:$P$4177)) -> 53.44166667 | Z136: 70810
A137: 130 | B137: 2006-02-06 | C137: 1.399999976 | D137: 1.5 | E137: 2.899999976 | F137: 5.752066068 | G137: 2.446249755 | H137: =IF(interpolation($F137,Lookup!$A$4:$A$245,Lookup!$B$4:$B$245)=0,0.00001,interpolation($F137,Lookup!$A$4:$A$245,Lookup!$B$4:$B$245)) -> 10.6041317 | I137: 5.346249731 | J137: 0 | K137: 12 | L137: 1.512500048 | M137: 1720 | N137: 1620 | O137: 1732 | P137: 0.004483322341 | Q137: 1.508016725 | R137: 1620.004483 | S137: 13.50801673 | T137: 1737.34625 | U137: 1633.5125 | V137: 0.04042037236 | W137: 6*2016 | X137: 2016-06-01 | Y137: =SUM(IF((MONTH($B$9:$B$4391)=MONTH(X137))*(YEAR($B$9:$B$4391)=YEAR(X137)),$P$9:$P$4177)) -> 75.12083333 | Z137: 71000
A138: 131 | B138: 2006-02-07 | C138: 1.399999976 | D138: 1.700000048 | E138: =SUM(C138:D138) -> 3.100000024 | F138: =IF(E138*60*60*24/43560=0,0.000001,E138*60*60*24/43560) -> 6.148760378 | G138: =IF(I138-E138=0,0.000001,I138-E138) -> 2.646250157 | H138: =IF(interpolation($F138,Lookup!$A$4:$A$245,Lookup!$B$4:$B$245)=0,0.00001,interpolation($F138,Lookup!$A$4:$A$245,Lookup!$B$4:$B$245)) -> 11.39752102 | I138: =IF(H138/60/60/24*43560=0,0.00001,H138/60/60/24*43560) -> 5.74625018 | J138: 0 | K138: 12 | L138: 1.008333325 | M138: 1610 | N138: 1750 | O138: =IF(M138+K138=0,0.00001,M138+K138) -> 1622 | P138: 0.002988881443 | Q138: 1.005344444 | R138: =IF(N138+P138=0,0.000001,N138+P138) -> 1750.002989 | S138: =IF(J138+K138+Q138=0,0.000001,J138+K138+Q138) -> 13.00534444 | T138: =IF(O138+I138=0,0.000001,O138+I138) -> 1627.74625 | U138: =IF(S138+R138=0,0.000001,S138+R138) -> 1763.008333 | V138: =P138/VLOOKUP(MONTH(B138)&"*"&YEAR(B138),$W$9:$Y$159,3,FALSE) -> 0.02694691384 | W138: =MONTH(X138)&"*"&YEAR(X138) -> 7*2016 | X138: 2016-07-01 | Y138: =SUM(IF((MONTH($B$9:$B$4391)=MONTH(X138))*(YEAR($B$9:$B$4391)=YEAR(X138)),$P$9:$P$4177)) -> 86.2125 | Z138: 70750
A139: 132 | B139: 2006-02-08 | C139: 1.299999952 | D139: 1.700000048 | E139: 3 | F139: 5.950413223 | G139: 2.546250196 | H139: =IF(interpolation($F139,Lookup!$A$4:$A$245,Lookup!$B$4:$B$245)=0,0.00001,interpolation($F139,Lookup!$A$4:$A$245,Lookup!$B$4:$B$245)) -> 11.00082684 | I139: 5.546250196 | J139: 0 | K139: 12 | L139: 1.512500048 | M139: 1600 | N139: 1650 | O139: 1612 | P139: 0.004483322341 | Q139: 1.508016725 | R139: 1650.004483 | S139: 13.50801673 | T139: 1617.54625 | U139: 1663.5125 | V139: 0.04042037236 | W139: 8*2016 | X139: 2016-08-01 | Y139: =SUM(IF((MONTH($B$9:$B$4391)=MONTH(X139))*(YEAR($B$9:$B$4391)=YEAR(X139)),$P$9:$P$4177)) -> 82.17916667 | Z139: 70750
A140: 133 | B140: 2006-02-09 | C140: 1.299999952 | D140: 1.600000024 | E140: 2.899999976 | F140: 5.752066068 | G140: 2.446249755 | H140: =IF(interpolation($F140,Lookup!$A$4:$A$245,Lookup!$B$4:$B$245)=0,0.00001,interpolation($F140,Lookup!$A$4:$A$245,Lookup!$B$4:$B$245)) -> 10.6041317 | I140: 5.346249731 | J140: 0 | K140: 12 | L140: 1.512500048 | M140: 1620 | N140: 1690 | O140: 1632 | P140: 0.004483322341 | Q140: 1.508016725 | R140: 1690.004483 | S140: 13.50801673 | T140: 1637.34625 | U140: 1703.5125 | V140: 0.04042037236 | W140: 9*2016 | X140: 2016-09-01 | Y140: =SUM(IF((MONTH($B$9:$B$4391)=MONTH(X140))*(YEAR($B$9:$B$4391)=YEAR(X140)),$P$9:$P$4177)) -> 74.1125 | Z140: 70600
A141: 134 | B141: 2006-02-10 | C141: 1.299999952 | D141: 1.600000024 | E141: 2.899999976 | F141: 5.752066068 | G141: 2.446249755 | H141: =IF(interpolation($F141,Lookup!$A$4:$A$245,Lookup!$B$4:$B$245)=0,0.00001,interpolation($F141,Lookup!$A$4:$A$245,Lookup!$B$4:$B$245)) -> 10.6041317 | I141: 5.346249731 | J141: 0 | K141: 12 | L141: 1.512500048 | M141: 1480 | N141: 1770 | O141: 1492 | P141: 0.004483322341 | Q141: 1.508016725 | R141: 1770.004483 | S141: 13.50801673 | T141: 1497.34625 | U141: 1783.5125 | V141: 0.04042037236 | W141: 10*2016 | X141: 2016-10-01 | Y141: =SUM(IF((MONTH($B$9:$B$4391)=MONTH(X141))*(YEAR($B$9:$B$4391)=YEAR(X141)),$P$9:$P$4177)) -> 86.71666667 | Z141: 70020
A142: 135 | B142: 2006-02-11 | C142: 1.299999952 | D142: 1.600000024 | E142: 2.899999976 | F142: 5.752066068 | G142: 2.446249755 | H142: =IF(interpolation($F142,Lookup!$A$4:$A$245,Lookup!$B$4:$B$245)=0,0.00001,interpolation($F142,Lookup!$A$4:$A$245,Lookup!$B$4:$B$245)) -> 10.6041317 | I142: 5.346249731 | J142: 0 | K142: 12 | L142: 1.265458345 | M142: 1700 | N142: 1700 | O142: 1712 | P142: 0.003751046276 | Q142: 1.261707299 | R142: 1700.003751 | S142: 13.2617073 | T142: 1717.34625 | U142: 1713.265458 | V142: 0.03381837746 | W142: 11*2016 | X142: 2016-11-01 | Y142: =SUM(IF((MONTH($B$9:$B$4391)=MONTH(X142))*(YEAR($B$9:$B$4391)=YEAR(X142)),$P$9:$P$4177)) -> 84.7 | Z142: 70040
A143: 136 | B143: 2006-02-12 | C143: 1.299999952 | D143: 1.5 | E143: 2.799999952 | F143: 5.553718914 | G143: 2.357916669 | H143: =IF(interpolation($F143,Lookup!$A$4:$A$245,Lookup!$B$4:$B$245)=0,0.00001,interpolation($F143,Lookup!$A$4:$A$245,Lookup!$B$4:$B$245)) -> 10.23057842 | I143: 5.157916621 | J143: 0 | K143: 12 | L143: 1.008333325 | M143: 1750 | N143: 1550 | O143: 1762 | P143: 0.002988881443 | Q143: 1.005344444 | R143: 1550.002989 | S143: 13.00534444 | T143: 1767.157917 | U143: 1563.008333 | V143: 0.02694691384 | W143: 12*2016 | X143: 2016-12-01 | Y143: =SUM(IF((MONTH($B$9:$B$4391)=MONTH(X143))*(YEAR($B$9:$B$4391)=YEAR(X143)),$P$9:$P$4177)) -> 24.2 | Z143: 70540
A144: 137 | B144: 2006-02-13 | C144: 1.299999952 | D144: 1.399999976 | E144: 2.699999928 | F144: 5.355371759 | G144: 2.296666694 | H144: =IF(interpolation($F144,Lookup!$A$4:$A$245,Lookup!$B$4:$B$245)=0,0.00001,interpolation($F144,Lookup!$A$4:$A$245,Lookup!$B$4:$B$245)) -> 9.910743713 | I144: 4.996666622 | J144: 0 | K144: 12 | L144: 1.512500048 | M144: 1680 | N144: 1760 | O144: 1692 | P144: 0.004483322341 | Q144: 1.508016725 | R144: 1760.004483 | S144: 13.50801673 | T144: 1696.996667 | U144: 1773.5125 | V144: 0.04042037236 | W144: 1*2017 | X144: 2017-01-01 | Y144: =SUM(IF((MONTH($B$9:$B$4391)=MONTH(X144))*(YEAR($B$9:$B$4391)=YEAR(X144)),$P$9:$P$4177)) -> 38.31666667 | Z144: 70410
A145: 138 | B145: 2006-02-14 | C145: 1.299999952 | D145: 1.5 | E145: 2.799999952 | F145: 5.553718914 | G145: 2.357916669 | H145: =IF(interpolation($F145,Lookup!$A$4:$A$245,Lookup!$B$4:$B$245)=0,0.00001,interpolation($F145,Lookup!$A$4:$A$245,Lookup!$B$4:$B$245)) -> 10.23057842 | I145: 5.157916621 | J145: 0 | K145: 12 | L145: 1.366291642 | M145: 1740 | N145: 1680 | O145: 1752 | P145: 0.004049934314 | Q145: 1.362241708 | R145: 1680.00405 | S145: 13.36224171 | T145: 1757.157917 | U145: 1693.366292 | V145: 0.03651306789 | W145: 2*2017 | X145: 2017-02-01 | Y145: =SUM(IF((MONTH($B$9:$B$4391)=MONTH(X145))*(YEAR($B$9:$B$4391)=YEAR(X145)),$P$9:$P$4177)) -> 20.16666667 | Z145: 70410
A146: 139 | B146: 2006-02-15 | C146: 1.799999952 | D146: 2.200000048 | E146: 4 | F146: 7.933884298 | G146: 3.546250037 | H146: =IF(interpolation($F146,Lookup!$A$4:$A$245,Lookup!$B$4:$B$245)=0,0.00001,interpolation($F146,Lookup!$A$4:$A$245,Lookup!$B$4:$B$245)) -> 14.96776867 | I146: 7.546250037 | J146: 0 | K146: 12 | L146: 1.512500048 | M146: 1480 | N146: 1690 | O146: 1492 | P146: 0.004483322341 | Q146: 1.508016725 | R146: 1690.004483 | S146: 13.50801673 | T146: 1499.54625 | U146: 1703.5125 | V146: 0.04042037236 | W146: 3*2017 | X146: 2017-03-01 | Y146: =SUM(IF((MONTH($B$9:$B$4391)=MONTH(X146))*(YEAR($B$9:$B$4391)=YEAR(X146)),$P$9:$P$4177)) ->  | Z146: 70040
A147: 140 | B147: 2006-02-16 | C147: 1.399999976 | D147: 1.799999952 | E147: 3.199999928 | F147: 6.347107296 | G147: 2.746249755 | H147: =IF(interpolation($F147,Lookup!$A$4:$A$245,Lookup!$B$4:$B$245)=0,0.00001,interpolation($F147,Lookup!$A$4:$A$245,Lookup!$B$4:$B$245)) -> 11.79421425 | I147: 5.946249684 | J147: 0 | K147: 12 | L147: 1.512500048 | M147: 1700 | N147: 1790 | O147: 1712 | P147: 0.004483322341 | Q147: 1.508016725 | R147: 1790.004483 | S147: 13.50801673 | T147: 1717.94625 | U147: 1803.5125 | V147: 0.04042037236 | W147: 4*2017 | X147: 2017-04-01 | Y147: =SUM(IF((MONTH($B$9:$B$4391)=MONTH(X147))*(YEAR($B$9:$B$4391)=YEAR(X147)),$P$9:$P$4177)) ->  | Z147: 70020
A148: 141 | B148: 2006-02-17 | C148: 1.399999976 | D148: 1.700000048 | E148: 3.100000024 | F148: 6.148760378 | G148: 2.646250157 | H148: =IF(interpolation($F148,Lookup!$A$4:$A$245,Lookup!$B$4:$B$245)=0,0.00001,interpolation($F148,Lookup!$A$4:$A$245,Lookup!$B$4:$B$245)) -> 11.39752102 | I148: 5.74625018 | J148: 0 | K148: 12 | L148: 1.512500048 | M148: 1770 | N148: 1710 | O148: 1782 | P148: 0.004483322341 | Q148: 1.508016725 | R148: 1710.004483 | S148: 13.50801673 | T148: 1787.74625 | U148: 1723.5125 | V148: 0.04042037236 | W148: 5*2017 | X148: 2017-05-01 | Y148: =SUM(IF((MONTH($B$9:$B$4391)=MONTH(X148))*(YEAR($B$9:$B$4391)=YEAR(X148)),$P$9:$P$4177)) ->  | Z148: 70120
A149: 142 | B149: 2006-02-18 | C149: 1.799999952 | D149: 2.299999952 | E149: 4.099999905 | F149: 8.132231216 | G149: 3.646249636 | H149: =IF(interpolation($F149,Lookup!$A$4:$A$245,Lookup!$B$4:$B$245)=0,0.00001,interpolation($F149,Lookup!$A$4:$A$245,Lookup!$B$4:$B$245)) -> 15.3644619 | I149: 7.746249541 | J149: 0 | K149: 12 | L149: 1.512500048 | M149: 1820 | N149: 1670 | O149: 1832 | P149: 0.004483322341 | Q149: 1.508016725 | R149: 1670.004483 | S149: 13.50801673 | T149: 1839.74625 | U149: 1683.5125 | V149: 0.04042037236 | W149: 6*2017 | X149: 2017-06-01 | Y149: =SUM(IF((MONTH($B$9:$B$4391)=MONTH(X149))*(YEAR($B$9:$B$4391)=YEAR(X149)),$P$9:$P$4177)) ->  | Z149: 70410
A150: 143 | B150: 2006-02-19 | C150: 2.700000048 | D150: 3.799999952 | E150: 6.5 | F150: 12.89256198 | G150: 6.09666698 | H150: =IF(interpolation($F150,Lookup!$A$4:$A$245,Lookup!$B$4:$B$245)=0,0.00001,interpolation($F150,Lookup!$A$4:$A$245,Lookup!$B$4:$B$245)) -> 24.98512459 | I150: 12.59666698 | J150: 0 | K150: 12 | L150: 1.512500048 | M150: 1900 | N150: 1660 | O150: 1912 | P150: 0.004483322341 | Q150: 1.508016725 | R150: 1660.004483 | S150: 13.50801673 | T150: 1924.596667 | U150: 1673.5125 | V150: 0.04042037236 | W150: 7*2017 | X150: 2017-07-01 | Y150: =SUM(IF((MONTH($B$9:$B$4391)=MONTH(X150))*(YEAR($B$9:$B$4391)=YEAR(X150)),$P$9:$P$4177)) ->  | Z150: 71000
A151: 144 | B151: 2006-02-20 | C151: 1.799999952 | D151: 3.200000048 | E151: 5 | F151: 9.917355372 | G151: 4.546250359 | H151: =IF(interpolation($F151,Lookup!$A$4:$A$245,Lookup!$B$4:$B$245)=0,0.00001,interpolation($F151,Lookup!$A$4:$A$245,Lookup!$B$4:$B$245)) -> 18.93471146 | I151: 9.546250359 | J151: 0 | K151: 12 | L151: 1.512500048 | M151: 1720 | N151: 1460 | O151: 1732 | P151: 0.004483322341 | Q151: 1.508016725 | R151: 1460.004483 | S151: 13.50801673 | T151: 1741.54625 | U151: 1473.5125 | V151: 0.04042037236 | W151: 8*2017 | X151: 2017-08-01 | Y151: =SUM(IF((MONTH($B$9:$B$4391)=MONTH(X151))*(YEAR($B$9:$B$4391)=YEAR(X151)),$P$9:$P$4177)) ->  | Z151: 71610
A152: 145 | B152: 2006-02-21 | C152: 1.600000024 | D152: 2.599999905 | E152: 4.199999928 | F152: 8.330578371 | G152: 3.746250558 | H152: =IF(interpolation($F152,Lookup!$A$4:$A$245,Lookup!$B$4:$B$245)=0,0.00001,interpolation($F152,Lookup!$A$4:$A$245,Lookup!$B$4:$B$245)) -> 15.76115799 | I152: 7.946250486 | J152: 0 | K152: 12 | L152: 1.512500048 | M152: 1650 | N152: 1400 | O152: 1662 | P152: 0.004483322341 | Q152: 1.508016725 | R152: 1400.004483 | S152: 13.50801673 | T152: 1669.94625 | U152: 1413.5125 | V152: 0.04042037236 | W152: 9*2017 | X152: 2017-09-01 | Y152: =SUM(IF((MONTH($B$9:$B$4391)=MONTH(X152))*(YEAR($B$9:$B$4391)=YEAR(X152)),$P$9:$P$4177)) ->  | Z152: 72090
A153: 146 | B153: 2006-02-22 | C153: 1.5 | D153: 2.5 | E153: 4 | F153: 7.933884298 | G153: 3.546250037 | H153: =IF(interpolation($F153,Lookup!$A$4:$A$245,Lookup!$B$4:$B$245)=0,0.00001,interpolation($F153,Lookup!$A$4:$A$245,Lookup!$B$4:$B$245)) -> 14.96776867 | I153: 7.546250037 | J153: 0 | K153: 12 | L153: 1.512500048 | M153: 1630 | N153: 1580 | O153: 1642 | P153: 0.004483322341 | Q153: 1.508016725 | R153: 1580.004483 | S153: 13.50801673 | T153: 1649.54625 | U153: 1593.5125 | V153: 0.04042037236 | W153: 10*2017 | X153: 2017-10-01 | Y153: =SUM(IF((MONTH($B$9:$B$4391)=MONTH(X153))*(YEAR($B$9:$B$4391)=YEAR(X153)),$P$9:$P$4177)) -> 0 | Z153: 72260
A154: 147 | B154: 2006-02-23 | C154: 1.399999976 | D154: 2.5 | E154: 3.899999976 | F154: 7.735537143 | G154: 3.446249596 | H154: =IF(interpolation($F154,Lookup!$A$4:$A$245,Lookup!$B$4:$B$245)=0,0.00001,interpolation($F154,Lookup!$A$4:$A$245,Lookup!$B$4:$B$245)) -> 14.57107353 | I154: 7.346249572 | J154: 0 | K154: 12 | L154: 1.008333325 | M154: 1490 | N154: 1490 | O154: 1502 | P154: 0.002988881443 | Q154: 1.005344444 | R154: 1490.002989 | S154: 13.00534444 | T154: 1509.34625 | U154: 1503.008333 | V154: 0.02694691384 | W154: 11*2017 | X154: 2017-11-01 | Y154: =SUM(IF((MONTH($B$9:$B$4391)=MONTH(X154))*(YEAR($B$9:$B$4391)=YEAR(X154)),$P$9:$P$4177)) -> 0 | Z154: 72230
A155: 148 | B155: 2006-02-24 | C155: 1.399999976 | D155: 2.400000095 | E155: 3.800000072 | F155: 7.537190225 | G155: 3.346250478 | H155: =IF(interpolation($F155,Lookup!$A$4:$A$245,Lookup!$B$4:$B$245)=0,0.00001,interpolation($F155,Lookup!$A$4:$A$245,Lookup!$B$4:$B$245)) -> 14.17438126 | I155: 7.14625055 | J155: 0 | K155: 12 | L155: 1.008333325 | M155: 1450 | N155: 1800 | O155: 1462 | P155: 0.002988881443 | Q155: 1.005344444 | R155: 1800.002989 | S155: 13.00534444 | T155: 1469.146251 | U155: 1813.008333 | V155: 0.02694691384 | W155: 12*2017 | X155: 2017-12-01 | Y155: =SUM(IF((MONTH($B$9:$B$4391)=MONTH(X155))*(YEAR($B$9:$B$4391)=YEAR(X155)),$P$9:$P$4177)) -> 0 | Z155: 71660
A156: 149 | B156: 2006-02-25 | C156: 1.299999952 | D156: 2.299999952 | E156: 3.599999905 | F156: 7.140495679 | G156: 3.146250196 | H156: =IF(interpolation($F156,Lookup!$A$4:$A$245,Lookup!$B$4:$B$245)=0,0.00001,interpolation($F156,Lookup!$A$4:$A$245,Lookup!$B$4:$B$245)) -> 13.38099194 | I156: 6.746250101 | J156: 0 | K156: 12 | L156: 1.008333325 | M156: 1450 | N156: 1730 | O156: 1462 | P156: 0.002988881443 | Q156: 1.005344444 | R156: 1730.002989 | S156: 13.00534444 | T156: 1468.74625 | U156: 1743.008333 | V156: 0.02694691384 | W156: 1*2018 | X156: 2018-01-01 | Y156: =SUM(IF((MONTH($B$9:$B$4391)=MONTH(X156))*(YEAR($B$9:$B$4391)=YEAR(X156)),$P$9:$P$4177)) -> 0 | Z156: 71000
A157: 150 | B157: 2006-02-26 | C157: 1.299999952 | D157: 2.5 | E157: 3.799999952 | F157: 7.537189988 | G157: 3.346250117 | H157: =IF(interpolation($F157,Lookup!$A$4:$A$245,Lookup!$B$4:$B$245)=0,0.00001,interpolation($F157,Lookup!$A$4:$A$245,Lookup!$B$4:$B$245)) -> 14.1743803 | I157: 7.146250069 | J157: 0 | K157: 12 | L157: 1.008333325 | M157: 1770 | N157: 1660 | O157: 1782 | P157: 0.002988881443 | Q157: 1.005344444 | R157: 1660.002989 | S157: 13.00534444 | T157: 1789.14625 | U157: 1673.008333 | V157: 0.02694691384 | W157: 2*2018 | X157: 2018-02-01 | Y157: =SUM(IF((MONTH($B$9:$B$4391)=MONTH(X157))*(YEAR($B$9:$B$4391)=YEAR(X157)),$P$9:$P$4177)) -> 0 | Z157: 71310
A158: 151 | B158: 2006-02-27 | C158: 3.5 | D158: 6.699999809 | E158: 10.19999981 | F158: 20.23140458 | G158: 9.959583553 | H158: =IF(interpolation($F158,Lookup!$A$4:$A$245,Lookup!$B$4:$B$245)=0,0.00001,interpolation($F158,Lookup!$A$4:$A$245,Lookup!$B$4:$B$245)) -> 39.98595047 | I158: 20.15958336 | J158: 7 | K158: 12 | L158: 1.008333325 | M158: 1660 | N158: 1730 | O158: 1672 | P158: 0.002988881443 | Q158: 1.005344444 | R158: 1730.002989 | S158: 20.00534444 | T158: 1692.159583 | U158: 1750.008333 | V158: 0.02694691384 | W158: 3*2018 | X158: 2018-03-01 | Y158: =SUM(IF((MONTH($B$9:$B$4391)=MONTH(X158))*(YEAR($B$9:$B$4391)=YEAR(X158)),$P$9:$P$4177)) -> 0 | Z158: 71470
A159: 152 | B159: 2006-02-28 | C159: 49 | D159: 176 | E159: 225 | F159: 446.2809917 | G159: 246.7500178 | H159: =IF(interpolation($F159,Lookup!$A$4:$A$245,Lookup!$B$4:$B$245)=0,0.00001,interpolation($F159,Lookup!$A$4:$A$245,Lookup!$B$4:$B$245)) -> 935.7025146 | I159: 471.7500178 | J159: 172 | K159: 12 | L159: 1.008333325 | M159: 1820 | N159: 1630 | O159: 1832 | P159: 0.002988881443 | Q159: 1.005344444 | R159: 1630.002989 | S159: 185.0053444 | T159: 2303.750018 | U159: 1815.008333 | V159: 0.02694691384 | W159: 4*2018 | X159: 2018-04-01 | Y159: =SUM(IF((MONTH($B$9:$B$4391)=MONTH(X159))*(YEAR($B$9:$B$4391)=YEAR(X159)),$P$9:$P$4177)) -> 0 | Z159: 72440
A160: 153 | B160: 2006-03-01 | C160: 7.599999905 | D160: 27 | E160: 34.5999999 | F160: 68.62809898 | G160: 37.78333521 | H160: =IF(interpolation($F160,Lookup!$A$4:$A$245,Lookup!$B$4:$B$245)=0,0.00001,interpolation($F160,Lookup!$A$4:$A$245,Lookup!$B$4:$B$245)) -> 143.5702515 | I160: 72.38333511 | J160: 43 | K160: 12 | L160: 1.366291642 | M160: 1600 | N160: 1510 | O160: 1612 | P160: 0.00202806611 | Q160: 1.364263576 | R160: 1510.002028 | S160: 56.36426358 | T160: 1684.383335 | U160: 1566.366292 | V160: 0.04228089595 | Z160: 72820
A161: 154 | B161: 2006-03-02 | C161: 4.5 | D161: 16 | E161: 20.5 | F161: 40.66115702 | G161: 21.17083359 | H161: =IF(interpolation($F161,Lookup!$A$4:$A$245,Lookup!$B$4:$B$245)=0,0.00001,interpolation($F161,Lookup!$A$4:$A$245,Lookup!$B$4:$B$245)) -> 82.65289307 | I161: 41.67083359 | J161: 43 | K161: 12 | L161: 1.512500048 | M161: 1690 | N161: 1650 | O161: 1702 | P161: 0.002245091745 | Q161: 1.510254956 | R161: 1650.002245 | S161: 56.51025496 | T161: 1743.670834 | U161: 1706.5125 | V161: 0.04680542219 | Z161: 72980
A162: 155 | B162: 2006-03-03 | C162: 7.599999905 | D162: 27 | E162: 34.5999999 | F162: 68.62809898 | G162: 37.78333521 | H162: =IF(interpolation($F162,Lookup!$A$4:$A$245,Lookup!$B$4:$B$245)=0,0.00001,interpolation($F162,Lookup!$A$4:$A$245,Lookup!$B$4:$B$245)) -> 143.5702515 | I162: 72.38333511 | J162: 43 | K162: 12 | L162: 1.008333325 | M162: 1150 | N162: 1570 | O162: 1162 | P162: 0.001496727771 | Q162: 1.006836598 | R162: 1570.001497 | S162: 56.0068366 | T162: 1234.383335 | U162: 1626.008333 | V162: 0.03120361356 | Z162: 72390
A163: 156 | B163: 2006-03-04 | C163: 5.300000191 | D163: 19 | E163: 24.30000019 | F163: 48.19834749 | G163: 25.35833553 | H163: =IF(interpolation($F163,Lookup!$A$4:$A$245,Lookup!$B$4:$B$245)=0,0.00001,interpolation($F163,Lookup!$A$4:$A$245,Lookup!$B$4:$B$245)) -> 98.4958725 | I163: 49.65833572 | J163: 43 | K163: 12 | L163: 1.512500048 | M163: 1450 | N163: 1530 | O163: 1462 | P163: 0.002245091745 | Q163: 1.510254956 | R163: 1530.002245 | S163: 56.51025496 | T163: 1511.658336 | U163: 1586.5125 | V163: 0.04680542219 | Z163: 72300
A164: 157 | B164: 2006-03-05 | C164: 3.900000095 | D164: 14 | E164: 17.9000001 | F164: 35.50413242 | G164: 17.89999898 | H164: =IF(interpolation($F164,Lookup!$A$4:$A$245,Lookup!$B$4:$B$245)=0,0.00001,interpolation($F164,Lookup!$A$4:$A$245,Lookup!$B$4:$B$245)) -> 71.00826263 | I164: 35.79999908 | J164: 43 | K164: 12 | L164: 1.512500048 | M164: 1800 | N164: 1480 | O164: 1812 | P164: 0.002245091745 | Q164: 1.510254956 | R164: 1480.002245 | S164: 56.51025496 | T164: 1847.799999 | U164: 1536.5125 | V164: 0.04680542219 | Z164: 72820
A165: 158 | B165: 2006-03-06 | C165: 3.900000095 | D165: 14 | E165: 17.9000001 | F165: 35.50413242 | G165: 17.89999898 | H165: =IF(interpolation($F165,Lookup!$A$4:$A$245,Lookup!$B$4:$B$245)=0,0.00001,interpolation($F165,Lookup!$A$4:$A$245,Lookup!$B$4:$B$245)) -> 71.00826263 | I165: 35.79999908 | J165: 43 | K165: 12 | L165: 1.406625032 | M165: 1480 | N165: 1470 | O165: 1492 | P165: 0.002087935306 | Q165: 1.404537097 | R165: 1470.002088 | S165: 56.4045371 | T165: 1527.799999 | U165: 1526.406625 | V165: 0.04352904227 | Z165: 72980
A166: 159 | B166: 2006-03-07 | C166: 6.699999809 | D166: 24 | E166: 30.69999981 | F166: 60.89256161 | G166: 33.22083441 | H166: =IF(interpolation($F166,Lookup!$A$4:$A$245,Lookup!$B$4:$B$245)=0,0.00001,interpolation($F166,Lookup!$A$4:$A$245,Lookup!$B$4:$B$245)) -> 126.7851257 | I166: 63.92083422 | J166: 14 | K166: 12 | L166: 1.512500048 | M166: 1310 | N166: 1510 | O166: 1322 | P166: 0.002245091745 | Q166: 1.510254956 | R166: 1510.002245 | S166: 27.51025496 | T166: 1385.920834 | U166: 1537.5125 | V166: 0.04680542219 | Z166: 72660
A167: 160 | B167: 2006-03-08 | C167: 4.800000191 | D167: 17 | E167: 21.80000019 | F167: 43.2396698 | G167: 22.80833352 | H167: =IF(interpolation($F167,Lookup!$A$4:$A$245,Lookup!$B$4:$B$245)=0,0.00001,interpolation($F167,Lookup!$A$4:$A$245,Lookup!$B$4:$B$245)) -> 88.4793396 | I167: 44.60833371 | J167: 0 | K167: 12 | L167: 1.366291642 | M167: 1520 | N167: 1590 | O167: 1532 | P167: 0.00202806611 | Q167: 1.364263576 | R167: 1590.002028 | S167: 13.36426358 | T167: 1576.608334 | U167: 1603.366292 | V167: 0.04228089595 | Z167: 72790
A168: 161 | B168: 2006-03-09 | C168: 4 | D168: 14 | E168: 18 | F168: 35.70247934 | G168: 18.00000099 | H168: =IF(interpolation($F168,Lookup!$A$4:$A$245,Lookup!$B$4:$B$245)=0,0.00001,interpolation($F168,Lookup!$A$4:$A$245,Lookup!$B$4:$B$245)) -> 71.40496063 | I168: 36.00000099 | J168: 0 | K168: 12 | L168: 1.394020915 | M168: 1340 | N168: 1450 | O168: 1352 | P168: 0.002069226281 | Q168: 1.391951689 | R168: 1450.002069 | S168: 13.39195169 | T168: 1388.000001 | U168: 1463.394021 | V168: 0.04313899862 | Z168: 72520
A169: 162 | B169: 2006-03-10 | C169: 4 | D169: 13 | E169: 17 | F169: 33.71900826 | G169: 17.00000114 | H169: =IF(interpolation($F169,Lookup!$A$4:$A$245,Lookup!$B$4:$B$245)=0,0.00001,interpolation($F169,Lookup!$A$4:$A$245,Lookup!$B$4:$B$245)) -> 67.4380188 | I169: 34.00000114 | J169: 0 | K169: 12 | L169: 1.414187551 | M169: 1060 | N169: 1370 | O169: 1072 | P169: 0.002099160791 | Q169: 1.41208839 | R169: 1370.002099 | S169: 13.41208839 | T169: 1106.000001 | U169: 1383.414188 | V169: 0.04376306993 | Z169: 72010
A170: 163 | B170: 2006-03-11 | C170: 4 | D170: 14 | E170: 18 | F170: 35.70247934 | G170: 18.00000099 | H170: =IF(interpolation($F170,Lookup!$A$4:$A$245,Lookup!$B$4:$B$245)=0,0.00001,interpolation($F170,Lookup!$A$4:$A$245,Lookup!$B$4:$B$245)) -> 71.40496063 | I170: 36.00000099 | J170: 0 | K170: 12 | L170: 0 | M170: 1060 | N170: 1390 | O170: 1072 | P170: 1.484358132e-08 | Q170: 9.985156419e-06 | R170: 1390 | S170: 12.00000999 | T170: 1108.000001 | U170: 1402.00001 | V170: 3.09457327e-07 | Z170: 71610
A171: 164 | B171: 2006-03-12 | C171: 4 | D171: 14 | E171: 18 | F171: 35.70247934 | G171: 18.00000099 | H171: =IF(interpolation($F171,Lookup!$A$4:$A$245,Lookup!$B$4:$B$245)=0,0.00001,interpolation($F171,Lookup!$A$4:$A$245,Lookup!$B$4:$B$245)) -> 71.40496063 | I171: 36.00000099 | J171: 0 | K171: 12 | L171: 0 | M171: 1180 | N171: 1370 | O171: 1192 | P171: 1.484358132e-08 | Q171: 9.985156419e-06 | R171: 1370 | S171: 12.00000999 | T171: 1228.000001 | U171: 1382.00001 | V171: 3.09457327e-07 | Z171: 71370
A172: 165 | B172: 2006-03-13 | C172: 3.400000095 | D172: 12 | E172: 15.4000001 | F172: 30.54545473 | G172: 15.39999938 | H172: =IF(interpolation($F172,Lookup!$A$4:$A$245,Lookup!$B$4:$B$245)=0,0.00001,interpolation($F172,Lookup!$A$4:$A$245,Lookup!$B$4:$B$245)) -> 61.09090805 | I172: 30.79999948 | J172: 0 | K172: 12 | L172: 0 | M172: 1120 | N172: 1260 | O172: 1132 | P172: 1.484358132e-08 | Q172: 9.985156419e-06 | R172: 1260 | S172: 12.00000999 | T172: 1162.799999 | U172: 1272.00001 | V172: 3.09457327e-07 | Z172: 71560
A173: 166 | B173: 2006-03-14 | C173: 3.400000095 | D173: 12 | E173: 15.4000001 | F173: 30.54545473 | G173: 15.39999938 | H173: =IF(interpolation($F173,Lookup!$A$4:$A$245,Lookup!$B$4:$B$245)=0,0.00001,interpolation($F173,Lookup!$A$4:$A$245,Lookup!$B$4:$B$245)) -> 61.09090805 | I173: 30.79999948 | J173: 0 | K173: 12 | L173: 0 | M173: 1540 | N173: 1230 | O173: 1552 | P173: 1.484358132e-08 | Q173: 9.985156419e-06 | R173: 1230 | S173: 12.00000999 | T173: 1582.799999 | U173: 1242.00001 | V173: 3.09457327e-07 | Z173: 72120
A174: 167 | B174: 2006-03-15 | C174: 3.400000095 | D174: 12 | E174: 15.4000001 | F174: 30.54545473 | G174: 15.39999938 | H174: =IF(interpolation($F174,Lookup!$A$4:$A$245,Lookup!$B$4:$B$245)=0,0.00001,interpolation($F174,Lookup!$A$4:$A$245,Lookup!$B$4:$B$245)) -> 61.09090805 | I174: 30.79999948 | J174: 0 | K174: 12 | L174: 1.008333325 | M174: 1170 | N174: 1160 | O174: 1182 | P174: 0.001496727771 | Q174: 1.006836598 | R174: 1160.001497 | S174: 13.0068366 | T174: 1212.799999 | U174: 1173.008333 | V174: 0.03120361356 | Z174: 72120
A175: 168 | B175: 2006-03-16 | C175: 3.400000095 | D175: 12 | E175: 15.4000001 | F175: 30.54545473 | G175: 15.39999938 | H175: =IF(interpolation($F175,Lookup!$A$4:$A$245,Lookup!$B$4:$B$245)=0,0.00001,interpolation($F175,Lookup!$A$4:$A$245,Lookup!$B$4:$B$245)) -> 61.09090805 | I175: 30.79999948 | J175: 0 | K175: 12 | L175: 1.512500048 | M175: 893 | N175: 1150 | O175: 905 | P175: 0.002245091745 | Q175: 1.510254956 | R175: 1150.002245 | S175: 13.51025496 | T175: 935.7999995 | U175: 1163.5125 | V175: 0.04680542219 | Z175: 71690
A176: 169 | B176: 2006-03-17 | C176: 4.5 | D176: 16 | E176: 20.5 | F176: 40.66115702 | G176: 21.17083359 | H176: =IF(interpolation($F176,Lookup!$A$4:$A$245,Lookup!$B$4:$B$245)=0,0.00001,interpolation($F176,Lookup!$A$4:$A$245,Lookup!$B$4:$B$245)) -> 82.65289307 | I176: 41.67083359 | J176: 0 | K176: 12 | L176: 1.512500048 | M176: 1090 | N176: 1310 | O176: 1102 | P176: 0.002245091745 | Q176: 1.510254956 | R176: 1310.002245 | S176: 13.51025496 | T176: 1143.670834 | U176: 1323.5125 | V176: 0.04680542219 | Z176: 71500
A177: 170 | B177: 2006-03-18 | C177: 5.900000095 | D177: 21 | E177: 26.9000001 | F177: 53.35537209 | G177: 28.4125014 | H177: =IF(interpolation($F177,Lookup!$A$4:$A$245,Lookup!$B$4:$B$245)=0,0.00001,interpolation($F177,Lookup!$A$4:$A$245,Lookup!$B$4:$B$245)) -> 109.7107468 | I177: 55.31250149 | J177: 0 | K177: 12 | L177: 0 | M177: 1200 | N177: 792 | O177: 1212 | P177: 1.484358132e-08 | Q177: 9.985156419e-06 | R177: 792 | S177: 12.00000999 | T177: 1267.312501 | U177: 804.00001 | V177: 3.09457327e-07 | Z177: 72460
A178: 171 | B178: 2006-03-19 | C178: 5.099999905 | D178: 18 | E178: 23.0999999 | F178: 45.81818163 | G178: 24.10833168 | H178: =IF(interpolation($F178,Lookup!$A$4:$A$245,Lookup!$B$4:$B$245)=0,0.00001,interpolation($F178,Lookup!$A$4:$A$245,Lookup!$B$4:$B$245)) -> 93.63636017 | I178: 47.20833158 | J178: 0 | K178: 12 | L178: 0 | M178: 1440 | N178: 1290 | O178: 1452 | P178: 1.484358132e-08 | Q178: 9.985156419e-06 | R178: 1290 | S178: 12.00000999 | T178: 1499.208332 | U178: 1302.00001 | V178: 3.09457327e-07 | Z178: 72900
A179: 172 | B179: 2006-03-20 | C179: 4.5 | D179: 16 | E179: 20.5 | F179: 40.66115702 | G179: 21.17083359 | H179: =IF(interpolation($F179,Lookup!$A$4:$A$245,Lookup!$B$4:$B$245)=0,0.00001,interpolation($F179,Lookup!$A$4:$A$245,Lookup!$B$4:$B$245)) -> 82.65289307 | I179: 41.67083359 | J179: 0 | K179: 12 | L179: 0 | M179: 1130 | N179: 1360 | O179: 1142 | P179: 1.484358132e-08 | Q179: 9.985156419e-06 | R179: 1360 | S179: 12.00000999 | T179: 1183.670834 | U179: 1372.00001 | V179: 3.09457327e-07 | Z179: 72520
A180: 173 | B180: 2006-03-21 | C180: 7.300000191 | D180: 26 | E180: 33.30000019 | F180: 66.04958716 | G180: 35.83333085 | H180: =IF(interpolation($F180,Lookup!$A$4:$A$245,Lookup!$B$4:$B$245)=0,0.00001,interpolation($F180,Lookup!$A$4:$A$245,Lookup!$B$4:$B$245)) -> 137.1239624 | I180: 69.13333104 | J180: 25 | K180: 12 | L180: 1.512500048 | M180: 1100 | N180: 1370 | O180: 1112 | P180: 0.002245091745 | Q180: 1.510254956 | R180: 1370.002245 | S180: 38.51025496 | T180: 1181.133331 | U180: 1408.5125 | V180: 0.04680542219 | Z180: 72170
A181: 174 | B181: 2006-03-22 | C181: 5.300000191 | D181: 19 | E181: 24.30000019 | F181: 48.19834749 | G181: 25.35833553 | H181: =IF(interpolation($F181,Lookup!$A$4:$A$245,Lookup!$B$4:$B$245)=0,0.00001,interpolation($F181,Lookup!$A$4:$A$245,Lookup!$B$4:$B$245)) -> 98.4958725 | I181: 49.65833572 | J181: 38 | K181: 12 | L181: 1.512500048 | M181: 1020 | N181: 1270 | O181: 1032 | P181: 0.002245091745 | Q181: 1.510254956 | R181: 1270.002245 | S181: 51.51025496 | T181: 1081.658336 | U181: 1321.5125 | V181: 0.04680542219 | Z181: 71740
A182: 175 | B182: 2006-03-23 | C182: 5 | D182: 18 | E182: 23 | F182: 45.61983471 | G182: 24.00833352 | H182: =IF(interpolation($F182,Lookup!$A$4:$A$245,Lookup!$B$4:$B$245)=0,0.00001,interpolation($F182,Lookup!$A$4:$A$245,Lookup!$B$4:$B$245)) -> 93.2396698 | I182: 47.00833352 | J182: 35 | K182: 12 | L182: 1.512500048 | M182: 1060 | N182: 1280 | O182: 1072 | P182: 0.002245091745 | Q182: 1.510254956 | R182: 1280.002245 | S182: 48.51025496 | T182: 1119.008334 | U182: 1328.5125 | V182: 0.04680542219 | Z182: 71420
A183: 176 | B183: 2006-03-24 | C183: 4.699999809 | D183: 17 | E183: 21.69999981 | F183: 43.04132194 | G183: 22.708332 | H183: =IF(interpolation($F183,Lookup!$A$4:$A$245,Lookup!$B$4:$B$245)=0,0.00001,interpolation($F183,Lookup!$A$4:$A$245,Lookup!$B$4:$B$245)) -> 88.0826416 | I183: 44.40833181 | J183: 0 | K183: 12 | L183: 1.008333325 | M183: 944 | N183: 1340 | O183: 956 | P183: 0.001496727771 | Q183: 1.006836598 | R183: 1340.001497 | S183: 13.0068366 | T183: 1000.408332 | U183: 1353.008333 | V183: 0.03120361356 | Z183: 70810
A184: 177 | B184: 2006-03-25 | C184: 4.699999809 | D184: 17 | E184: 21.69999981 | F184: 43.04132194 | G184: 22.708332 | H184: =IF(interpolation($F184,Lookup!$A$4:$A$245,Lookup!$B$4:$B$245)=0,0.00001,interpolation($F184,Lookup!$A$4:$A$245,Lookup!$B$4:$B$245)) -> 88.0826416 | I184: 44.40833181 | J184: 0 | K184: 12 | L184: 1.278062582 | M184: 951 | N184: 1130 | O184: 963 | P184: 0.001897102587 | Q184: 1.276165479 | R184: 1130.001897 | S184: 13.27616548 | T184: 1007.408332 | U184: 1143.278063 | V184: 0.03955058304 | Z184: 70410
A185: 178 | B185: 2006-03-26 | C185: 4.699999809 | D185: 17 | E185: 21.69999981 | F185: 43.04132194 | G185: 22.708332 | H185: =IF(interpolation($F185,Lookup!$A$4:$A$245,Lookup!$B$4:$B$245)=0,0.00001,interpolation($F185,Lookup!$A$4:$A$245,Lookup!$B$4:$B$245)) -> 88.0826416 | I185: 44.40833181 | J185: 0 | K185: 12 | L185: 1.512500048 | M185: 999 | N185: 1060 | O185: 1011 | P185: 0.002245091745 | Q185: 1.510254956 | R185: 1060.002245 | S185: 13.51025496 | T185: 1055.408332 | U185: 1073.5125 | V185: 0.04680542219 | Z185: 70410
A186: 179 | B186: 2006-03-27 | C186: 4.699999809 | D186: 17 | E186: 21.69999981 | F186: 43.04132194 | G186: 22.708332 | H186: =IF(interpolation($F186,Lookup!$A$4:$A$245,Lookup!$B$4:$B$245)=0,0.00001,interpolation($F186,Lookup!$A$4:$A$245,Lookup!$B$4:$B$245)) -> 88.0826416 | I186: 44.40833181 | J186: 0 | K186: 12 | L186: 1.008333325 | M186: 936 | N186: 1020 | O186: 948 | P186: 0.001496727771 | Q186: 1.006836598 | R186: 1020.001497 | S186: 13.0068366 | T186: 992.4083318 | U186: 1033.008333 | V186: 0.03120361356 | Z186: 70440
A187: 180 | B187: 2006-03-28 | C187: 39 | D187: 59 | E187: 98 | F187: 194.3801653 | G187: 110.8250086 | H187: =IF(interpolation($F187,Lookup!$A$4:$A$245,Lookup!$B$4:$B$245)=0,0.00001,interpolation($F187,Lookup!$A$4:$A$245,Lookup!$B$4:$B$245)) -> 414.1983643 | I187: 208.8250086 | J187: 0 | K187: 12 | L187: 1.401583314 | M187: 997 | N187: 1040 | O187: 1009 | P187: 0.00208045159 | Q187: 1.399502862 | R187: 1040.00208 | S187: 13.39950286 | T187: 1217.825009 | U187: 1053.401583 | V187: 0.04337302259 | Z187: 70940
A188: 181 | B188: 2006-03-29 | C188: 78 | D188: 103 | E188: 181 | F188: 359.0082645 | G188: 201.1666725 | H188: =IF(interpolation($F188,Lookup!$A$4:$A$245,Lookup!$B$4:$B$245)=0,0.00001,interpolation($F188,Lookup!$A$4:$A$245,Lookup!$B$4:$B$245)) -> 758.0165405 | I188: 382.1666725 | J188: 119 | K188: 12 | L188: 1.008333325 | M188: 681 | N188: 784 | O188: 693 | P188: 0.001496727771 | Q188: 1.006836598 | R188: 784.0014967 | S188: 132.0068366 | T188: 1075.166673 | U188: 916.0083333 | V188: 0.03120361356 | Z188: 71000
A189: 182 | B189: 2006-03-30 | C189: 26 | D189: 34 | E189: 60 | F189: 119.0082645 | G189: 68.52083486 | H189: =IF(interpolation($F189,Lookup!$A$4:$A$245,Lookup!$B$4:$B$245)=0,0.00001,interpolation($F189,Lookup!$A$4:$A$245,Lookup!$B$4:$B$245)) -> 254.9173584 | I189: 128.5208349 | J189: 123 | K189: 12 | L189: 1.512500048 | M189: 581 | N189: 975 | O189: 593 | P189: 0.002245091745 | Q189: 1.510254956 | R189: 975.0022451 | S189: 136.510255 | T189: 721.5208349 | U189: 1111.5125 | V189: 0.04680542219 | Z189: 70310
A190: 183 | B190: 2006-03-31 | C190: 19 | D190: 25 | E190: 44 | F190: 87.27272727 | G190: 49.04166737 | H190: =IF(interpolation($F190,Lookup!$A$4:$A$245,Lookup!$B$4:$B$245)=0,0.00001,interpolation($F190,Lookup!$A$4:$A$245,Lookup!$B$4:$B$245)) -> 184.5454559 | I190: 93.04166737 | J190: 55 | K190: 12 | L190: 1.008333325 | M190: 937 | N190: 1320 | O190: 949 | P190: 0.001496727771 | Q190: 1.006836598 | R190: 1320.001497 | S190: 68.0068366 | T190: 1042.041667 | U190: 1388.008333 | V190: 0.03120361356 | Z190: 69590
A191: 184 | B191: 2006-04-01 | C191: 23 | D191: 30 | E191: 53 | F191: 105.1239669 | G191: 60.5750042 | H191: =IF(interpolation($F191,Lookup!$A$4:$A$245,Lookup!$B$4:$B$245)=0,0.00001,interpolation($F191,Lookup!$A$4:$A$245,Lookup!$B$4:$B$245)) -> 225.2727356 | I191: 113.5750042 | J191: 38 | K191: 12 | L191: 1.512500048 | M191: 1030 | N191: 1380 | O191: 1042 | P191: 0 | Q191: 1.528005587 | R191: 1380 | S191: 51.52800559 | T191: 1155.575004 | U191: 1431.528006 | Z191: 69140
A192: 185 | B192: 2006-04-02 | C192: 16 | D192: 21 | E192: 37 | F192: 73.38842975 | G192: 40.52916463 | H192: =IF(interpolation($F192,Lookup!$A$4:$A$245,Lookup!$B$4:$B$245)=0,0.00001,interpolation($F192,Lookup!$A$4:$A$245,Lookup!$B$4:$B$245)) -> 153.7768555 | I192: 77.52916463 | J192: 26 | K192: 12 | L192: 1.512500048 | M192: 1100 | N192: 1290 | O192: 1112 | P192: 0 | Q192: 1.528005587 | R192: 1290 | S192: 39.52800559 | T192: 1189.529165 | U192: 1329.528006 | Z192: 68830
A193: 186 | B193: 2006-04-03 | C193: 11 | D193: 15 | E193: 26 | F193: 51.57024793 | G193: 27.51249971 | H193: =IF(interpolation($F193,Lookup!$A$4:$A$245,Lookup!$B$4:$B$245)=0,0.00001,interpolation($F193,Lookup!$A$4:$A$245,Lookup!$B$4:$B$245)) -> 106.1404953 | I193: 53.51249971 | J193: 0 | K193: 12 | L193: 1.512500048 | M193: 896 | N193: 1360 | O193: 908 | P193: 0 | Q193: 1.528005587 | R193: 1360 | S193: 13.52800559 | T193: 961.5124997 | U193: 1373.528006 | Z193: 68020
A194: 187 | B194: 2006-04-04 | C194: 83 | D194: 98 | E194: 181 | F194: 359.0082645 | G194: 201.1666725 | H194: =IF(interpolation($F194,Lookup!$A$4:$A$245,Lookup!$B$4:$B$245)=0,0.00001,interpolation($F194,Lookup!$A$4:$A$245,Lookup!$B$4:$B$245)) -> 758.0165405 | I194: 382.1666725 | J194: 11 | K194: 12 | L194: 1.386458278 | M194: 1190 | N194: 1110 | O194: 1202 | P194: 0 | Q194: 1.400671688 | R194: 1110 | S194: 24.40067169 | T194: 1584.166673 | U194: 1134.400672 | Z194: 68720
A195: 188 | B195: 2006-04-05 | C195: 132 | D195: 263 | E195: 395 | F195: 783.4710744 | G195: 421.0833577 | H195: =IF(interpolation($F195,Lookup!$A$4:$A$245,Lookup!$B$4:$B$245)=0,0.00001,interpolation($F195,Lookup!$A$4:$A$245,Lookup!$B$4:$B$245)) -> 1618.677734 | I195: 816.0833577 | J195: 240 | K195: 12 | L195: 1.008333325 | M195: 999 | N195: 1050 | O195: 1011 | P195: 0 | Q195: 1.018670351 | R195: 1050 | S195: 253.0186704 | T195: 1827.083358 | U195: 1303.01867 | Z195: 69590
A196: 189 | B196: 2006-04-06 | C196: 54 | D196: 109 | E196: 163 | F196: 323.3057851 | G196: 183.1666677 | H196: =IF(interpolation($F196,Lookup!$A$4:$A$245,Lookup!$B$4:$B$245)=0,0.00001,interpolation($F196,Lookup!$A$4:$A$245,Lookup!$B$4:$B$245)) -> 686.6115723 | I196: 346.1666677 | J196: 280 | K196: 12 | L196: 1.008333325 | M196: 886 | N196: 1160 | O196: 898 | P196: 0 | Q196: 1.018670351 | R196: 1160 | S196: 293.0186704 | T196: 1244.166668 | U196: 1453.01867 | Z196: 68960
A197: 190 | B197: 2006-04-07 | C197: 27 | D197: 55 | E197: 82 | F197: 162.6446281 | G197: 93.22499593 | H197: =IF(interpolation($F197,Lookup!$A$4:$A$245,Lookup!$B$4:$B$245)=0,0.00001,interpolation($F197,Lookup!$A$4:$A$245,Lookup!$B$4:$B$245)) -> 347.5537109 | I197: 175.2249959 | J197: 72 | K197: 12 | L197: 1.008333325 | M197: 722 | N197: 1230 | O197: 734 | P197: 0 | Q197: 1.018670351 | R197: 1230 | S197: 85.01867035 | T197: 909.2249959 | U197: 1315.01867 | Z197: 68260
A198: 191 | B198: 2006-04-08 | C198: 20 | D198: 41 | E198: 61 | F198: 120.9917355 | G198: 69.67083613 | H198: =IF(interpolation($F198,Lookup!$A$4:$A$245,Lookup!$B$4:$B$245)=0,0.00001,interpolation($F198,Lookup!$A$4:$A$245,Lookup!$B$4:$B$245)) -> 259.1818237 | I198: 130.6708361 | J198: 72 | K198: 12 | L198: 1.008333325 | M198: 1380 | N198: 1100 | O198: 1392 | P198: 0 | Q198: 1.018670351 | R198: 1100 | S198: 85.01867035 | T198: 1522.670836 | U198: 1185.01867 | Z198: 68940
A199: 192 | B199: 2006-04-09 | C199: 15 | D199: 31 | E199: 46 | F199: 91.23966942 | G199: 51.35417099 | H199: =IF(interpolation($F199,Lookup!$A$4:$A$245,Lookup!$B$4:$B$245)=0,0.00001,interpolation($F199,Lookup!$A$4:$A$245,Lookup!$B$4:$B$245)) -> 193.0991821 | I199: 97.35417099 | J199: 36 | K199: 12 | L199: 1.278062582 | M199: 1450 | N199: 1200 | O199: 1462 | P199: 0 | Q199: 1.291164763 | R199: 1200 | S199: 49.29116476 | T199: 1559.354171 | U199: 1249.291165 | Z199: 69590
A200: 193 | B200: 2006-04-10 | C200: 13 | D200: 26 | E200: 39 | F200: 77.3553719 | G200: 43.03333098 | H200: =IF(interpolation($F200,Lookup!$A$4:$A$245,Lookup!$B$4:$B$245)=0,0.00001,interpolation($F200,Lookup!$A$4:$A$245,Lookup!$B$4:$B$245)) -> 162.7107391 | I200: 82.03333098 | J200: 0 | K200: 12 | L200: 1.008333325 | M200: 1080 | N200: 1220 | O200: 1092 | P200: 0 | Q200: 1.018670351 | R200: 1220 | S200: 13.01867035 | T200: 1174.033331 | U200: 1233.01867 | Z200: 69410
... 2050 more rows

Sheet Lookup
A1: From MWA Agreement, Exhibit A
A2: Inflow | B2: OutFlow
A3: (AF) | B3: (AF)
A4: 0 | B4: 0
A5: 1 | B5: 1.7
A6: 1.1 | B6: 1.9
A7: 1.2 | B7: 2.1
A8: 1.3 | B8: 2.2
A9: 1.4 | B9: 2.4
A10: 1.5 | B10: 2.6
A11: 1.6 | B11: 2.8
A12: 1.7 | B12: 3
A13: 1.8 | B13: 3.2
A14: 1.9 | B14: 3.3
A15: 2 | B15: 3.5
A16: 2.1 | B16: 3.7
A17: 2.2 | B17: 3.9
A18: 2.3 | B18: 4.1
A19: 2.4 | B19: 4.3
A20: 2.5 | B20: 4.5
A21: 2.6 | B21: 4.6
A22: 2.7 | B22: 4.8
A23: 2.8 | B23: 5
A24: 2.9 | B24: 5.2
A25: 3 | B25: 5.4
A26: 3.1 | B26: 5.6
A27: 3.2 | B27: 5.8
A28: 3.3 | B28: 5.9
A29: 3.4 | B29: 6.1
A30: 3.5 | B30: 6.3
A31: 3.6 | B31: 6.5
A32: 3.7 | B32: 6.7
A33: 3.8 | B33: 6.9
A34: 3.9 | B34: 7.1
A35: 4 | B35: 7.3
A36: 4.2 | B36: 7.7
A37: 4.4 | B37: 8
A38: 4.6 | B38: 8.4
A39: 4.8 | B39: 8.8
A40: 5 | B40: 9.2
A41: 5.2 | B41: 9.6
A42: 5.4 | B42: 10
A43: 5.6 | B43: 10.3
A44: 5.8 | B44: 10.7
A45: 6 | B45: 11.1
A46: 6.2 | B46: 11.5
A47: 6.4 | B47: 11.9
A48: 6.6 | B48: 12.3
A49: 6.8 | B49: 12.7
A50: 7 | B50: 13.1
A51: 7.2 | B51: 13.5
A52: 7.4 | B52: 13.9
A53: 7.6 | B53: 14.3
A54: 7.8 | B54: 14.7
A55: 8 | B55: 15.1
A56: 8.2 | B56: 15.5
A57: 8.4 | B57: 15.9
A58: 8.6 | B58: 16.3
A59: 8.8 | B59: 16.7
A60: 9 | B60: 17.1
A61: 9.2 | B61: 17.5
A62: 9.4 | B62: 17.9
A63: 9.6 | B63: 18.3
A64: 9.8 | B64: 18.7
A65: 10 | B65: 19.1
A66: 11 | B66: 21.2
A67: 12 | B67: 23.2
A68: 13 | B68: 25.2
A69: 14 | B69: 27.3
A70: 15 | B70: 29.3
A71: 16 | B71: 31.3
A72: 17 | B72: 33.4
A73: 18 | B73: 35.4
A74: 19 | B74: 37.5
A75: 20 | B75: 39.5
A76: 21 | B76: 41.6
A77: 22 | B77: 43.7
A78: 23 | B78: 45.8
A79: 24 | B79: 47.9
A80: 25 | B80: 50
A81: 26 | B81: 52
A82: 27 | B82: 54
A83: 28 | B83: 56
A84: 29 | B84: 58
A85: 30 | B85: 60
A86: 31 | B86: 62
A87: 32 | B87: 64
A88: 33 | B88: 66
A89: 34 | B89: 68
A90: 35 | B90: 70
A91: 36 | B91: 72
A92: 37 | B92: 75
A93: 38 | B93: 77
A94: 39 | B94: 79
A95: 40 | B95: 81
A96: 42 | B96: 86
A97: 44 | B97: 90
A98: 46 | B98: 94
A99: 48 | B99: 98
A100: 50 | B100: 103
A101: 52 | B101: 107
A102: 54 | B102: 111
A103: 56 | B103: 116
A104: 58 | B104: 120
A105: 60 | B105: 125
A106: 62 | B106: 129
A107: 64 | B107: 133
A108: 66 | B108: 137
A109: 68 | B109: 142
A110: 70 | B110: 147
A111: 72 | B111: 151
A112: 74 | B112: 155
A113: 76 | B113: 160
A114: 78 | B114: 164
A115: 80 | B115: 168
A116: 82 | B116: 172
A117: 84 | B117: 178
A118: 86 | B118: 182
A119: 88 | B119: 186
A120: 90 | B120: 190
A121: 92 | B121: 195
A122: 94 | B122: 200
A123: 96 | B123: 204
A124: 98 | B124: 209
A125: 100 | B125: 214
A126: 110 | B126: 236
A127: 120 | B127: 257
A128: 130 | B128: 279
A129: 140 | B129: 300
A130: 150 | B130: 321
A131: 160 | B131: 342
A132: 170 | B132: 363
A133: 180 | B133: 384
A134: 190 | B134: 405
A135: 200 | B135: 426
A136: 210 | B136: 448
A137: 220 | B137: 469
A138: 230 | B138: 490
A139: 240 | B139: 511
A140: 250 | B140: 532
A141: 260 | B141: 554
A142: 270 | B142: 575
A143: 280 | B143: 595
A144: 290 | B144: 617
A145: 300 | B145: 639
A146: 310 | B146: 660
A147: 320 | B147: 680
A148: 330 | B148: 700
A149: 340 | B149: 720
A150: 350 | B150: 740
A151: 360 | B151: 760
A152: 370 | B152: 780
A153: 380 | B153: 800
A154: 390 | B154: 820
A155: 400 | B155: 840
A156: 420 | B156: 880
A157: 440 | B157: 920
A158: 460 | B158: 970
A159: 480 | B159: 1010
A160: 500 | B160: 1050
A161: 520 | B161: 1090
A162: 540 | B162: 1130
A163: 560 | B163: 1170
A164: 580 | B164: 1220
A165: 600 | B165: 1260
A166: 620 | B166: 1300
A167: 640 | B167: 1340
A168: 660 | B168: 1390
A169: 680 | B169: 1430
A170: 700 | B170: 1470
A171: 720 | B171: 1510
A172: 740 | B172: 1550
A173: 760 | B173: 1600
A174: 780 | B174: 1610
A175: 800 | B175: 1660
A176: 820 | B176: 1720
A177: 840 | B177: 1770
A178: 860 | B178: 1820
A179: 880 | B179: 1850
A180: 900 | B180: 1890
A181: 920 | B181: 1930
A182: 940 | B182: 1970
A183: 960 | B183: 2010
A184: 980 | B184: 2050
A185: 1000 | B185: 2100
A186: 1100 | B186: 2310
A187: 1200 | B187: 2520
A188: 1300 | B188: 2730
A189: 1400 | B189: 2940
A190: 1500 | B190: 3150
A191: 1600 | B191: 3360
A192: 1700 | B192: 3570
A193: 1800 | B193: 3780
A194: 1900 | B194: 3990
A195: 2000 | B195: 4200
A196: 2100 | B196: 4400
A197: 2200 | B197: 4600
A198: 2300 | B198: 4800
A199: 2400 | B199: 5000
A200: 2500 | B200: 5200
... 45 more rows

Sheet Daily Inflows (hidden)

Sheet Daily Outflows (hidden)

Sheet Daily Natural Inflow v. Outflow (hidden)

Sheet Daily SWP Inflow v. Outflow (hidden)

Sheet Annual Inflows SWP v. Natural
C1: SWP Inflow | D1: Natural Inflow | E1: Difference
B2: 2006 | C2: =SUM(IF(((YEAR(Data!$B$9:$B$4391)=B2-1)*(MONTH(Data!$B$9:$B$4391)>9))+((YEAR(Data!$B$9:$B$4391)=B2)*(MONTH(Data!$B$9:$B$4391)<10)),Data!$O$9:$O$4391))*60*60*24/43560 -> 1108640.727 | D2: =SUM(IF(((YEAR(Data!$B$9:$B$4391)=B2-1)*(MONTH(Data!$B$9:$B$4391)>9))+((YEAR(Data!$B$9:$B$4391)=B2)*(MONTH(Data!$B$9:$B$4391)<10)),Data!$I$9:$I$4391))*60*60*24/43560 -> 17363.87269 | E2: =D2-C2 -> -1091276.855
B3: 2007 | C3: =SUM(IF(((YEAR(Data!$B$9:$B$4391)=B3-1)*(MONTH(Data!$B$9:$B$4391)>9))+((YEAR(Data!$B$9:$B$4391)=B3)*(MONTH(Data!$B$9:$B$4391)<10)),Data!$O$9:$O$4391))*60*60*24/43560 -> 1087676.033 | D3: =SUM(IF(((YEAR(Data!$B$9:$B$4391)=B3-1)*(MONTH(Data!$B$9:$B$4391)>9))+((YEAR(Data!$B$9:$B$4391)=B3)*(MONTH(Data!$B$9:$B$4391)<10)),Data!$I$9:$I$4391))*60*60*24/43560 -> 1678.727947 | E3: =D3-C3 -> -1085997.305
B4: 2008 | C4: =SUM(IF(((YEAR(Data!$B$9:$B$4391)=B4-1)*(MONTH(Data!$B$9:$B$4391)>9))+((YEAR(Data!$B$9:$B$4391)=B4)*(MONTH(Data!$B$9:$B$4391)<10)),Data!$O$9:$O$4391))*60*60*24/43560 -> 648608.529 | D4: =SUM(IF(((YEAR(Data!$B$9:$B$4391)=B4-1)*(MONTH(Data!$B$9:$B$4391)>9))+((YEAR(Data!$B$9:$B$4391)=B4)*(MONTH(Data!$B$9:$B$4391)<10)),Data!$I$9:$I$4391))*60*60*24/43560 -> 13454.35397 | E4: -635154.175
B5: 2009 | C5: =SUM(IF(((YEAR(Data!$B$9:$B$4391)=B5-1)*(MONTH(Data!$B$9:$B$4391)>9))+((YEAR(Data!$B$9:$B$4391)=B5)*(MONTH(Data!$B$9:$B$4391)<10)),Data!$O$9:$O$4391))*60*60*24/43560 -> 369607.9339 | D5: =SUM(IF(((YEAR(Data!$B$9:$B$4391)=B5-1)*(MONTH(Data!$B$9:$B$4391)>9))+((YEAR(Data!$B$9:$B$4391)=B5)*(MONTH(Data!$B$9:$B$4391)<10)),Data!$I$9:$I$4391))*60*60*24/43560 -> 5816.653941 | E5: -363791.28
B6: 2010 | C6: =SUM(IF(((YEAR(Data!$B$9:$B$4391)=B6-1)*(MONTH(Data!$B$9:$B$4391)>9))+((YEAR(Data!$B$9:$B$4391)=B6)*(MONTH(Data!$B$9:$B$4391)<10)),Data!$O$9:$O$4391))*60*60*24/43560 -> 735965.3554 | D6: =SUM(IF(((YEAR(Data!$B$9:$B$4391)=B6-1)*(MONTH(Data!$B$9:$B$4391)>9))+((YEAR(Data!$B$9:$B$4391)=B6)*(MONTH(Data!$B$9:$B$4391)<10)),Data!$I$9:$I$4391))*60*60*24/43560 -> 19492.91013 | E6: -716472.4453
B7: 2011 | C7: =SUM(IF(((YEAR(Data!$B$9:$B$4391)=B7-1)*(MONTH(Data!$B$9:$B$4391)>9))+((YEAR(Data!$B$9:$B$4391)=B7)*(MONTH(Data!$B$9:$B$4391)<10)),Data!$O$9:$O$4391))*60*60*24/43560 -> 1087579.894 | D7: =SUM(IF(((YEAR(Data!$B$9:$B$4391)=B7-1)*(MONTH(Data!$B$9:$B$4391)>9))+((YEAR(Data!$B$9:$B$4391)=B7)*(MONTH(Data!$B$9:$B$4391)<10)),Data!$I$9:$I$4391))*60*60*24/43560 -> 61501.86395 | E7: -1026078.03
B8: 2012 | C8: =SUM(IF(((YEAR(Data!$B$9:$B$4391)=B8-1)*(MONTH(Data!$B$9:$B$4391)>9))+((YEAR(Data!$B$9:$B$4391)=B8)*(MONTH(Data!$B$9:$B$4391)<10)),Data!$O$9:$O$4391))*60*60*24/43560 -> 836117.8512 | D8: =SUM(IF(((YEAR(Data!$B$9:$B$4391)=B8-1)*(MONTH(Data!$B$9:$B$4391)>9))+((YEAR(Data!$B$9:$B$4391)=B8)*(MONTH(Data!$B$9:$B$4391)<10)),Data!$I$9:$I$4391))*60*60*24/43560 -> 4608.106756 | E8: -831509.7445
B9: 2013 | C9: =SUM(IF(((YEAR(Data!$B$9:$B$4391)=B9-1)*(MONTH(Data!$B$9:$B$4391)>9))+((YEAR(Data!$B$9:$B$4391)=B9)*(MONTH(Data!$B$9:$B$4391)<10)),Data!$O$9:$O$4391))*60*60*24/43560 -> 560005.5471 | D9: =SUM(IF(((YEAR(Data!$B$9:$B$4391)=B9-1)*(MONTH(Data!$B$9:$B$4391)>9))+((YEAR(Data!$B$9:$B$4391)=B9)*(MONTH(Data!$B$9:$B$4391)<10)),Data!$I$9:$I$4391))*60*60*24/43560 -> 1212.848553 | E9: -558792.6985
B10: 2014 | C10: =SUM(IF(((YEAR(Data!$B$9:$B$4391)=B10-1)*(MONTH(Data!$B$9:$B$4391)>9))+((YEAR(Data!$B$9:$B$4391)=B10)*(MONTH(Data!$B$9:$B$4391)<10)),Data!$O$9:$O$4391))*60*60*24/43560 -> 261478.8926 | D10: =SUM(IF(((YEAR(Data!$B$9:$B$4391)=B10-1)*(MONTH(Data!$B$9:$B$4391)>9))+((YEAR(Data!$B$9:$B$4391)=B10)*(MONTH(Data!$B$9:$B$4391)<10)),Data!$I$9:$I$4391))*60*60*24/43560 -> 1876.858503 | E10: -259602.0341
B11: 2015 | C11: =SUM(IF(((YEAR(Data!$B$9:$B$4391)=B11-1)*(MONTH(Data!$B$9:$B$4391)>9))+((YEAR(Data!$B$9:$B$4391)=B11)*(MONTH(Data!$B$9:$B$4391)<10)),Data!$O$9:$O$4391))*60*60*24/43560 -> 183524.6281 | D11: =SUM(IF(((YEAR(Data!$B$9:$B$4391)=B11-1)*(MONTH(Data!$B$9:$B$4391)>9))+((YEAR(Data!$B$9:$B$4391)=B11)*(MONTH(Data!$B$9:$B$4391)<10)),Data!$I$9:$I$4391))*60*60*24/43560 -> 1101.27597 | E11: -182423.3521
B12: 2016 | C12: =SUM(IF(((YEAR(Data!$B$9:$B$4391)=B12-1)*(MONTH(Data!$B$9:$B$4391)>9))+((YEAR(Data!$B$9:$B$4391)=B12)*(MONTH(Data!$B$9:$B$4391)<10)),Data!$O$9:$O$4391))*60*60*24/43560 -> 632188.0661 | D12: =SUM(IF(((YEAR(Data!$B$9:$B$4391)=B12-1)*(MONTH(Data!$B$9:$B$4391)>9))+((YEAR(Data!$B$9:$B$4391)=B12)*(MONTH(Data!$B$9:$B$4391)<10)),Data!$I$9:$I$4391))*60*60*24/43560 -> 2883.770233 | E12: -629304.2959
B13: 2017 | C13: =SUM(IF(((YEAR(Data!$B$9:$B$4391)=B13-1)*(MONTH(Data!$B$9:$B$4391)>9))+((YEAR(Data!$B$9:$B$4391)=B13)*(MONTH(Data!$B$9:$B$4391)<10)),Data!$O$9:$O$4391))*60*60*24/43560 -> 1077060.868 | D13: =SUM(IF(((YEAR(Data!$B$9:$B$4391)=B13-1)*(MONTH(Data!$B$9:$B$4391)>9))+((YEAR(Data!$B$9:$B$4391)=B13)*(MONTH(Data!$B$9:$B$4391)<10)),Data!$I$9:$I$4391))*60*60*24/43560 -> 12562.77505 | E13: -1064498.093

Sheet Annual Nat In v. Nat Out
C1: Natural Outflow | D1: Natural Inflow | E1: Difference
B2: 2006 | C2: =SUM(IF(((YEAR(Data!$B$9:$B$4391)=B2-1)*(MONTH(Data!$B$9:$B$4391)>9))+((YEAR(Data!$B$9:$B$4391)=B2)*(MONTH(Data!$B$9:$B$4391)<10)),Data!$S$9:$S$4391))*60*60*24/43560 -> 32143.75207 | D2: =SUM(IF(((YEAR(Data!$B$9:$B$4391)=B2-1)*(MONTH(Data!$B$9:$B$4391)>9))+((YEAR(Data!$B$9:$B$4391)=B2)*(MONTH(Data!$B$9:$B$4391)<10)),Data!$I$9:$I$4391))*60*60*24/43560 -> 17363.87269 | E2: =D2-C2 -> -14779.87937
B3: 2007 | C3: =SUM(IF(((YEAR(Data!$B$9:$B$4391)=B3-1)*(MONTH(Data!$B$9:$B$4391)>9))+((YEAR(Data!$B$9:$B$4391)=B3)*(MONTH(Data!$B$9:$B$4391)<10)),Data!$S$9:$S$4391))*60*60*24/43560 -> 2545.413253 | D3: =SUM(IF(((YEAR(Data!$B$9:$B$4391)=B3-1)*(MONTH(Data!$B$9:$B$4391)>9))+((YEAR(Data!$B$9:$B$4391)=B3)*(MONTH(Data!$B$9:$B$4391)<10)),Data!$I$9:$I$4391))*60*60*24/43560 -> 1678.727947 | E3: =D3-C3 -> -866.6853064
B4: 2008 | C4: =SUM(IF(((YEAR(Data!$B$9:$B$4391)=B4-1)*(MONTH(Data!$B$9:$B$4391)>9))+((YEAR(Data!$B$9:$B$4391)=B4)*(MONTH(Data!$B$9:$B$4391)<10)),Data!$S$9:$S$4391))*60*60*24/43560 -> 12553.55386 | D4: =SUM(IF(((YEAR(Data!$B$9:$B$4391)=B4-1)*(MONTH(Data!$B$9:$B$4391)>9))+((YEAR(Data!$B$9:$B$4391)=B4)*(MONTH(Data!$B$9:$B$4391)<10)),Data!$I$9:$I$4391))*60*60*24/43560 -> 13454.35397 | E4: 900.8001096
B5: 2009 | C5: =SUM(IF(((YEAR(Data!$B$9:$B$4391)=B5-1)*(MONTH(Data!$B$9:$B$4391)>9))+((YEAR(Data!$B$9:$B$4391)=B5)*(MONTH(Data!$B$9:$B$4391)<10)),Data!$S$9:$S$4391))*60*60*24/43560 -> 5839.239683 | D5: =SUM(IF(((YEAR(Data!$B$9:$B$4391)=B5-1)*(MONTH(Data!$B$9:$B$4391)>9))+((YEAR(Data!$B$9:$B$4391)=B5)*(MONTH(Data!$B$9:$B$4391)<10)),Data!$I$9:$I$4391))*60*60*24/43560 -> 5816.653941 | E5: -22.58574124
B6: 2010 | C6: =SUM(IF(((YEAR(Data!$B$9:$B$4391)=B6-1)*(MONTH(Data!$B$9:$B$4391)>9))+((YEAR(Data!$B$9:$B$4391)=B6)*(MONTH(Data!$B$9:$B$4391)<10)),Data!$S$9:$S$4391))*60*60*24/43560 -> 19746.26452 | D6: =SUM(IF(((YEAR(Data!$B$9:$B$4391)=B6-1)*(MONTH(Data!$B$9:$B$4391)>9))+((YEAR(Data!$B$9:$B$4391)=B6)*(MONTH(Data!$B$9:$B$4391)<10)),Data!$I$9:$I$4391))*60*60*24/43560 -> 19492.91013 | E6: -253.3543904
B7: 2011 | C7: =SUM(IF(((YEAR(Data!$B$9:$B$4391)=B7-1)*(MONTH(Data!$B$9:$B$4391)>9))+((YEAR(Data!$B$9:$B$4391)=B7)*(MONTH(Data!$B$9:$B$4391)<10)),Data!$S$9:$S$4391))*60*60*24/43560 -> 41876.67784 | D7: =SUM(IF(((YEAR(Data!$B$9:$B$4391)=B7-1)*(MONTH(Data!$B$9:$B$4391)>9))+((YEAR(Data!$B$9:$B$4391)=B7)*(MONTH(Data!$B$9:$B$4391)<10)),Data!$I$9:$I$4391))*60*60*24/43560 -> 61501.86395 | E7: 19625.18611
B8: 2012 | C8: =SUM(IF(((YEAR(Data!$B$9:$B$4391)=B8-1)*(MONTH(Data!$B$9:$B$4391)>9))+((YEAR(Data!$B$9:$B$4391)=B8)*(MONTH(Data!$B$9:$B$4391)<10)),Data!$S$9:$S$4391))*60*60*24/43560 -> 625.7193712 | D8: =SUM(IF(((YEAR(Data!$B$9:$B$4391)=B8-1)*(MONTH(Data!$B$9:$B$4391)>9))+((YEAR(Data!$B$9:$B$4391)=B8)*(MONTH(Data!$B$9:$B$4391)<10)),Data!$I$9:$I$4391))*60*60*24/43560 -> 4608.106756 | E8: 3982.387385
B9: 2013 | C9: =SUM(IF(((YEAR(Data!$B$9:$B$4391)=B9-1)*(MONTH(Data!$B$9:$B$4391)>9))+((YEAR(Data!$B$9:$B$4391)=B9)*(MONTH(Data!$B$9:$B$4391)<10)),Data!$S$9:$S$4391))*60*60*24/43560 -> 4698.605273 | D9: =SUM(IF(((YEAR(Data!$B$9:$B$4391)=B9-1)*(MONTH(Data!$B$9:$B$4391)>9))+((YEAR(Data!$B$9:$B$4391)=B9)*(MONTH(Data!$B$9:$B$4391)<10)),Data!$I$9:$I$4391))*60*60*24/43560 -> 1212.848553 | E9: -3485.756719
B10: 2014 | C10: =SUM(IF(((YEAR(Data!$B$9:$B$4391)=B10-1)*(MONTH(Data!$B$9:$B$4391)>9))+((YEAR(Data!$B$9:$B$4391)=B10)*(MONTH(Data!$B$9:$B$4391)<10)),Data!$S$9:$S$4391))*60*60*24/43560 -> 5436.859615 | D10: =SUM(IF(((YEAR(Data!$B$9:$B$4391)=B10-1)*(MONTH(Data!$B$9:$B$4391)>9))+((YEAR(Data!$B$9:$B$4391)=B10)*(MONTH(Data!$B$9:$B$4391)<10)),Data!$I$9:$I$4391))*60*60*24/43560 -> 1876.858503 | E10: -3560.001112
B11: 2015 | C11: =SUM(IF(((YEAR(Data!$B$9:$B$4391)=B11-1)*(MONTH(Data!$B$9:$B$4391)>9))+((YEAR(Data!$B$9:$B$4391)=B11)*(MONTH(Data!$B$9:$B$4391)<10)),Data!$S$9:$S$4391))*60*60*24/43560 -> 7517.68596 | D11: =SUM(IF(((YEAR(Data!$B$9:$B$4391)=B11-1)*(MONTH(Data!$B$9:$B$4391)>9))+((YEAR(Data!$B$9:$B$4391)=B11)*(MONTH(Data!$B$9:$B$4391)<10)),Data!$I$9:$I$4391))*60*60*24/43560 -> 1101.27597 | E11: -6416.409989
B12: 2016 | C12: =SUM(IF(((YEAR(Data!$B$9:$B$4391)=B12-1)*(MONTH(Data!$B$9:$B$4391)>9))+((YEAR(Data!$B$9:$B$4391)=B12)*(MONTH(Data!$B$9:$B$4391)<10)),Data!$S$9:$S$4391))*60*60*24/43560 -> 4192.454758 | D12: =SUM(IF(((YEAR(Data!$B$9:$B$4391)=B12-1)*(MONTH(Data!$B$9:$B$4391)>9))+((YEAR(Data!$B$9:$B$4391)=B12)*(MONTH(Data!$B$9:$B$4391)<10)),Data!$I$9:$I$4391))*60*60*24/43560 -> 2883.770233 | E12: -1308.684525
B13: 2017 | C13: =SUM(IF(((YEAR(Data!$B$9:$B$4391)=B13-1)*(MONTH(Data!$B$9:$B$4391)>9))+((YEAR(Data!$B$9:$B$4391)=B13)*(MONTH(Data!$B$9:$B$4391)<10)),Data!$S$9:$S$4391))*60*60*24/43560 -> 20704.18184 | D13: =SUM(IF(((YEAR(Data!$B$9:$B$4391)=B13-1)*(MONTH(Data!$B$9:$B$4391)>9))+((YEAR(Data!$B$9:$B$4391)=B13)*(MONTH(Data!$B$9:$B$4391)<10)),Data!$I$9:$I$4391))*60*60*24/43560 -> 12562.77505 | E13: -8141.406786
C14: =SUM(C2:C13) -> 157880.408 | D14: =SUM(D2:D13) -> 143554.0177 | E14: =SUM(E2:E13) -> -14326.39034

Sheet Annual Outflows
C1: SWP Outflow | D1: Natural Outflow | E1: Difference
B2: 2006 | C2: =SUM(IF(((YEAR(Data!$B$9:$B$4391)=B2-1)*(MONTH(Data!$B$9:$B$4391)>9))+((YEAR(Data!$B$9:$B$4391)=B2)*(MONTH(Data!$B$9:$B$4391)<10)),Data!$R$9:$R$4391))*60*60*24/43560 -> 1100830.523 | D2: =SUM(IF(((YEAR(Data!$B$9:$B$4391)=B2-1)*(MONTH(Data!$B$9:$B$4391)>9))+((YEAR(Data!$B$9:$B$4391)=B2)*(MONTH(Data!$B$9:$B$4391)<10)),Data!$I$9:$I$4391))*60*60*24/43560 -> 17363.87269 | E2: =D2-C2 -> -1083466.65
B3: 2007 | C3: =SUM(IF(((YEAR(Data!$B$9:$B$4391)=B3-1)*(MONTH(Data!$B$9:$B$4391)>9))+((YEAR(Data!$B$9:$B$4391)=B3)*(MONTH(Data!$B$9:$B$4391)<10)),Data!$R$9:$R$4391))*60*60*24/43560 -> 1090496.42 | D3: =SUM(IF(((YEAR(Data!$B$9:$B$4391)=B3-1)*(MONTH(Data!$B$9:$B$4391)>9))+((YEAR(Data!$B$9:$B$4391)=B3)*(MONTH(Data!$B$9:$B$4391)<10)),Data!$I$9:$I$4391))*60*60*24/43560 -> 1678.727947 | E3: =D3-C3 -> -1088817.692
B4: 2008 | C4: =SUM(IF(((YEAR(Data!$B$9:$B$4391)=B4-1)*(MONTH(Data!$B$9:$B$4391)>9))+((YEAR(Data!$B$9:$B$4391)=B4)*(MONTH(Data!$B$9:$B$4391)<10)),Data!$R$9:$R$4391))*60*60*24/43560 -> 655056.2379 | D4: =SUM(IF(((YEAR(Data!$B$9:$B$4391)=B4-1)*(MONTH(Data!$B$9:$B$4391)>9))+((YEAR(Data!$B$9:$B$4391)=B4)*(MONTH(Data!$B$9:$B$4391)<10)),Data!$I$9:$I$4391))*60*60*24/43560 -> 13454.35397 | E4: -641601.8839
B5: 2009 | C5: =SUM(IF(((YEAR(Data!$B$9:$B$4391)=B5-1)*(MONTH(Data!$B$9:$B$4391)>9))+((YEAR(Data!$B$9:$B$4391)=B5)*(MONTH(Data!$B$9:$B$4391)<10)),Data!$R$9:$R$4391))*60*60*24/43560 -> 369780.7273 | D5: =SUM(IF(((YEAR(Data!$B$9:$B$4391)=B5-1)*(MONTH(Data!$B$9:$B$4391)>9))+((YEAR(Data!$B$9:$B$4391)=B5)*(MONTH(Data!$B$9:$B$4391)<10)),Data!$I$9:$I$4391))*60*60*24/43560 -> 5816.653941 | E5: -363964.0733
B6: 2010 | C6: =SUM(IF(((YEAR(Data!$B$9:$B$4391)=B6-1)*(MONTH(Data!$B$9:$B$4391)>9))+((YEAR(Data!$B$9:$B$4391)=B6)*(MONTH(Data!$B$9:$B$4391)<10)),Data!$R$9:$R$4391))*60*60*24/43560 -> 735471.8755 | D6: =SUM(IF(((YEAR(Data!$B$9:$B$4391)=B6-1)*(MONTH(Data!$B$9:$B$4391)>9))+((YEAR(Data!$B$9:$B$4391)=B6)*(MONTH(Data!$B$9:$B$4391)<10)),Data!$I$9:$I$4391))*60*60*24/43560 -> 19492.91013 | E6: -715978.9653
B7: 2011 | C7: =SUM(IF(((YEAR(Data!$B$9:$B$4391)=B7-1)*(MONTH(Data!$B$9:$B$4391)>9))+((YEAR(Data!$B$9:$B$4391)=B7)*(MONTH(Data!$B$9:$B$4391)<10)),Data!$R$9:$R$4391))*60*60*24/43560 -> 1078568.428 | D7: =SUM(IF(((YEAR(Data!$B$9:$B$4391)=B7-1)*(MONTH(Data!$B$9:$B$4391)>9))+((YEAR(Data!$B$9:$B$4391)=B7)*(MONTH(Data!$B$9:$B$4391)<10)),Data!$I$9:$I$4391))*60*60*24/43560 -> 61501.86395 | E7: -1017066.564
B8: 2012 | C8: =SUM(IF(((YEAR(Data!$B$9:$B$4391)=B8-1)*(MONTH(Data!$B$9:$B$4391)>9))+((YEAR(Data!$B$9:$B$4391)=B8)*(MONTH(Data!$B$9:$B$4391)<10)),Data!$R$9:$R$4391))*60*60*24/43560 -> 818273.8332 | D8: =SUM(IF(((YEAR(Data!$B$9:$B$4391)=B8-1)*(MONTH(Data!$B$9:$B$4391)>9))+((YEAR(Data!$B$9:$B$4391)=B8)*(MONTH(Data!$B$9:$B$4391)<10)),Data!$I$9:$I$4391))*60*60*24/43560 -> 4608.106756 | E8: -813665.7265
B9: 2013 | C9: =SUM(IF(((YEAR(Data!$B$9:$B$4391)=B9-1)*(MONTH(Data!$B$9:$B$4391)>9))+((YEAR(Data!$B$9:$B$4391)=B9)*(MONTH(Data!$B$9:$B$4391)<10)),Data!$R$9:$R$4391))*60*60*24/43560 -> 547341.2593 | D9: =SUM(IF(((YEAR(Data!$B$9:$B$4391)=B9-1)*(MONTH(Data!$B$9:$B$4391)>9))+((YEAR(Data!$B$9:$B$4391)=B9)*(MONTH(Data!$B$9:$B$4391)<10)),Data!$I$9:$I$4391))*60*60*24/43560 -> 1212.848553 | E9: -546128.4108
B10: 2014 | C10: =SUM(IF(((YEAR(Data!$B$9:$B$4391)=B10-1)*(MONTH(Data!$B$9:$B$4391)>9))+((YEAR(Data!$B$9:$B$4391)=B10)*(MONTH(Data!$B$9:$B$4391)<10)),Data!$R$9:$R$4391))*60*60*24/43560 -> 255041.7625 | D10: =SUM(IF(((YEAR(Data!$B$9:$B$4391)=B10-1)*(MONTH(Data!$B$9:$B$4391)>9))+((YEAR(Data!$B$9:$B$4391)=B10)*(MONTH(Data!$B$9:$B$4391)<10)),Data!$I$9:$I$4391))*60*60*24/43560 -> 1876.858503 | E10: -253164.904
B11: 2015 | C11: =SUM(IF(((YEAR(Data!$B$9:$B$4391)=B11-1)*(MONTH(Data!$B$9:$B$4391)>9))+((YEAR(Data!$B$9:$B$4391)=B11)*(MONTH(Data!$B$9:$B$4391)<10)),Data!$R$9:$R$4391))*60*60*24/43560 -> 203418.6358 | D11: =SUM(IF(((YEAR(Data!$B$9:$B$4391)=B11-1)*(MONTH(Data!$B$9:$B$4391)>9))+((YEAR(Data!$B$9:$B$4391)=B11)*(MONTH(Data!$B$9:$B$4391)<10)),Data!$I$9:$I$4391))*60*60*24/43560 -> 1101.27597 | E11: -202317.3599
B12: 2016 | C12: =SUM(IF(((YEAR(Data!$B$9:$B$4391)=B12-1)*(MONTH(Data!$B$9:$B$4391)>9))+((YEAR(Data!$B$9:$B$4391)=B12)*(MONTH(Data!$B$9:$B$4391)<10)),Data!$R$9:$R$4391))*60*60*24/43560 -> 617062.1157 | D12: =SUM(IF(((YEAR(Data!$B$9:$B$4391)=B12-1)*(MONTH(Data!$B$9:$B$4391)>9))+((YEAR(Data!$B$9:$B$4391)=B12)*(MONTH(Data!$B$9:$B$4391)<10)),Data!$I$9:$I$4391))*60*60*24/43560 -> 2883.770233 | E12: -614178.3455
B13: 2017 | C13: =SUM(IF(((YEAR(Data!$B$9:$B$4391)=B13-1)*(MONTH(Data!$B$9:$B$4391)>9))+((YEAR(Data!$B$9:$B$4391)=B13)*(MONTH(Data!$B$9:$B$4391)<10)),Data!$R$9:$R$4391))*60*60*24/43560 -> 1059569.038 | D13: =SUM(IF(((YEAR(Data!$B$9:$B$4391)=B13-1)*(MONTH(Data!$B$9:$B$4391)>9))+((YEAR(Data!$B$9:$B$4391)=B13)*(MONTH(Data!$B$9:$B$4391)<10)),Data!$I$9:$I$4391))*60*60*24/43560 -> 12562.77505 | E13: -1047006.263

Sheet Daily Exceedance (hidden)
B1: Natural Outflow | C1: Natural Inflow
A2: 0 | B2: =_xlfn.PERCENTILE.INC(Data!$S$9:$S$4177,1-'Daily Exceedance'!A2) -> 2140.000001 | C2: =_xlfn.PERCENTILE.INC(Data!$I$9:$I$4177,1-'Daily Exceedance'!A2) -> 5712.083276
A3: 0.01 | B3: =_xlfn.PERCENTILE.INC(Data!$S$9:$S$4177,1-'Daily Exceedance'!A3) -> 208.32 | C3: =_xlfn.PERCENTILE.INC(Data!$I$9:$I$4177,1-'Daily Exceedance'!A3) -> 201.7689931
A4: 0.02 | B4: =_xlfn.PERCENTILE.INC(Data!$S$9:$S$4177,1-'Daily Exceedance'!A4) -> 114.48 | C4: =_xlfn.PERCENTILE.INC(Data!$I$9:$I$4177,1-'Daily Exceedance'!A4) -> 124.9088373
A5: 0.03 | B5: =_xlfn.PERCENTILE.INC(Data!$S$9:$S$4177,1-'Daily Exceedance'!A5) -> 101.00001 | C5: =_xlfn.PERCENTILE.INC(Data!$I$9:$I$4177,1-'Daily Exceedance'!A5) -> 88.69166819
A6: 0.04 | B6: =_xlfn.PERCENTILE.INC(Data!$S$9:$S$4177,1-'Daily Exceedance'!A6) -> 100.0000013 | C6: =_xlfn.PERCENTILE.INC(Data!$I$9:$I$4177,1-'Daily Exceedance'!A6) -> 71.5233346
A7: 0.05 | B7: =_xlfn.PERCENTILE.INC(Data!$S$9:$S$4177,1-'Daily Exceedance'!A7) -> 75.6 | C7: =_xlfn.PERCENTILE.INC(Data!$I$9:$I$4177,1-'Daily Exceedance'!A7) -> 62.39583314
A8: 0.06 | B8: =_xlfn.PERCENTILE.INC(Data!$S$9:$S$4177,1-'Daily Exceedance'!A8) -> 61.00000992 | C8: =_xlfn.PERCENTILE.INC(Data!$I$9:$I$4177,1-'Daily Exceedance'!A8) -> 55.31250149
A9: 0.07 | B9: =_xlfn.PERCENTILE.INC(Data!$S$9:$S$4177,1-'Daily Exceedance'!A9) -> 57.50440217 | C9: =_xlfn.PERCENTILE.INC(Data!$I$9:$I$4177,1-'Daily Exceedance'!A9) -> 49.46833391
A10: 0.08 | B10: =_xlfn.PERCENTILE.INC(Data!$S$9:$S$4177,1-'Daily Exceedance'!A10) -> 52.4464083 | C10: =_xlfn.PERCENTILE.INC(Data!$I$9:$I$4177,1-'Daily Exceedance'!A10) -> 44.40833181
A11: 0.09 | B11: =_xlfn.PERCENTILE.INC(Data!$S$9:$S$4177,1-'Daily Exceedance'!A11) -> 51.07100859 | C11: =_xlfn.PERCENTILE.INC(Data!$I$9:$I$4177,1-'Daily Exceedance'!A11) -> 40.1041669
A12: 0.1 | B12: =_xlfn.PERCENTILE.INC(Data!$S$9:$S$4177,1-'Daily Exceedance'!A12) -> 50 | C12: =_xlfn.PERCENTILE.INC(Data!$I$9:$I$4177,1-'Daily Exceedance'!A12) -> 35.79999908
A13: 0.11 | B13: =_xlfn.PERCENTILE.INC(Data!$S$9:$S$4177,1-'Daily Exceedance'!A13) -> 46.33951487 | C13: =_xlfn.PERCENTILE.INC(Data!$I$9:$I$4177,1-'Daily Exceedance'!A13) -> 33.60000118
A14: 0.12 | B14: =_xlfn.PERCENTILE.INC(Data!$S$9:$S$4177,1-'Daily Exceedance'!A14) -> 43.00001 | C14: =_xlfn.PERCENTILE.INC(Data!$I$9:$I$4177,1-'Daily Exceedance'!A14) -> 30.36799951
A15: 0.13 | B15: =_xlfn.PERCENTILE.INC(Data!$S$9:$S$4177,1-'Daily Exceedance'!A15) -> 41.00000996 | C15: =_xlfn.PERCENTILE.INC(Data!$I$9:$I$4177,1-'Daily Exceedance'!A15) -> 26.39999983
A16: 0.14 | B16: =_xlfn.PERCENTILE.INC(Data!$S$9:$S$4177,1-'Daily Exceedance'!A16) -> 33.51518969 | C16: =_xlfn.PERCENTILE.INC(Data!$I$9:$I$4177,1-'Daily Exceedance'!A16) -> 21.62958353
A17: 0.15 | B17: =_xlfn.PERCENTILE.INC(Data!$S$9:$S$4177,1-'Daily Exceedance'!A17) -> 32.51763628 | C17: =_xlfn.PERCENTILE.INC(Data!$I$9:$I$4177,1-'Daily Exceedance'!A17) -> 18.32000124
A18: 0.16 | B18: =_xlfn.PERCENTILE.INC(Data!$S$9:$S$4177,1-'Daily Exceedance'!A18) -> 31.8627641 | C18: =_xlfn.PERCENTILE.INC(Data!$I$9:$I$4177,1-'Daily Exceedance'!A18) -> 16.27041826
A19: 0.17 | B19: =_xlfn.PERCENTILE.INC(Data!$S$9:$S$4177,1-'Daily Exceedance'!A19) -> 26.36465645 | C19: =_xlfn.PERCENTILE.INC(Data!$I$9:$I$4177,1-'Daily Exceedance'!A19) -> 13.84708278
A20: 0.18 | B20: =_xlfn.PERCENTILE.INC(Data!$S$9:$S$4177,1-'Daily Exceedance'!A20) -> 22.24913336 | C20: =_xlfn.PERCENTILE.INC(Data!$I$9:$I$4177,1-'Daily Exceedance'!A20) -> 11.98226694
A21: 0.19 | B21: =_xlfn.PERCENTILE.INC(Data!$S$9:$S$4177,1-'Daily Exceedance'!A21) -> 18.50500967 | C21: =_xlfn.PERCENTILE.INC(Data!$I$9:$I$4177,1-'Daily Exceedance'!A21) -> 10.38208416
A22: 0.2 | B22: =_xlfn.PERCENTILE.INC(Data!$S$9:$S$4177,1-'Daily Exceedance'!A22) -> 14.06089762 | C22: =_xlfn.PERCENTILE.INC(Data!$I$9:$I$4177,1-'Daily Exceedance'!A22) -> 9.146249429
A23: 0.21 | B23: =_xlfn.PERCENTILE.INC(Data!$S$9:$S$4177,1-'Daily Exceedance'!A23) -> 13.51025496 | C23: =_xlfn.PERCENTILE.INC(Data!$I$9:$I$4177,1-'Daily Exceedance'!A23) -> 8.146249509
A24: 0.22 | B24: =_xlfn.PERCENTILE.INC(Data!$S$9:$S$4177,1-'Daily Exceedance'!A24) -> 13.41266169 | C24: =_xlfn.PERCENTILE.INC(Data!$I$9:$I$4177,1-'Daily Exceedance'!A24) -> 7.546250037
A25: 0.23 | B25: =_xlfn.PERCENTILE.INC(Data!$S$9:$S$4177,1-'Daily Exceedance'!A25) -> 13.12511754 | C25: =_xlfn.PERCENTILE.INC(Data!$I$9:$I$4177,1-'Daily Exceedance'!A25) -> 7.126249782
A26: 0.24 | B26: =_xlfn.PERCENTILE.INC(Data!$S$9:$S$4177,1-'Daily Exceedance'!A26) -> 12.87658764 | C26: =_xlfn.PERCENTILE.INC(Data!$I$9:$I$4177,1-'Daily Exceedance'!A26) -> 6.346249979
A27: 0.25 | B27: =_xlfn.PERCENTILE.INC(Data!$S$9:$S$4177,1-'Daily Exceedance'!A27) -> 12.31250019 | C27: =_xlfn.PERCENTILE.INC(Data!$I$9:$I$4177,1-'Daily Exceedance'!A27) -> 5.946249684
A28: 0.26 | B28: =_xlfn.PERCENTILE.INC(Data!$S$9:$S$4177,1-'Daily Exceedance'!A28) -> 12.057 | C28: =_xlfn.PERCENTILE.INC(Data!$I$9:$I$4177,1-'Daily Exceedance'!A28) -> 5.439049466
A29: 0.27 | B29: =_xlfn.PERCENTILE.INC(Data!$S$9:$S$4177,1-'Daily Exceedance'!A29) -> 12 | C29: =_xlfn.PERCENTILE.INC(Data!$I$9:$I$4177,1-'Daily Exceedance'!A29) -> 5.157916621
A30: 0.28 | B30: =_xlfn.PERCENTILE.INC(Data!$S$9:$S$4177,1-'Daily Exceedance'!A30) -> 12 | C30: =_xlfn.PERCENTILE.INC(Data!$I$9:$I$4177,1-'Daily Exceedance'!A30) -> 4.896667111
A31: 0.29 | B31: =_xlfn.PERCENTILE.INC(Data!$S$9:$S$4177,1-'Daily Exceedance'!A31) -> 11.15949349 | C31: =_xlfn.PERCENTILE.INC(Data!$I$9:$I$4177,1-'Daily Exceedance'!A31) -> 4.576666367
A32: 0.3 | B32: =_xlfn.PERCENTILE.INC(Data!$S$9:$S$4177,1-'Daily Exceedance'!A32) -> 11 | C32: =_xlfn.PERCENTILE.INC(Data!$I$9:$I$4177,1-'Daily Exceedance'!A32) -> 4.196666686
A33: 0.31 | B33: =_xlfn.PERCENTILE.INC(Data!$S$9:$S$4177,1-'Daily Exceedance'!A33) -> 10.89999962 | C33: =_xlfn.PERCENTILE.INC(Data!$I$9:$I$4177,1-'Daily Exceedance'!A33) -> 3.990833265
A34: 0.32 | B34: =_xlfn.PERCENTILE.INC(Data!$S$9:$S$4177,1-'Daily Exceedance'!A34) -> 10.80000019 | C34: =_xlfn.PERCENTILE.INC(Data!$I$9:$I$4177,1-'Daily Exceedance'!A34) -> 3.747083584
A35: 0.33 | B35: =_xlfn.PERCENTILE.INC(Data!$S$9:$S$4177,1-'Daily Exceedance'!A35) -> 10.80000019 | C35: =_xlfn.PERCENTILE.INC(Data!$I$9:$I$4177,1-'Daily Exceedance'!A35) -> 3.518283293
A36: 0.34 | B36: =_xlfn.PERCENTILE.INC(Data!$S$9:$S$4177,1-'Daily Exceedance'!A36) -> 10.69999981 | C36: =_xlfn.PERCENTILE.INC(Data!$I$9:$I$4177,1-'Daily Exceedance'!A36) -> 3.32708357
A37: 0.35 | B37: =_xlfn.PERCENTILE.INC(Data!$S$9:$S$4177,1-'Daily Exceedance'!A37) -> 10.69999981 | C37: =_xlfn.PERCENTILE.INC(Data!$I$9:$I$4177,1-'Daily Exceedance'!A37) -> 3.127083345
A38: 0.36 | B38: =_xlfn.PERCENTILE.INC(Data!$S$9:$S$4177,1-'Daily Exceedance'!A38) -> 10.60000038 | C38: =_xlfn.PERCENTILE.INC(Data!$I$9:$I$4177,1-'Daily Exceedance'!A38) -> 3.027083113
A39: 0.37 | B39: =_xlfn.PERCENTILE.INC(Data!$S$9:$S$4177,1-'Daily Exceedance'!A39) -> 10.5 | C39: =_xlfn.PERCENTILE.INC(Data!$I$9:$I$4177,1-'Daily Exceedance'!A39) -> 2.949233507
A40: 0.38 | B40: =_xlfn.PERCENTILE.INC(Data!$S$9:$S$4177,1-'Daily Exceedance'!A40) -> 10.31249973 | C40: =_xlfn.PERCENTILE.INC(Data!$I$9:$I$4177,1-'Daily Exceedance'!A40) -> 2.857500182
A41: 0.39 | B41: =_xlfn.PERCENTILE.INC(Data!$S$9:$S$4177,1-'Daily Exceedance'!A41) -> 10.14325724 | C41: =_xlfn.PERCENTILE.INC(Data!$I$9:$I$4177,1-'Daily Exceedance'!A41) -> 2.717500097
A42: 0.4 | B42: =_xlfn.PERCENTILE.INC(Data!$S$9:$S$4177,1-'Daily Exceedance'!A42) -> 9.792506983 | C42: =_xlfn.PERCENTILE.INC(Data!$I$9:$I$4177,1-'Daily Exceedance'!A42) -> 2.597499818
A43: 0.41 | B43: =_xlfn.PERCENTILE.INC(Data!$S$9:$S$4177,1-'Daily Exceedance'!A43) -> 9.375005586 | C43: =_xlfn.PERCENTILE.INC(Data!$I$9:$I$4177,1-'Daily Exceedance'!A43) -> 2.477500019
A44: 0.42 | B44: =_xlfn.PERCENTILE.INC(Data!$S$9:$S$4177,1-'Daily Exceedance'!A44) -> 8.995006957 | C44: =_xlfn.PERCENTILE.INC(Data!$I$9:$I$4177,1-'Daily Exceedance'!A44) -> 2.34630009
A45: 0.43 | B45: =_xlfn.PERCENTILE.INC(Data!$S$9:$S$4177,1-'Daily Exceedance'!A45) -> 8.399999619 | C45: =_xlfn.PERCENTILE.INC(Data!$I$9:$I$4177,1-'Daily Exceedance'!A45) -> 2.288333424
A46: 0.44 | B46: =_xlfn.PERCENTILE.INC(Data!$S$9:$S$4177,1-'Daily Exceedance'!A46) -> 8.2322906 | C46: =_xlfn.PERCENTILE.INC(Data!$I$9:$I$4177,1-'Daily Exceedance'!A46) -> 2.207916615
A47: 0.45 | B47: =_xlfn.PERCENTILE.INC(Data!$S$9:$S$4177,1-'Daily Exceedance'!A47) -> 8 | C47: =_xlfn.PERCENTILE.INC(Data!$I$9:$I$4177,1-'Daily Exceedance'!A47) -> 2.067916771
A48: 0.46 | B48: =_xlfn.PERCENTILE.INC(Data!$S$9:$S$4177,1-'Daily Exceedance'!A48) -> 7.800000191 | C48: =_xlfn.PERCENTILE.INC(Data!$I$9:$I$4177,1-'Daily Exceedance'!A48) -> 1.927916686
A49: 0.47 | B49: =_xlfn.PERCENTILE.INC(Data!$S$9:$S$4177,1-'Daily Exceedance'!A49) -> 7.108333238 | C49: =_xlfn.PERCENTILE.INC(Data!$I$9:$I$4177,1-'Daily Exceedance'!A49) -> 1.767916795
A50: 0.48 | B50: =_xlfn.PERCENTILE.INC(Data!$S$9:$S$4177,1-'Daily Exceedance'!A50) -> 5.599999905 | C50: =_xlfn.PERCENTILE.INC(Data!$I$9:$I$4177,1-'Daily Exceedance'!A50) -> 1.660183398
A51: 0.49 | B51: =_xlfn.PERCENTILE.INC(Data!$S$9:$S$4177,1-'Daily Exceedance'!A51) -> 5.199999809 | C51: =_xlfn.PERCENTILE.INC(Data!$I$9:$I$4177,1-'Daily Exceedance'!A51) -> 1.615833333
A52: 0.5 | B52: =_xlfn.PERCENTILE.INC(Data!$S$9:$S$4177,1-'Daily Exceedance'!A52) -> 5.150352093 | C52: =_xlfn.PERCENTILE.INC(Data!$I$9:$I$4177,1-'Daily Exceedance'!A52) -> 1.498333391
A53: 0.51 | B53: =_xlfn.PERCENTILE.INC(Data!$S$9:$S$4177,1-'Daily Exceedance'!A53) -> 5.099999905 | C53: =_xlfn.PERCENTILE.INC(Data!$I$9:$I$4177,1-'Daily Exceedance'!A53) -> 1.398333278
A54: 0.52 | B54: =_xlfn.PERCENTILE.INC(Data!$S$9:$S$4177,1-'Daily Exceedance'!A54) -> 5.099999905 | C54: =_xlfn.PERCENTILE.INC(Data!$I$9:$I$4177,1-'Daily Exceedance'!A54) -> 1.258333313
A55: 0.53 | B55: =_xlfn.PERCENTILE.INC(Data!$S$9:$S$4177,1-'Daily Exceedance'!A55) -> 5 | C55: =_xlfn.PERCENTILE.INC(Data!$I$9:$I$4177,1-'Daily Exceedance'!A55) -> 1.08374995
A56: 0.54 | B56: =_xlfn.PERCENTILE.INC(Data!$S$9:$S$4177,1-'Daily Exceedance'!A56) -> 5 | C56: =_xlfn.PERCENTILE.INC(Data!$I$9:$I$4177,1-'Daily Exceedance'!A56) -> 0.974349936
A57: 0.55 | B57: =_xlfn.PERCENTILE.INC(Data!$S$9:$S$4177,1-'Daily Exceedance'!A57) -> 4.800000191 | C57: =_xlfn.PERCENTILE.INC(Data!$I$9:$I$4177,1-'Daily Exceedance'!A57) -> 0.8499999925
A58: 0.56 | B58: =_xlfn.PERCENTILE.INC(Data!$S$9:$S$4177,1-'Daily Exceedance'!A58) -> 4.629166685 | C58: =_xlfn.PERCENTILE.INC(Data!$I$9:$I$4177,1-'Daily Exceedance'!A58) -> 0.7480000079
A59: 0.57 | B59: =_xlfn.PERCENTILE.INC(Data!$S$9:$S$4177,1-'Daily Exceedance'!A59) -> 4.385862169 | C59: =_xlfn.PERCENTILE.INC(Data!$I$9:$I$4177,1-'Daily Exceedance'!A59) -> 0.6630000507
A60: 0.58 | B60: =_xlfn.PERCENTILE.INC(Data!$S$9:$S$4177,1-'Daily Exceedance'!A60) -> 4 | C60: =_xlfn.PERCENTILE.INC(Data!$I$9:$I$4177,1-'Daily Exceedance'!A60) -> 0.6385200039
A61: 0.59 | B61: =_xlfn.PERCENTILE.INC(Data!$S$9:$S$4177,1-'Daily Exceedance'!A61) -> 3.556853835 | C61: =_xlfn.PERCENTILE.INC(Data!$I$9:$I$4177,1-'Daily Exceedance'!A61) -> 0.5439999784
A62: 0.6 | B62: =_xlfn.PERCENTILE.INC(Data!$S$9:$S$4177,1-'Daily Exceedance'!A62) -> 3.200000048 | C62: =_xlfn.PERCENTILE.INC(Data!$I$9:$I$4177,1-'Daily Exceedance'!A62) -> 0.4929999861
A63: 0.61 | B63: =_xlfn.PERCENTILE.INC(Data!$S$9:$S$4177,1-'Daily Exceedance'!A63) -> 3.200000048 | C63: =_xlfn.PERCENTILE.INC(Data!$I$9:$I$4177,1-'Daily Exceedance'!A63) -> 0.4590000212
A64: 0.62 | B64: =_xlfn.PERCENTILE.INC(Data!$S$9:$S$4177,1-'Daily Exceedance'!A64) -> 3.00000012 | C64: =_xlfn.PERCENTILE.INC(Data!$I$9:$I$4177,1-'Daily Exceedance'!A64) -> 0.405280004
A65: 0.63 | B65: =_xlfn.PERCENTILE.INC(Data!$S$9:$S$4177,1-'Daily Exceedance'!A65) -> 3 | C65: =_xlfn.PERCENTILE.INC(Data!$I$9:$I$4177,1-'Daily Exceedance'!A65) -> 0.340000009
A66: 0.64 | B66: =_xlfn.PERCENTILE.INC(Data!$S$9:$S$4177,1-'Daily Exceedance'!A66) -> 2.900000095 | C66: =_xlfn.PERCENTILE.INC(Data!$I$9:$I$4177,1-'Daily Exceedance'!A66) -> 0.2719999892
A67: 0.65 | B67: =_xlfn.PERCENTILE.INC(Data!$S$9:$S$4177,1-'Daily Exceedance'!A67) -> 2.512500032 | C67: =_xlfn.PERCENTILE.INC(Data!$I$9:$I$4177,1-'Daily Exceedance'!A67) -> 0.187000002
A68: 0.66 | B68: =_xlfn.PERCENTILE.INC(Data!$S$9:$S$4177,1-'Daily Exceedance'!A68) -> 2.200000048 | C68: =_xlfn.PERCENTILE.INC(Data!$I$9:$I$4177,1-'Daily Exceedance'!A68) -> 0.1530000221
A69: 0.67 | B69: =_xlfn.PERCENTILE.INC(Data!$S$9:$S$4177,1-'Daily Exceedance'!A69) -> 2.141540574 | C69: =_xlfn.PERCENTILE.INC(Data!$I$9:$I$4177,1-'Daily Exceedance'!A69) -> 0.1359999946
A70: 0.68 | B70: =_xlfn.PERCENTILE.INC(Data!$S$9:$S$4177,1-'Daily Exceedance'!A70) -> 2.016666252 | C70: =_xlfn.PERCENTILE.INC(Data!$I$9:$I$4177,1-'Daily Exceedance'!A70) -> 0.08500000226
A71: 0.69 | B71: =_xlfn.PERCENTILE.INC(Data!$S$9:$S$4177,1-'Daily Exceedance'!A71) -> 1.899999976 | C71: =_xlfn.PERCENTILE.INC(Data!$I$9:$I$4177,1-'Daily Exceedance'!A71) -> 0.03399999865
A72: 0.7 | B72: =_xlfn.PERCENTILE.INC(Data!$S$9:$S$4177,1-'Daily Exceedance'!A72) -> 1.812400274 | C72: =_xlfn.PERCENTILE.INC(Data!$I$9:$I$4177,1-'Daily Exceedance'!A72) -> 0.01699999933
A73: 0.71 | B73: =_xlfn.PERCENTILE.INC(Data!$S$9:$S$4177,1-'Daily Exceedance'!A73) -> 1.700000048 | C73: =_xlfn.PERCENTILE.INC(Data!$I$9:$I$4177,1-'Daily Exceedance'!A73) -> 8.570833828e-07
A74: 0.72 | B74: =_xlfn.PERCENTILE.INC(Data!$S$9:$S$4177,1-'Daily Exceedance'!A74) -> 1.600000024 | C74: =_xlfn.PERCENTILE.INC(Data!$I$9:$I$4177,1-'Daily Exceedance'!A74) -> 8.570833828e-07
A75: 0.73 | B75: =_xlfn.PERCENTILE.INC(Data!$S$9:$S$4177,1-'Daily Exceedance'!A75) -> 1.512499748 | C75: =_xlfn.PERCENTILE.INC(Data!$I$9:$I$4177,1-'Daily Exceedance'!A75) -> 8.570833828e-07
A76: 0.74 | B76: =_xlfn.PERCENTILE.INC(Data!$S$9:$S$4177,1-'Daily Exceedance'!A76) -> 1.499841105 | C76: =_xlfn.PERCENTILE.INC(Data!$I$9:$I$4177,1-'Daily Exceedance'!A76) -> 8.570833828e-07
A77: 0.75 | B77: =_xlfn.PERCENTILE.INC(Data!$S$9:$S$4177,1-'Daily Exceedance'!A77) -> 1.100000024 | C77: =_xlfn.PERCENTILE.INC(Data!$I$9:$I$4177,1-'Daily Exceedance'!A77) -> 8.570833828e-07
A78: 0.76 | B78: =_xlfn.PERCENTILE.INC(Data!$S$9:$S$4177,1-'Daily Exceedance'!A78) -> 1.100000024 | C78: =_xlfn.PERCENTILE.INC(Data!$I$9:$I$4177,1-'Daily Exceedance'!A78) -> 8.570833828e-07
A79: 0.77 | B79: =_xlfn.PERCENTILE.INC(Data!$S$9:$S$4177,1-'Daily Exceedance'!A79) -> 1.008333333 | C79: =_xlfn.PERCENTILE.INC(Data!$I$9:$I$4177,1-'Daily Exceedance'!A79) -> 8.570833828e-07
A80: 0.78 | B80: =_xlfn.PERCENTILE.INC(Data!$S$9:$S$4177,1-'Daily Exceedance'!A80) -> 0.8054249833 | C80: =_xlfn.PERCENTILE.INC(Data!$I$9:$I$4177,1-'Daily Exceedance'!A80) -> 8.570833828e-07
A81: 0.79 | B81: =_xlfn.PERCENTILE.INC(Data!$S$9:$S$4177,1-'Daily Exceedance'!A81) -> 0.504162381 | C81: =_xlfn.PERCENTILE.INC(Data!$I$9:$I$4177,1-'Daily Exceedance'!A81) -> 8.570833828e-07
A82: 0.8 | B82: =_xlfn.PERCENTILE.INC(Data!$S$9:$S$4177,1-'Daily Exceedance'!A82) -> 0.2684749838 | C82: =_xlfn.PERCENTILE.INC(Data!$I$9:$I$4177,1-'Daily Exceedance'!A82) -> 8.570833828e-07
A83: 0.81 | B83: =_xlfn.PERCENTILE.INC(Data!$S$9:$S$4177,1-'Daily Exceedance'!A83) -> 0.08443234837 | C83: =_xlfn.PERCENTILE.INC(Data!$I$9:$I$4177,1-'Daily Exceedance'!A83) -> 8.570833828e-07
A84: 0.82 | B84: =_xlfn.PERCENTILE.INC(Data!$S$9:$S$4177,1-'Daily Exceedance'!A84) -> 0.03153209413 | C84: =_xlfn.PERCENTILE.INC(Data!$I$9:$I$4177,1-'Daily Exceedance'!A84) -> 8.570833828e-07
A85: 0.83 | B85: =_xlfn.PERCENTILE.INC(Data!$S$9:$S$4177,1-'Daily Exceedance'!A85) -> 9.914072109e-06 | C85: =_xlfn.PERCENTILE.INC(Data!$I$9:$I$4177,1-'Daily Exceedance'!A85) -> 8.570833828e-07
A86: 0.84 | B86: =_xlfn.PERCENTILE.INC(Data!$S$9:$S$4177,1-'Daily Exceedance'!A86) -> 1e-06 | C86: =_xlfn.PERCENTILE.INC(Data!$I$9:$I$4177,1-'Daily Exceedance'!A86) -> 8.570833828e-07
A87: 0.85 | B87: =_xlfn.PERCENTILE.INC(Data!$S$9:$S$4177,1-'Daily Exceedance'!A87) -> 1e-06 | C87: =_xlfn.PERCENTILE.INC(Data!$I$9:$I$4177,1-'Daily Exceedance'!A87) -> 8.570833828e-07
A88: 0.86 | B88: =_xlfn.PERCENTILE.INC(Data!$S$9:$S$4177,1-'Daily Exceedance'!A88) -> 1e-06 | C88: =_xlfn.PERCENTILE.INC(Data!$I$9:$I$4177,1-'Daily Exceedance'!A88) -> 8.570833828e-07
A89: 0.87 | B89: =_xlfn.PERCENTILE.INC(Data!$S$9:$S$4177,1-'Daily Exceedance'!A89) -> 1e-06 | C89: =_xlfn.PERCENTILE.INC(Data!$I$9:$I$4177,1-'Daily Exceedance'!A89) -> 8.570833828e-07
A90: 0.88 | B90: =_xlfn.PERCENTILE.INC(Data!$S$9:$S$4177,1-'Daily Exceedance'!A90) -> 1e-06 | C90: =_xlfn.PERCENTILE.INC(Data!$I$9:$I$4177,1-'Daily Exceedance'!A90) -> 8.570833828e-07
A91: 0.89 | B91: =_xlfn.PERCENTILE.INC(Data!$S$9:$S$4177,1-'Daily Exceedance'!A91) -> 1e-06 | C91: =_xlfn.PERCENTILE.INC(Data!$I$9:$I$4177,1-'Daily Exceedance'!A91) -> 8.570833828e-07
A92: 0.9 | B92: =_xlfn.PERCENTILE.INC(Data!$S$9:$S$4177,1-'Daily Exceedance'!A92) -> 1e-06 | C92: =_xlfn.PERCENTILE.INC(Data!$I$9:$I$4177,1-'Daily Exceedance'!A92) -> 8.570833828e-07
A93: 0.91 | B93: =_xlfn.PERCENTILE.INC(Data!$S$9:$S$4177,1-'Daily Exceedance'!A93) -> 1e-06 | C93: =_xlfn.PERCENTILE.INC(Data!$I$9:$I$4177,1-'Daily Exceedance'!A93) -> 8.570833828e-07
A94: 0.92 | B94: =_xlfn.PERCENTILE.INC(Data!$S$9:$S$4177,1-'Daily Exceedance'!A94) -> 1e-06 | C94: =_xlfn.PERCENTILE.INC(Data!$I$9:$I$4177,1-'Daily Exceedance'!A94) -> 8.570833828e-07
A95: 0.93 | B95: =_xlfn.PERCENTILE.INC(Data!$S$9:$S$4177,1-'Daily Exceedance'!A95) -> 1e-06 | C95: =_xlfn.PERCENTILE.INC(Data!$I$9:$I$4177,1-'Daily Exceedance'!A95) -> 8.570833828e-07
A96: 0.94 | B96: =_xlfn.PERCENTILE.INC(Data!$S$9:$S$4177,1-'Daily Exceedance'!A96) -> 1e-06 | C96: =_xlfn.PERCENTILE.INC(Data!$I$9:$I$4177,1-'Daily Exceedance'!A96) -> 8.570833828e-07
A97: 0.95 | B97: =_xlfn.PERCENTILE.INC(Data!$S$9:$S$4177,1-'Daily Exceedance'!A97) -> 1e-06 | C97: =_xlfn.PERCENTILE.INC(Data!$I$9:$I$4177,1-'Daily Exceedance'!A97) -> 8.570833828e-07
A98: 0.96 | B98: =_xlfn.PERCENTILE.INC(Data!$S$9:$S$4177,1-'Daily Exceedance'!A98) -> 1e-06 | C98: =_xlfn.PERCENTILE.INC(Data!$I$9:$I$4177,1-'Daily Exceedance'!A98) -> 8.570833828e-07
A99: 0.97 | B99: =_xlfn.PERCENTILE.INC(Data!$S$9:$S$4177,1-'Daily Exceedance'!A99) -> 1e-06 | C99: =_xlfn.PERCENTILE.INC(Data!$I$9:$I$4177,1-'Daily Exceedance'!A99) -> 8.570833828e-07
A100: 0.98 | B100: =_xlfn.PERCENTILE.INC(Data!$S$9:$S$4177,1-'Daily Exceedance'!A100) -> 1e-06 | C100: =_xlfn.PERCENTILE.INC(Data!$I$9:$I$4177,1-'Daily Exceedance'!A100) -> 8.570833828e-07
A101: 0.99 | B101: =_xlfn.PERCENTILE.INC(Data!$S$9:$S$4177,1-'Daily Exceedance'!A101) -> 1e-06 | C101: =_xlfn.PERCENTILE.INC(Data!$I$9:$I$4177,1-'Daily Exceedance'!A101) -> 8.570833828e-07
A102: 1 | B102: =_xlfn.PERCENTILE.INC(Data!$S$9:$S$4177,1-'Daily Exceedance'!A102) -> 9.510935153e-07 | C102: =_xlfn.PERCENTILE.INC(Data!$I$9:$I$4177,1-'Daily Exceedance'!A102) -> 8.570833828e-07

Sheet Annual SWP In v. SWP Out
C1: SWP Outflow | D1: SWP Inflow | E1: Difference
B2: 2006 | C2: ='Annual Outflows'!C2 -> 1100830.523 | D2: ='Annual Inflows SWP v. Natural'!C2 -> 1108640.727 | E2: =D2-C2 -> 7810.204596
B3: 2007 | C3: ='Annual Outflows'!C3 -> 1090496.42 | D3: ='Annual Inflows SWP v. Natural'!C3 -> 1087676.033 | E3: =D3-C3 -> -2820.386985
B4: 2008 | C4: ='Annual Outflows'!C4 -> 655056.2379 | D4: ='Annual Inflows SWP v. Natural'!C4 -> 648608.529 | E4: -6447.70892
B5: 2009 | C5: ='Annual Outflows'!C5 -> 369780.7273 | D5: ='Annual Inflows SWP v. Natural'!C5 -> 369607.9339 | E5: -172.793358
B6: 2010 | C6: ='Annual Outflows'!C6 -> 735471.8755 | D6: ='Annual Inflows SWP v. Natural'!C6 -> 735965.3554 | E6: 493.4799193
B7: 2011 | C7: ='Annual Outflows'!C7 -> 1078568.428 | D7: ='Annual Inflows SWP v. Natural'!C7 -> 1087579.894 | E7: 9011.465893
B8: 2012 | C8: ='Annual Outflows'!C8 -> 818273.8332 | D8: ='Annual Inflows SWP v. Natural'!C8 -> 836117.8512 | E8: 17844.01803
B9: 2013 | C9: ='Annual Outflows'!C9 -> 547341.2593 | D9: ='Annual Inflows SWP v. Natural'!C9 -> 560005.5471 | E9: 12664.28775
B10: 2014 | C10: ='Annual Outflows'!C10 -> 255041.7625 | D10: ='Annual Inflows SWP v. Natural'!C10 -> 261478.8926 | E10: 6437.130042
B11: 2015 | C11: ='Annual Outflows'!C11 -> 203418.6358 | D11: ='Annual Inflows SWP v. Natural'!C11 -> 183524.6281 | E11: -19894.00774
B12: 2016 | C12: ='Annual Outflows'!C12 -> 617062.1157 | D12: ='Annual Inflows SWP v. Natural'!C12 -> 632188.0661 | E12: 15125.9504
B13: 2017 | C13: ='Annual Outflows'!C13 -> 1059569.038 | D13: ='Annual Inflows SWP v. Natural'!C13 -> 1077060.868 | E13: 17491.83022
C14: =SUM(C2:C13) -> 8530910.856 | D14: =SUM(D2:D13) -> 8588454.326 | E14: =SUM(E2:E13) -> 57543.46985

Sheet Monthly Exceedance
B1: Natural Inflow | P1: Natural Outflow | AD1: SWP Inflow | AR1: Total Inflow | BF1: SWP Outflow | BT1: Total Outflow | CH1: Devil Canyon Powerplant
B2: 1 | C2: 2 | D2: 3 | E2: 4 | F2: 5 | G2: 6 | H2: 7 | I2: 8 | J2: 9 | K2: 10 | L2: 11 | M2: 12 | P2: 1 | Q2: 2 | R2: 3 | S2: 4 | T2: 5 | U2: 6 | V2: 7 | W2: 8 | X2: 9 | Y2: 10 | Z2: 11 | AA2: 12 | AD2: 1 | AE2: 2 | AF2: 3 | AG2: 4 | AH2: 5 | AI2: 6 | AJ2: 7 | AK2: 8 | AL2: 9 | AM2: 10 | AN2: 11 | AO2: 12 | AR2: 1 | AS2: 2 | AT2: 3 | AU2: 4 | AV2: 5 | AW2: 6 | AX2: 7 | AY2: 8 | AZ2: 9 | BA2: 10 | BB2: 11 | BC2: 12 | BF2: 1 | BG2: 2 | BH2: 3 | BI2: 4 | BJ2: 5 | BK2: 6 | BL2: 7 | BM2: 8 | BN2: 9 | BO2: 10 | BP2: 11 | BQ2: 12 | BT2: 1 | BU2: 2 | BV2: 3 | BW2: 4 | BX2: 5 | BY2: 6 | BZ2: 7 | CA2: 8 | CB2: 9 | CC2: 10 | CD2: 11 | CE2: 12 | CH2: 1 | CI2: 2 | CJ2: 3 | CK2: 4 | CL2: 5 | CM2: 6 | CN2: 7 | CO2: 8 | CP2: 9 | CQ2: 10 | CR2: 11 | CS2: 12
B3: JAN | C3: FEB | D3: MAR | E3: APR | F3: MAY | G3: JUN | H3: JUL | I3: AUG | J3: SEP | K3: OCT | L3: NOV | M3: DEC | P3: JAN | Q3: FEB | R3: MAR | S3: APR | T3: MAY | U3: JUN | V3: JUL | W3: AUG | X3: SEP | Y3: OCT | Z3: NOV | AA3: DEC | AD3: JAN | AE3: FEB | AF3: MAR | AG3: APR | AH3: MAY | AI3: JUN | AJ3: JUL | AK3: AUG | AL3: SEP | AM3: OCT | AN3: NOV | AO3: DEC | AR3: JAN | AS3: FEB | AT3: MAR | AU3: APR | AV3: MAY | AW3: JUN | AX3: JUL | AY3: AUG | AZ3: SEP | BA3: OCT | BB3: NOV | BC3: DEC | BF3: JAN | BG3: FEB | BH3: MAR | BI3: APR | BJ3: MAY | BK3: JUN | BL3: JUL | BM3: AUG | BN3: SEP | BO3: OCT | BP3: NOV | BQ3: DEC | BT3: JAN | BU3: FEB | BV3: MAR | BW3: APR | BX3: MAY | BY3: JUN | BZ3: JUL | CA3: AUG | CB3: SEP | CC3: OCT | CD3: NOV | CE3: DEC | CH3: JAN | CI3: FEB | CJ3: MAR | CK3: APR | CL3: MAY | CM3: JUN | CN3: JUL | CO3: AUG | CP3: SEP | CQ3: OCT | CR3: NOV | CS3: DEC
A4: 0 | B4: =_xlfn.PERCENTILE.INC(IF((MONTH(Data!$B$9:$B$4391)=B$2)*(ISNUMBER(Data!$I$9:$I$4391)),Data!$I$9:$I$4391),1-'Monthly Exceedance'!$A4) -> 798.7499822 | C4: =_xlfn.PERCENTILE.INC(IF((MONTH(Data!$B$9:$B$4391)=C$2)*(ISNUMBER(Data!$I$9:$I$4391)),Data!$I$9:$I$4391),1-'Monthly Exceedance'!$A4) -> 759.2916784 | D4: =_xlfn.PERCENTILE.INC(IF((MONTH(Data!$B$9:$B$4391)=D$2)*(ISNUMBER(Data!$I$9:$I$4391)),Data!$I$9:$I$4391),1-'Monthly Exceedance'!$A4) -> 382.1666725 | E4: =_xlfn.PERCENTILE.INC(IF((MONTH(Data!$B$9:$B$4391)=E$2)*(ISNUMBER(Data!$I$9:$I$4391)),Data!$I$9:$I$4391),1-'Monthly Exceedance'!$A4) -> 816.0833577 | F4: =_xlfn.PERCENTILE.INC(IF((MONTH(Data!$B$9:$B$4391)=F$2)*(ISNUMBER(Data!$I$9:$I$4391)),Data!$I$9:$I$4391),1-'Monthly Exceedance'!$A4) -> 48.6083334 | G4: =_xlfn.PERCENTILE.INC(IF((MONTH(Data!$B$9:$B$4391)=G$2)*(ISNUMBER(Data!$I$9:$I$4391)),Data!$I$9:$I$4391),1-'Monthly Exceedance'!$A4) -> 38.50416749 | H4: =_xlfn.PERCENTILE.INC(IF((MONTH(Data!$B$9:$B$4391)=H$2)*(ISNUMBER(Data!$I$9:$I$4391)),Data!$I$9:$I$4391),1-'Monthly Exceedance'!$A4) -> 28.08000085 | I4: =_xlfn.PERCENTILE.INC(IF((MONTH(Data!$B$9:$B$4391)=I$2)*(ISNUMBER(Data!$I$9:$I$4391)),Data!$I$9:$I$4391),1-'Monthly Exceedance'!$A4) -> 4.1166665 | J4: =_xlfn.PERCENTILE.INC(IF((MONTH(Data!$B$9:$B$4391)=J$2)*(ISNUMBER(Data!$I$9:$I$4391)),Data!$I$9:$I$4391),1-'Monthly Exceedance'!$A4) -> 17.0775015 | K4: =_xlfn.PERCENTILE.INC(IF((MONTH(Data!$B$9:$B$4391)=K$2)*(ISNUMBER(Data!$I$9:$I$4391)),Data!$I$9:$I$4391),1-'Monthly Exceedance'!$A4) -> 19.14791705 | L4: =_xlfn.PERCENTILE.INC(IF((MONTH(Data!$B$9:$B$4391)=L$2)*(ISNUMBER(Data!$I$9:$I$4391)),Data!$I$9:$I$4391),1-'Monthly Exceedance'!$A4) -> 31.99999938 | M4: =_xlfn.PERCENTILE.INC(IF((MONTH(Data!$B$9:$B$4391)=M$2)*(ISNUMBER(Data!$I$9:$I$4391)),Data!$I$9:$I$4391),1-'Monthly Exceedance'!$A4) -> 5712.083276 | O4: 0 | P4: =_xlfn.PERCENTILE.INC(IF((MONTH(Data!$B$9:$B$4391)=P$2)*(ISNUMBER(Data!$S$9:$S$4391)),Data!$S$9:$S$4391),1-'Monthly Exceedance'!$A4) -> 757.0057134 | Q4: =_xlfn.PERCENTILE.INC(IF((MONTH(Data!$B$9:$B$4391)=Q$2)*(ISNUMBER(Data!$S$9:$S$4391)),Data!$S$9:$S$4391),1-'Monthly Exceedance'!$A4) -> 273.3725979 | R4: =_xlfn.PERCENTILE.INC(IF((MONTH(Data!$B$9:$B$4391)=R$2)*(ISNUMBER(Data!$S$9:$S$4391)),Data!$S$9:$S$4391),1-'Monthly Exceedance'!$A4) -> 241.0083261 | S4: =_xlfn.PERCENTILE.INC(IF((MONTH(Data!$B$9:$B$4391)=S$2)*(ISNUMBER(Data!$S$9:$S$4391)),Data!$S$9:$S$4391),1-'Monthly Exceedance'!$A4) -> 293.0186704 | T4: =_xlfn.PERCENTILE.INC(IF((MONTH(Data!$B$9:$B$4391)=T$2)*(ISNUMBER(Data!$S$9:$S$4391)),Data!$S$9:$S$4391),1-'Monthly Exceedance'!$A4) -> 60.00757595 | U4: =_xlfn.PERCENTILE.INC(IF((MONTH(Data!$B$9:$B$4391)=U$2)*(ISNUMBER(Data!$S$9:$S$4391)),Data!$S$9:$S$4391),1-'Monthly Exceedance'!$A4) -> 66.51250005 | V4: =_xlfn.PERCENTILE.INC(IF((MONTH(Data!$B$9:$B$4391)=V$2)*(ISNUMBER(Data!$S$9:$S$4391)),Data!$S$9:$S$4391),1-'Monthly Exceedance'!$A4) -> 59.57516462 | W4: =_xlfn.PERCENTILE.INC(IF((MONTH(Data!$B$9:$B$4391)=W$2)*(ISNUMBER(Data!$S$9:$S$4391)),Data!$S$9:$S$4391),1-'Monthly Exceedance'!$A4) -> 33.0131162 | X4: =_xlfn.PERCENTILE.INC(IF((MONTH(Data!$B$9:$B$4391)=X$2)*(ISNUMBER(Data!$S$9:$S$4391)),Data!$S$9:$S$4391),1-'Monthly Exceedance'!$A4) -> 150 | Y4: =_xlfn.PERCENTILE.INC(IF((MONTH(Data!$B$9:$B$4391)=Y$2)*(ISNUMBER(Data!$S$9:$S$4391)),Data!$S$9:$S$4391),1-'Monthly Exceedance'!$A4) -> 101 | Z4: =_xlfn.PERCENTILE.INC(IF((MONTH(Data!$B$9:$B$4391)=Z$2)*(ISNUMBER(Data!$S$9:$S$4391)),Data!$S$9:$S$4391),1-'Monthly Exceedance'!$A4) -> 209 | AA4: =_xlfn.PERCENTILE.INC(IF((MONTH(Data!$B$9:$B$4391)=AA$2)*(ISNUMBER(Data!$S$9:$S$4391)),Data!$S$9:$S$4391),1-'Monthly Exceedance'!$A4) -> 2140.000001 | AC4: 0 | AD4: =_xlfn.PERCENTILE.INC(IF((MONTH(Data!$B$9:$B$4391)=AD$2)*(ISNUMBER(Data!$O$9:$O$4391)),Data!$O$9:$O$4391),1-'Monthly Exceedance'!$A4) -> 2041.1 | AE4: =_xlfn.PERCENTILE.INC(IF((MONTH(Data!$B$9:$B$4391)=AE$2)*(ISNUMBER(Data!$O$9:$O$4391)),Data!$O$9:$O$4391),1-'Monthly Exceedance'!$A4) -> 2030 | AF4: =_xlfn.PERCENTILE.INC(IF((MONTH(Data!$B$9:$B$4391)=AF$2)*(ISNUMBER(Data!$O$9:$O$4391)),Data!$O$9:$O$4391),1-'Monthly Exceedance'!$A4) -> 2083.2 | AG4: =_xlfn.PERCENTILE.INC(IF((MONTH(Data!$B$9:$B$4391)=AG$2)*(ISNUMBER(Data!$O$9:$O$4391)),Data!$O$9:$O$4391),1-'Monthly Exceedance'!$A4) -> 2263.2 | AH4: =_xlfn.PERCENTILE.INC(IF((MONTH(Data!$B$9:$B$4391)=AH$2)*(ISNUMBER(Data!$O$9:$O$4391)),Data!$O$9:$O$4391),1-'Monthly Exceedance'!$A4) -> 2230 | AI4: =_xlfn.PERCENTILE.INC(IF((MONTH(Data!$B$9:$B$4391)=AI$2)*(ISNUMBER(Data!$O$9:$O$4391)),Data!$O$9:$O$4391),1-'Monthly Exceedance'!$A4) -> 2020 | AJ4: =_xlfn.PERCENTILE.INC(IF((MONTH(Data!$B$9:$B$4391)=AJ$2)*(ISNUMBER(Data!$O$9:$O$4391)),Data!$O$9:$O$4391),1-'Monthly Exceedance'!$A4) -> 2162 | AK4: =_xlfn.PERCENTILE.INC(IF((MONTH(Data!$B$9:$B$4391)=AK$2)*(ISNUMBER(Data!$O$9:$O$4391)),Data!$O$9:$O$4391),1-'Monthly Exceedance'!$A4) -> 2152 | AL4: =_xlfn.PERCENTILE.INC(IF((MONTH(Data!$B$9:$B$4391)=AL$2)*(ISNUMBER(Data!$O$9:$O$4391)),Data!$O$9:$O$4391),1-'Monthly Exceedance'!$A4) -> 2124.8 | AM4: =_xlfn.PERCENTILE.INC(IF((MONTH(Data!$B$9:$B$4391)=AM$2)*(ISNUMBER(Data!$O$9:$O$4391)),Data!$O$9:$O$4391),1-'Monthly Exceedance'!$A4) -> 2041.6 | AN4: =_xlfn.PERCENTILE.INC(IF((MONTH(Data!$B$9:$B$4391)=AN$2)*(ISNUMBER(Data!$O$9:$O$4391)),Data!$O$9:$O$4391),1-'Monthly Exceedance'!$A4) -> 2145.1 | AO4: =_xlfn.PERCENTILE.INC(IF((MONTH(Data!$B$9:$B$4391)=AO$2)*(ISNUMBER(Data!$O$9:$O$4391)),Data!$O$9:$O$4391),1-'Monthly Exceedance'!$A4) -> 2120 | AQ4: 0 | AR4: =_xlfn.PERCENTILE.INC(IF((MONTH(Data!$B$9:$B$4391)=AR$2)*(ISNUMBER(Data!$T$9:$T$4391)),Data!$T$9:$T$4391),1-'Monthly Exceedance'!$A4) -> 2044.070833 | AS4: =_xlfn.PERCENTILE.INC(IF((MONTH(Data!$B$9:$B$4391)=AS$2)*(ISNUMBER(Data!$T$9:$T$4391)),Data!$T$9:$T$4391),1-'Monthly Exceedance'!$A4) -> 2303.750018 | AT4: =_xlfn.PERCENTILE.INC(IF((MONTH(Data!$B$9:$B$4391)=AT$2)*(ISNUMBER(Data!$T$9:$T$4391)),Data!$T$9:$T$4391),1-'Monthly Exceedance'!$A4) -> 2095.596667 | AU4: =_xlfn.PERCENTILE.INC(IF((MONTH(Data!$B$9:$B$4391)=AU$2)*(ISNUMBER(Data!$T$9:$T$4391)),Data!$T$9:$T$4391),1-'Monthly Exceedance'!$A4) -> 2265.7575 | AV4: =_xlfn.PERCENTILE.INC(IF((MONTH(Data!$B$9:$B$4391)=AV$2)*(ISNUMBER(Data!$T$9:$T$4391)),Data!$T$9:$T$4391),1-'Monthly Exceedance'!$A4) -> 2264.999999 | AW4: =_xlfn.PERCENTILE.INC(IF((MONTH(Data!$B$9:$B$4391)=AW$2)*(ISNUMBER(Data!$T$9:$T$4391)),Data!$T$9:$T$4391),1-'Monthly Exceedance'!$A4) -> 2027.94625 | AX4: =_xlfn.PERCENTILE.INC(IF((MONTH(Data!$B$9:$B$4391)=AX$2)*(ISNUMBER(Data!$T$9:$T$4391)),Data!$T$9:$T$4391),1-'Monthly Exceedance'!$A4) -> 2164.8975 | AY4: =_xlfn.PERCENTILE.INC(IF((MONTH(Data!$B$9:$B$4391)=AY$2)*(ISNUMBER(Data!$T$9:$T$4391)),Data!$T$9:$T$4391),1-'Monthly Exceedance'!$A4) -> 2154.288333 | AZ4: =_xlfn.PERCENTILE.INC(IF((MONTH(Data!$B$9:$B$4391)=AZ$2)*(ISNUMBER(Data!$T$9:$T$4391)),Data!$T$9:$T$4391),1-'Monthly Exceedance'!$A4) -> 2124.800001 | BA4: =_xlfn.PERCENTILE.INC(IF((MONTH(Data!$B$9:$B$4391)=BA$2)*(ISNUMBER(Data!$T$9:$T$4391)),Data!$T$9:$T$4391),1-'Monthly Exceedance'!$A4) -> 2041.600001 | BB4: =_xlfn.PERCENTILE.INC(IF((MONTH(Data!$B$9:$B$4391)=BB$2)*(ISNUMBER(Data!$T$9:$T$4391)),Data!$T$9:$T$4391),1-'Monthly Exceedance'!$A4) -> 2146.358333 | BC4: =_xlfn.PERCENTILE.INC(IF((MONTH(Data!$B$9:$B$4391)=BC$2)*(ISNUMBER(Data!$T$9:$T$4391)),Data!$T$9:$T$4391),1-'Monthly Exceedance'!$A4) -> 7692.083276 | BE4: 0 | BF4: =_xlfn.PERCENTILE.INC(IF((MONTH(Data!$B$9:$B$4391)=BF$2)*(ISNUMBER(Data!$R$9:$R$4391)),Data!$R$9:$R$4391),1-'Monthly Exceedance'!$A4) -> 1882.019187 | BG4: =_xlfn.PERCENTILE.INC(IF((MONTH(Data!$B$9:$B$4391)=BG$2)*(ISNUMBER(Data!$R$9:$R$4391)),Data!$R$9:$R$4391),1-'Monthly Exceedance'!$A4) -> 1910.806667 | BH4: =_xlfn.PERCENTILE.INC(IF((MONTH(Data!$B$9:$B$4391)=BH$2)*(ISNUMBER(Data!$R$9:$R$4391)),Data!$R$9:$R$4391),1-'Monthly Exceedance'!$A4) -> 2010.004619 | BI4: =_xlfn.PERCENTILE.INC(IF((MONTH(Data!$B$9:$B$4391)=BI$2)*(ISNUMBER(Data!$R$9:$R$4391)),Data!$R$9:$R$4391),1-'Monthly Exceedance'!$A4) -> 2080 | BJ4: =_xlfn.PERCENTILE.INC(IF((MONTH(Data!$B$9:$B$4391)=BJ$2)*(ISNUMBER(Data!$R$9:$R$4391)),Data!$R$9:$R$4391),1-'Monthly Exceedance'!$A4) -> 2040 | BK4: =_xlfn.PERCENTILE.INC(IF((MONTH(Data!$B$9:$B$4391)=BK$2)*(ISNUMBER(Data!$R$9:$R$4391)),Data!$R$9:$R$4391),1-'Monthly Exceedance'!$A4) -> 2001.926368 | BL4: =_xlfn.PERCENTILE.INC(IF((MONTH(Data!$B$9:$B$4391)=BL$2)*(ISNUMBER(Data!$R$9:$R$4391)),Data!$R$9:$R$4391),1-'Monthly Exceedance'!$A4) -> 2080.471383 | BM4: =_xlfn.PERCENTILE.INC(IF((MONTH(Data!$B$9:$B$4391)=BM$2)*(ISNUMBER(Data!$R$9:$R$4391)),Data!$R$9:$R$4391),1-'Monthly Exceedance'!$A4) -> 2033.529167 | BN4: =_xlfn.PERCENTILE.INC(IF((MONTH(Data!$B$9:$B$4391)=BN$2)*(ISNUMBER(Data!$R$9:$R$4391)),Data!$R$9:$R$4391),1-'Monthly Exceedance'!$A4) -> 2164.033333 | BO4: =_xlfn.PERCENTILE.INC(IF((MONTH(Data!$B$9:$B$4391)=BO$2)*(ISNUMBER(Data!$R$9:$R$4391)),Data!$R$9:$R$4391),1-'Monthly Exceedance'!$A4) -> 2023.025 | BP4: =_xlfn.PERCENTILE.INC(IF((MONTH(Data!$B$9:$B$4391)=BP$2)*(ISNUMBER(Data!$R$9:$R$4391)),Data!$R$9:$R$4391),1-'Monthly Exceedance'!$A4) -> 2022.016667 | BQ4: =_xlfn.PERCENTILE.INC(IF((MONTH(Data!$B$9:$B$4391)=BQ$2)*(ISNUMBER(Data!$R$9:$R$4391)),Data!$R$9:$R$4391),1-'Monthly Exceedance'!$A4) -> 1850.504167 | BS4: 0 | BT4: =_xlfn.PERCENTILE.INC(IF((MONTH(Data!$B$9:$B$4391)=BT$2)*(ISNUMBER(Data!$U$9:$U$4391)),Data!$U$9:$U$4391),1-'Monthly Exceedance'!$A4) -> 1920.00001 | BU4: =_xlfn.PERCENTILE.INC(IF((MONTH(Data!$B$9:$B$4391)=BU$2)*(ISNUMBER(Data!$U$9:$U$4391)),Data!$U$9:$U$4391),1-'Monthly Exceedance'!$A4) -> 1927.420833 | BV4: =_xlfn.PERCENTILE.INC(IF((MONTH(Data!$B$9:$B$4391)=BV$2)*(ISNUMBER(Data!$U$9:$U$4391)),Data!$U$9:$U$4391),1-'Monthly Exceedance'!$A4) -> 2027.725 | BW4: =_xlfn.PERCENTILE.INC(IF((MONTH(Data!$B$9:$B$4391)=BW$2)*(ISNUMBER(Data!$U$9:$U$4391)),Data!$U$9:$U$4391),1-'Monthly Exceedance'!$A4) -> 2144.304167 | BX4: =_xlfn.PERCENTILE.INC(IF((MONTH(Data!$B$9:$B$4391)=BX$2)*(ISNUMBER(Data!$U$9:$U$4391)),Data!$U$9:$U$4391),1-'Monthly Exceedance'!$A4) -> 2055.625 | BY4: =_xlfn.PERCENTILE.INC(IF((MONTH(Data!$B$9:$B$4391)=BY$2)*(ISNUMBER(Data!$U$9:$U$4391)),Data!$U$9:$U$4391),1-'Monthly Exceedance'!$A4) -> 2017.116667 | BZ4: =_xlfn.PERCENTILE.INC(IF((MONTH(Data!$B$9:$B$4391)=BZ$2)*(ISNUMBER(Data!$U$9:$U$4391)),Data!$U$9:$U$4391),1-'Monthly Exceedance'!$A4) -> 2081.008333 | CA4: =_xlfn.PERCENTILE.INC(IF((MONTH(Data!$B$9:$B$4391)=CA$2)*(ISNUMBER(Data!$U$9:$U$4391)),Data!$U$9:$U$4391),1-'Monthly Exceedance'!$A4) -> 2033.529168 | CB4: =_xlfn.PERCENTILE.INC(IF((MONTH(Data!$B$9:$B$4391)=CB$2)*(ISNUMBER(Data!$U$9:$U$4391)),Data!$U$9:$U$4391),1-'Monthly Exceedance'!$A4) -> 2211.5125 | CC4: =_xlfn.PERCENTILE.INC(IF((MONTH(Data!$B$9:$B$4391)=CC$2)*(ISNUMBER(Data!$U$9:$U$4391)),Data!$U$9:$U$4391),1-'Monthly Exceedance'!$A4) -> 2023.025001 | CD4: =_xlfn.PERCENTILE.INC(IF((MONTH(Data!$B$9:$B$4391)=CD$2)*(ISNUMBER(Data!$U$9:$U$4391)),Data!$U$9:$U$4391),1-'Monthly Exceedance'!$A4) -> 2022.016668 | CE4: =_xlfn.PERCENTILE.INC(IF((MONTH(Data!$B$9:$B$4391)=CE$2)*(ISNUMBER(Data!$U$9:$U$4391)),Data!$U$9:$U$4391),1-'Monthly Exceedance'!$A4) -> 3300.00001 | CG4: 0 | CH4: =_xlfn.PERCENTILE.INC(IF((MONTH(Data!$B$9:$B$4391)=CH$2)*(ISNUMBER(Data!$U$9:$U$4391)),Data!$N$9:$N$4391),1-'Monthly Exceedance'!$A4) -> 1880 | CI4: =_xlfn.PERCENTILE.INC(IF((MONTH(Data!$B$9:$B$4391)=CI$2)*(ISNUMBER(Data!$U$9:$U$4391)),Data!$N$9:$N$4391),1-'Monthly Exceedance'!$A4) -> 1910 | CJ4: =_xlfn.PERCENTILE.INC(IF((MONTH(Data!$B$9:$B$4391)=CJ$2)*(ISNUMBER(Data!$U$9:$U$4391)),Data!$N$9:$N$4391),1-'Monthly Exceedance'!$A4) -> 2010 | CK4: =_xlfn.PERCENTILE.INC(IF((MONTH(Data!$B$9:$B$4391)=CK$2)*(ISNUMBER(Data!$U$9:$U$4391)),Data!$N$9:$N$4391),1-'Monthly Exceedance'!$A4) -> 2080 | CL4: =_xlfn.PERCENTILE.INC(IF((MONTH(Data!$B$9:$B$4391)=CL$2)*(ISNUMBER(Data!$U$9:$U$4391)),Data!$N$9:$N$4391),1-'Monthly Exceedance'!$A4) -> 2040 | CM4: =_xlfn.PERCENTILE.INC(IF((MONTH(Data!$B$9:$B$4391)=CM$2)*(ISNUMBER(Data!$U$9:$U$4391)),Data!$N$9:$N$4391),1-'Monthly Exceedance'!$A4) -> 2000 | CN4: =_xlfn.PERCENTILE.INC(IF((MONTH(Data!$B$9:$B$4391)=CN$2)*(ISNUMBER(Data!$U$9:$U$4391)),Data!$N$9:$N$4391),1-'Monthly Exceedance'!$A4) -> 2080 | CO4: =_xlfn.PERCENTILE.INC(IF((MONTH(Data!$B$9:$B$4391)=CO$2)*(ISNUMBER(Data!$U$9:$U$4391)),Data!$N$9:$N$4391),1-'Monthly Exceedance'!$A4) -> 2030 | CP4: =_xlfn.PERCENTILE.INC(IF((MONTH(Data!$B$9:$B$4391)=CP$2)*(ISNUMBER(Data!$U$9:$U$4391)),Data!$N$9:$N$4391),1-'Monthly Exceedance'!$A4) -> 2160 | CQ4: =_xlfn.PERCENTILE.INC(IF((MONTH(Data!$B$9:$B$4391)=CQ$2)*(ISNUMBER(Data!$U$9:$U$4391)),Data!$N$9:$N$4391),1-'Monthly Exceedance'!$A4) -> 2020 | CR4: =_xlfn.PERCENTILE.INC(IF((MONTH(Data!$B$9:$B$4391)=CR$2)*(ISNUMBER(Data!$U$9:$U$4391)),Data!$N$9:$N$4391),1-'Monthly Exceedance'!$A4) -> 2020 | CS4: =_xlfn.PERCENTILE.INC(IF((MONTH(Data!$B$9:$B$4391)=CS$2)*(ISNUMBER(Data!$U$9:$U$4391)),Data!$N$9:$N$4391),1-'Monthly Exceedance'!$A4) -> 1850
A5: 0.01 | B5: =_xlfn.PERCENTILE.INC(IF((MONTH(Data!$B$9:$B$4391)=B$2)*(ISNUMBER(Data!$I$9:$I$4391)),Data!$I$9:$I$4391),1-'Monthly Exceedance'!$A5) -> 492.7708472 | C5: =_xlfn.PERCENTILE.INC(IF((MONTH(Data!$B$9:$B$4391)=C$2)*(ISNUMBER(Data!$I$9:$I$4391)),Data!$I$9:$I$4391),1-'Monthly Exceedance'!$A5) -> 252.3371685 | D5: =_xlfn.PERCENTILE.INC(IF((MONTH(Data!$B$9:$B$4391)=D$2)*(ISNUMBER(Data!$I$9:$I$4391)),Data!$I$9:$I$4391),1-'Monthly Exceedance'!$A5) -> 208.8250086 | E5: =_xlfn.PERCENTILE.INC(IF((MONTH(Data!$B$9:$B$4391)=E$2)*(ISNUMBER(Data!$I$9:$I$4391)),Data!$I$9:$I$4391),1-'Monthly Exceedance'!$A5) -> 251.1611579 | F5: =_xlfn.PERCENTILE.INC(IF((MONTH(Data!$B$9:$B$4391)=F$2)*(ISNUMBER(Data!$I$9:$I$4391)),Data!$I$9:$I$4391),1-'Monthly Exceedance'!$A5) -> 40.50416733 | G5: =_xlfn.PERCENTILE.INC(IF((MONTH(Data!$B$9:$B$4391)=G$2)*(ISNUMBER(Data!$I$9:$I$4391)),Data!$I$9:$I$4391),1-'Monthly Exceedance'!$A5) -> 22.55568343 | H5: =_xlfn.PERCENTILE.INC(IF((MONTH(Data!$B$9:$B$4391)=H$2)*(ISNUMBER(Data!$I$9:$I$4391)),Data!$I$9:$I$4391),1-'Monthly Exceedance'!$A5) -> 7.204249925 | I5: =_xlfn.PERCENTILE.INC(IF((MONTH(Data!$B$9:$B$4391)=I$2)*(ISNUMBER(Data!$I$9:$I$4391)),Data!$I$9:$I$4391),1-'Monthly Exceedance'!$A5) -> 3.058645957 | J5: =_xlfn.PERCENTILE.INC(IF((MONTH(Data!$B$9:$B$4391)=J$2)*(ISNUMBER(Data!$I$9:$I$4391)),Data!$I$9:$I$4391),1-'Monthly Exceedance'!$A5) -> 1.807991664 | K5: =_xlfn.PERCENTILE.INC(IF((MONTH(Data!$B$9:$B$4391)=K$2)*(ISNUMBER(Data!$I$9:$I$4391)),Data!$I$9:$I$4391),1-'Monthly Exceedance'!$A5) -> 3.978062608 | L5: =_xlfn.PERCENTILE.INC(IF((MONTH(Data!$B$9:$B$4391)=L$2)*(ISNUMBER(Data!$I$9:$I$4391)),Data!$I$9:$I$4391),1-'Monthly Exceedance'!$A5) -> 13.14565026 | M5: =_xlfn.PERCENTILE.INC(IF((MONTH(Data!$B$9:$B$4391)=M$2)*(ISNUMBER(Data!$I$9:$I$4391)),Data!$I$9:$I$4391),1-'Monthly Exceedance'!$A5) -> 1199.265932 | O5: 0.01 | P5: =_xlfn.PERCENTILE.INC(IF((MONTH(Data!$B$9:$B$4391)=P$2)*(ISNUMBER(Data!$S$9:$S$4391)),Data!$S$9:$S$4391),1-'Monthly Exceedance'!$A5) -> 263.5737321 | Q5: =_xlfn.PERCENTILE.INC(IF((MONTH(Data!$B$9:$B$4391)=Q$2)*(ISNUMBER(Data!$S$9:$S$4391)),Data!$S$9:$S$4391),1-'Monthly Exceedance'!$A5) -> 199.3815934 | R5: =_xlfn.PERCENTILE.INC(IF((MONTH(Data!$B$9:$B$4391)=R$2)*(ISNUMBER(Data!$S$9:$S$4391)),Data!$S$9:$S$4391),1-'Monthly Exceedance'!$A5) -> 240.1462144 | S5: =_xlfn.PERCENTILE.INC(IF((MONTH(Data!$B$9:$B$4391)=S$2)*(ISNUMBER(Data!$S$9:$S$4391)),Data!$S$9:$S$4391),1-'Monthly Exceedance'!$A5) -> 145.1051246 | T5: =_xlfn.PERCENTILE.INC(IF((MONTH(Data!$B$9:$B$4391)=T$2)*(ISNUMBER(Data!$S$9:$S$4391)),Data!$S$9:$S$4391),1-'Monthly Exceedance'!$A5) -> 45.15530424 | U5: =_xlfn.PERCENTILE.INC(IF((MONTH(Data!$B$9:$B$4391)=U$2)*(ISNUMBER(Data!$S$9:$S$4391)),Data!$S$9:$S$4391),1-'Monthly Exceedance'!$A5) -> 61.22337497 | V5: =_xlfn.PERCENTILE.INC(IF((MONTH(Data!$B$9:$B$4391)=V$2)*(ISNUMBER(Data!$S$9:$S$4391)),Data!$S$9:$S$4391),1-'Monthly Exceedance'!$A5) -> 59.12511754 | W5: =_xlfn.PERCENTILE.INC(IF((MONTH(Data!$B$9:$B$4391)=W$2)*(ISNUMBER(Data!$S$9:$S$4391)),Data!$S$9:$S$4391),1-'Monthly Exceedance'!$A5) -> 32.72552821 | X5: =_xlfn.PERCENTILE.INC(IF((MONTH(Data!$B$9:$B$4391)=X$2)*(ISNUMBER(Data!$S$9:$S$4391)),Data!$S$9:$S$4391),1-'Monthly Exceedance'!$A5) -> 106.97 | Y5: =_xlfn.PERCENTILE.INC(IF((MONTH(Data!$B$9:$B$4391)=Y$2)*(ISNUMBER(Data!$S$9:$S$4391)),Data!$S$9:$S$4391),1-'Monthly Exceedance'!$A5) -> 101 | Z5: =_xlfn.PERCENTILE.INC(IF((MONTH(Data!$B$9:$B$4391)=Z$2)*(ISNUMBER(Data!$S$9:$S$4391)),Data!$S$9:$S$4391),1-'Monthly Exceedance'!$A5) -> 209 | AA5: =_xlfn.PERCENTILE.INC(IF((MONTH(Data!$B$9:$B$4391)=AA$2)*(ISNUMBER(Data!$S$9:$S$4391)),Data!$S$9:$S$4391),1-'Monthly Exceedance'!$A5) -> 312.3200003 | AC5: 0.01 | AD5: =_xlfn.PERCENTILE.INC(IF((MONTH(Data!$B$9:$B$4391)=AD$2)*(ISNUMBER(Data!$O$9:$O$4391)),Data!$O$9:$O$4391),1-'Monthly Exceedance'!$A5) -> 1885.281 | AE5: =_xlfn.PERCENTILE.INC(IF((MONTH(Data!$B$9:$B$4391)=AE$2)*(ISNUMBER(Data!$O$9:$O$4391)),Data!$O$9:$O$4391),1-'Monthly Exceedance'!$A5) -> 2007.137333 | AF5: =_xlfn.PERCENTILE.INC(IF((MONTH(Data!$B$9:$B$4391)=AF$2)*(ISNUMBER(Data!$O$9:$O$4391)),Data!$O$9:$O$4391),1-'Monthly Exceedance'!$A5) -> 1946.983292 | AG5: =_xlfn.PERCENTILE.INC(IF((MONTH(Data!$B$9:$B$4391)=AG$2)*(ISNUMBER(Data!$O$9:$O$4391)),Data!$O$9:$O$4391),1-'Monthly Exceedance'!$A5) -> 2038.016458 | AH5: =_xlfn.PERCENTILE.INC(IF((MONTH(Data!$B$9:$B$4391)=AH$2)*(ISNUMBER(Data!$O$9:$O$4391)),Data!$O$9:$O$4391),1-'Monthly Exceedance'!$A5) -> 2046.695583 | AI5: =_xlfn.PERCENTILE.INC(IF((MONTH(Data!$B$9:$B$4391)=AI$2)*(ISNUMBER(Data!$O$9:$O$4391)),Data!$O$9:$O$4391),1-'Monthly Exceedance'!$A5) -> 1986.967792 | AJ5: =_xlfn.PERCENTILE.INC(IF((MONTH(Data!$B$9:$B$4391)=AJ$2)*(ISNUMBER(Data!$O$9:$O$4391)),Data!$O$9:$O$4391),1-'Monthly Exceedance'!$A5) -> 2102 | AK5: =_xlfn.PERCENTILE.INC(IF((MONTH(Data!$B$9:$B$4391)=AK$2)*(ISNUMBER(Data!$O$9:$O$4391)),Data!$O$9:$O$4391),1-'Monthly Exceedance'!$A5) -> 2102 | AL5: =_xlfn.PERCENTILE.INC(IF((MONTH(Data!$B$9:$B$4391)=AL$2)*(ISNUMBER(Data!$O$9:$O$4391)),Data!$O$9:$O$4391),1-'Monthly Exceedance'!$A5) -> 2013.944083 | AM5: =_xlfn.PERCENTILE.INC(IF((MONTH(Data!$B$9:$B$4391)=AM$2)*(ISNUMBER(Data!$O$9:$O$4391)),Data!$O$9:$O$4391),1-'Monthly Exceedance'!$A5) -> 1961.479 | AN5: =_xlfn.PERCENTILE.INC(IF((MONTH(Data!$B$9:$B$4391)=AN$2)*(ISNUMBER(Data!$O$9:$O$4391)),Data!$O$9:$O$4391),1-'Monthly Exceedance'!$A5) -> 2100.374 | AO5: =_xlfn.PERCENTILE.INC(IF((MONTH(Data!$B$9:$B$4391)=AO$2)*(ISNUMBER(Data!$O$9:$O$4391)),Data!$O$9:$O$4391),1-'Monthly Exceedance'!$A5) -> 2101.6 | AQ5: 0.01 | AR5: =_xlfn.PERCENTILE.INC(IF((MONTH(Data!$B$9:$B$4391)=AR$2)*(ISNUMBER(Data!$T$9:$T$4391)),Data!$T$9:$T$4391),1-'Monthly Exceedance'!$A5) -> 1906.625094 | AS5: =_xlfn.PERCENTILE.INC(IF((MONTH(Data!$B$9:$B$4391)=AS$2)*(ISNUMBER(Data!$T$9:$T$4391)),Data!$T$9:$T$4391),1-'Monthly Exceedance'!$A5) -> 2052.065834 | AT5: =_xlfn.PERCENTILE.INC(IF((MONTH(Data!$B$9:$B$4391)=AT$2)*(ISNUMBER(Data!$T$9:$T$4391)),Data!$T$9:$T$4391),1-'Monthly Exceedance'!$A5) -> 1959.665201 | AU5: =_xlfn.PERCENTILE.INC(IF((MONTH(Data!$B$9:$B$4391)=AU$2)*(ISNUMBER(Data!$T$9:$T$4391)),Data!$T$9:$T$4391),1-'Monthly Exceedance'!$A5) -> 2048.254454 | AV5: =_xlfn.PERCENTILE.INC(IF((MONTH(Data!$B$9:$B$4391)=AV$2)*(ISNUMBER(Data!$T$9:$T$4391)),Data!$T$9:$T$4391),1-'Monthly Exceedance'!$A5) -> 2068.09 | AW5: =_xlfn.PERCENTILE.INC(IF((MONTH(Data!$B$9:$B$4391)=AW$2)*(ISNUMBER(Data!$T$9:$T$4391)),Data!$T$9:$T$4391),1-'Monthly Exceedance'!$A5) -> 1990.21275 | AX5: =_xlfn.PERCENTILE.INC(IF((MONTH(Data!$B$9:$B$4391)=AX$2)*(ISNUMBER(Data!$T$9:$T$4391)),Data!$T$9:$T$4391),1-'Monthly Exceedance'!$A5) -> 2105.012279 | AY5: =_xlfn.PERCENTILE.INC(IF((MONTH(Data!$B$9:$B$4391)=AY$2)*(ISNUMBER(Data!$T$9:$T$4391)),Data!$T$9:$T$4391),1-'Monthly Exceedance'!$A5) -> 2103.580808 | AZ5: =_xlfn.PERCENTILE.INC(IF((MONTH(Data!$B$9:$B$4391)=AZ$2)*(ISNUMBER(Data!$T$9:$T$4391)),Data!$T$9:$T$4391),1-'Monthly Exceedance'!$A5) -> 2020.712688 | BA5: =_xlfn.PERCENTILE.INC(IF((MONTH(Data!$B$9:$B$4391)=BA$2)*(ISNUMBER(Data!$T$9:$T$4391)),Data!$T$9:$T$4391),1-'Monthly Exceedance'!$A5) -> 1961.793288 | BB5: =_xlfn.PERCENTILE.INC(IF((MONTH(Data!$B$9:$B$4391)=BB$2)*(ISNUMBER(Data!$T$9:$T$4391)),Data!$T$9:$T$4391),1-'Monthly Exceedance'!$A5) -> 2101.739533 | BC5: =_xlfn.PERCENTILE.INC(IF((MONTH(Data!$B$9:$B$4391)=BC$2)*(ISNUMBER(Data!$T$9:$T$4391)),Data!$T$9:$T$4391),1-'Monthly Exceedance'!$A5) -> 3090.165932 | BE5: 0.01 | BF5: =_xlfn.PERCENTILE.INC(IF((MONTH(Data!$B$9:$B$4391)=BF$2)*(ISNUMBER(Data!$R$9:$R$4391)),Data!$R$9:$R$4391),1-'Monthly Exceedance'!$A5) -> 1811.529314 | BG5: =_xlfn.PERCENTILE.INC(IF((MONTH(Data!$B$9:$B$4391)=BG$2)*(ISNUMBER(Data!$R$9:$R$4391)),Data!$R$9:$R$4391),1-'Monthly Exceedance'!$A5) -> 1790.00279 | BH5: =_xlfn.PERCENTILE.INC(IF((MONTH(Data!$B$9:$B$4391)=BH$2)*(ISNUMBER(Data!$R$9:$R$4391)),Data!$R$9:$R$4391),1-'Monthly Exceedance'!$A5) -> 1952.90308 | BI5: =_xlfn.PERCENTILE.INC(IF((MONTH(Data!$B$9:$B$4391)=BI$2)*(ISNUMBER(Data!$R$9:$R$4391)),Data!$R$9:$R$4391),1-'Monthly Exceedance'!$A5) -> 2018.2 | BJ5: =_xlfn.PERCENTILE.INC(IF((MONTH(Data!$B$9:$B$4391)=BJ$2)*(ISNUMBER(Data!$R$9:$R$4391)),Data!$R$9:$R$4391),1-'Monthly Exceedance'!$A5) -> 1951.6 | BK5: =_xlfn.PERCENTILE.INC(IF((MONTH(Data!$B$9:$B$4391)=BK$2)*(ISNUMBER(Data!$R$9:$R$4391)),Data!$R$9:$R$4391),1-'Monthly Exceedance'!$A5) -> 1962.300802 | BL5: =_xlfn.PERCENTILE.INC(IF((MONTH(Data!$B$9:$B$4391)=BL$2)*(ISNUMBER(Data!$R$9:$R$4391)),Data!$R$9:$R$4391),1-'Monthly Exceedance'!$A5) -> 2021.079468 | BM5: =_xlfn.PERCENTILE.INC(IF((MONTH(Data!$B$9:$B$4391)=BM$2)*(ISNUMBER(Data!$R$9:$R$4391)),Data!$R$9:$R$4391),1-'Monthly Exceedance'!$A5) -> 1965.420833 | BN5: =_xlfn.PERCENTILE.INC(IF((MONTH(Data!$B$9:$B$4391)=BN$2)*(ISNUMBER(Data!$R$9:$R$4391)),Data!$R$9:$R$4391),1-'Monthly Exceedance'!$A5) -> 2107.583288 | BO5: =_xlfn.PERCENTILE.INC(IF((MONTH(Data!$B$9:$B$4391)=BO$2)*(ISNUMBER(Data!$R$9:$R$4391)),Data!$R$9:$R$4391),1-'Monthly Exceedance'!$A5) -> 1885.128417 | BP5: =_xlfn.PERCENTILE.INC(IF((MONTH(Data!$B$9:$B$4391)=BP$2)*(ISNUMBER(Data!$R$9:$R$4391)),Data!$R$9:$R$4391),1-'Monthly Exceedance'!$A5) -> 1902.630444 | BQ5: =_xlfn.PERCENTILE.INC(IF((MONTH(Data!$B$9:$B$4391)=BQ$2)*(ISNUMBER(Data!$R$9:$R$4391)),Data!$R$9:$R$4391),1-'Monthly Exceedance'!$A5) -> 1784.266292 | BS5: 0.01 | BT5: =_xlfn.PERCENTILE.INC(IF((MONTH(Data!$B$9:$B$4391)=BT$2)*(ISNUMBER(Data!$U$9:$U$4391)),Data!$U$9:$U$4391),1-'Monthly Exceedance'!$A5) -> 1828.70001 | BU5: =_xlfn.PERCENTILE.INC(IF((MONTH(Data!$B$9:$B$4391)=BU$2)*(ISNUMBER(Data!$U$9:$U$4391)),Data!$U$9:$U$4391),1-'Monthly Exceedance'!$A5) -> 1814.248333 | BV5: =_xlfn.PERCENTILE.INC(IF((MONTH(Data!$B$9:$B$4391)=BV$2)*(ISNUMBER(Data!$U$9:$U$4391)),Data!$U$9:$U$4391),1-'Monthly Exceedance'!$A5) -> 1974.69472 | BW5: =_xlfn.PERCENTILE.INC(IF((MONTH(Data!$B$9:$B$4391)=BW$2)*(ISNUMBER(Data!$U$9:$U$4391)),Data!$U$9:$U$4391),1-'Monthly Exceedance'!$A5) -> 2054.63625 | BX5: =_xlfn.PERCENTILE.INC(IF((MONTH(Data!$B$9:$B$4391)=BX$2)*(ISNUMBER(Data!$U$9:$U$4391)),Data!$U$9:$U$4391),1-'Monthly Exceedance'!$A5) -> 1966.995958 | BY5: =_xlfn.PERCENTILE.INC(IF((MONTH(Data!$B$9:$B$4391)=BY$2)*(ISNUMBER(Data!$U$9:$U$4391)),Data!$U$9:$U$4391),1-'Monthly Exceedance'!$A5) -> 1981.722584 | BZ5: =_xlfn.PERCENTILE.INC(IF((MONTH(Data!$B$9:$B$4391)=BZ$2)*(ISNUMBER(Data!$U$9:$U$4391)),Data!$U$9:$U$4391),1-'Monthly Exceedance'!$A5) -> 2022.309083 | CA5: =_xlfn.PERCENTILE.INC(IF((MONTH(Data!$B$9:$B$4391)=CA$2)*(ISNUMBER(Data!$U$9:$U$4391)),Data!$U$9:$U$4391),1-'Monthly Exceedance'!$A5) -> 1980.691833 | CB5: =_xlfn.PERCENTILE.INC(IF((MONTH(Data!$B$9:$B$4391)=CB$2)*(ISNUMBER(Data!$U$9:$U$4391)),Data!$U$9:$U$4391),1-'Monthly Exceedance'!$A5) -> 2124.080214 | CC5: =_xlfn.PERCENTILE.INC(IF((MONTH(Data!$B$9:$B$4391)=CC$2)*(ISNUMBER(Data!$U$9:$U$4391)),Data!$U$9:$U$4391),1-'Monthly Exceedance'!$A5) -> 1894.4115 | CD5: =_xlfn.PERCENTILE.INC(IF((MONTH(Data!$B$9:$B$4391)=CD$2)*(ISNUMBER(Data!$U$9:$U$4391)),Data!$U$9:$U$4391),1-'Monthly Exceedance'!$A5) -> 1984.694921 | CE5: =_xlfn.PERCENTILE.INC(IF((MONTH(Data!$B$9:$B$4391)=CE$2)*(ISNUMBER(Data!$U$9:$U$4391)),Data!$U$9:$U$4391),1-'Monthly Exceedance'!$A5) -> 1823.309866 | CG5: 0.01 | CH5: =_xlfn.PERCENTILE.INC(IF((MONTH(Data!$B$9:$B$4391)=CH$2)*(ISNUMBER(Data!$U$9:$U$4391)),Data!$N$9:$N$4391),1-'Monthly Exceedance'!$A5) -> 1810 | CI5: =_xlfn.PERCENTILE.INC(IF((MONTH(Data!$B$9:$B$4391)=CI$2)*(ISNUMBER(Data!$U$9:$U$4391)),Data!$N$9:$N$4391),1-'Monthly Exceedance'!$A5) -> 1790 | CJ5: =_xlfn.PERCENTILE.INC(IF((MONTH(Data!$B$9:$B$4391)=CJ$2)*(ISNUMBER(Data!$U$9:$U$4391)),Data!$N$9:$N$4391),1-'Monthly Exceedance'!$A5) -> 1952.9 | CK5: =_xlfn.PERCENTILE.INC(IF((MONTH(Data!$B$9:$B$4391)=CK$2)*(ISNUMBER(Data!$U$9:$U$4391)),Data!$N$9:$N$4391),1-'Monthly Exceedance'!$A5) -> 2018.2 | CL5: =_xlfn.PERCENTILE.INC(IF((MONTH(Data!$B$9:$B$4391)=CL$2)*(ISNUMBER(Data!$U$9:$U$4391)),Data!$N$9:$N$4391),1-'Monthly Exceedance'!$A5) -> 1951.6 | CM5: =_xlfn.PERCENTILE.INC(IF((MONTH(Data!$B$9:$B$4391)=CM$2)*(ISNUMBER(Data!$U$9:$U$4391)),Data!$N$9:$N$4391),1-'Monthly Exceedance'!$A5) -> 1962.3 | CN5: =_xlfn.PERCENTILE.INC(IF((MONTH(Data!$B$9:$B$4391)=CN$2)*(ISNUMBER(Data!$U$9:$U$4391)),Data!$N$9:$N$4391),1-'Monthly Exceedance'!$A5) -> 2020 | CO5: =_xlfn.PERCENTILE.INC(IF((MONTH(Data!$B$9:$B$4391)=CO$2)*(ISNUMBER(Data!$U$9:$U$4391)),Data!$N$9:$N$4391),1-'Monthly Exceedance'!$A5) -> 1962.9 | CP5: =_xlfn.PERCENTILE.INC(IF((MONTH(Data!$B$9:$B$4391)=CP$2)*(ISNUMBER(Data!$U$9:$U$4391)),Data!$N$9:$N$4391),1-'Monthly Exceedance'!$A5) -> 2104.1 | CQ5: =_xlfn.PERCENTILE.INC(IF((MONTH(Data!$B$9:$B$4391)=CQ$2)*(ISNUMBER(Data!$U$9:$U$4391)),Data!$N$9:$N$4391),1-'Monthly Exceedance'!$A5) -> 1882.9 | CR5: =_xlfn.PERCENTILE.INC(IF((MONTH(Data!$B$9:$B$4391)=CR$2)*(ISNUMBER(Data!$U$9:$U$4391)),Data!$N$9:$N$4391),1-'Monthly Exceedance'!$A5) -> 1902.3 | CS5: =_xlfn.PERCENTILE.INC(IF((MONTH(Data!$B$9:$B$4391)=CS$2)*(ISNUMBER(Data!$U$9:$U$4391)),Data!$N$9:$N$4391),1-'Monthly Exceedance'!$A5) -> 1782.9
A6: 0.02 | B6: =_xlfn.PERCENTILE.INC(IF((MONTH(Data!$B$9:$B$4391)=B$2)*(ISNUMBER(Data!$I$9:$I$4391)),Data!$I$9:$I$4391),1-'Monthly Exceedance'!$A6) -> 282.0914983 | C6: =_xlfn.PERCENTILE.INC(IF((MONTH(Data!$B$9:$B$4391)=C$2)*(ISNUMBER(Data!$I$9:$I$4391)),Data!$I$9:$I$4391),1-'Monthly Exceedance'!$A6) -> 205.6330016 | D6: =_xlfn.PERCENTILE.INC(IF((MONTH(Data!$B$9:$B$4391)=D$2)*(ISNUMBER(Data!$I$9:$I$4391)),Data!$I$9:$I$4391),1-'Monthly Exceedance'!$A6) -> 187.6149933 | E6: =_xlfn.PERCENTILE.INC(IF((MONTH(Data!$B$9:$B$4391)=E$2)*(ISNUMBER(Data!$I$9:$I$4391)),Data!$I$9:$I$4391),1-'Monthly Exceedance'!$A6) -> 149.6469996 | F6: =_xlfn.PERCENTILE.INC(IF((MONTH(Data!$B$9:$B$4391)=F$2)*(ISNUMBER(Data!$I$9:$I$4391)),Data!$I$9:$I$4391),1-'Monthly Exceedance'!$A6) -> 37.76741733 | G6: =_xlfn.PERCENTILE.INC(IF((MONTH(Data!$B$9:$B$4391)=G$2)*(ISNUMBER(Data!$I$9:$I$4391)),Data!$I$9:$I$4391),1-'Monthly Exceedance'!$A6) -> 21.97398335 | H6: =_xlfn.PERCENTILE.INC(IF((MONTH(Data!$B$9:$B$4391)=H$2)*(ISNUMBER(Data!$I$9:$I$4391)),Data!$I$9:$I$4391),1-'Monthly Exceedance'!$A6) -> 6.37825013 | I6: =_xlfn.PERCENTILE.INC(IF((MONTH(Data!$B$9:$B$4391)=I$2)*(ISNUMBER(Data!$I$9:$I$4391)),Data!$I$9:$I$4391),1-'Monthly Exceedance'!$A6) -> 2.537500058 | J6: =_xlfn.PERCENTILE.INC(IF((MONTH(Data!$B$9:$B$4391)=J$2)*(ISNUMBER(Data!$I$9:$I$4391)),Data!$I$9:$I$4391),1-'Monthly Exceedance'!$A6) -> 0.9015499195 | K6: =_xlfn.PERCENTILE.INC(IF((MONTH(Data!$B$9:$B$4391)=K$2)*(ISNUMBER(Data!$I$9:$I$4391)),Data!$I$9:$I$4391),1-'Monthly Exceedance'!$A6) -> 2.703900065 | L6: =_xlfn.PERCENTILE.INC(IF((MONTH(Data!$B$9:$B$4391)=L$2)*(ISNUMBER(Data!$I$9:$I$4391)),Data!$I$9:$I$4391),1-'Monthly Exceedance'!$A6) -> 6.602250026 | M6: =_xlfn.PERCENTILE.INC(IF((MONTH(Data!$B$9:$B$4391)=M$2)*(ISNUMBER(Data!$I$9:$I$4391)),Data!$I$9:$I$4391),1-'Monthly Exceedance'!$A6) -> 517.9258243 | O6: 0.02 | P6: =_xlfn.PERCENTILE.INC(IF((MONTH(Data!$B$9:$B$4391)=P$2)*(ISNUMBER(Data!$S$9:$S$4391)),Data!$S$9:$S$4391),1-'Monthly Exceedance'!$A6) -> 188.1109571 | Q6: =_xlfn.PERCENTILE.INC(IF((MONTH(Data!$B$9:$B$4391)=Q$2)*(ISNUMBER(Data!$S$9:$S$4391)),Data!$S$9:$S$4391),1-'Monthly Exceedance'!$A6) -> 121.1823509 | R6: =_xlfn.PERCENTILE.INC(IF((MONTH(Data!$B$9:$B$4391)=R$2)*(ISNUMBER(Data!$S$9:$S$4391)),Data!$S$9:$S$4391),1-'Monthly Exceedance'!$A6) -> 140.8049038 | S6: =_xlfn.PERCENTILE.INC(IF((MONTH(Data!$B$9:$B$4391)=S$2)*(ISNUMBER(Data!$S$9:$S$4391)),Data!$S$9:$S$4391),1-'Monthly Exceedance'!$A6) -> 106.1000101 | T6: =_xlfn.PERCENTILE.INC(IF((MONTH(Data!$B$9:$B$4391)=T$2)*(ISNUMBER(Data!$S$9:$S$4391)),Data!$S$9:$S$4391),1-'Monthly Exceedance'!$A6) -> 44.296197 | U6: =_xlfn.PERCENTILE.INC(IF((MONTH(Data!$B$9:$B$4391)=U$2)*(ISNUMBER(Data!$S$9:$S$4391)),Data!$S$9:$S$4391),1-'Monthly Exceedance'!$A6) -> 61.01666666 | V6: =_xlfn.PERCENTILE.INC(IF((MONTH(Data!$B$9:$B$4391)=V$2)*(ISNUMBER(Data!$S$9:$S$4391)),Data!$S$9:$S$4391),1-'Monthly Exceedance'!$A6) -> 58.35014113 | W6: =_xlfn.PERCENTILE.INC(IF((MONTH(Data!$B$9:$B$4391)=W$2)*(ISNUMBER(Data!$S$9:$S$4391)),Data!$S$9:$S$4391),1-'Monthly Exceedance'!$A6) -> 32.60474119 | X6: =_xlfn.PERCENTILE.INC(IF((MONTH(Data!$B$9:$B$4391)=X$2)*(ISNUMBER(Data!$S$9:$S$4391)),Data!$S$9:$S$4391),1-'Monthly Exceedance'!$A6) -> 100 | Y6: =_xlfn.PERCENTILE.INC(IF((MONTH(Data!$B$9:$B$4391)=Y$2)*(ISNUMBER(Data!$S$9:$S$4391)),Data!$S$9:$S$4391),1-'Monthly Exceedance'!$A6) -> 101 | Z6: =_xlfn.PERCENTILE.INC(IF((MONTH(Data!$B$9:$B$4391)=Z$2)*(ISNUMBER(Data!$S$9:$S$4391)),Data!$S$9:$S$4391),1-'Monthly Exceedance'!$A6) -> 209 | AA6: =_xlfn.PERCENTILE.INC(IF((MONTH(Data!$B$9:$B$4391)=AA$2)*(ISNUMBER(Data!$S$9:$S$4391)),Data!$S$9:$S$4391),1-'Monthly Exceedance'!$A6) -> 256.5400004 | AC6: 0.02 | AD6: =_xlfn.PERCENTILE.INC(IF((MONTH(Data!$B$9:$B$4391)=AD$2)*(ISNUMBER(Data!$O$9:$O$4391)),Data!$O$9:$O$4391),1-'Monthly Exceedance'!$A6) -> 1840 | AE6: =_xlfn.PERCENTILE.INC(IF((MONTH(Data!$B$9:$B$4391)=AE$2)*(ISNUMBER(Data!$O$9:$O$4391)),Data!$O$9:$O$4391),1-'Monthly Exceedance'!$A6) -> 1958.478 | AF6: =_xlfn.PERCENTILE.INC(IF((MONTH(Data!$B$9:$B$4391)=AF$2)*(ISNUMBER(Data!$O$9:$O$4391)),Data!$O$9:$O$4391),1-'Monthly Exceedance'!$A6) -> 1885.75725 | AG6: =_xlfn.PERCENTILE.INC(IF((MONTH(Data!$B$9:$B$4391)=AG$2)*(ISNUMBER(Data!$O$9:$O$4391)),Data!$O$9:$O$4391),1-'Monthly Exceedance'!$A6) -> 2009.444083 | AH6: =_xlfn.PERCENTILE.INC(IF((MONTH(Data!$B$9:$B$4391)=AH$2)*(ISNUMBER(Data!$O$9:$O$4391)),Data!$O$9:$O$4391),1-'Monthly Exceedance'!$A6) -> 2028.712 | AI6: =_xlfn.PERCENTILE.INC(IF((MONTH(Data!$B$9:$B$4391)=AI$2)*(ISNUMBER(Data!$O$9:$O$4391)),Data!$O$9:$O$4391),1-'Monthly Exceedance'!$A6) -> 1952.984 | AJ6: =_xlfn.PERCENTILE.INC(IF((MONTH(Data!$B$9:$B$4391)=AJ$2)*(ISNUMBER(Data!$O$9:$O$4391)),Data!$O$9:$O$4391),1-'Monthly Exceedance'!$A6) -> 2073.86425 | AK6: =_xlfn.PERCENTILE.INC(IF((MONTH(Data!$B$9:$B$4391)=AK$2)*(ISNUMBER(Data!$O$9:$O$4391)),Data!$O$9:$O$4391),1-'Monthly Exceedance'!$A6) -> 2078.56 | AL6: =_xlfn.PERCENTILE.INC(IF((MONTH(Data!$B$9:$B$4391)=AL$2)*(ISNUMBER(Data!$O$9:$O$4391)),Data!$O$9:$O$4391),1-'Monthly Exceedance'!$A6) -> 2008.56 | AM6: =_xlfn.PERCENTILE.INC(IF((MONTH(Data!$B$9:$B$4391)=AM$2)*(ISNUMBER(Data!$O$9:$O$4391)),Data!$O$9:$O$4391),1-'Monthly Exceedance'!$A6) -> 1942.958 | AN6: =_xlfn.PERCENTILE.INC(IF((MONTH(Data!$B$9:$B$4391)=AN$2)*(ISNUMBER(Data!$O$9:$O$4391)),Data!$O$9:$O$4391),1-'Monthly Exceedance'!$A6) -> 2030.582 | AO6: =_xlfn.PERCENTILE.INC(IF((MONTH(Data!$B$9:$B$4391)=AO$2)*(ISNUMBER(Data!$O$9:$O$4391)),Data!$O$9:$O$4391),1-'Monthly Exceedance'!$A6) -> 2071.174 | AQ6: 0.02 | AR6: =_xlfn.PERCENTILE.INC(IF((MONTH(Data!$B$9:$B$4391)=AR$2)*(ISNUMBER(Data!$T$9:$T$4391)),Data!$T$9:$T$4391),1-'Monthly Exceedance'!$A6) -> 1881.355834 | AS6: =_xlfn.PERCENTILE.INC(IF((MONTH(Data!$B$9:$B$4391)=AS$2)*(ISNUMBER(Data!$T$9:$T$4391)),Data!$T$9:$T$4391),1-'Monthly Exceedance'!$A6) -> 2030.85345 | AT6: =_xlfn.PERCENTILE.INC(IF((MONTH(Data!$B$9:$B$4391)=AT$2)*(ISNUMBER(Data!$T$9:$T$4391)),Data!$T$9:$T$4391),1-'Monthly Exceedance'!$A6) -> 1902.193576 | AU6: =_xlfn.PERCENTILE.INC(IF((MONTH(Data!$B$9:$B$4391)=AU$2)*(ISNUMBER(Data!$T$9:$T$4391)),Data!$T$9:$T$4391),1-'Monthly Exceedance'!$A6) -> 2030.422 | AV6: =_xlfn.PERCENTILE.INC(IF((MONTH(Data!$B$9:$B$4391)=AV$2)*(ISNUMBER(Data!$T$9:$T$4391)),Data!$T$9:$T$4391),1-'Monthly Exceedance'!$A6) -> 2049.664 | AW6: =_xlfn.PERCENTILE.INC(IF((MONTH(Data!$B$9:$B$4391)=AW$2)*(ISNUMBER(Data!$T$9:$T$4391)),Data!$T$9:$T$4391),1-'Monthly Exceedance'!$A6) -> 1960.67825 | AX6: =_xlfn.PERCENTILE.INC(IF((MONTH(Data!$B$9:$B$4391)=AX$2)*(ISNUMBER(Data!$T$9:$T$4391)),Data!$T$9:$T$4391),1-'Monthly Exceedance'!$A6) -> 2076.269276 | AY6: =_xlfn.PERCENTILE.INC(IF((MONTH(Data!$B$9:$B$4391)=AY$2)*(ISNUMBER(Data!$T$9:$T$4391)),Data!$T$9:$T$4391),1-'Monthly Exceedance'!$A6) -> 2081.349192 | AZ6: =_xlfn.PERCENTILE.INC(IF((MONTH(Data!$B$9:$B$4391)=AZ$2)*(ISNUMBER(Data!$T$9:$T$4391)),Data!$T$9:$T$4391),1-'Monthly Exceedance'!$A6) -> 2009.149435 | BA6: =_xlfn.PERCENTILE.INC(IF((MONTH(Data!$B$9:$B$4391)=BA$2)*(ISNUMBER(Data!$T$9:$T$4391)),Data!$T$9:$T$4391),1-'Monthly Exceedance'!$A6) -> 1943.673395 | BB6: =_xlfn.PERCENTILE.INC(IF((MONTH(Data!$B$9:$B$4391)=BB$2)*(ISNUMBER(Data!$T$9:$T$4391)),Data!$T$9:$T$4391),1-'Monthly Exceedance'!$A6) -> 2033.773833 | BC6: =_xlfn.PERCENTILE.INC(IF((MONTH(Data!$B$9:$B$4391)=BC$2)*(ISNUMBER(Data!$T$9:$T$4391)),Data!$T$9:$T$4391),1-'Monthly Exceedance'!$A6) -> 2408.190674 | BE6: 0.02 | BF6: =_xlfn.PERCENTILE.INC(IF((MONTH(Data!$B$9:$B$4391)=BF$2)*(ISNUMBER(Data!$R$9:$R$4391)),Data!$R$9:$R$4391),1-'Monthly Exceedance'!$A6) -> 1777.020083 | BG6: =_xlfn.PERCENTILE.INC(IF((MONTH(Data!$B$9:$B$4391)=BG$2)*(ISNUMBER(Data!$R$9:$R$4391)),Data!$R$9:$R$4391),1-'Monthly Exceedance'!$A6) -> 1753.136756 | BH6: =_xlfn.PERCENTILE.INC(IF((MONTH(Data!$B$9:$B$4391)=BH$2)*(ISNUMBER(Data!$R$9:$R$4391)),Data!$R$9:$R$4391),1-'Monthly Exceedance'!$A6) -> 1895.80373 | BI6: =_xlfn.PERCENTILE.INC(IF((MONTH(Data!$B$9:$B$4391)=BI$2)*(ISNUMBER(Data!$R$9:$R$4391)),Data!$R$9:$R$4391),1-'Monthly Exceedance'!$A6) -> 1990 | BJ6: =_xlfn.PERCENTILE.INC(IF((MONTH(Data!$B$9:$B$4391)=BJ$2)*(ISNUMBER(Data!$R$9:$R$4391)),Data!$R$9:$R$4391),1-'Monthly Exceedance'!$A6) -> 1900 | BK6: =_xlfn.PERCENTILE.INC(IF((MONTH(Data!$B$9:$B$4391)=BK$2)*(ISNUMBER(Data!$R$9:$R$4391)),Data!$R$9:$R$4391),1-'Monthly Exceedance'!$A6) -> 1930.60796 | BL6: =_xlfn.PERCENTILE.INC(IF((MONTH(Data!$B$9:$B$4391)=BL$2)*(ISNUMBER(Data!$R$9:$R$4391)),Data!$R$9:$R$4391),1-'Monthly Exceedance'!$A6) -> 1992.330644 | BM6: =_xlfn.PERCENTILE.INC(IF((MONTH(Data!$B$9:$B$4391)=BM$2)*(ISNUMBER(Data!$R$9:$R$4391)),Data!$R$9:$R$4391),1-'Monthly Exceedance'!$A6) -> 1951.760449 | BN6: =_xlfn.PERCENTILE.INC(IF((MONTH(Data!$B$9:$B$4391)=BN$2)*(ISNUMBER(Data!$R$9:$R$4391)),Data!$R$9:$R$4391),1-'Monthly Exceedance'!$A6) -> 2082.75275 | BO6: =_xlfn.PERCENTILE.INC(IF((MONTH(Data!$B$9:$B$4391)=BO$2)*(ISNUMBER(Data!$R$9:$R$4391)),Data!$R$9:$R$4391),1-'Monthly Exceedance'!$A6) -> 1873.32425 | BP6: =_xlfn.PERCENTILE.INC(IF((MONTH(Data!$B$9:$B$4391)=BP$2)*(ISNUMBER(Data!$R$9:$R$4391)),Data!$R$9:$R$4391),1-'Monthly Exceedance'!$A6) -> 1878.931506 | BQ6: =_xlfn.PERCENTILE.INC(IF((MONTH(Data!$B$9:$B$4391)=BQ$2)*(ISNUMBER(Data!$R$9:$R$4391)),Data!$R$9:$R$4391),1-'Monthly Exceedance'!$A6) -> 1760.796583 | BS6: 0.02 | BT6: =_xlfn.PERCENTILE.INC(IF((MONTH(Data!$B$9:$B$4391)=BT$2)*(ISNUMBER(Data!$U$9:$U$4391)),Data!$U$9:$U$4391),1-'Monthly Exceedance'!$A6) -> 1812.40075 | BU6: =_xlfn.PERCENTILE.INC(IF((MONTH(Data!$B$9:$B$4391)=BU$2)*(ISNUMBER(Data!$U$9:$U$4391)),Data!$U$9:$U$4391),1-'Monthly Exceedance'!$A6) -> 1780.2445 | BV6: =_xlfn.PERCENTILE.INC(IF((MONTH(Data!$B$9:$B$4391)=BV$2)*(ISNUMBER(Data!$U$9:$U$4391)),Data!$U$9:$U$4391),1-'Monthly Exceedance'!$A6) -> 1912.942687 | BW6: =_xlfn.PERCENTILE.INC(IF((MONTH(Data!$B$9:$B$4391)=BW$2)*(ISNUMBER(Data!$U$9:$U$4391)),Data!$U$9:$U$4391),1-'Monthly Exceedance'!$A6) -> 2025.530083 | BX6: =_xlfn.PERCENTILE.INC(IF((MONTH(Data!$B$9:$B$4391)=BX$2)*(ISNUMBER(Data!$U$9:$U$4391)),Data!$U$9:$U$4391),1-'Monthly Exceedance'!$A6) -> 1929.414838 | BY6: =_xlfn.PERCENTILE.INC(IF((MONTH(Data!$B$9:$B$4391)=BY$2)*(ISNUMBER(Data!$U$9:$U$4391)),Data!$U$9:$U$4391),1-'Monthly Exceedance'!$A6) -> 1947.620834 | BZ6: =_xlfn.PERCENTILE.INC(IF((MONTH(Data!$B$9:$B$4391)=BZ$2)*(ISNUMBER(Data!$U$9:$U$4391)),Data!$U$9:$U$4391),1-'Monthly Exceedance'!$A6) -> 1994.002917 | CA6: =_xlfn.PERCENTILE.INC(IF((MONTH(Data!$B$9:$B$4391)=CA$2)*(ISNUMBER(Data!$U$9:$U$4391)),Data!$U$9:$U$4391),1-'Monthly Exceedance'!$A6) -> 1961.584167 | CB6: =_xlfn.PERCENTILE.INC(IF((MONTH(Data!$B$9:$B$4391)=CB$2)*(ISNUMBER(Data!$U$9:$U$4391)),Data!$U$9:$U$4391),1-'Monthly Exceedance'!$A6) -> 2098.184751 | CC6: =_xlfn.PERCENTILE.INC(IF((MONTH(Data!$B$9:$B$4391)=CC$2)*(ISNUMBER(Data!$U$9:$U$4391)),Data!$U$9:$U$4391),1-'Monthly Exceedance'!$A6) -> 1878.949084 | CD6: =_xlfn.PERCENTILE.INC(IF((MONTH(Data!$B$9:$B$4391)=CD$2)*(ISNUMBER(Data!$U$9:$U$4391)),Data!$U$9:$U$4391),1-'Monthly Exceedance'!$A6) -> 1927.176417 | CE6: =_xlfn.PERCENTILE.INC(IF((MONTH(Data!$B$9:$B$4391)=CE$2)*(ISNUMBER(Data!$U$9:$U$4391)),Data!$U$9:$U$4391),1-'Monthly Exceedance'!$A6) -> 1762.2665 | CG6: 0.02 | CH6: =_xlfn.PERCENTILE.INC(IF((MONTH(Data!$B$9:$B$4391)=CH$2)*(ISNUMBER(Data!$U$9:$U$4391)),Data!$N$9:$N$4391),1-'Monthly Exceedance'!$A6) -> 1775.8 | CI6: =_xlfn.PERCENTILE.INC(IF((MONTH(Data!$B$9:$B$4391)=CI$2)*(ISNUMBER(Data!$U$9:$U$4391)),Data!$N$9:$N$4391),1-'Monthly Exceedance'!$A6) -> 1752.4 | CJ6: =_xlfn.PERCENTILE.INC(IF((MONTH(Data!$B$9:$B$4391)=CJ$2)*(ISNUMBER(Data!$U$9:$U$4391)),Data!$N$9:$N$4391),1-'Monthly Exceedance'!$A6) -> 1895.8 | CK6: =_xlfn.PERCENTILE.INC(IF((MONTH(Data!$B$9:$B$4391)=CK$2)*(ISNUMBER(Data!$U$9:$U$4391)),Data!$N$9:$N$4391),1-'Monthly Exceedance'!$A6) -> 1990 | CL6: =_xlfn.PERCENTILE.INC(IF((MONTH(Data!$B$9:$B$4391)=CL$2)*(ISNUMBER(Data!$U$9:$U$4391)),Data!$N$9:$N$4391),1-'Monthly Exceedance'!$A6) -> 1900 | CM6: =_xlfn.PERCENTILE.INC(IF((MONTH(Data!$B$9:$B$4391)=CM$2)*(ISNUMBER(Data!$U$9:$U$4391)),Data!$N$9:$N$4391),1-'Monthly Exceedance'!$A6) -> 1928.2 | CN6: =_xlfn.PERCENTILE.INC(IF((MONTH(Data!$B$9:$B$4391)=CN$2)*(ISNUMBER(Data!$U$9:$U$4391)),Data!$N$9:$N$4391),1-'Monthly Exceedance'!$A6) -> 1991.6 | CO6: =_xlfn.PERCENTILE.INC(IF((MONTH(Data!$B$9:$B$4391)=CO$2)*(ISNUMBER(Data!$U$9:$U$4391)),Data!$N$9:$N$4391),1-'Monthly Exceedance'!$A6) -> 1950 | CP6: =_xlfn.PERCENTILE.INC(IF((MONTH(Data!$B$9:$B$4391)=CP$2)*(ISNUMBER(Data!$U$9:$U$4391)),Data!$N$9:$N$4391),1-'Monthly Exceedance'!$A6) -> 2080 | CQ6: =_xlfn.PERCENTILE.INC(IF((MONTH(Data!$B$9:$B$4391)=CQ$2)*(ISNUMBER(Data!$U$9:$U$4391)),Data!$N$9:$N$4391),1-'Monthly Exceedance'!$A6) -> 1871.6 | CR6: =_xlfn.PERCENTILE.INC(IF((MONTH(Data!$B$9:$B$4391)=CR$2)*(ISNUMBER(Data!$U$9:$U$4391)),Data!$N$9:$N$4391),1-'Monthly Exceedance'!$A6) -> 1878.2 | CS6: =_xlfn.PERCENTILE.INC(IF((MONTH(Data!$B$9:$B$4391)=CS$2)*(ISNUMBER(Data!$U$9:$U$4391)),Data!$N$9:$N$4391),1-'Monthly Exceedance'!$A6) -> 1760
A7: 0.03 | B7: =_xlfn.PERCENTILE.INC(IF((MONTH(Data!$B$9:$B$4391)=B$2)*(ISNUMBER(Data!$I$9:$I$4391)),Data!$I$9:$I$4391),1-'Monthly Exceedance'!$A7) -> 193.579 | C7: =_xlfn.PERCENTILE.INC(IF((MONTH(Data!$B$9:$B$4391)=C$2)*(ISNUMBER(Data!$I$9:$I$4391)),Data!$I$9:$I$4391),1-'Monthly Exceedance'!$A7) -> 164.7669936 | D7: =_xlfn.PERCENTILE.INC(IF((MONTH(Data!$B$9:$B$4391)=D$2)*(ISNUMBER(Data!$I$9:$I$4391)),Data!$I$9:$I$4391),1-'Monthly Exceedance'!$A7) -> 164.7250112 | E7: =_xlfn.PERCENTILE.INC(IF((MONTH(Data!$B$9:$B$4391)=E$2)*(ISNUMBER(Data!$I$9:$I$4391)),Data!$I$9:$I$4391),1-'Monthly Exceedance'!$A7) -> 115.5635456 | F7: =_xlfn.PERCENTILE.INC(IF((MONTH(Data!$B$9:$B$4391)=F$2)*(ISNUMBER(Data!$I$9:$I$4391)),Data!$I$9:$I$4391),1-'Monthly Exceedance'!$A7) -> 34.17399946 | G7: =_xlfn.PERCENTILE.INC(IF((MONTH(Data!$B$9:$B$4391)=G$2)*(ISNUMBER(Data!$I$9:$I$4391)),Data!$I$9:$I$4391),1-'Monthly Exceedance'!$A7) -> 19.93920021 | H7: =_xlfn.PERCENTILE.INC(IF((MONTH(Data!$B$9:$B$4391)=H$2)*(ISNUMBER(Data!$I$9:$I$4391)),Data!$I$9:$I$4391),1-'Monthly Exceedance'!$A7) -> 5.495766832 | I7: =_xlfn.PERCENTILE.INC(IF((MONTH(Data!$B$9:$B$4391)=I$2)*(ISNUMBER(Data!$I$9:$I$4391)),Data!$I$9:$I$4391),1-'Monthly Exceedance'!$A7) -> 2.276979132 | J7: =_xlfn.PERCENTILE.INC(IF((MONTH(Data!$B$9:$B$4391)=J$2)*(ISNUMBER(Data!$I$9:$I$4391)),Data!$I$9:$I$4391),1-'Monthly Exceedance'!$A7) -> 0.8160000578 | K7: =_xlfn.PERCENTILE.INC(IF((MONTH(Data!$B$9:$B$4391)=K$2)*(ISNUMBER(Data!$I$9:$I$4391)),Data!$I$9:$I$4391),1-'Monthly Exceedance'!$A7) -> 2.514900106 | L7: =_xlfn.PERCENTILE.INC(IF((MONTH(Data!$B$9:$B$4391)=L$2)*(ISNUMBER(Data!$I$9:$I$4391)),Data!$I$9:$I$4391),1-'Monthly Exceedance'!$A7) -> 4.864354654 | M7: =_xlfn.PERCENTILE.INC(IF((MONTH(Data!$B$9:$B$4391)=M$2)*(ISNUMBER(Data!$I$9:$I$4391)),Data!$I$9:$I$4391),1-'Monthly Exceedance'!$A7) -> 419.3886836 | O7: 0.03 | P7: =_xlfn.PERCENTILE.INC(IF((MONTH(Data!$B$9:$B$4391)=P$2)*(ISNUMBER(Data!$S$9:$S$4391)),Data!$S$9:$S$4391),1-'Monthly Exceedance'!$A7) -> 157.2743719 | Q7: =_xlfn.PERCENTILE.INC(IF((MONTH(Data!$B$9:$B$4391)=Q$2)*(ISNUMBER(Data!$S$9:$S$4391)),Data!$S$9:$S$4391),1-'Monthly Exceedance'!$A7) -> 107.8260077 | R7: =_xlfn.PERCENTILE.INC(IF((MONTH(Data!$B$9:$B$4391)=R$2)*(ISNUMBER(Data!$S$9:$S$4391)),Data!$S$9:$S$4391),1-'Monthly Exceedance'!$A7) -> 140.0083261 | S7: =_xlfn.PERCENTILE.INC(IF((MONTH(Data!$B$9:$B$4391)=S$2)*(ISNUMBER(Data!$S$9:$S$4391)),Data!$S$9:$S$4391),1-'Monthly Exceedance'!$A7) -> 102.00001 | T7: =_xlfn.PERCENTILE.INC(IF((MONTH(Data!$B$9:$B$4391)=T$2)*(ISNUMBER(Data!$S$9:$S$4391)),Data!$S$9:$S$4391),1-'Monthly Exceedance'!$A7) -> 44.00480385 | U7: =_xlfn.PERCENTILE.INC(IF((MONTH(Data!$B$9:$B$4391)=U$2)*(ISNUMBER(Data!$S$9:$S$4391)),Data!$S$9:$S$4391),1-'Monthly Exceedance'!$A7) -> 60.63487495 | V7: =_xlfn.PERCENTILE.INC(IF((MONTH(Data!$B$9:$B$4391)=V$2)*(ISNUMBER(Data!$S$9:$S$4391)),Data!$S$9:$S$4391),1-'Monthly Exceedance'!$A7) -> 49.33605836 | W7: =_xlfn.PERCENTILE.INC(IF((MONTH(Data!$B$9:$B$4391)=W$2)*(ISNUMBER(Data!$S$9:$S$4391)),Data!$S$9:$S$4391),1-'Monthly Exceedance'!$A7) -> 32.15035209 | X7: =_xlfn.PERCENTILE.INC(IF((MONTH(Data!$B$9:$B$4391)=X$2)*(ISNUMBER(Data!$S$9:$S$4391)),Data!$S$9:$S$4391),1-'Monthly Exceedance'!$A7) -> 31.13 | Y7: =_xlfn.PERCENTILE.INC(IF((MONTH(Data!$B$9:$B$4391)=Y$2)*(ISNUMBER(Data!$S$9:$S$4391)),Data!$S$9:$S$4391),1-'Monthly Exceedance'!$A7) -> 100 | Z7: =_xlfn.PERCENTILE.INC(IF((MONTH(Data!$B$9:$B$4391)=Z$2)*(ISNUMBER(Data!$S$9:$S$4391)),Data!$S$9:$S$4391),1-'Monthly Exceedance'!$A7) -> 209 | AA7: =_xlfn.PERCENTILE.INC(IF((MONTH(Data!$B$9:$B$4391)=AA$2)*(ISNUMBER(Data!$S$9:$S$4391)),Data!$S$9:$S$4391),1-'Monthly Exceedance'!$A7) -> 208.87 | AC7: 0.03 | AD7: =_xlfn.PERCENTILE.INC(IF((MONTH(Data!$B$9:$B$4391)=AD$2)*(ISNUMBER(Data!$O$9:$O$4391)),Data!$O$9:$O$4391),1-'Monthly Exceedance'!$A7) -> 1810.957 | AE7: =_xlfn.PERCENTILE.INC(IF((MONTH(Data!$B$9:$B$4391)=AE$2)*(ISNUMBER(Data!$O$9:$O$4391)),Data!$O$9:$O$4391),1-'Monthly Exceedance'!$A7) -> 1940.86 | AF7: =_xlfn.PERCENTILE.INC(IF((MONTH(Data!$B$9:$B$4391)=AF$2)*(ISNUMBER(Data!$O$9:$O$4391)),Data!$O$9:$O$4391),1-'Monthly Exceedance'!$A7) -> 1846.382875 | AG7: =_xlfn.PERCENTILE.INC(IF((MONTH(Data!$B$9:$B$4391)=AG$2)*(ISNUMBER(Data!$O$9:$O$4391)),Data!$O$9:$O$4391),1-'Monthly Exceedance'!$A7) -> 1991.996875 | AH7: =_xlfn.PERCENTILE.INC(IF((MONTH(Data!$B$9:$B$4391)=AH$2)*(ISNUMBER(Data!$O$9:$O$4391)),Data!$O$9:$O$4391),1-'Monthly Exceedance'!$A7) -> 2021.094333 | AI7: =_xlfn.PERCENTILE.INC(IF((MONTH(Data!$B$9:$B$4391)=AI$2)*(ISNUMBER(Data!$O$9:$O$4391)),Data!$O$9:$O$4391),1-'Monthly Exceedance'!$A7) -> 1945.800292 | AJ7: =_xlfn.PERCENTILE.INC(IF((MONTH(Data!$B$9:$B$4391)=AJ$2)*(ISNUMBER(Data!$O$9:$O$4391)),Data!$O$9:$O$4391),1-'Monthly Exceedance'!$A7) -> 2041.74 | AK7: =_xlfn.PERCENTILE.INC(IF((MONTH(Data!$B$9:$B$4391)=AK$2)*(ISNUMBER(Data!$O$9:$O$4391)),Data!$O$9:$O$4391),1-'Monthly Exceedance'!$A7) -> 2031.914 | AL7: =_xlfn.PERCENTILE.INC(IF((MONTH(Data!$B$9:$B$4391)=AL$2)*(ISNUMBER(Data!$O$9:$O$4391)),Data!$O$9:$O$4391),1-'Monthly Exceedance'!$A7) -> 1972.3 | AM7: =_xlfn.PERCENTILE.INC(IF((MONTH(Data!$B$9:$B$4391)=AM$2)*(ISNUMBER(Data!$O$9:$O$4391)),Data!$O$9:$O$4391),1-'Monthly Exceedance'!$A7) -> 1928.7 | AN7: =_xlfn.PERCENTILE.INC(IF((MONTH(Data!$B$9:$B$4391)=AN$2)*(ISNUMBER(Data!$O$9:$O$4391)),Data!$O$9:$O$4391),1-'Monthly Exceedance'!$A7) -> 1992.3 | AO7: =_xlfn.PERCENTILE.INC(IF((MONTH(Data!$B$9:$B$4391)=AO$2)*(ISNUMBER(Data!$O$9:$O$4391)),Data!$O$9:$O$4391),1-'Monthly Exceedance'!$A7) -> 2038.7 | AQ7: 0.03 | AR7: =_xlfn.PERCENTILE.INC(IF((MONTH(Data!$B$9:$B$4391)=AR$2)*(ISNUMBER(Data!$T$9:$T$4391)),Data!$T$9:$T$4391),1-'Monthly Exceedance'!$A7) -> 1848.126626 | AS7: =_xlfn.PERCENTILE.INC(IF((MONTH(Data!$B$9:$B$4391)=AS$2)*(ISNUMBER(Data!$T$9:$T$4391)),Data!$T$9:$T$4391),1-'Monthly Exceedance'!$A7) -> 1994.596668 | AT7: =_xlfn.PERCENTILE.INC(IF((MONTH(Data!$B$9:$B$4391)=AT$2)*(ISNUMBER(Data!$T$9:$T$4391)),Data!$T$9:$T$4391),1-'Monthly Exceedance'!$A7) -> 1874.517283 | AU7: =_xlfn.PERCENTILE.INC(IF((MONTH(Data!$B$9:$B$4391)=AU$2)*(ISNUMBER(Data!$T$9:$T$4391)),Data!$T$9:$T$4391),1-'Monthly Exceedance'!$A7) -> 2005.46027 | AV7: =_xlfn.PERCENTILE.INC(IF((MONTH(Data!$B$9:$B$4391)=AV$2)*(ISNUMBER(Data!$T$9:$T$4391)),Data!$T$9:$T$4391),1-'Monthly Exceedance'!$A7) -> 2033.986017 | AW7: =_xlfn.PERCENTILE.INC(IF((MONTH(Data!$B$9:$B$4391)=AW$2)*(ISNUMBER(Data!$T$9:$T$4391)),Data!$T$9:$T$4391),1-'Monthly Exceedance'!$A7) -> 1946.719552 | AX7: =_xlfn.PERCENTILE.INC(IF((MONTH(Data!$B$9:$B$4391)=AX$2)*(ISNUMBER(Data!$T$9:$T$4391)),Data!$T$9:$T$4391),1-'Monthly Exceedance'!$A7) -> 2047.34625 | AY7: =_xlfn.PERCENTILE.INC(IF((MONTH(Data!$B$9:$B$4391)=AY$2)*(ISNUMBER(Data!$T$9:$T$4391)),Data!$T$9:$T$4391),1-'Monthly Exceedance'!$A7) -> 2031.964831 | AZ7: =_xlfn.PERCENTILE.INC(IF((MONTH(Data!$B$9:$B$4391)=AZ$2)*(ISNUMBER(Data!$T$9:$T$4391)),Data!$T$9:$T$4391),1-'Monthly Exceedance'!$A7) -> 1972.68318 | BA7: =_xlfn.PERCENTILE.INC(IF((MONTH(Data!$B$9:$B$4391)=BA$2)*(ISNUMBER(Data!$T$9:$T$4391)),Data!$T$9:$T$4391),1-'Monthly Exceedance'!$A7) -> 1929.35076 | BB7: =_xlfn.PERCENTILE.INC(IF((MONTH(Data!$B$9:$B$4391)=BB$2)*(ISNUMBER(Data!$T$9:$T$4391)),Data!$T$9:$T$4391),1-'Monthly Exceedance'!$A7) -> 2001.462417 | BC7: =_xlfn.PERCENTILE.INC(IF((MONTH(Data!$B$9:$B$4391)=BC$2)*(ISNUMBER(Data!$T$9:$T$4391)),Data!$T$9:$T$4391),1-'Monthly Exceedance'!$A7) -> 2112.562608 | BE7: 0.03 | BF7: =_xlfn.PERCENTILE.INC(IF((MONTH(Data!$B$9:$B$4391)=BF$2)*(ISNUMBER(Data!$R$9:$R$4391)),Data!$R$9:$R$4391),1-'Monthly Exceedance'!$A7) -> 1768.896634 | BG7: =_xlfn.PERCENTILE.INC(IF((MONTH(Data!$B$9:$B$4391)=BG$2)*(ISNUMBER(Data!$R$9:$R$4391)),Data!$R$9:$R$4391),1-'Monthly Exceedance'!$A7) -> 1740.90024 | BH7: =_xlfn.PERCENTILE.INC(IF((MONTH(Data!$B$9:$B$4391)=BH$2)*(ISNUMBER(Data!$R$9:$R$4391)),Data!$R$9:$R$4391),1-'Monthly Exceedance'!$A7) -> 1790.901341 | BI7: =_xlfn.PERCENTILE.INC(IF((MONTH(Data!$B$9:$B$4391)=BI$2)*(ISNUMBER(Data!$R$9:$R$4391)),Data!$R$9:$R$4391),1-'Monthly Exceedance'!$A7) -> 1942.3 | BJ7: =_xlfn.PERCENTILE.INC(IF((MONTH(Data!$B$9:$B$4391)=BJ$2)*(ISNUMBER(Data!$R$9:$R$4391)),Data!$R$9:$R$4391),1-'Monthly Exceedance'!$A7) -> 1880 | BK7: =_xlfn.PERCENTILE.INC(IF((MONTH(Data!$B$9:$B$4391)=BK$2)*(ISNUMBER(Data!$R$9:$R$4391)),Data!$R$9:$R$4391),1-'Monthly Exceedance'!$A7) -> 1890.553831 | BL7: =_xlfn.PERCENTILE.INC(IF((MONTH(Data!$B$9:$B$4391)=BL$2)*(ISNUMBER(Data!$R$9:$R$4391)),Data!$R$9:$R$4391),1-'Monthly Exceedance'!$A7) -> 1970.645795 | BM7: =_xlfn.PERCENTILE.INC(IF((MONTH(Data!$B$9:$B$4391)=BM$2)*(ISNUMBER(Data!$R$9:$R$4391)),Data!$R$9:$R$4391),1-'Monthly Exceedance'!$A7) -> 1932.959458 | BN7: =_xlfn.PERCENTILE.INC(IF((MONTH(Data!$B$9:$B$4391)=BN$2)*(ISNUMBER(Data!$R$9:$R$4391)),Data!$R$9:$R$4391),1-'Monthly Exceedance'!$A7) -> 2046.390128 | BO7: =_xlfn.PERCENTILE.INC(IF((MONTH(Data!$B$9:$B$4391)=BO$2)*(ISNUMBER(Data!$R$9:$R$4391)),Data!$R$9:$R$4391),1-'Monthly Exceedance'!$A7) -> 1842.350022 | BP7: =_xlfn.PERCENTILE.INC(IF((MONTH(Data!$B$9:$B$4391)=BP$2)*(ISNUMBER(Data!$R$9:$R$4391)),Data!$R$9:$R$4391),1-'Monthly Exceedance'!$A7) -> 1852.731254 | BQ7: =_xlfn.PERCENTILE.INC(IF((MONTH(Data!$B$9:$B$4391)=BQ$2)*(ISNUMBER(Data!$R$9:$R$4391)),Data!$R$9:$R$4391),1-'Monthly Exceedance'!$A7) -> 1721.008333 | BS7: 0.03 | BT7: =_xlfn.PERCENTILE.INC(IF((MONTH(Data!$B$9:$B$4391)=BT$2)*(ISNUMBER(Data!$U$9:$U$4391)),Data!$U$9:$U$4391),1-'Monthly Exceedance'!$A7) -> 1771.025201 | BU7: =_xlfn.PERCENTILE.INC(IF((MONTH(Data!$B$9:$B$4391)=BU$2)*(ISNUMBER(Data!$U$9:$U$4391)),Data!$U$9:$U$4391),1-'Monthly Exceedance'!$A7) -> 1765.76625 | BV7: =_xlfn.PERCENTILE.INC(IF((MONTH(Data!$B$9:$B$4391)=BV$2)*(ISNUMBER(Data!$U$9:$U$4391)),Data!$U$9:$U$4391),1-'Monthly Exceedance'!$A7) -> 1863.310125 | BW7: =_xlfn.PERCENTILE.INC(IF((MONTH(Data!$B$9:$B$4391)=BW$2)*(ISNUMBER(Data!$U$9:$U$4391)),Data!$U$9:$U$4391),1-'Monthly Exceedance'!$A7) -> 2004.829417 | BX7: =_xlfn.PERCENTILE.INC(IF((MONTH(Data!$B$9:$B$4391)=BX$2)*(ISNUMBER(Data!$U$9:$U$4391)),Data!$U$9:$U$4391),1-'Monthly Exceedance'!$A7) -> 1904.07725 | BY7: =_xlfn.PERCENTILE.INC(IF((MONTH(Data!$B$9:$B$4391)=BY$2)*(ISNUMBER(Data!$U$9:$U$4391)),Data!$U$9:$U$4391),1-'Monthly Exceedance'!$A7) -> 1929.244416 | BZ7: =_xlfn.PERCENTILE.INC(IF((MONTH(Data!$B$9:$B$4391)=BZ$2)*(ISNUMBER(Data!$U$9:$U$4391)),Data!$U$9:$U$4391),1-'Monthly Exceedance'!$A7) -> 1971.381417 | CA7: =_xlfn.PERCENTILE.INC(IF((MONTH(Data!$B$9:$B$4391)=CA$2)*(ISNUMBER(Data!$U$9:$U$4391)),Data!$U$9:$U$4391),1-'Monthly Exceedance'!$A7) -> 1942.721542 | CB7: =_xlfn.PERCENTILE.INC(IF((MONTH(Data!$B$9:$B$4391)=CB$2)*(ISNUMBER(Data!$U$9:$U$4391)),Data!$U$9:$U$4391),1-'Monthly Exceedance'!$A7) -> 2058.896726 | CC7: =_xlfn.PERCENTILE.INC(IF((MONTH(Data!$B$9:$B$4391)=CC$2)*(ISNUMBER(Data!$U$9:$U$4391)),Data!$U$9:$U$4391),1-'Monthly Exceedance'!$A7) -> 1853.38748 | CD7: =_xlfn.PERCENTILE.INC(IF((MONTH(Data!$B$9:$B$4391)=CD$2)*(ISNUMBER(Data!$U$9:$U$4391)),Data!$U$9:$U$4391),1-'Monthly Exceedance'!$A7) -> 1891.24025 | CE7: =_xlfn.PERCENTILE.INC(IF((MONTH(Data!$B$9:$B$4391)=CE$2)*(ISNUMBER(Data!$U$9:$U$4391)),Data!$U$9:$U$4391),1-'Monthly Exceedance'!$A7) -> 1742.447876 | CG7: 0.03 | CH7: =_xlfn.PERCENTILE.INC(IF((MONTH(Data!$B$9:$B$4391)=CH$2)*(ISNUMBER(Data!$U$9:$U$4391)),Data!$N$9:$N$4391),1-'Monthly Exceedance'!$A7) -> 1768.7 | CI7: =_xlfn.PERCENTILE.INC(IF((MONTH(Data!$B$9:$B$4391)=CI$2)*(ISNUMBER(Data!$U$9:$U$4391)),Data!$N$9:$N$4391),1-'Monthly Exceedance'!$A7) -> 1740 | CJ7: =_xlfn.PERCENTILE.INC(IF((MONTH(Data!$B$9:$B$4391)=CJ$2)*(ISNUMBER(Data!$U$9:$U$4391)),Data!$N$9:$N$4391),1-'Monthly Exceedance'!$A7) -> 1790.9 | CK7: =_xlfn.PERCENTILE.INC(IF((MONTH(Data!$B$9:$B$4391)=CK$2)*(ISNUMBER(Data!$U$9:$U$4391)),Data!$N$9:$N$4391),1-'Monthly Exceedance'!$A7) -> 1942.3 | CL7: =_xlfn.PERCENTILE.INC(IF((MONTH(Data!$B$9:$B$4391)=CL$2)*(ISNUMBER(Data!$U$9:$U$4391)),Data!$N$9:$N$4391),1-'Monthly Exceedance'!$A7) -> 1880 | CM7: =_xlfn.PERCENTILE.INC(IF((MONTH(Data!$B$9:$B$4391)=CM$2)*(ISNUMBER(Data!$U$9:$U$4391)),Data!$N$9:$N$4391),1-'Monthly Exceedance'!$A7) -> 1890 | CN7: =_xlfn.PERCENTILE.INC(IF((MONTH(Data!$B$9:$B$4391)=CN$2)*(ISNUMBER(Data!$U$9:$U$4391)),Data!$N$9:$N$4391),1-'Monthly Exceedance'!$A7) -> 1970 | CO7: =_xlfn.PERCENTILE.INC(IF((MONTH(Data!$B$9:$B$4391)=CO$2)*(ISNUMBER(Data!$U$9:$U$4391)),Data!$N$9:$N$4391),1-'Monthly Exceedance'!$A7) -> 1930 | CP7: =_xlfn.PERCENTILE.INC(IF((MONTH(Data!$B$9:$B$4391)=CP$2)*(ISNUMBER(Data!$U$9:$U$4391)),Data!$N$9:$N$4391),1-'Monthly Exceedance'!$A7) -> 2042.3 | CQ7: =_xlfn.PERCENTILE.INC(IF((MONTH(Data!$B$9:$B$4391)=CQ$2)*(ISNUMBER(Data!$U$9:$U$4391)),Data!$N$9:$N$4391),1-'Monthly Exceedance'!$A7) -> 1840 | CR7: =_xlfn.PERCENTILE.INC(IF((MONTH(Data!$B$9:$B$4391)=CR$2)*(ISNUMBER(Data!$U$9:$U$4391)),Data!$N$9:$N$4391),1-'Monthly Exceedance'!$A7) -> 1852.3 | CS7: =_xlfn.PERCENTILE.INC(IF((MONTH(Data!$B$9:$B$4391)=CS$2)*(ISNUMBER(Data!$U$9:$U$4391)),Data!$N$9:$N$4391),1-'Monthly Exceedance'!$A7) -> 1720
A8: 0.04 | B8: =_xlfn.PERCENTILE.INC(IF((MONTH(Data!$B$9:$B$4391)=B$2)*(ISNUMBER(Data!$I$9:$I$4391)),Data!$I$9:$I$4391),1-'Monthly Exceedance'!$A8) -> 149.1850055 | C8: =_xlfn.PERCENTILE.INC(IF((MONTH(Data!$B$9:$B$4391)=C$2)*(ISNUMBER(Data!$I$9:$I$4391)),Data!$I$9:$I$4391),1-'Monthly Exceedance'!$A8) -> 139.3608348 | D8: =_xlfn.PERCENTILE.INC(IF((MONTH(Data!$B$9:$B$4391)=D$2)*(ISNUMBER(Data!$I$9:$I$4391)),Data!$I$9:$I$4391),1-'Monthly Exceedance'!$A8) -> 138.3035028 | E8: =_xlfn.PERCENTILE.INC(IF((MONTH(Data!$B$9:$B$4391)=E$2)*(ISNUMBER(Data!$I$9:$I$4391)),Data!$I$9:$I$4391),1-'Monthly Exceedance'!$A8) -> 97.35417099 | F8: =_xlfn.PERCENTILE.INC(IF((MONTH(Data!$B$9:$B$4391)=F$2)*(ISNUMBER(Data!$I$9:$I$4391)),Data!$I$9:$I$4391),1-'Monthly Exceedance'!$A8) -> 33.63200087 | G8: =_xlfn.PERCENTILE.INC(IF((MONTH(Data!$B$9:$B$4391)=G$2)*(ISNUMBER(Data!$I$9:$I$4391)),Data!$I$9:$I$4391),1-'Monthly Exceedance'!$A8) -> 16.6148165 | H8: =_xlfn.PERCENTILE.INC(IF((MONTH(Data!$B$9:$B$4391)=H$2)*(ISNUMBER(Data!$I$9:$I$4391)),Data!$I$9:$I$4391),1-'Monthly Exceedance'!$A8) -> 4.515066791 | I8: =_xlfn.PERCENTILE.INC(IF((MONTH(Data!$B$9:$B$4391)=I$2)*(ISNUMBER(Data!$I$9:$I$4391)),Data!$I$9:$I$4391),1-'Monthly Exceedance'!$A8) -> 2.151116724 | J8: =_xlfn.PERCENTILE.INC(IF((MONTH(Data!$B$9:$B$4391)=J$2)*(ISNUMBER(Data!$I$9:$I$4391)),Data!$I$9:$I$4391),1-'Monthly Exceedance'!$A8) -> 0.7480000079 | K8: =_xlfn.PERCENTILE.INC(IF((MONTH(Data!$B$9:$B$4391)=K$2)*(ISNUMBER(Data!$I$9:$I$4391)),Data!$I$9:$I$4391),1-'Monthly Exceedance'!$A8) -> 2.46069998 | L8: =_xlfn.PERCENTILE.INC(IF((MONTH(Data!$B$9:$B$4391)=L$2)*(ISNUMBER(Data!$I$9:$I$4391)),Data!$I$9:$I$4391),1-'Monthly Exceedance'!$A8) -> 4.196666686 | M8: =_xlfn.PERCENTILE.INC(IF((MONTH(Data!$B$9:$B$4391)=M$2)*(ISNUMBER(Data!$I$9:$I$4391)),Data!$I$9:$I$4391),1-'Monthly Exceedance'!$A8) -> 91.59700123 | O8: 0.04 | P8: =_xlfn.PERCENTILE.INC(IF((MONTH(Data!$B$9:$B$4391)=P$2)*(ISNUMBER(Data!$S$9:$S$4391)),Data!$S$9:$S$4391),1-'Monthly Exceedance'!$A8) -> 109.4438861 | Q8: =_xlfn.PERCENTILE.INC(IF((MONTH(Data!$B$9:$B$4391)=Q$2)*(ISNUMBER(Data!$S$9:$S$4391)),Data!$S$9:$S$4391),1-'Monthly Exceedance'!$A8) -> 69.0855321 | R8: =_xlfn.PERCENTILE.INC(IF((MONTH(Data!$B$9:$B$4391)=R$2)*(ISNUMBER(Data!$S$9:$S$4391)),Data!$S$9:$S$4391),1-'Monthly Exceedance'!$A8) -> 136.5106124 | S8: =_xlfn.PERCENTILE.INC(IF((MONTH(Data!$B$9:$B$4391)=S$2)*(ISNUMBER(Data!$S$9:$S$4391)),Data!$S$9:$S$4391),1-'Monthly Exceedance'!$A8) -> 84.14809805 | T8: =_xlfn.PERCENTILE.INC(IF((MONTH(Data!$B$9:$B$4391)=T$2)*(ISNUMBER(Data!$S$9:$S$4391)),Data!$S$9:$S$4391),1-'Monthly Exceedance'!$A8) -> 43.08724902 | U8: =_xlfn.PERCENTILE.INC(IF((MONTH(Data!$B$9:$B$4391)=U$2)*(ISNUMBER(Data!$S$9:$S$4391)),Data!$S$9:$S$4391),1-'Monthly Exceedance'!$A8) -> 60.51783331 | V8: =_xlfn.PERCENTILE.INC(IF((MONTH(Data!$B$9:$B$4391)=V$2)*(ISNUMBER(Data!$S$9:$S$4391)),Data!$S$9:$S$4391),1-'Monthly Exceedance'!$A8) -> 33.01410907 | W8: =_xlfn.PERCENTILE.INC(IF((MONTH(Data!$B$9:$B$4391)=W$2)*(ISNUMBER(Data!$S$9:$S$4391)),Data!$S$9:$S$4391),1-'Monthly Exceedance'!$A8) -> 31.90877818 | X8: =_xlfn.PERCENTILE.INC(IF((MONTH(Data!$B$9:$B$4391)=X$2)*(ISNUMBER(Data!$S$9:$S$4391)),Data!$S$9:$S$4391),1-'Monthly Exceedance'!$A8) -> 15.19999981 | Y8: =_xlfn.PERCENTILE.INC(IF((MONTH(Data!$B$9:$B$4391)=Y$2)*(ISNUMBER(Data!$S$9:$S$4391)),Data!$S$9:$S$4391),1-'Monthly Exceedance'!$A8) -> 100 | Z8: =_xlfn.PERCENTILE.INC(IF((MONTH(Data!$B$9:$B$4391)=Z$2)*(ISNUMBER(Data!$S$9:$S$4391)),Data!$S$9:$S$4391),1-'Monthly Exceedance'!$A8) -> 108.3552 | AA8: =_xlfn.PERCENTILE.INC(IF((MONTH(Data!$B$9:$B$4391)=AA$2)*(ISNUMBER(Data!$S$9:$S$4391)),Data!$S$9:$S$4391),1-'Monthly Exceedance'!$A8) -> 208 | AC8: 0.04 | AD8: =_xlfn.PERCENTILE.INC(IF((MONTH(Data!$B$9:$B$4391)=AD$2)*(ISNUMBER(Data!$O$9:$O$4391)),Data!$O$9:$O$4391),1-'Monthly Exceedance'!$A8) -> 1802.524 | AE8: =_xlfn.PERCENTILE.INC(IF((MONTH(Data!$B$9:$B$4391)=AE$2)*(ISNUMBER(Data!$O$9:$O$4391)),Data!$O$9:$O$4391),1-'Monthly Exceedance'!$A8) -> 1930.536833 | AF8: =_xlfn.PERCENTILE.INC(IF((MONTH(Data!$B$9:$B$4391)=AF$2)*(ISNUMBER(Data!$O$9:$O$4391)),Data!$O$9:$O$4391),1-'Monthly Exceedance'!$A8) -> 1814.509333 | AG8: =_xlfn.PERCENTILE.INC(IF((MONTH(Data!$B$9:$B$4391)=AG$2)*(ISNUMBER(Data!$O$9:$O$4391)),Data!$O$9:$O$4391),1-'Monthly Exceedance'!$A8) -> 1983.188 | AH8: =_xlfn.PERCENTILE.INC(IF((MONTH(Data!$B$9:$B$4391)=AH$2)*(ISNUMBER(Data!$O$9:$O$4391)),Data!$O$9:$O$4391),1-'Monthly Exceedance'!$A8) -> 2010.737833 | AI8: =_xlfn.PERCENTILE.INC(IF((MONTH(Data!$B$9:$B$4391)=AI$2)*(ISNUMBER(Data!$O$9:$O$4391)),Data!$O$9:$O$4391),1-'Monthly Exceedance'!$A8) -> 1940.68 | AJ8: =_xlfn.PERCENTILE.INC(IF((MONTH(Data!$B$9:$B$4391)=AJ$2)*(ISNUMBER(Data!$O$9:$O$4391)),Data!$O$9:$O$4391),1-'Monthly Exceedance'!$A8) -> 2031.857 | AK8: =_xlfn.PERCENTILE.INC(IF((MONTH(Data!$B$9:$B$4391)=AK$2)*(ISNUMBER(Data!$O$9:$O$4391)),Data!$O$9:$O$4391),1-'Monthly Exceedance'!$A8) -> 2013.28 | AL8: =_xlfn.PERCENTILE.INC(IF((MONTH(Data!$B$9:$B$4391)=AL$2)*(ISNUMBER(Data!$O$9:$O$4391)),Data!$O$9:$O$4391),1-'Monthly Exceedance'!$A8) -> 1967.4065 | AM8: =_xlfn.PERCENTILE.INC(IF((MONTH(Data!$B$9:$B$4391)=AM$2)*(ISNUMBER(Data!$O$9:$O$4391)),Data!$O$9:$O$4391),1-'Monthly Exceedance'!$A8) -> 1892.16 | AN8: =_xlfn.PERCENTILE.INC(IF((MONTH(Data!$B$9:$B$4391)=AN$2)*(ISNUMBER(Data!$O$9:$O$4391)),Data!$O$9:$O$4391),1-'Monthly Exceedance'!$A8) -> 1967.424 | AO8: =_xlfn.PERCENTILE.INC(IF((MONTH(Data!$B$9:$B$4391)=AO$2)*(ISNUMBER(Data!$O$9:$O$4391)),Data!$O$9:$O$4391),1-'Monthly Exceedance'!$A8) -> 1980 | AQ8: 0.04 | AR8: =_xlfn.PERCENTILE.INC(IF((MONTH(Data!$B$9:$B$4391)=AR$2)*(ISNUMBER(Data!$T$9:$T$4391)),Data!$T$9:$T$4391),1-'Monthly Exceedance'!$A8) -> 1818.474333 | AS8: =_xlfn.PERCENTILE.INC(IF((MONTH(Data!$B$9:$B$4391)=AS$2)*(ISNUMBER(Data!$T$9:$T$4391)),Data!$T$9:$T$4391),1-'Monthly Exceedance'!$A8) -> 1973.293166 | AT8: =_xlfn.PERCENTILE.INC(IF((MONTH(Data!$B$9:$B$4391)=AT$2)*(ISNUMBER(Data!$T$9:$T$4391)),Data!$T$9:$T$4391),1-'Monthly Exceedance'!$A8) -> 1850.270534 | AU8: =_xlfn.PERCENTILE.INC(IF((MONTH(Data!$B$9:$B$4391)=AU$2)*(ISNUMBER(Data!$T$9:$T$4391)),Data!$T$9:$T$4391),1-'Monthly Exceedance'!$A8) -> 2000.1223 | AV8: =_xlfn.PERCENTILE.INC(IF((MONTH(Data!$B$9:$B$4391)=AV$2)*(ISNUMBER(Data!$T$9:$T$4391)),Data!$T$9:$T$4391),1-'Monthly Exceedance'!$A8) -> 2020.61485 | AW8: =_xlfn.PERCENTILE.INC(IF((MONTH(Data!$B$9:$B$4391)=AW$2)*(ISNUMBER(Data!$T$9:$T$4391)),Data!$T$9:$T$4391),1-'Monthly Exceedance'!$A8) -> 1941.53924 | AX8: =_xlfn.PERCENTILE.INC(IF((MONTH(Data!$B$9:$B$4391)=AX$2)*(ISNUMBER(Data!$T$9:$T$4391)),Data!$T$9:$T$4391),1-'Monthly Exceedance'!$A8) -> 2032.535467 | AY8: =_xlfn.PERCENTILE.INC(IF((MONTH(Data!$B$9:$B$4391)=AY$2)*(ISNUMBER(Data!$T$9:$T$4391)),Data!$T$9:$T$4391),1-'Monthly Exceedance'!$A8) -> 2015.52465 | AZ8: =_xlfn.PERCENTILE.INC(IF((MONTH(Data!$B$9:$B$4391)=AZ$2)*(ISNUMBER(Data!$T$9:$T$4391)),Data!$T$9:$T$4391),1-'Monthly Exceedance'!$A8) -> 1967.61322 | BA8: =_xlfn.PERCENTILE.INC(IF((MONTH(Data!$B$9:$B$4391)=BA$2)*(ISNUMBER(Data!$T$9:$T$4391)),Data!$T$9:$T$4391),1-'Monthly Exceedance'!$A8) -> 1892.331801 | BB8: =_xlfn.PERCENTILE.INC(IF((MONTH(Data!$B$9:$B$4391)=BB$2)*(ISNUMBER(Data!$T$9:$T$4391)),Data!$T$9:$T$4391),1-'Monthly Exceedance'!$A8) -> 1973.294134 | BC8: =_xlfn.PERCENTILE.INC(IF((MONTH(Data!$B$9:$B$4391)=BC$2)*(ISNUMBER(Data!$T$9:$T$4391)),Data!$T$9:$T$4391),1-'Monthly Exceedance'!$A8) -> 2097.594583 | BE8: 0.04 | BF8: =_xlfn.PERCENTILE.INC(IF((MONTH(Data!$B$9:$B$4391)=BF$2)*(ISNUMBER(Data!$R$9:$R$4391)),Data!$R$9:$R$4391),1-'Monthly Exceedance'!$A8) -> 1743.1125 | BG8: =_xlfn.PERCENTILE.INC(IF((MONTH(Data!$B$9:$B$4391)=BG$2)*(ISNUMBER(Data!$R$9:$R$4391)),Data!$R$9:$R$4391),1-'Monthly Exceedance'!$A8) -> 1724.801435 | BH8: =_xlfn.PERCENTILE.INC(IF((MONTH(Data!$B$9:$B$4391)=BH$2)*(ISNUMBER(Data!$R$9:$R$4391)),Data!$R$9:$R$4391),1-'Monthly Exceedance'!$A8) -> 1701.600255 | BI8: =_xlfn.PERCENTILE.INC(IF((MONTH(Data!$B$9:$B$4391)=BI$2)*(ISNUMBER(Data!$R$9:$R$4391)),Data!$R$9:$R$4391),1-'Monthly Exceedance'!$A8) -> 1940 | BJ8: =_xlfn.PERCENTILE.INC(IF((MONTH(Data!$B$9:$B$4391)=BJ$2)*(ISNUMBER(Data!$R$9:$R$4391)),Data!$R$9:$R$4391),1-'Monthly Exceedance'!$A8) -> 1850 | BK8: =_xlfn.PERCENTILE.INC(IF((MONTH(Data!$B$9:$B$4391)=BK$2)*(ISNUMBER(Data!$R$9:$R$4391)),Data!$R$9:$R$4391),1-'Monthly Exceedance'!$A8) -> 1868.80796 | BL8: =_xlfn.PERCENTILE.INC(IF((MONTH(Data!$B$9:$B$4391)=BL$2)*(ISNUMBER(Data!$R$9:$R$4391)),Data!$R$9:$R$4391),1-'Monthly Exceedance'!$A8) -> 1943.868343 | BM8: =_xlfn.PERCENTILE.INC(IF((MONTH(Data!$B$9:$B$4391)=BM$2)*(ISNUMBER(Data!$R$9:$R$4391)),Data!$R$9:$R$4391),1-'Monthly Exceedance'!$A8) -> 1922.016667 | BN8: =_xlfn.PERCENTILE.INC(IF((MONTH(Data!$B$9:$B$4391)=BN$2)*(ISNUMBER(Data!$R$9:$R$4391)),Data!$R$9:$R$4391),1-'Monthly Exceedance'!$A8) -> 2023.952667 | BO8: =_xlfn.PERCENTILE.INC(IF((MONTH(Data!$B$9:$B$4391)=BO$2)*(ISNUMBER(Data!$R$9:$R$4391)),Data!$R$9:$R$4391),1-'Monthly Exceedance'!$A8) -> 1832.016667 | BP8: =_xlfn.PERCENTILE.INC(IF((MONTH(Data!$B$9:$B$4391)=BP$2)*(ISNUMBER(Data!$R$9:$R$4391)),Data!$R$9:$R$4391),1-'Monthly Exceedance'!$A8) -> 1807.881579 | BQ8: =_xlfn.PERCENTILE.INC(IF((MONTH(Data!$B$9:$B$4391)=BQ$2)*(ISNUMBER(Data!$R$9:$R$4391)),Data!$R$9:$R$4391),1-'Monthly Exceedance'!$A8) -> 1674.7125 | BS8: 0.04 | BT8: =_xlfn.PERCENTILE.INC(IF((MONTH(Data!$B$9:$B$4391)=BT$2)*(ISNUMBER(Data!$U$9:$U$4391)),Data!$U$9:$U$4391),1-'Monthly Exceedance'!$A8) -> 1744.2125 | BU8: =_xlfn.PERCENTILE.INC(IF((MONTH(Data!$B$9:$B$4391)=BU$2)*(ISNUMBER(Data!$U$9:$U$4391)),Data!$U$9:$U$4391),1-'Monthly Exceedance'!$A8) -> 1751.456333 | BV8: =_xlfn.PERCENTILE.INC(IF((MONTH(Data!$B$9:$B$4391)=BV$2)*(ISNUMBER(Data!$U$9:$U$4391)),Data!$U$9:$U$4391),1-'Monthly Exceedance'!$A8) -> 1786.143833 | BW8: =_xlfn.PERCENTILE.INC(IF((MONTH(Data!$B$9:$B$4391)=BW$2)*(ISNUMBER(Data!$U$9:$U$4391)),Data!$U$9:$U$4391),1-'Monthly Exceedance'!$A8) -> 1995.448334 | BX8: =_xlfn.PERCENTILE.INC(IF((MONTH(Data!$B$9:$B$4391)=BX$2)*(ISNUMBER(Data!$U$9:$U$4391)),Data!$U$9:$U$4391),1-'Monthly Exceedance'!$A8) -> 1882.60001 | BY8: =_xlfn.PERCENTILE.INC(IF((MONTH(Data!$B$9:$B$4391)=BY$2)*(ISNUMBER(Data!$U$9:$U$4391)),Data!$U$9:$U$4391),1-'Monthly Exceedance'!$A8) -> 1889.794167 | BZ8: =_xlfn.PERCENTILE.INC(IF((MONTH(Data!$B$9:$B$4391)=BZ$2)*(ISNUMBER(Data!$U$9:$U$4391)),Data!$U$9:$U$4391),1-'Monthly Exceedance'!$A8) -> 1952.498 | CA8: =_xlfn.PERCENTILE.INC(IF((MONTH(Data!$B$9:$B$4391)=CA$2)*(ISNUMBER(Data!$U$9:$U$4391)),Data!$U$9:$U$4391),1-'Monthly Exceedance'!$A8) -> 1934.018 | CB8: =_xlfn.PERCENTILE.INC(IF((MONTH(Data!$B$9:$B$4391)=CB$2)*(ISNUMBER(Data!$U$9:$U$4391)),Data!$U$9:$U$4391),1-'Monthly Exceedance'!$A8) -> 2039.152666 | CC8: =_xlfn.PERCENTILE.INC(IF((MONTH(Data!$B$9:$B$4391)=CC$2)*(ISNUMBER(Data!$U$9:$U$4391)),Data!$U$9:$U$4391),1-'Monthly Exceedance'!$A8) -> 1832.752001 | CD8: =_xlfn.PERCENTILE.INC(IF((MONTH(Data!$B$9:$B$4391)=CD$2)*(ISNUMBER(Data!$U$9:$U$4391)),Data!$U$9:$U$4391),1-'Monthly Exceedance'!$A8) -> 1880.645337 | CE8: =_xlfn.PERCENTILE.INC(IF((MONTH(Data!$B$9:$B$4391)=CE$2)*(ISNUMBER(Data!$U$9:$U$4391)),Data!$U$9:$U$4391),1-'Monthly Exceedance'!$A8) -> 1722.059153 | CG8: 0.04 | CH8: =_xlfn.PERCENTILE.INC(IF((MONTH(Data!$B$9:$B$4391)=CH$2)*(ISNUMBER(Data!$U$9:$U$4391)),Data!$N$9:$N$4391),1-'Monthly Exceedance'!$A8) -> 1741.6 | CI8: =_xlfn.PERCENTILE.INC(IF((MONTH(Data!$B$9:$B$4391)=CI$2)*(ISNUMBER(Data!$U$9:$U$4391)),Data!$N$9:$N$4391),1-'Monthly Exceedance'!$A8) -> 1724.8 | CJ8: =_xlfn.PERCENTILE.INC(IF((MONTH(Data!$B$9:$B$4391)=CJ$2)*(ISNUMBER(Data!$U$9:$U$4391)),Data!$N$9:$N$4391),1-'Monthly Exceedance'!$A8) -> 1701.6 | CK8: =_xlfn.PERCENTILE.INC(IF((MONTH(Data!$B$9:$B$4391)=CK$2)*(ISNUMBER(Data!$U$9:$U$4391)),Data!$N$9:$N$4391),1-'Monthly Exceedance'!$A8) -> 1940 | CL8: =_xlfn.PERCENTILE.INC(IF((MONTH(Data!$B$9:$B$4391)=CL$2)*(ISNUMBER(Data!$U$9:$U$4391)),Data!$N$9:$N$4391),1-'Monthly Exceedance'!$A8) -> 1850 | CM8: =_xlfn.PERCENTILE.INC(IF((MONTH(Data!$B$9:$B$4391)=CM$2)*(ISNUMBER(Data!$U$9:$U$4391)),Data!$N$9:$N$4391),1-'Monthly Exceedance'!$A8) -> 1866.4 | CN8: =_xlfn.PERCENTILE.INC(IF((MONTH(Data!$B$9:$B$4391)=CN$2)*(ISNUMBER(Data!$U$9:$U$4391)),Data!$N$9:$N$4391),1-'Monthly Exceedance'!$A8) -> 1941.6 | CO8: =_xlfn.PERCENTILE.INC(IF((MONTH(Data!$B$9:$B$4391)=CO$2)*(ISNUMBER(Data!$U$9:$U$4391)),Data!$N$9:$N$4391),1-'Monthly Exceedance'!$A8) -> 1920 | CP8: =_xlfn.PERCENTILE.INC(IF((MONTH(Data!$B$9:$B$4391)=CP$2)*(ISNUMBER(Data!$U$9:$U$4391)),Data!$N$9:$N$4391),1-'Monthly Exceedance'!$A8) -> 2020 | CQ8: =_xlfn.PERCENTILE.INC(IF((MONTH(Data!$B$9:$B$4391)=CQ$2)*(ISNUMBER(Data!$U$9:$U$4391)),Data!$N$9:$N$4391),1-'Monthly Exceedance'!$A8) -> 1830 | CR8: =_xlfn.PERCENTILE.INC(IF((MONTH(Data!$B$9:$B$4391)=CR$2)*(ISNUMBER(Data!$U$9:$U$4391)),Data!$N$9:$N$4391),1-'Monthly Exceedance'!$A8) -> 1806.4 | CS8: =_xlfn.PERCENTILE.INC(IF((MONTH(Data!$B$9:$B$4391)=CS$2)*(ISNUMBER(Data!$U$9:$U$4391)),Data!$N$9:$N$4391),1-'Monthly Exceedance'!$A8) -> 1673.2
A9: 0.05 | B9: =_xlfn.PERCENTILE.INC(IF((MONTH(Data!$B$9:$B$4391)=B$2)*(ISNUMBER(Data!$I$9:$I$4391)),Data!$I$9:$I$4391),1-'Monthly Exceedance'!$A9) -> 123.468123 | C9: =_xlfn.PERCENTILE.INC(IF((MONTH(Data!$B$9:$B$4391)=C$2)*(ISNUMBER(Data!$I$9:$I$4391)),Data!$I$9:$I$4391),1-'Monthly Exceedance'!$A9) -> 132.8708263 | D9: =_xlfn.PERCENTILE.INC(IF((MONTH(Data!$B$9:$B$4391)=D$2)*(ISNUMBER(Data!$I$9:$I$4391)),Data!$I$9:$I$4391),1-'Monthly Exceedance'!$A9) -> 128.5208349 | E9: =_xlfn.PERCENTILE.INC(IF((MONTH(Data!$B$9:$B$4391)=E$2)*(ISNUMBER(Data!$I$9:$I$4391)),Data!$I$9:$I$4391),1-'Monthly Exceedance'!$A9) -> 91.04166368 | F9: =_xlfn.PERCENTILE.INC(IF((MONTH(Data!$B$9:$B$4391)=F$2)*(ISNUMBER(Data!$I$9:$I$4391)),Data!$I$9:$I$4391),1-'Monthly Exceedance'!$A9) -> 32.59999933 | G9: =_xlfn.PERCENTILE.INC(IF((MONTH(Data!$B$9:$B$4391)=G$2)*(ISNUMBER(Data!$I$9:$I$4391)),Data!$I$9:$I$4391),1-'Monthly Exceedance'!$A9) -> 15.07708273 | H9: =_xlfn.PERCENTILE.INC(IF((MONTH(Data!$B$9:$B$4391)=H$2)*(ISNUMBER(Data!$I$9:$I$4391)),Data!$I$9:$I$4391),1-'Monthly Exceedance'!$A9) -> 3.949583268 | I9: =_xlfn.PERCENTILE.INC(IF((MONTH(Data!$B$9:$B$4391)=I$2)*(ISNUMBER(Data!$I$9:$I$4391)),Data!$I$9:$I$4391),1-'Monthly Exceedance'!$A9) -> 1.927916686 | J9: =_xlfn.PERCENTILE.INC(IF((MONTH(Data!$B$9:$B$4391)=J$2)*(ISNUMBER(Data!$I$9:$I$4391)),Data!$I$9:$I$4391),1-'Monthly Exceedance'!$A9) -> 0.714000013 | K9: =_xlfn.PERCENTILE.INC(IF((MONTH(Data!$B$9:$B$4391)=K$2)*(ISNUMBER(Data!$I$9:$I$4391)),Data!$I$9:$I$4391),1-'Monthly Exceedance'!$A9) -> 2.145916712 | L9: =_xlfn.PERCENTILE.INC(IF((MONTH(Data!$B$9:$B$4391)=L$2)*(ISNUMBER(Data!$I$9:$I$4391)),Data!$I$9:$I$4391),1-'Monthly Exceedance'!$A9) -> 4.138666311 | M9: =_xlfn.PERCENTILE.INC(IF((MONTH(Data!$B$9:$B$4391)=M$2)*(ISNUMBER(Data!$I$9:$I$4391)),Data!$I$9:$I$4391),1-'Monthly Exceedance'!$A9) -> 42.62083149 | O9: 0.05 | P9: =_xlfn.PERCENTILE.INC(IF((MONTH(Data!$B$9:$B$4391)=P$2)*(ISNUMBER(Data!$S$9:$S$4391)),Data!$S$9:$S$4391),1-'Monthly Exceedance'!$A9) -> 83.20000903 | Q9: =_xlfn.PERCENTILE.INC(IF((MONTH(Data!$B$9:$B$4391)=Q$2)*(ISNUMBER(Data!$S$9:$S$4391)),Data!$S$9:$S$4391),1-'Monthly Exceedance'!$A9) -> 63.809775 | R9: =_xlfn.PERCENTILE.INC(IF((MONTH(Data!$B$9:$B$4391)=R$2)*(ISNUMBER(Data!$S$9:$S$4391)),Data!$S$9:$S$4391),1-'Monthly Exceedance'!$A9) -> 102.5124893 | S9: =_xlfn.PERCENTILE.INC(IF((MONTH(Data!$B$9:$B$4391)=S$2)*(ISNUMBER(Data!$S$9:$S$4391)),Data!$S$9:$S$4391),1-'Monthly Exceedance'!$A9) -> 70.55089685 | T9: =_xlfn.PERCENTILE.INC(IF((MONTH(Data!$B$9:$B$4391)=T$2)*(ISNUMBER(Data!$S$9:$S$4391)),Data!$S$9:$S$4391),1-'Monthly Exceedance'!$A9) -> 41.72848279 | U9: =_xlfn.PERCENTILE.INC(IF((MONTH(Data!$B$9:$B$4391)=U$2)*(ISNUMBER(Data!$S$9:$S$4391)),Data!$S$9:$S$4391),1-'Monthly Exceedance'!$A9) -> 60.51250005 | V9: =_xlfn.PERCENTILE.INC(IF((MONTH(Data!$B$9:$B$4391)=V$2)*(ISNUMBER(Data!$S$9:$S$4391)),Data!$S$9:$S$4391),1-'Monthly Exceedance'!$A9) -> 33.01410907 | W9: =_xlfn.PERCENTILE.INC(IF((MONTH(Data!$B$9:$B$4391)=W$2)*(ISNUMBER(Data!$S$9:$S$4391)),Data!$S$9:$S$4391),1-'Monthly Exceedance'!$A9) -> 31.8627641 | X9: =_xlfn.PERCENTILE.INC(IF((MONTH(Data!$B$9:$B$4391)=X$2)*(ISNUMBER(Data!$S$9:$S$4391)),Data!$S$9:$S$4391),1-'Monthly Exceedance'!$A9) -> 15.19999981 | Y9: =_xlfn.PERCENTILE.INC(IF((MONTH(Data!$B$9:$B$4391)=Y$2)*(ISNUMBER(Data!$S$9:$S$4391)),Data!$S$9:$S$4391),1-'Monthly Exceedance'!$A9) -> 76 | Z9: =_xlfn.PERCENTILE.INC(IF((MONTH(Data!$B$9:$B$4391)=Z$2)*(ISNUMBER(Data!$S$9:$S$4391)),Data!$S$9:$S$4391),1-'Monthly Exceedance'!$A9) -> 104.7 | AA9: =_xlfn.PERCENTILE.INC(IF((MONTH(Data!$B$9:$B$4391)=AA$2)*(ISNUMBER(Data!$S$9:$S$4391)),Data!$S$9:$S$4391),1-'Monthly Exceedance'!$A9) -> 208 | AC9: 0.05 | AD9: =_xlfn.PERCENTILE.INC(IF((MONTH(Data!$B$9:$B$4391)=AD$2)*(ISNUMBER(Data!$O$9:$O$4391)),Data!$O$9:$O$4391),1-'Monthly Exceedance'!$A9) -> 1764.5 | AE9: =_xlfn.PERCENTILE.INC(IF((MONTH(Data!$B$9:$B$4391)=AE$2)*(ISNUMBER(Data!$O$9:$O$4391)),Data!$O$9:$O$4391),1-'Monthly Exceedance'!$A9) -> 1912.879167 | AF9: =_xlfn.PERCENTILE.INC(IF((MONTH(Data!$B$9:$B$4391)=AF$2)*(ISNUMBER(Data!$O$9:$O$4391)),Data!$O$9:$O$4391),1-'Monthly Exceedance'!$A9) -> 1760.05625 | AG9: =_xlfn.PERCENTILE.INC(IF((MONTH(Data!$B$9:$B$4391)=AG$2)*(ISNUMBER(Data!$O$9:$O$4391)),Data!$O$9:$O$4391),1-'Monthly Exceedance'!$A9) -> 1970.420208 | AH9: =_xlfn.PERCENTILE.INC(IF((MONTH(Data!$B$9:$B$4391)=AH$2)*(ISNUMBER(Data!$O$9:$O$4391)),Data!$O$9:$O$4391),1-'Monthly Exceedance'!$A9) -> 2004.411458 | AI9: =_xlfn.PERCENTILE.INC(IF((MONTH(Data!$B$9:$B$4391)=AI$2)*(ISNUMBER(Data!$O$9:$O$4391)),Data!$O$9:$O$4391),1-'Monthly Exceedance'!$A9) -> 1932.20375 | AJ9: =_xlfn.PERCENTILE.INC(IF((MONTH(Data!$B$9:$B$4391)=AJ$2)*(ISNUMBER(Data!$O$9:$O$4391)),Data!$O$9:$O$4391),1-'Monthly Exceedance'!$A9) -> 2024.009375 | AK9: =_xlfn.PERCENTILE.INC(IF((MONTH(Data!$B$9:$B$4391)=AK$2)*(ISNUMBER(Data!$O$9:$O$4391)),Data!$O$9:$O$4391),1-'Monthly Exceedance'!$A9) -> 1997.893958 | AL9: =_xlfn.PERCENTILE.INC(IF((MONTH(Data!$B$9:$B$4391)=AL$2)*(ISNUMBER(Data!$O$9:$O$4391)),Data!$O$9:$O$4391),1-'Monthly Exceedance'!$A9) -> 1953.846875 | AM9: =_xlfn.PERCENTILE.INC(IF((MONTH(Data!$B$9:$B$4391)=AM$2)*(ISNUMBER(Data!$O$9:$O$4391)),Data!$O$9:$O$4391),1-'Monthly Exceedance'!$A9) -> 1880 | AN9: =_xlfn.PERCENTILE.INC(IF((MONTH(Data!$B$9:$B$4391)=AN$2)*(ISNUMBER(Data!$O$9:$O$4391)),Data!$O$9:$O$4391),1-'Monthly Exceedance'!$A9) -> 1950.5 | AO9: =_xlfn.PERCENTILE.INC(IF((MONTH(Data!$B$9:$B$4391)=AO$2)*(ISNUMBER(Data!$O$9:$O$4391)),Data!$O$9:$O$4391),1-'Monthly Exceedance'!$A9) -> 1955.05 | AQ9: 0.05 | AR9: =_xlfn.PERCENTILE.INC(IF((MONTH(Data!$B$9:$B$4391)=AR$2)*(ISNUMBER(Data!$T$9:$T$4391)),Data!$T$9:$T$4391),1-'Monthly Exceedance'!$A9) -> 1794.943167 | AS9: =_xlfn.PERCENTILE.INC(IF((MONTH(Data!$B$9:$B$4391)=AS$2)*(ISNUMBER(Data!$T$9:$T$4391)),Data!$T$9:$T$4391),1-'Monthly Exceedance'!$A9) -> 1936.810792 | AT9: =_xlfn.PERCENTILE.INC(IF((MONTH(Data!$B$9:$B$4391)=AT$2)*(ISNUMBER(Data!$T$9:$T$4391)),Data!$T$9:$T$4391),1-'Monthly Exceedance'!$A9) -> 1791.878209 | AU9: =_xlfn.PERCENTILE.INC(IF((MONTH(Data!$B$9:$B$4391)=AU$2)*(ISNUMBER(Data!$T$9:$T$4391)),Data!$T$9:$T$4391),1-'Monthly Exceedance'!$A9) -> 1984.280146 | AV9: =_xlfn.PERCENTILE.INC(IF((MONTH(Data!$B$9:$B$4391)=AV$2)*(ISNUMBER(Data!$T$9:$T$4391)),Data!$T$9:$T$4391),1-'Monthly Exceedance'!$A9) -> 2016.439791 | AW9: =_xlfn.PERCENTILE.INC(IF((MONTH(Data!$B$9:$B$4391)=AW$2)*(ISNUMBER(Data!$T$9:$T$4391)),Data!$T$9:$T$4391),1-'Monthly Exceedance'!$A9) -> 1936.537712 | AX9: =_xlfn.PERCENTILE.INC(IF((MONTH(Data!$B$9:$B$4391)=AX$2)*(ISNUMBER(Data!$T$9:$T$4391)),Data!$T$9:$T$4391),1-'Monthly Exceedance'!$A9) -> 2025.361001 | AY9: =_xlfn.PERCENTILE.INC(IF((MONTH(Data!$B$9:$B$4391)=AY$2)*(ISNUMBER(Data!$T$9:$T$4391)),Data!$T$9:$T$4391),1-'Monthly Exceedance'!$A9) -> 1998.415209 | AZ9: =_xlfn.PERCENTILE.INC(IF((MONTH(Data!$B$9:$B$4391)=AZ$2)*(ISNUMBER(Data!$T$9:$T$4391)),Data!$T$9:$T$4391),1-'Monthly Exceedance'!$A9) -> 1953.846876 | BA9: =_xlfn.PERCENTILE.INC(IF((MONTH(Data!$B$9:$B$4391)=BA$2)*(ISNUMBER(Data!$T$9:$T$4391)),Data!$T$9:$T$4391),1-'Monthly Exceedance'!$A9) -> 1880.3264 | BB9: =_xlfn.PERCENTILE.INC(IF((MONTH(Data!$B$9:$B$4391)=BB$2)*(ISNUMBER(Data!$T$9:$T$4391)),Data!$T$9:$T$4391),1-'Monthly Exceedance'!$A9) -> 1953.311492 | BC9: =_xlfn.PERCENTILE.INC(IF((MONTH(Data!$B$9:$B$4391)=BC$2)*(ISNUMBER(Data!$T$9:$T$4391)),Data!$T$9:$T$4391),1-'Monthly Exceedance'!$A9) -> 2073.882822 | BE9: 0.05 | BF9: =_xlfn.PERCENTILE.INC(IF((MONTH(Data!$B$9:$B$4391)=BF$2)*(ISNUMBER(Data!$R$9:$R$4391)),Data!$R$9:$R$4391),1-'Monthly Exceedance'!$A9) -> 1715.4075 | BG9: =_xlfn.PERCENTILE.INC(IF((MONTH(Data!$B$9:$B$4391)=BG$2)*(ISNUMBER(Data!$R$9:$R$4391)),Data!$R$9:$R$4391),1-'Monthly Exceedance'!$A9) -> 1701.726448 | BH9: =_xlfn.PERCENTILE.INC(IF((MONTH(Data!$B$9:$B$4391)=BH$2)*(ISNUMBER(Data!$R$9:$R$4391)),Data!$R$9:$R$4391),1-'Monthly Exceedance'!$A9) -> 1613.153785 | BI9: =_xlfn.PERCENTILE.INC(IF((MONTH(Data!$B$9:$B$4391)=BI$2)*(ISNUMBER(Data!$R$9:$R$4391)),Data!$R$9:$R$4391),1-'Monthly Exceedance'!$A9) -> 1911 | BJ9: =_xlfn.PERCENTILE.INC(IF((MONTH(Data!$B$9:$B$4391)=BJ$2)*(ISNUMBER(Data!$R$9:$R$4391)),Data!$R$9:$R$4391),1-'Monthly Exceedance'!$A9) -> 1834.5 | BK9: =_xlfn.PERCENTILE.INC(IF((MONTH(Data!$B$9:$B$4391)=BK$2)*(ISNUMBER(Data!$R$9:$R$4391)),Data!$R$9:$R$4391),1-'Monthly Exceedance'!$A9) -> 1841.974527 | BL9: =_xlfn.PERCENTILE.INC(IF((MONTH(Data!$B$9:$B$4391)=BL$2)*(ISNUMBER(Data!$R$9:$R$4391)),Data!$R$9:$R$4391),1-'Monthly Exceedance'!$A9) -> 1935.493794 | BM9: =_xlfn.PERCENTILE.INC(IF((MONTH(Data!$B$9:$B$4391)=BM$2)*(ISNUMBER(Data!$R$9:$R$4391)),Data!$R$9:$R$4391),1-'Monthly Exceedance'!$A9) -> 1911.739375 | BN9: =_xlfn.PERCENTILE.INC(IF((MONTH(Data!$B$9:$B$4391)=BN$2)*(ISNUMBER(Data!$R$9:$R$4391)),Data!$R$9:$R$4391),1-'Monthly Exceedance'!$A9) -> 1992.995625 | BO9: =_xlfn.PERCENTILE.INC(IF((MONTH(Data!$B$9:$B$4391)=BO$2)*(ISNUMBER(Data!$R$9:$R$4391)),Data!$R$9:$R$4391),1-'Monthly Exceedance'!$A9) -> 1812.243542 | BP9: =_xlfn.PERCENTILE.INC(IF((MONTH(Data!$B$9:$B$4391)=BP$2)*(ISNUMBER(Data!$R$9:$R$4391)),Data!$R$9:$R$4391),1-'Monthly Exceedance'!$A9) -> 1790.087397 | BQ9: =_xlfn.PERCENTILE.INC(IF((MONTH(Data!$B$9:$B$4391)=BQ$2)*(ISNUMBER(Data!$R$9:$R$4391)),Data!$R$9:$R$4391),1-'Monthly Exceedance'!$A9) -> 1646.0125 | BS9: 0.05 | BT9: =_xlfn.PERCENTILE.INC(IF((MONTH(Data!$B$9:$B$4391)=BT$2)*(ISNUMBER(Data!$U$9:$U$4391)),Data!$U$9:$U$4391),1-'Monthly Exceedance'!$A9) -> 1723.298534 | BU9: =_xlfn.PERCENTILE.INC(IF((MONTH(Data!$B$9:$B$4391)=BU$2)*(ISNUMBER(Data!$U$9:$U$4391)),Data!$U$9:$U$4391),1-'Monthly Exceedance'!$A9) -> 1728.175417 | BV9: =_xlfn.PERCENTILE.INC(IF((MONTH(Data!$B$9:$B$4391)=BV$2)*(ISNUMBER(Data!$U$9:$U$4391)),Data!$U$9:$U$4391),1-'Monthly Exceedance'!$A9) -> 1673.5125 | BW9: =_xlfn.PERCENTILE.INC(IF((MONTH(Data!$B$9:$B$4391)=BW$2)*(ISNUMBER(Data!$U$9:$U$4391)),Data!$U$9:$U$4391),1-'Monthly Exceedance'!$A9) -> 1950.790208 | BX9: =_xlfn.PERCENTILE.INC(IF((MONTH(Data!$B$9:$B$4391)=BX$2)*(ISNUMBER(Data!$U$9:$U$4391)),Data!$U$9:$U$4391),1-'Monthly Exceedance'!$A9) -> 1855.398333 | BY9: =_xlfn.PERCENTILE.INC(IF((MONTH(Data!$B$9:$B$4391)=BY$2)*(ISNUMBER(Data!$U$9:$U$4391)),Data!$U$9:$U$4391),1-'Monthly Exceedance'!$A9) -> 1870.32625 | BZ9: =_xlfn.PERCENTILE.INC(IF((MONTH(Data!$B$9:$B$4391)=BZ$2)*(ISNUMBER(Data!$U$9:$U$4391)),Data!$U$9:$U$4391),1-'Monthly Exceedance'!$A9) -> 1941.465833 | CA9: =_xlfn.PERCENTILE.INC(IF((MONTH(Data!$B$9:$B$4391)=CA$2)*(ISNUMBER(Data!$U$9:$U$4391)),Data!$U$9:$U$4391),1-'Monthly Exceedance'!$A9) -> 1920.44 | CB9: =_xlfn.PERCENTILE.INC(IF((MONTH(Data!$B$9:$B$4391)=CB$2)*(ISNUMBER(Data!$U$9:$U$4391)),Data!$U$9:$U$4391),1-'Monthly Exceedance'!$A9) -> 2002.491459 | CC9: =_xlfn.PERCENTILE.INC(IF((MONTH(Data!$B$9:$B$4391)=CC$2)*(ISNUMBER(Data!$U$9:$U$4391)),Data!$U$9:$U$4391),1-'Monthly Exceedance'!$A9) -> 1814.086459 | CD9: =_xlfn.PERCENTILE.INC(IF((MONTH(Data!$B$9:$B$4391)=CD$2)*(ISNUMBER(Data!$U$9:$U$4391)),Data!$U$9:$U$4391),1-'Monthly Exceedance'!$A9) -> 1851.457917 | CE9: =_xlfn.PERCENTILE.INC(IF((MONTH(Data!$B$9:$B$4391)=CE$2)*(ISNUMBER(Data!$U$9:$U$4391)),Data!$U$9:$U$4391),1-'Monthly Exceedance'!$A9) -> 1666.252786 | CG9: 0.05 | CH9: =_xlfn.PERCENTILE.INC(IF((MONTH(Data!$B$9:$B$4391)=CH$2)*(ISNUMBER(Data!$U$9:$U$4391)),Data!$N$9:$N$4391),1-'Monthly Exceedance'!$A9) -> 1714.5 | CI9: =_xlfn.PERCENTILE.INC(IF((MONTH(Data!$B$9:$B$4391)=CI$2)*(ISNUMBER(Data!$U$9:$U$4391)),Data!$N$9:$N$4391),1-'Monthly Exceedance'!$A9) -> 1701 | CJ9: =_xlfn.PERCENTILE.INC(IF((MONTH(Data!$B$9:$B$4391)=CJ$2)*(ISNUMBER(Data!$U$9:$U$4391)),Data!$N$9:$N$4391),1-'Monthly Exceedance'!$A9) -> 1612.5 | CK9: =_xlfn.PERCENTILE.INC(IF((MONTH(Data!$B$9:$B$4391)=CK$2)*(ISNUMBER(Data!$U$9:$U$4391)),Data!$N$9:$N$4391),1-'Monthly Exceedance'!$A9) -> 1911 | CL9: =_xlfn.PERCENTILE.INC(IF((MONTH(Data!$B$9:$B$4391)=CL$2)*(ISNUMBER(Data!$U$9:$U$4391)),Data!$N$9:$N$4391),1-'Monthly Exceedance'!$A9) -> 1834.5 | CM9: =_xlfn.PERCENTILE.INC(IF((MONTH(Data!$B$9:$B$4391)=CM$2)*(ISNUMBER(Data!$U$9:$U$4391)),Data!$N$9:$N$4391),1-'Monthly Exceedance'!$A9) -> 1840 | CN9: =_xlfn.PERCENTILE.INC(IF((MONTH(Data!$B$9:$B$4391)=CN$2)*(ISNUMBER(Data!$U$9:$U$4391)),Data!$N$9:$N$4391),1-'Monthly Exceedance'!$A9) -> 1934.5 | CO9: =_xlfn.PERCENTILE.INC(IF((MONTH(Data!$B$9:$B$4391)=CO$2)*(ISNUMBER(Data!$U$9:$U$4391)),Data!$N$9:$N$4391),1-'Monthly Exceedance'!$A9) -> 1910 | CP9: =_xlfn.PERCENTILE.INC(IF((MONTH(Data!$B$9:$B$4391)=CP$2)*(ISNUMBER(Data!$U$9:$U$4391)),Data!$N$9:$N$4391),1-'Monthly Exceedance'!$A9) -> 1990.5 | CQ9: =_xlfn.PERCENTILE.INC(IF((MONTH(Data!$B$9:$B$4391)=CQ$2)*(ISNUMBER(Data!$U$9:$U$4391)),Data!$N$9:$N$4391),1-'Monthly Exceedance'!$A9) -> 1810 | CR9: =_xlfn.PERCENTILE.INC(IF((MONTH(Data!$B$9:$B$4391)=CR$2)*(ISNUMBER(Data!$U$9:$U$4391)),Data!$N$9:$N$4391),1-'Monthly Exceedance'!$A9) -> 1790 | CS9: =_xlfn.PERCENTILE.INC(IF((MONTH(Data!$B$9:$B$4391)=CS$2)*(ISNUMBER(Data!$U$9:$U$4391)),Data!$N$9:$N$4391),1-'Monthly Exceedance'!$A9) -> 1644.5
A10: 0.06 | B10: =_xlfn.PERCENTILE.INC(IF((MONTH(Data!$B$9:$B$4391)=B$2)*(ISNUMBER(Data!$I$9:$I$4391)),Data!$I$9:$I$4391),1-'Monthly Exceedance'!$A10) -> 91.76266617 | C10: =_xlfn.PERCENTILE.INC(IF((MONTH(Data!$B$9:$B$4391)=C$2)*(ISNUMBER(Data!$I$9:$I$4391)),Data!$I$9:$I$4391),1-'Monthly Exceedance'!$A10) -> 125.2448375 | D10: =_xlfn.PERCENTILE.INC(IF((MONTH(Data!$B$9:$B$4391)=D$2)*(ISNUMBER(Data!$I$9:$I$4391)),Data!$I$9:$I$4391),1-'Monthly Exceedance'!$A10) -> 113.0030027 | E10: =_xlfn.PERCENTILE.INC(IF((MONTH(Data!$B$9:$B$4391)=E$2)*(ISNUMBER(Data!$I$9:$I$4391)),Data!$I$9:$I$4391),1-'Monthly Exceedance'!$A10) -> 83.87333083 | F10: =_xlfn.PERCENTILE.INC(IF((MONTH(Data!$B$9:$B$4391)=F$2)*(ISNUMBER(Data!$I$9:$I$4391)),Data!$I$9:$I$4391),1-'Monthly Exceedance'!$A10) -> 30.94799946 | G10: =_xlfn.PERCENTILE.INC(IF((MONTH(Data!$B$9:$B$4391)=G$2)*(ISNUMBER(Data!$I$9:$I$4391)),Data!$I$9:$I$4391),1-'Monthly Exceedance'!$A10) -> 13.31784977 | H10: =_xlfn.PERCENTILE.INC(IF((MONTH(Data!$B$9:$B$4391)=H$2)*(ISNUMBER(Data!$I$9:$I$4391)),Data!$I$9:$I$4391),1-'Monthly Exceedance'!$A10) -> 3.636683328 | I10: =_xlfn.PERCENTILE.INC(IF((MONTH(Data!$B$9:$B$4391)=I$2)*(ISNUMBER(Data!$I$9:$I$4391)),Data!$I$9:$I$4391),1-'Monthly Exceedance'!$A10) -> 1.727116642 | J10: =_xlfn.PERCENTILE.INC(IF((MONTH(Data!$B$9:$B$4391)=J$2)*(ISNUMBER(Data!$I$9:$I$4391)),Data!$I$9:$I$4391),1-'Monthly Exceedance'!$A10) -> 0.6629999906 | K10: =_xlfn.PERCENTILE.INC(IF((MONTH(Data!$B$9:$B$4391)=K$2)*(ISNUMBER(Data!$I$9:$I$4391)),Data!$I$9:$I$4391),1-'Monthly Exceedance'!$A10) -> 1.826316664 | L10: =_xlfn.PERCENTILE.INC(IF((MONTH(Data!$B$9:$B$4391)=L$2)*(ISNUMBER(Data!$I$9:$I$4391)),Data!$I$9:$I$4391),1-'Monthly Exceedance'!$A10) -> 4.00583336 | M10: =_xlfn.PERCENTILE.INC(IF((MONTH(Data!$B$9:$B$4391)=M$2)*(ISNUMBER(Data!$I$9:$I$4391)),Data!$I$9:$I$4391),1-'Monthly Exceedance'!$A10) -> 33.06519994 | O10: 0.06 | P10: =_xlfn.PERCENTILE.INC(IF((MONTH(Data!$B$9:$B$4391)=P$2)*(ISNUMBER(Data!$S$9:$S$4391)),Data!$S$9:$S$4391),1-'Monthly Exceedance'!$A10) -> 61.09346424 | Q10: =_xlfn.PERCENTILE.INC(IF((MONTH(Data!$B$9:$B$4391)=Q$2)*(ISNUMBER(Data!$S$9:$S$4391)),Data!$S$9:$S$4391),1-'Monthly Exceedance'!$A10) -> 57.28501314 | R10: =_xlfn.PERCENTILE.INC(IF((MONTH(Data!$B$9:$B$4391)=R$2)*(ISNUMBER(Data!$S$9:$S$4391)),Data!$S$9:$S$4391),1-'Monthly Exceedance'!$A10) -> 101.0061639 | S10: =_xlfn.PERCENTILE.INC(IF((MONTH(Data!$B$9:$B$4391)=S$2)*(ISNUMBER(Data!$S$9:$S$4391)),Data!$S$9:$S$4391),1-'Monthly Exceedance'!$A10) -> 69.00000992 | T10: =_xlfn.PERCENTILE.INC(IF((MONTH(Data!$B$9:$B$4391)=T$2)*(ISNUMBER(Data!$S$9:$S$4391)),Data!$S$9:$S$4391),1-'Monthly Exceedance'!$A10) -> 41.00000996 | U10: =_xlfn.PERCENTILE.INC(IF((MONTH(Data!$B$9:$B$4391)=U$2)*(ISNUMBER(Data!$S$9:$S$4391)),Data!$S$9:$S$4391),1-'Monthly Exceedance'!$A10) -> 59.7450833 | V10: =_xlfn.PERCENTILE.INC(IF((MONTH(Data!$B$9:$B$4391)=V$2)*(ISNUMBER(Data!$S$9:$S$4391)),Data!$S$9:$S$4391),1-'Monthly Exceedance'!$A10) -> 33.01410907 | W10: =_xlfn.PERCENTILE.INC(IF((MONTH(Data!$B$9:$B$4391)=W$2)*(ISNUMBER(Data!$S$9:$S$4391)),Data!$S$9:$S$4391),1-'Monthly Exceedance'!$A10) -> 23.11644549 | X10: =_xlfn.PERCENTILE.INC(IF((MONTH(Data!$B$9:$B$4391)=X$2)*(ISNUMBER(Data!$S$9:$S$4391)),Data!$S$9:$S$4391),1-'Monthly Exceedance'!$A10) -> 15.19999981 | Y10: =_xlfn.PERCENTILE.INC(IF((MONTH(Data!$B$9:$B$4391)=Y$2)*(ISNUMBER(Data!$S$9:$S$4391)),Data!$S$9:$S$4391),1-'Monthly Exceedance'!$A10) -> 62.36 | Z10: =_xlfn.PERCENTILE.INC(IF((MONTH(Data!$B$9:$B$4391)=Z$2)*(ISNUMBER(Data!$S$9:$S$4391)),Data!$S$9:$S$4391),1-'Monthly Exceedance'!$A10) -> 104.5 | AA10: =_xlfn.PERCENTILE.INC(IF((MONTH(Data!$B$9:$B$4391)=AA$2)*(ISNUMBER(Data!$S$9:$S$4391)),Data!$S$9:$S$4391),1-'Monthly Exceedance'!$A10) -> 109.454 | AC10: 0.06 | AD10: =_xlfn.PERCENTILE.INC(IF((MONTH(Data!$B$9:$B$4391)=AD$2)*(ISNUMBER(Data!$O$9:$O$4391)),Data!$O$9:$O$4391),1-'Monthly Exceedance'!$A10) -> 1741.1 | AE10: =_xlfn.PERCENTILE.INC(IF((MONTH(Data!$B$9:$B$4391)=AE$2)*(ISNUMBER(Data!$O$9:$O$4391)),Data!$O$9:$O$4391),1-'Monthly Exceedance'!$A10) -> 1872.304 | AF10: =_xlfn.PERCENTILE.INC(IF((MONTH(Data!$B$9:$B$4391)=AF$2)*(ISNUMBER(Data!$O$9:$O$4391)),Data!$O$9:$O$4391),1-'Monthly Exceedance'!$A10) -> 1672.91425 | AG10: =_xlfn.PERCENTILE.INC(IF((MONTH(Data!$B$9:$B$4391)=AG$2)*(ISNUMBER(Data!$O$9:$O$4391)),Data!$O$9:$O$4391),1-'Monthly Exceedance'!$A10) -> 1957.807917 | AH10: =_xlfn.PERCENTILE.INC(IF((MONTH(Data!$B$9:$B$4391)=AH$2)*(ISNUMBER(Data!$O$9:$O$4391)),Data!$O$9:$O$4391),1-'Monthly Exceedance'!$A10) -> 1985.003667 | AI10: =_xlfn.PERCENTILE.INC(IF((MONTH(Data!$B$9:$B$4391)=AI$2)*(ISNUMBER(Data!$O$9:$O$4391)),Data!$O$9:$O$4391),1-'Monthly Exceedance'!$A10) -> 1893.059 | AJ10: =_xlfn.PERCENTILE.INC(IF((MONTH(Data!$B$9:$B$4391)=AJ$2)*(ISNUMBER(Data!$O$9:$O$4391)),Data!$O$9:$O$4391),1-'Monthly Exceedance'!$A10) -> 2006.275334 | AK10: =_xlfn.PERCENTILE.INC(IF((MONTH(Data!$B$9:$B$4391)=AK$2)*(ISNUMBER(Data!$O$9:$O$4391)),Data!$O$9:$O$4391),1-'Monthly Exceedance'!$A10) -> 1981.455833 | AL10: =_xlfn.PERCENTILE.INC(IF((MONTH(Data!$B$9:$B$4391)=AL$2)*(ISNUMBER(Data!$O$9:$O$4391)),Data!$O$9:$O$4391),1-'Monthly Exceedance'!$A10) -> 1949.07525 | AM10: =_xlfn.PERCENTILE.INC(IF((MONTH(Data!$B$9:$B$4391)=AM$2)*(ISNUMBER(Data!$O$9:$O$4391)),Data!$O$9:$O$4391),1-'Monthly Exceedance'!$A10) -> 1860 | AN10: =_xlfn.PERCENTILE.INC(IF((MONTH(Data!$B$9:$B$4391)=AN$2)*(ISNUMBER(Data!$O$9:$O$4391)),Data!$O$9:$O$4391),1-'Monthly Exceedance'!$A10) -> 1914.6 | AO10: =_xlfn.PERCENTILE.INC(IF((MONTH(Data!$B$9:$B$4391)=AO$2)*(ISNUMBER(Data!$O$9:$O$4391)),Data!$O$9:$O$4391),1-'Monthly Exceedance'!$A10) -> 1924.8 | AQ10: 0.06 | AR10: =_xlfn.PERCENTILE.INC(IF((MONTH(Data!$B$9:$B$4391)=AR$2)*(ISNUMBER(Data!$T$9:$T$4391)),Data!$T$9:$T$4391),1-'Monthly Exceedance'!$A10) -> 1747.566301 | AS10: =_xlfn.PERCENTILE.INC(IF((MONTH(Data!$B$9:$B$4391)=AS$2)*(ISNUMBER(Data!$T$9:$T$4391)),Data!$T$9:$T$4391),1-'Monthly Exceedance'!$A10) -> 1921.741235 | AT10: =_xlfn.PERCENTILE.INC(IF((MONTH(Data!$B$9:$B$4391)=AT$2)*(ISNUMBER(Data!$T$9:$T$4391)),Data!$T$9:$T$4391),1-'Monthly Exceedance'!$A10) -> 1738.045083 | AU10: =_xlfn.PERCENTILE.INC(IF((MONTH(Data!$B$9:$B$4391)=AU$2)*(ISNUMBER(Data!$T$9:$T$4391)),Data!$T$9:$T$4391),1-'Monthly Exceedance'!$A10) -> 1971.006617 | AV10: =_xlfn.PERCENTILE.INC(IF((MONTH(Data!$B$9:$B$4391)=AV$2)*(ISNUMBER(Data!$T$9:$T$4391)),Data!$T$9:$T$4391),1-'Monthly Exceedance'!$A10) -> 1994.294 | AW10: =_xlfn.PERCENTILE.INC(IF((MONTH(Data!$B$9:$B$4391)=AW$2)*(ISNUMBER(Data!$T$9:$T$4391)),Data!$T$9:$T$4391),1-'Monthly Exceedance'!$A10) -> 1897.614075 | AX10: =_xlfn.PERCENTILE.INC(IF((MONTH(Data!$B$9:$B$4391)=AX$2)*(ISNUMBER(Data!$T$9:$T$4391)),Data!$T$9:$T$4391),1-'Monthly Exceedance'!$A10) -> 2006.763268 | AY10: =_xlfn.PERCENTILE.INC(IF((MONTH(Data!$B$9:$B$4391)=AY$2)*(ISNUMBER(Data!$T$9:$T$4391)),Data!$T$9:$T$4391),1-'Monthly Exceedance'!$A10) -> 1982.19405 | AZ10: =_xlfn.PERCENTILE.INC(IF((MONTH(Data!$B$9:$B$4391)=AZ$2)*(ISNUMBER(Data!$T$9:$T$4391)),Data!$T$9:$T$4391),1-'Monthly Exceedance'!$A10) -> 1949.270751 | BA10: =_xlfn.PERCENTILE.INC(IF((MONTH(Data!$B$9:$B$4391)=BA$2)*(ISNUMBER(Data!$T$9:$T$4391)),Data!$T$9:$T$4391),1-'Monthly Exceedance'!$A10) -> 1860.66375 | BB10: =_xlfn.PERCENTILE.INC(IF((MONTH(Data!$B$9:$B$4391)=BB$2)*(ISNUMBER(Data!$T$9:$T$4391)),Data!$T$9:$T$4391),1-'Monthly Exceedance'!$A10) -> 1921.674976 | BC10: =_xlfn.PERCENTILE.INC(IF((MONTH(Data!$B$9:$B$4391)=BC$2)*(ISNUMBER(Data!$T$9:$T$4391)),Data!$T$9:$T$4391),1-'Monthly Exceedance'!$A10) -> 2022.775083 | BE10: 0.06 | BF10: =_xlfn.PERCENTILE.INC(IF((MONTH(Data!$B$9:$B$4391)=BF$2)*(ISNUMBER(Data!$R$9:$R$4391)),Data!$R$9:$R$4391),1-'Monthly Exceedance'!$A10) -> 1671.5125 | BG10: =_xlfn.PERCENTILE.INC(IF((MONTH(Data!$B$9:$B$4391)=BG$2)*(ISNUMBER(Data!$R$9:$R$4391)),Data!$R$9:$R$4391),1-'Monthly Exceedance'!$A10) -> 1690.117415 | BH10: =_xlfn.PERCENTILE.INC(IF((MONTH(Data!$B$9:$B$4391)=BH$2)*(ISNUMBER(Data!$R$9:$R$4391)),Data!$R$9:$R$4391),1-'Monthly Exceedance'!$A10) -> 1580.792316 | BI10: =_xlfn.PERCENTILE.INC(IF((MONTH(Data!$B$9:$B$4391)=BI$2)*(ISNUMBER(Data!$R$9:$R$4391)),Data!$R$9:$R$4391),1-'Monthly Exceedance'!$A10) -> 1904.6 | BJ10: =_xlfn.PERCENTILE.INC(IF((MONTH(Data!$B$9:$B$4391)=BJ$2)*(ISNUMBER(Data!$R$9:$R$4391)),Data!$R$9:$R$4391),1-'Monthly Exceedance'!$A10) -> 1790 | BK10: =_xlfn.PERCENTILE.INC(IF((MONTH(Data!$B$9:$B$4391)=BK$2)*(ISNUMBER(Data!$R$9:$R$4391)),Data!$R$9:$R$4391),1-'Monthly Exceedance'!$A10) -> 1813.183775 | BL10: =_xlfn.PERCENTILE.INC(IF((MONTH(Data!$B$9:$B$4391)=BL$2)*(ISNUMBER(Data!$R$9:$R$4391)),Data!$R$9:$R$4391),1-'Monthly Exceedance'!$A10) -> 1922.520833 | BM10: =_xlfn.PERCENTILE.INC(IF((MONTH(Data!$B$9:$B$4391)=BM$2)*(ISNUMBER(Data!$R$9:$R$4391)),Data!$R$9:$R$4391),1-'Monthly Exceedance'!$A10) -> 1901.457113 | BN10: =_xlfn.PERCENTILE.INC(IF((MONTH(Data!$B$9:$B$4391)=BN$2)*(ISNUMBER(Data!$R$9:$R$4391)),Data!$R$9:$R$4391),1-'Monthly Exceedance'!$A10) -> 1955.816667 | BO10: =_xlfn.PERCENTILE.INC(IF((MONTH(Data!$B$9:$B$4391)=BO$2)*(ISNUMBER(Data!$R$9:$R$4391)),Data!$R$9:$R$4391),1-'Monthly Exceedance'!$A10) -> 1801.885583 | BP10: =_xlfn.PERCENTILE.INC(IF((MONTH(Data!$B$9:$B$4391)=BP$2)*(ISNUMBER(Data!$R$9:$R$4391)),Data!$R$9:$R$4391),1-'Monthly Exceedance'!$A10) -> 1760.615052 | BQ10: =_xlfn.PERCENTILE.INC(IF((MONTH(Data!$B$9:$B$4391)=BQ$2)*(ISNUMBER(Data!$R$9:$R$4391)),Data!$R$9:$R$4391),1-'Monthly Exceedance'!$A10) -> 1635.43525 | BS10: 0.06 | BT10: =_xlfn.PERCENTILE.INC(IF((MONTH(Data!$B$9:$B$4391)=BT$2)*(ISNUMBER(Data!$U$9:$U$4391)),Data!$U$9:$U$4391),1-'Monthly Exceedance'!$A10) -> 1687.039417 | BU10: =_xlfn.PERCENTILE.INC(IF((MONTH(Data!$B$9:$B$4391)=BU$2)*(ISNUMBER(Data!$U$9:$U$4391)),Data!$U$9:$U$4391),1-'Monthly Exceedance'!$A10) -> 1713.056963 | BV10: =_xlfn.PERCENTILE.INC(IF((MONTH(Data!$B$9:$B$4391)=BV$2)*(ISNUMBER(Data!$U$9:$U$4391)),Data!$U$9:$U$4391),1-'Monthly Exceedance'!$A10) -> 1614.793924 | BW10: =_xlfn.PERCENTILE.INC(IF((MONTH(Data!$B$9:$B$4391)=BW$2)*(ISNUMBER(Data!$U$9:$U$4391)),Data!$U$9:$U$4391),1-'Monthly Exceedance'!$A10) -> 1926.437416 | BX10: =_xlfn.PERCENTILE.INC(IF((MONTH(Data!$B$9:$B$4391)=BX$2)*(ISNUMBER(Data!$U$9:$U$4391)),Data!$U$9:$U$4391),1-'Monthly Exceedance'!$A10) -> 1824.503257 | BY10: =_xlfn.PERCENTILE.INC(IF((MONTH(Data!$B$9:$B$4391)=BY$2)*(ISNUMBER(Data!$U$9:$U$4391)),Data!$U$9:$U$4391),1-'Monthly Exceedance'!$A10) -> 1858.589167 | BZ10: =_xlfn.PERCENTILE.INC(IF((MONTH(Data!$B$9:$B$4391)=BZ$2)*(ISNUMBER(Data!$U$9:$U$4391)),Data!$U$9:$U$4391),1-'Monthly Exceedance'!$A10) -> 1938.189917 | CA10: =_xlfn.PERCENTILE.INC(IF((MONTH(Data!$B$9:$B$4391)=CA$2)*(ISNUMBER(Data!$U$9:$U$4391)),Data!$U$9:$U$4391),1-'Monthly Exceedance'!$A10) -> 1911.885584 | CB10: =_xlfn.PERCENTILE.INC(IF((MONTH(Data!$B$9:$B$4391)=CB$2)*(ISNUMBER(Data!$U$9:$U$4391)),Data!$U$9:$U$4391),1-'Monthly Exceedance'!$A10) -> 1979.4725 | CC10: =_xlfn.PERCENTILE.INC(IF((MONTH(Data!$B$9:$B$4391)=CC$2)*(ISNUMBER(Data!$U$9:$U$4391)),Data!$U$9:$U$4391),1-'Monthly Exceedance'!$A10) -> 1806.093583 | CD10: =_xlfn.PERCENTILE.INC(IF((MONTH(Data!$B$9:$B$4391)=CD$2)*(ISNUMBER(Data!$U$9:$U$4391)),Data!$U$9:$U$4391),1-'Monthly Exceedance'!$A10) -> 1835.38025 | CE10: =_xlfn.PERCENTILE.INC(IF((MONTH(Data!$B$9:$B$4391)=CE$2)*(ISNUMBER(Data!$U$9:$U$4391)),Data!$U$9:$U$4391),1-'Monthly Exceedance'!$A10) -> 1642.303417 | CG10: 0.06 | CH10: =_xlfn.PERCENTILE.INC(IF((MONTH(Data!$B$9:$B$4391)=CH$2)*(ISNUMBER(Data!$U$9:$U$4391)),Data!$N$9:$N$4391),1-'Monthly Exceedance'!$A10) -> 1670 | CI10: =_xlfn.PERCENTILE.INC(IF((MONTH(Data!$B$9:$B$4391)=CI$2)*(ISNUMBER(Data!$U$9:$U$4391)),Data!$N$9:$N$4391),1-'Monthly Exceedance'!$A10) -> 1690 | CJ10: =_xlfn.PERCENTILE.INC(IF((MONTH(Data!$B$9:$B$4391)=CJ$2)*(ISNUMBER(Data!$U$9:$U$4391)),Data!$N$9:$N$4391),1-'Monthly Exceedance'!$A10) -> 1580 | CK10: =_xlfn.PERCENTILE.INC(IF((MONTH(Data!$B$9:$B$4391)=CK$2)*(ISNUMBER(Data!$U$9:$U$4391)),Data!$N$9:$N$4391),1-'Monthly Exceedance'!$A10) -> 1904.6 | CL10: =_xlfn.PERCENTILE.INC(IF((MONTH(Data!$B$9:$B$4391)=CL$2)*(ISNUMBER(Data!$U$9:$U$4391)),Data!$N$9:$N$4391),1-'Monthly Exceedance'!$A10) -> 1790 | CM10: =_xlfn.PERCENTILE.INC(IF((MONTH(Data!$B$9:$B$4391)=CM$2)*(ISNUMBER(Data!$U$9:$U$4391)),Data!$N$9:$N$4391),1-'Monthly Exceedance'!$A10) -> 1810 | CN10: =_xlfn.PERCENTILE.INC(IF((MONTH(Data!$B$9:$B$4391)=CN$2)*(ISNUMBER(Data!$U$9:$U$4391)),Data!$N$9:$N$4391),1-'Monthly Exceedance'!$A10) -> 1920 | CO10: =_xlfn.PERCENTILE.INC(IF((MONTH(Data!$B$9:$B$4391)=CO$2)*(ISNUMBER(Data!$U$9:$U$4391)),Data!$N$9:$N$4391),1-'Monthly Exceedance'!$A10) -> 1900 | CP10: =_xlfn.PERCENTILE.INC(IF((MONTH(Data!$B$9:$B$4391)=CP$2)*(ISNUMBER(Data!$U$9:$U$4391)),Data!$N$9:$N$4391),1-'Monthly Exceedance'!$A10) -> 1953.8 | CQ10: =_xlfn.PERCENTILE.INC(IF((MONTH(Data!$B$9:$B$4391)=CQ$2)*(ISNUMBER(Data!$U$9:$U$4391)),Data!$N$9:$N$4391),1-'Monthly Exceedance'!$A10) -> 1800 | CR10: =_xlfn.PERCENTILE.INC(IF((MONTH(Data!$B$9:$B$4391)=CR$2)*(ISNUMBER(Data!$U$9:$U$4391)),Data!$N$9:$N$4391),1-'Monthly Exceedance'!$A10) -> 1760 | CS10: =_xlfn.PERCENTILE.INC(IF((MONTH(Data!$B$9:$B$4391)=CS$2)*(ISNUMBER(Data!$U$9:$U$4391)),Data!$N$9:$N$4391),1-'Monthly Exceedance'!$A10) -> 1634.8
A11: 0.07 | B11: =_xlfn.PERCENTILE.INC(IF((MONTH(Data!$B$9:$B$4391)=B$2)*(ISNUMBER(Data!$I$9:$I$4391)),Data!$I$9:$I$4391),1-'Monthly Exceedance'!$A11) -> 80.02974837 | C11: =_xlfn.PERCENTILE.INC(IF((MONTH(Data!$B$9:$B$4391)=C$2)*(ISNUMBER(Data!$I$9:$I$4391)),Data!$I$9:$I$4391),1-'Monthly Exceedance'!$A11) -> 116.5230014 | D11: =_xlfn.PERCENTILE.INC(IF((MONTH(Data!$B$9:$B$4391)=D$2)*(ISNUMBER(Data!$I$9:$I$4391)),Data!$I$9:$I$4391),1-'Monthly Exceedance'!$A11) -> 102.1940001 | E11: =_xlfn.PERCENTILE.INC(IF((MONTH(Data!$B$9:$B$4391)=E$2)*(ISNUMBER(Data!$I$9:$I$4391)),Data!$I$9:$I$4391),1-'Monthly Exceedance'!$A11) -> 77.52916463 | F11: =_xlfn.PERCENTILE.INC(IF((MONTH(Data!$B$9:$B$4391)=F$2)*(ISNUMBER(Data!$I$9:$I$4391)),Data!$I$9:$I$4391),1-'Monthly Exceedance'!$A11) -> 30.40599951 | G11: =_xlfn.PERCENTILE.INC(IF((MONTH(Data!$B$9:$B$4391)=G$2)*(ISNUMBER(Data!$I$9:$I$4391)),Data!$I$9:$I$4391),1-'Monthly Exceedance'!$A11) -> 12.396667 | H11: =_xlfn.PERCENTILE.INC(IF((MONTH(Data!$B$9:$B$4391)=H$2)*(ISNUMBER(Data!$I$9:$I$4391)),Data!$I$9:$I$4391),1-'Monthly Exceedance'!$A11) -> 3.347683137 | I11: =_xlfn.PERCENTILE.INC(IF((MONTH(Data!$B$9:$B$4391)=I$2)*(ISNUMBER(Data!$I$9:$I$4391)),Data!$I$9:$I$4391),1-'Monthly Exceedance'!$A11) -> 1.63613338 | J11: =_xlfn.PERCENTILE.INC(IF((MONTH(Data!$B$9:$B$4391)=J$2)*(ISNUMBER(Data!$I$9:$I$4391)),Data!$I$9:$I$4391),1-'Monthly Exceedance'!$A11) -> 0.6629999906 | K11: =_xlfn.PERCENTILE.INC(IF((MONTH(Data!$B$9:$B$4391)=K$2)*(ISNUMBER(Data!$I$9:$I$4391)),Data!$I$9:$I$4391),1-'Monthly Exceedance'!$A11) -> 1.687916609 | L11: =_xlfn.PERCENTILE.INC(IF((MONTH(Data!$B$9:$B$4391)=L$2)*(ISNUMBER(Data!$I$9:$I$4391)),Data!$I$9:$I$4391),1-'Monthly Exceedance'!$A11) -> 3.844483539 | M11: =_xlfn.PERCENTILE.INC(IF((MONTH(Data!$B$9:$B$4391)=M$2)*(ISNUMBER(Data!$I$9:$I$4391)),Data!$I$9:$I$4391),1-'Monthly Exceedance'!$A11) -> 28.07619913 | O11: 0.07 | P11: =_xlfn.PERCENTILE.INC(IF((MONTH(Data!$B$9:$B$4391)=P$2)*(ISNUMBER(Data!$S$9:$S$4391)),Data!$S$9:$S$4391),1-'Monthly Exceedance'!$A11) -> 51.72214132 | Q11: =_xlfn.PERCENTILE.INC(IF((MONTH(Data!$B$9:$B$4391)=Q$2)*(ISNUMBER(Data!$S$9:$S$4391)),Data!$S$9:$S$4391),1-'Monthly Exceedance'!$A11) -> 53.68373477 | R11: =_xlfn.PERCENTILE.INC(IF((MONTH(Data!$B$9:$B$4391)=R$2)*(ISNUMBER(Data!$S$9:$S$4391)),Data!$S$9:$S$4391),1-'Monthly Exceedance'!$A11) -> 101.00001 | S11: =_xlfn.PERCENTILE.INC(IF((MONTH(Data!$B$9:$B$4391)=S$2)*(ISNUMBER(Data!$S$9:$S$4391)),Data!$S$9:$S$4391),1-'Monthly Exceedance'!$A11) -> 68.60474969 | T11: =_xlfn.PERCENTILE.INC(IF((MONTH(Data!$B$9:$B$4391)=T$2)*(ISNUMBER(Data!$S$9:$S$4391)),Data!$S$9:$S$4391),1-'Monthly Exceedance'!$A11) -> 41.00000996 | U11: =_xlfn.PERCENTILE.INC(IF((MONTH(Data!$B$9:$B$4391)=U$2)*(ISNUMBER(Data!$S$9:$S$4391)),Data!$S$9:$S$4391),1-'Monthly Exceedance'!$A11) -> 58.301125 | V11: =_xlfn.PERCENTILE.INC(IF((MONTH(Data!$B$9:$B$4391)=V$2)*(ISNUMBER(Data!$S$9:$S$4391)),Data!$S$9:$S$4391),1-'Monthly Exceedance'!$A11) -> 33.01410907 | W11: =_xlfn.PERCENTILE.INC(IF((MONTH(Data!$B$9:$B$4391)=W$2)*(ISNUMBER(Data!$S$9:$S$4391)),Data!$S$9:$S$4391),1-'Monthly Exceedance'!$A11) -> 15.30000019 | X11: =_xlfn.PERCENTILE.INC(IF((MONTH(Data!$B$9:$B$4391)=X$2)*(ISNUMBER(Data!$S$9:$S$4391)),Data!$S$9:$S$4391),1-'Monthly Exceedance'!$A11) -> 15.19999981 | Y11: =_xlfn.PERCENTILE.INC(IF((MONTH(Data!$B$9:$B$4391)=Y$2)*(ISNUMBER(Data!$S$9:$S$4391)),Data!$S$9:$S$4391),1-'Monthly Exceedance'!$A11) -> 52 | Z11: =_xlfn.PERCENTILE.INC(IF((MONTH(Data!$B$9:$B$4391)=Z$2)*(ISNUMBER(Data!$S$9:$S$4391)),Data!$S$9:$S$4391),1-'Monthly Exceedance'!$A11) -> 102 | AA11: =_xlfn.PERCENTILE.INC(IF((MONTH(Data!$B$9:$B$4391)=AA$2)*(ISNUMBER(Data!$S$9:$S$4391)),Data!$S$9:$S$4391),1-'Monthly Exceedance'!$A11) -> 100.4376483 | AC11: 0.07 | AD11: =_xlfn.PERCENTILE.INC(IF((MONTH(Data!$B$9:$B$4391)=AD$2)*(ISNUMBER(Data!$O$9:$O$4391)),Data!$O$9:$O$4391),1-'Monthly Exceedance'!$A11) -> 1732 | AE11: =_xlfn.PERCENTILE.INC(IF((MONTH(Data!$B$9:$B$4391)=AE$2)*(ISNUMBER(Data!$O$9:$O$4391)),Data!$O$9:$O$4391),1-'Monthly Exceedance'!$A11) -> 1850.34 | AF11: =_xlfn.PERCENTILE.INC(IF((MONTH(Data!$B$9:$B$4391)=AF$2)*(ISNUMBER(Data!$O$9:$O$4391)),Data!$O$9:$O$4391),1-'Monthly Exceedance'!$A11) -> 1640.109875 | AG11: =_xlfn.PERCENTILE.INC(IF((MONTH(Data!$B$9:$B$4391)=AG$2)*(ISNUMBER(Data!$O$9:$O$4391)),Data!$O$9:$O$4391),1-'Monthly Exceedance'!$A11) -> 1926.14625 | AH11: =_xlfn.PERCENTILE.INC(IF((MONTH(Data!$B$9:$B$4391)=AH$2)*(ISNUMBER(Data!$O$9:$O$4391)),Data!$O$9:$O$4391),1-'Monthly Exceedance'!$A11) -> 1953.51875 | AI11: =_xlfn.PERCENTILE.INC(IF((MONTH(Data!$B$9:$B$4391)=AI$2)*(ISNUMBER(Data!$O$9:$O$4391)),Data!$O$9:$O$4391),1-'Monthly Exceedance'!$A11) -> 1882.865333 | AJ11: =_xlfn.PERCENTILE.INC(IF((MONTH(Data!$B$9:$B$4391)=AJ$2)*(ISNUMBER(Data!$O$9:$O$4391)),Data!$O$9:$O$4391),1-'Monthly Exceedance'!$A11) -> 1992.210625 | AK11: =_xlfn.PERCENTILE.INC(IF((MONTH(Data!$B$9:$B$4391)=AK$2)*(ISNUMBER(Data!$O$9:$O$4391)),Data!$O$9:$O$4391),1-'Monthly Exceedance'!$A11) -> 1980 | AL11: =_xlfn.PERCENTILE.INC(IF((MONTH(Data!$B$9:$B$4391)=AL$2)*(ISNUMBER(Data!$O$9:$O$4391)),Data!$O$9:$O$4391),1-'Monthly Exceedance'!$A11) -> 1940 | AM11: =_xlfn.PERCENTILE.INC(IF((MONTH(Data!$B$9:$B$4391)=AM$2)*(ISNUMBER(Data!$O$9:$O$4391)),Data!$O$9:$O$4391),1-'Monthly Exceedance'!$A11) -> 1850.045 | AN11: =_xlfn.PERCENTILE.INC(IF((MONTH(Data!$B$9:$B$4391)=AN$2)*(ISNUMBER(Data!$O$9:$O$4391)),Data!$O$9:$O$4391),1-'Monthly Exceedance'!$A11) -> 1900 | AO11: =_xlfn.PERCENTILE.INC(IF((MONTH(Data!$B$9:$B$4391)=AO$2)*(ISNUMBER(Data!$O$9:$O$4391)),Data!$O$9:$O$4391),1-'Monthly Exceedance'!$A11) -> 1890 | AQ11: 0.07 | AR11: =_xlfn.PERCENTILE.INC(IF((MONTH(Data!$B$9:$B$4391)=AR$2)*(ISNUMBER(Data!$T$9:$T$4391)),Data!$T$9:$T$4391),1-'Monthly Exceedance'!$A11) -> 1743.6393 | AS11: =_xlfn.PERCENTILE.INC(IF((MONTH(Data!$B$9:$B$4391)=AS$2)*(ISNUMBER(Data!$T$9:$T$4391)),Data!$T$9:$T$4391),1-'Monthly Exceedance'!$A11) -> 1896.856667 | AT11: =_xlfn.PERCENTILE.INC(IF((MONTH(Data!$B$9:$B$4391)=AT$2)*(ISNUMBER(Data!$T$9:$T$4391)),Data!$T$9:$T$4391),1-'Monthly Exceedance'!$A11) -> 1703.100249 | AU11: =_xlfn.PERCENTILE.INC(IF((MONTH(Data!$B$9:$B$4391)=AU$2)*(ISNUMBER(Data!$T$9:$T$4391)),Data!$T$9:$T$4391),1-'Monthly Exceedance'!$A11) -> 1934.449296 | AV11: =_xlfn.PERCENTILE.INC(IF((MONTH(Data!$B$9:$B$4391)=AV$2)*(ISNUMBER(Data!$T$9:$T$4391)),Data!$T$9:$T$4391),1-'Monthly Exceedance'!$A11) -> 1967.902 | AW11: =_xlfn.PERCENTILE.INC(IF((MONTH(Data!$B$9:$B$4391)=AW$2)*(ISNUMBER(Data!$T$9:$T$4391)),Data!$T$9:$T$4391),1-'Monthly Exceedance'!$A11) -> 1885.5611 | AX11: =_xlfn.PERCENTILE.INC(IF((MONTH(Data!$B$9:$B$4391)=AX$2)*(ISNUMBER(Data!$T$9:$T$4391)),Data!$T$9:$T$4391),1-'Monthly Exceedance'!$A11) -> 1995.379696 | AY11: =_xlfn.PERCENTILE.INC(IF((MONTH(Data!$B$9:$B$4391)=AY$2)*(ISNUMBER(Data!$T$9:$T$4391)),Data!$T$9:$T$4391),1-'Monthly Exceedance'!$A11) -> 1980.037501 | AZ11: =_xlfn.PERCENTILE.INC(IF((MONTH(Data!$B$9:$B$4391)=AZ$2)*(ISNUMBER(Data!$T$9:$T$4391)),Data!$T$9:$T$4391),1-'Monthly Exceedance'!$A11) -> 1940.36958 | BA11: =_xlfn.PERCENTILE.INC(IF((MONTH(Data!$B$9:$B$4391)=BA$2)*(ISNUMBER(Data!$T$9:$T$4391)),Data!$T$9:$T$4391),1-'Monthly Exceedance'!$A11) -> 1850.045001 | BB11: =_xlfn.PERCENTILE.INC(IF((MONTH(Data!$B$9:$B$4391)=BB$2)*(ISNUMBER(Data!$T$9:$T$4391)),Data!$T$9:$T$4391),1-'Monthly Exceedance'!$A11) -> 1903.217722 | BC11: =_xlfn.PERCENTILE.INC(IF((MONTH(Data!$B$9:$B$4391)=BC$2)*(ISNUMBER(Data!$T$9:$T$4391)),Data!$T$9:$T$4391),1-'Monthly Exceedance'!$A11) -> 1953.827084 | BE11: 0.07 | BF11: =_xlfn.PERCENTILE.INC(IF((MONTH(Data!$B$9:$B$4391)=BF$2)*(ISNUMBER(Data!$R$9:$R$4391)),Data!$R$9:$R$4391),1-'Monthly Exceedance'!$A11) -> 1653.723292 | BG11: =_xlfn.PERCENTILE.INC(IF((MONTH(Data!$B$9:$B$4391)=BG$2)*(ISNUMBER(Data!$R$9:$R$4391)),Data!$R$9:$R$4391),1-'Monthly Exceedance'!$A11) -> 1680.86152 | BH11: =_xlfn.PERCENTILE.INC(IF((MONTH(Data!$B$9:$B$4391)=BH$2)*(ISNUMBER(Data!$R$9:$R$4391)),Data!$R$9:$R$4391),1-'Monthly Exceedance'!$A11) -> 1560.001866 | BI11: =_xlfn.PERCENTILE.INC(IF((MONTH(Data!$B$9:$B$4391)=BI$2)*(ISNUMBER(Data!$R$9:$R$4391)),Data!$R$9:$R$4391),1-'Monthly Exceedance'!$A11) -> 1837.4 | BJ11: =_xlfn.PERCENTILE.INC(IF((MONTH(Data!$B$9:$B$4391)=BJ$2)*(ISNUMBER(Data!$R$9:$R$4391)),Data!$R$9:$R$4391),1-'Monthly Exceedance'!$A11) -> 1770.3 | BK11: =_xlfn.PERCENTILE.INC(IF((MONTH(Data!$B$9:$B$4391)=BK$2)*(ISNUMBER(Data!$R$9:$R$4391)),Data!$R$9:$R$4391),1-'Monthly Exceedance'!$A11) -> 1802.345353 | BL11: =_xlfn.PERCENTILE.INC(IF((MONTH(Data!$B$9:$B$4391)=BL$2)*(ISNUMBER(Data!$R$9:$R$4391)),Data!$R$9:$R$4391),1-'Monthly Exceedance'!$A11) -> 1920.942767 | BM11: =_xlfn.PERCENTILE.INC(IF((MONTH(Data!$B$9:$B$4391)=BM$2)*(ISNUMBER(Data!$R$9:$R$4391)),Data!$R$9:$R$4391),1-'Monthly Exceedance'!$A11) -> 1892.535958 | BN11: =_xlfn.PERCENTILE.INC(IF((MONTH(Data!$B$9:$B$4391)=BN$2)*(ISNUMBER(Data!$R$9:$R$4391)),Data!$R$9:$R$4391),1-'Monthly Exceedance'!$A11) -> 1910.978833 | BO11: =_xlfn.PERCENTILE.INC(IF((MONTH(Data!$B$9:$B$4391)=BO$2)*(ISNUMBER(Data!$R$9:$R$4391)),Data!$R$9:$R$4391),1-'Monthly Exceedance'!$A11) -> 1781.39024 | BP11: =_xlfn.PERCENTILE.INC(IF((MONTH(Data!$B$9:$B$4391)=BP$2)*(ISNUMBER(Data!$R$9:$R$4391)),Data!$R$9:$R$4391),1-'Monthly Exceedance'!$A11) -> 1747.662174 | BQ11: =_xlfn.PERCENTILE.INC(IF((MONTH(Data!$B$9:$B$4391)=BQ$2)*(ISNUMBER(Data!$R$9:$R$4391)),Data!$R$9:$R$4391),1-'Monthly Exceedance'!$A11) -> 1611.78225 | BS11: 0.07 | BT11: =_xlfn.PERCENTILE.INC(IF((MONTH(Data!$B$9:$B$4391)=BT$2)*(ISNUMBER(Data!$U$9:$U$4391)),Data!$U$9:$U$4391),1-'Monthly Exceedance'!$A11) -> 1662.452664 | BU11: =_xlfn.PERCENTILE.INC(IF((MONTH(Data!$B$9:$B$4391)=BU$2)*(ISNUMBER(Data!$U$9:$U$4391)),Data!$U$9:$U$4391),1-'Monthly Exceedance'!$A11) -> 1703.5125 | BV11: =_xlfn.PERCENTILE.INC(IF((MONTH(Data!$B$9:$B$4391)=BV$2)*(ISNUMBER(Data!$U$9:$U$4391)),Data!$U$9:$U$4391),1-'Monthly Exceedance'!$A11) -> 1594.839162 | BW11: =_xlfn.PERCENTILE.INC(IF((MONTH(Data!$B$9:$B$4391)=BW$2)*(ISNUMBER(Data!$U$9:$U$4391)),Data!$U$9:$U$4391),1-'Monthly Exceedance'!$A11) -> 1883.442792 | BX11: =_xlfn.PERCENTILE.INC(IF((MONTH(Data!$B$9:$B$4391)=BX$2)*(ISNUMBER(Data!$U$9:$U$4391)),Data!$U$9:$U$4391),1-'Monthly Exceedance'!$A11) -> 1785.119292 | BY11: =_xlfn.PERCENTILE.INC(IF((MONTH(Data!$B$9:$B$4391)=BY$2)*(ISNUMBER(Data!$U$9:$U$4391)),Data!$U$9:$U$4391),1-'Monthly Exceedance'!$A11) -> 1850.325292 | BZ11: =_xlfn.PERCENTILE.INC(IF((MONTH(Data!$B$9:$B$4391)=BZ$2)*(ISNUMBER(Data!$U$9:$U$4391)),Data!$U$9:$U$4391),1-'Monthly Exceedance'!$A11) -> 1933.174546 | CA11: =_xlfn.PERCENTILE.INC(IF((MONTH(Data!$B$9:$B$4391)=CA$2)*(ISNUMBER(Data!$U$9:$U$4391)),Data!$U$9:$U$4391),1-'Monthly Exceedance'!$A11) -> 1907.832959 | CB11: =_xlfn.PERCENTILE.INC(IF((MONTH(Data!$B$9:$B$4391)=CB$2)*(ISNUMBER(Data!$U$9:$U$4391)),Data!$U$9:$U$4391),1-'Monthly Exceedance'!$A11) -> 1940.716668 | CC11: =_xlfn.PERCENTILE.INC(IF((MONTH(Data!$B$9:$B$4391)=CC$2)*(ISNUMBER(Data!$U$9:$U$4391)),Data!$U$9:$U$4391),1-'Monthly Exceedance'!$A11) -> 1787.074625 | CD11: =_xlfn.PERCENTILE.INC(IF((MONTH(Data!$B$9:$B$4391)=CD$2)*(ISNUMBER(Data!$U$9:$U$4391)),Data!$U$9:$U$4391),1-'Monthly Exceedance'!$A11) -> 1799.145876 | CE11: =_xlfn.PERCENTILE.INC(IF((MONTH(Data!$B$9:$B$4391)=CE$2)*(ISNUMBER(Data!$U$9:$U$4391)),Data!$U$9:$U$4391),1-'Monthly Exceedance'!$A11) -> 1640.519793 | CG11: 0.07 | CH11: =_xlfn.PERCENTILE.INC(IF((MONTH(Data!$B$9:$B$4391)=CH$2)*(ISNUMBER(Data!$U$9:$U$4391)),Data!$N$9:$N$4391),1-'Monthly Exceedance'!$A11) -> 1650.3 | CI11: =_xlfn.PERCENTILE.INC(IF((MONTH(Data!$B$9:$B$4391)=CI$2)*(ISNUMBER(Data!$U$9:$U$4391)),Data!$N$9:$N$4391),1-'Monthly Exceedance'!$A11) -> 1680 | CJ11: =_xlfn.PERCENTILE.INC(IF((MONTH(Data!$B$9:$B$4391)=CJ$2)*(ISNUMBER(Data!$U$9:$U$4391)),Data!$N$9:$N$4391),1-'Monthly Exceedance'!$A11) -> 1560 | CK11: =_xlfn.PERCENTILE.INC(IF((MONTH(Data!$B$9:$B$4391)=CK$2)*(ISNUMBER(Data!$U$9:$U$4391)),Data!$N$9:$N$4391),1-'Monthly Exceedance'!$A11) -> 1837.4 | CL11: =_xlfn.PERCENTILE.INC(IF((MONTH(Data!$B$9:$B$4391)=CL$2)*(ISNUMBER(Data!$U$9:$U$4391)),Data!$N$9:$N$4391),1-'Monthly Exceedance'!$A11) -> 1770.3 | CM11: =_xlfn.PERCENTILE.INC(IF((MONTH(Data!$B$9:$B$4391)=CM$2)*(ISNUMBER(Data!$U$9:$U$4391)),Data!$N$9:$N$4391),1-'Monthly Exceedance'!$A11) -> 1800 | CN11: =_xlfn.PERCENTILE.INC(IF((MONTH(Data!$B$9:$B$4391)=CN$2)*(ISNUMBER(Data!$U$9:$U$4391)),Data!$N$9:$N$4391),1-'Monthly Exceedance'!$A11) -> 1920 | CO11: =_xlfn.PERCENTILE.INC(IF((MONTH(Data!$B$9:$B$4391)=CO$2)*(ISNUMBER(Data!$U$9:$U$4391)),Data!$N$9:$N$4391),1-'Monthly Exceedance'!$A11) -> 1890 | CP11: =_xlfn.PERCENTILE.INC(IF((MONTH(Data!$B$9:$B$4391)=CP$2)*(ISNUMBER(Data!$U$9:$U$4391)),Data!$N$9:$N$4391),1-'Monthly Exceedance'!$A11) -> 1908.7 | CQ11: =_xlfn.PERCENTILE.INC(IF((MONTH(Data!$B$9:$B$4391)=CQ$2)*(ISNUMBER(Data!$U$9:$U$4391)),Data!$N$9:$N$4391),1-'Monthly Exceedance'!$A11) -> 1780 | CR11: =_xlfn.PERCENTILE.INC(IF((MONTH(Data!$B$9:$B$4391)=CR$2)*(ISNUMBER(Data!$U$9:$U$4391)),Data!$N$9:$N$4391),1-'Monthly Exceedance'!$A11) -> 1747.4 | CS11: =_xlfn.PERCENTILE.INC(IF((MONTH(Data!$B$9:$B$4391)=CS$2)*(ISNUMBER(Data!$U$9:$U$4391)),Data!$N$9:$N$4391),1-'Monthly Exceedance'!$A11) -> 1610.3
A12: 0.08 | B12: =_xlfn.PERCENTILE.INC(IF((MONTH(Data!$B$9:$B$4391)=B$2)*(ISNUMBER(Data!$I$9:$I$4391)),Data!$I$9:$I$4391),1-'Monthly Exceedance'!$A12) -> 77.12116597 | C12: =_xlfn.PERCENTILE.INC(IF((MONTH(Data!$B$9:$B$4391)=C$2)*(ISNUMBER(Data!$I$9:$I$4391)),Data!$I$9:$I$4391),1-'Monthly Exceedance'!$A12) -> 108.8900007 | D12: =_xlfn.PERCENTILE.INC(IF((MONTH(Data!$B$9:$B$4391)=D$2)*(ISNUMBER(Data!$I$9:$I$4391)),Data!$I$9:$I$4391),1-'Monthly Exceedance'!$A12) -> 90.08366793 | E12: =_xlfn.PERCENTILE.INC(IF((MONTH(Data!$B$9:$B$4391)=E$2)*(ISNUMBER(Data!$I$9:$I$4391)),Data!$I$9:$I$4391),1-'Monthly Exceedance'!$A12) -> 72.23333599 | F12: =_xlfn.PERCENTILE.INC(IF((MONTH(Data!$B$9:$B$4391)=F$2)*(ISNUMBER(Data!$I$9:$I$4391)),Data!$I$9:$I$4391),1-'Monthly Exceedance'!$A12) -> 28.86399963 | G12: =_xlfn.PERCENTILE.INC(IF((MONTH(Data!$B$9:$B$4391)=G$2)*(ISNUMBER(Data!$I$9:$I$4391)),Data!$I$9:$I$4391),1-'Monthly Exceedance'!$A12) -> 11.70866705 | H12: =_xlfn.PERCENTILE.INC(IF((MONTH(Data!$B$9:$B$4391)=H$2)*(ISNUMBER(Data!$I$9:$I$4391)),Data!$I$9:$I$4391),1-'Monthly Exceedance'!$A12) -> 3.111883233 | I12: =_xlfn.PERCENTILE.INC(IF((MONTH(Data!$B$9:$B$4391)=I$2)*(ISNUMBER(Data!$I$9:$I$4391)),Data!$I$9:$I$4391),1-'Monthly Exceedance'!$A12) -> 1.451133242 | J12: =_xlfn.PERCENTILE.INC(IF((MONTH(Data!$B$9:$B$4391)=J$2)*(ISNUMBER(Data!$I$9:$I$4391)),Data!$I$9:$I$4391),1-'Monthly Exceedance'!$A12) -> 0.6629999906 | K12: =_xlfn.PERCENTILE.INC(IF((MONTH(Data!$B$9:$B$4391)=K$2)*(ISNUMBER(Data!$I$9:$I$4391)),Data!$I$9:$I$4391),1-'Monthly Exceedance'!$A12) -> 1.639033387 | L12: =_xlfn.PERCENTILE.INC(IF((MONTH(Data!$B$9:$B$4391)=L$2)*(ISNUMBER(Data!$I$9:$I$4391)),Data!$I$9:$I$4391),1-'Monthly Exceedance'!$A12) -> 3.647083352 | M12: =_xlfn.PERCENTILE.INC(IF((MONTH(Data!$B$9:$B$4391)=M$2)*(ISNUMBER(Data!$I$9:$I$4391)),Data!$I$9:$I$4391),1-'Monthly Exceedance'!$A12) -> 19.47591702 | O12: 0.08 | P12: =_xlfn.PERCENTILE.INC(IF((MONTH(Data!$B$9:$B$4391)=P$2)*(ISNUMBER(Data!$S$9:$S$4391)),Data!$S$9:$S$4391),1-'Monthly Exceedance'!$A12) -> 50 | Q12: =_xlfn.PERCENTILE.INC(IF((MONTH(Data!$B$9:$B$4391)=Q$2)*(ISNUMBER(Data!$S$9:$S$4391)),Data!$S$9:$S$4391),1-'Monthly Exceedance'!$A12) -> 53.01597876 | R12: =_xlfn.PERCENTILE.INC(IF((MONTH(Data!$B$9:$B$4391)=R$2)*(ISNUMBER(Data!$S$9:$S$4391)),Data!$S$9:$S$4391),1-'Monthly Exceedance'!$A12) -> 101.00001 | S12: =_xlfn.PERCENTILE.INC(IF((MONTH(Data!$B$9:$B$4391)=S$2)*(ISNUMBER(Data!$S$9:$S$4391)),Data!$S$9:$S$4391),1-'Monthly Exceedance'!$A12) -> 68.50028929 | T12: =_xlfn.PERCENTILE.INC(IF((MONTH(Data!$B$9:$B$4391)=T$2)*(ISNUMBER(Data!$S$9:$S$4391)),Data!$S$9:$S$4391),1-'Monthly Exceedance'!$A12) -> 39.30537683 | U12: =_xlfn.PERCENTILE.INC(IF((MONTH(Data!$B$9:$B$4391)=U$2)*(ISNUMBER(Data!$S$9:$S$4391)),Data!$S$9:$S$4391),1-'Monthly Exceedance'!$A12) -> 44.01599448 | V12: =_xlfn.PERCENTILE.INC(IF((MONTH(Data!$B$9:$B$4391)=V$2)*(ISNUMBER(Data!$S$9:$S$4391)),Data!$S$9:$S$4391),1-'Monthly Exceedance'!$A12) -> 32.67650757 | W12: =_xlfn.PERCENTILE.INC(IF((MONTH(Data!$B$9:$B$4391)=W$2)*(ISNUMBER(Data!$S$9:$S$4391)),Data!$S$9:$S$4391),1-'Monthly Exceedance'!$A12) -> 15.30000019 | X12: =_xlfn.PERCENTILE.INC(IF((MONTH(Data!$B$9:$B$4391)=X$2)*(ISNUMBER(Data!$S$9:$S$4391)),Data!$S$9:$S$4391),1-'Monthly Exceedance'!$A12) -> 14.19200008 | Y12: =_xlfn.PERCENTILE.INC(IF((MONTH(Data!$B$9:$B$4391)=Y$2)*(ISNUMBER(Data!$S$9:$S$4391)),Data!$S$9:$S$4391),1-'Monthly Exceedance'!$A12) -> 50 | Z12: =_xlfn.PERCENTILE.INC(IF((MONTH(Data!$B$9:$B$4391)=Z$2)*(ISNUMBER(Data!$S$9:$S$4391)),Data!$S$9:$S$4391),1-'Monthly Exceedance'!$A12) -> 100.2688868 | AA12: =_xlfn.PERCENTILE.INC(IF((MONTH(Data!$B$9:$B$4391)=AA$2)*(ISNUMBER(Data!$S$9:$S$4391)),Data!$S$9:$S$4391),1-'Monthly Exceedance'!$A12) -> 98.67293303 | AC12: 0.08 | AD12: =_xlfn.PERCENTILE.INC(IF((MONTH(Data!$B$9:$B$4391)=AD$2)*(ISNUMBER(Data!$O$9:$O$4391)),Data!$O$9:$O$4391),1-'Monthly Exceedance'!$A12) -> 1724.912 | AE12: =_xlfn.PERCENTILE.INC(IF((MONTH(Data!$B$9:$B$4391)=AE$2)*(ISNUMBER(Data!$O$9:$O$4391)),Data!$O$9:$O$4391),1-'Monthly Exceedance'!$A12) -> 1831.96 | AF12: =_xlfn.PERCENTILE.INC(IF((MONTH(Data!$B$9:$B$4391)=AF$2)*(ISNUMBER(Data!$O$9:$O$4391)),Data!$O$9:$O$4391),1-'Monthly Exceedance'!$A12) -> 1613.2 | AG12: =_xlfn.PERCENTILE.INC(IF((MONTH(Data!$B$9:$B$4391)=AG$2)*(ISNUMBER(Data!$O$9:$O$4391)),Data!$O$9:$O$4391),1-'Monthly Exceedance'!$A12) -> 1902.1695 | AH12: =_xlfn.PERCENTILE.INC(IF((MONTH(Data!$B$9:$B$4391)=AH$2)*(ISNUMBER(Data!$O$9:$O$4391)),Data!$O$9:$O$4391),1-'Monthly Exceedance'!$A12) -> 1944.801333 | AI12: =_xlfn.PERCENTILE.INC(IF((MONTH(Data!$B$9:$B$4391)=AI$2)*(ISNUMBER(Data!$O$9:$O$4391)),Data!$O$9:$O$4391),1-'Monthly Exceedance'!$A12) -> 1880.0315 | AJ12: =_xlfn.PERCENTILE.INC(IF((MONTH(Data!$B$9:$B$4391)=AJ$2)*(ISNUMBER(Data!$O$9:$O$4391)),Data!$O$9:$O$4391),1-'Monthly Exceedance'!$A12) -> 1985.535 | AK12: =_xlfn.PERCENTILE.INC(IF((MONTH(Data!$B$9:$B$4391)=AK$2)*(ISNUMBER(Data!$O$9:$O$4391)),Data!$O$9:$O$4391),1-'Monthly Exceedance'!$A12) -> 1968.186667 | AL12: =_xlfn.PERCENTILE.INC(IF((MONTH(Data!$B$9:$B$4391)=AL$2)*(ISNUMBER(Data!$O$9:$O$4391)),Data!$O$9:$O$4391),1-'Monthly Exceedance'!$A12) -> 1938.989 | AM12: =_xlfn.PERCENTILE.INC(IF((MONTH(Data!$B$9:$B$4391)=AM$2)*(ISNUMBER(Data!$O$9:$O$4391)),Data!$O$9:$O$4391),1-'Monthly Exceedance'!$A12) -> 1834.832 | AN12: =_xlfn.PERCENTILE.INC(IF((MONTH(Data!$B$9:$B$4391)=AN$2)*(ISNUMBER(Data!$O$9:$O$4391)),Data!$O$9:$O$4391),1-'Monthly Exceedance'!$A12) -> 1900 | AO12: =_xlfn.PERCENTILE.INC(IF((MONTH(Data!$B$9:$B$4391)=AO$2)*(ISNUMBER(Data!$O$9:$O$4391)),Data!$O$9:$O$4391),1-'Monthly Exceedance'!$A12) -> 1880 | AQ12: 0.08 | AR12: =_xlfn.PERCENTILE.INC(IF((MONTH(Data!$B$9:$B$4391)=AR$2)*(ISNUMBER(Data!$T$9:$T$4391)),Data!$T$9:$T$4391),1-'Monthly Exceedance'!$A12) -> 1733.7151 | AS12: =_xlfn.PERCENTILE.INC(IF((MONTH(Data!$B$9:$B$4391)=AS$2)*(ISNUMBER(Data!$T$9:$T$4391)),Data!$T$9:$T$4391),1-'Monthly Exceedance'!$A12) -> 1879.620384 | AT12: =_xlfn.PERCENTILE.INC(IF((MONTH(Data!$B$9:$B$4391)=AT$2)*(ISNUMBER(Data!$T$9:$T$4391)),Data!$T$9:$T$4391),1-'Monthly Exceedance'!$A12) -> 1630.757616 | AU12: =_xlfn.PERCENTILE.INC(IF((MONTH(Data!$B$9:$B$4391)=AU$2)*(ISNUMBER(Data!$T$9:$T$4391)),Data!$T$9:$T$4391),1-'Monthly Exceedance'!$A12) -> 1916.128465 | AV12: =_xlfn.PERCENTILE.INC(IF((MONTH(Data!$B$9:$B$4391)=AV$2)*(ISNUMBER(Data!$T$9:$T$4391)),Data!$T$9:$T$4391),1-'Monthly Exceedance'!$A12) -> 1954.89075 | AW12: =_xlfn.PERCENTILE.INC(IF((MONTH(Data!$B$9:$B$4391)=AW$2)*(ISNUMBER(Data!$T$9:$T$4391)),Data!$T$9:$T$4391),1-'Monthly Exceedance'!$A12) -> 1882.0939 | AX12: =_xlfn.PERCENTILE.INC(IF((MONTH(Data!$B$9:$B$4391)=AX$2)*(ISNUMBER(Data!$T$9:$T$4391)),Data!$T$9:$T$4391),1-'Monthly Exceedance'!$A12) -> 1988.59945 | AY12: =_xlfn.PERCENTILE.INC(IF((MONTH(Data!$B$9:$B$4391)=AY$2)*(ISNUMBER(Data!$T$9:$T$4391)),Data!$T$9:$T$4391),1-'Monthly Exceedance'!$A12) -> 1968.595734 | AZ12: =_xlfn.PERCENTILE.INC(IF((MONTH(Data!$B$9:$B$4391)=AZ$2)*(ISNUMBER(Data!$T$9:$T$4391)),Data!$T$9:$T$4391),1-'Monthly Exceedance'!$A12) -> 1939.335801 | BA12: =_xlfn.PERCENTILE.INC(IF((MONTH(Data!$B$9:$B$4391)=BA$2)*(ISNUMBER(Data!$T$9:$T$4391)),Data!$T$9:$T$4391),1-'Monthly Exceedance'!$A12) -> 1836.235167 | BB12: =_xlfn.PERCENTILE.INC(IF((MONTH(Data!$B$9:$B$4391)=BB$2)*(ISNUMBER(Data!$T$9:$T$4391)),Data!$T$9:$T$4391),1-'Monthly Exceedance'!$A12) -> 1900.578 | BC12: =_xlfn.PERCENTILE.INC(IF((MONTH(Data!$B$9:$B$4391)=BC$2)*(ISNUMBER(Data!$T$9:$T$4391)),Data!$T$9:$T$4391),1-'Monthly Exceedance'!$A12) -> 1896.395084 | BE12: 0.08 | BF12: =_xlfn.PERCENTILE.INC(IF((MONTH(Data!$B$9:$B$4391)=BF$2)*(ISNUMBER(Data!$R$9:$R$4391)),Data!$R$9:$R$4391),1-'Monthly Exceedance'!$A12) -> 1640 | BG12: =_xlfn.PERCENTILE.INC(IF((MONTH(Data!$B$9:$B$4391)=BG$2)*(ISNUMBER(Data!$R$9:$R$4391)),Data!$R$9:$R$4391),1-'Monthly Exceedance'!$A12) -> 1670.619699 | BH12: =_xlfn.PERCENTILE.INC(IF((MONTH(Data!$B$9:$B$4391)=BH$2)*(ISNUMBER(Data!$R$9:$R$4391)),Data!$R$9:$R$4391),1-'Monthly Exceedance'!$A12) -> 1530.208312 | BI12: =_xlfn.PERCENTILE.INC(IF((MONTH(Data!$B$9:$B$4391)=BI$2)*(ISNUMBER(Data!$R$9:$R$4391)),Data!$R$9:$R$4391),1-'Monthly Exceedance'!$A12) -> 1728.4 | BJ12: =_xlfn.PERCENTILE.INC(IF((MONTH(Data!$B$9:$B$4391)=BJ$2)*(ISNUMBER(Data!$R$9:$R$4391)),Data!$R$9:$R$4391),1-'Monthly Exceedance'!$A12) -> 1760 | BK12: =_xlfn.PERCENTILE.INC(IF((MONTH(Data!$B$9:$B$4391)=BK$2)*(ISNUMBER(Data!$R$9:$R$4391)),Data!$R$9:$R$4391),1-'Monthly Exceedance'!$A12) -> 1800 | BL12: =_xlfn.PERCENTILE.INC(IF((MONTH(Data!$B$9:$B$4391)=BL$2)*(ISNUMBER(Data!$R$9:$R$4391)),Data!$R$9:$R$4391),1-'Monthly Exceedance'!$A12) -> 1910.933339 | BM12: =_xlfn.PERCENTILE.INC(IF((MONTH(Data!$B$9:$B$4391)=BM$2)*(ISNUMBER(Data!$R$9:$R$4391)),Data!$R$9:$R$4391),1-'Monthly Exceedance'!$A12) -> 1891.673833 | BN12: =_xlfn.PERCENTILE.INC(IF((MONTH(Data!$B$9:$B$4391)=BN$2)*(ISNUMBER(Data!$R$9:$R$4391)),Data!$R$9:$R$4391),1-'Monthly Exceedance'!$A12) -> 1895.542667 | BO12: =_xlfn.PERCENTILE.INC(IF((MONTH(Data!$B$9:$B$4391)=BO$2)*(ISNUMBER(Data!$R$9:$R$4391)),Data!$R$9:$R$4391),1-'Monthly Exceedance'!$A12) -> 1761.673833 | BP12: =_xlfn.PERCENTILE.INC(IF((MONTH(Data!$B$9:$B$4391)=BP$2)*(ISNUMBER(Data!$R$9:$R$4391)),Data!$R$9:$R$4391),1-'Monthly Exceedance'!$A12) -> 1724.252002 | BQ12: =_xlfn.PERCENTILE.INC(IF((MONTH(Data!$B$9:$B$4391)=BQ$2)*(ISNUMBER(Data!$R$9:$R$4391)),Data!$R$9:$R$4391),1-'Monthly Exceedance'!$A12) -> 1584.228503 | BS12: 0.08 | BT12: =_xlfn.PERCENTILE.INC(IF((MONTH(Data!$B$9:$B$4391)=BT$2)*(ISNUMBER(Data!$U$9:$U$4391)),Data!$U$9:$U$4391),1-'Monthly Exceedance'!$A12) -> 1654.286333 | BU12: =_xlfn.PERCENTILE.INC(IF((MONTH(Data!$B$9:$B$4391)=BU$2)*(ISNUMBER(Data!$U$9:$U$4391)),Data!$U$9:$U$4391),1-'Monthly Exceedance'!$A12) -> 1695.606651 | BV12: =_xlfn.PERCENTILE.INC(IF((MONTH(Data!$B$9:$B$4391)=BV$2)*(ISNUMBER(Data!$U$9:$U$4391)),Data!$U$9:$U$4391),1-'Monthly Exceedance'!$A12) -> 1578.564281 | BW12: =_xlfn.PERCENTILE.INC(IF((MONTH(Data!$B$9:$B$4391)=BW$2)*(ISNUMBER(Data!$U$9:$U$4391)),Data!$U$9:$U$4391),1-'Monthly Exceedance'!$A12) -> 1763.673174 | BX12: =_xlfn.PERCENTILE.INC(IF((MONTH(Data!$B$9:$B$4391)=BX$2)*(ISNUMBER(Data!$U$9:$U$4391)),Data!$U$9:$U$4391),1-'Monthly Exceedance'!$A12) -> 1774.758667 | BY12: =_xlfn.PERCENTILE.INC(IF((MONTH(Data!$B$9:$B$4391)=BY$2)*(ISNUMBER(Data!$U$9:$U$4391)),Data!$U$9:$U$4391),1-'Monthly Exceedance'!$A12) -> 1833.677833 | BZ12: =_xlfn.PERCENTILE.INC(IF((MONTH(Data!$B$9:$B$4391)=BZ$2)*(ISNUMBER(Data!$U$9:$U$4391)),Data!$U$9:$U$4391),1-'Monthly Exceedance'!$A12) -> 1922.016667 | CA12: =_xlfn.PERCENTILE.INC(IF((MONTH(Data!$B$9:$B$4391)=CA$2)*(ISNUMBER(Data!$U$9:$U$4391)),Data!$U$9:$U$4391),1-'Monthly Exceedance'!$A12) -> 1904.178 | CB12: =_xlfn.PERCENTILE.INC(IF((MONTH(Data!$B$9:$B$4391)=CB$2)*(ISNUMBER(Data!$U$9:$U$4391)),Data!$U$9:$U$4391),1-'Monthly Exceedance'!$A12) -> 1917.905667 | CC12: =_xlfn.PERCENTILE.INC(IF((MONTH(Data!$B$9:$B$4391)=CC$2)*(ISNUMBER(Data!$U$9:$U$4391)),Data!$U$9:$U$4391),1-'Monthly Exceedance'!$A12) -> 1762.178001 | CD12: =_xlfn.PERCENTILE.INC(IF((MONTH(Data!$B$9:$B$4391)=CD$2)*(ISNUMBER(Data!$U$9:$U$4391)),Data!$U$9:$U$4391),1-'Monthly Exceedance'!$A12) -> 1762.073333 | CE12: =_xlfn.PERCENTILE.INC(IF((MONTH(Data!$B$9:$B$4391)=CE$2)*(ISNUMBER(Data!$U$9:$U$4391)),Data!$U$9:$U$4391),1-'Monthly Exceedance'!$A12) -> 1618.80134 | CG12: 0.08 | CH12: =_xlfn.PERCENTILE.INC(IF((MONTH(Data!$B$9:$B$4391)=CH$2)*(ISNUMBER(Data!$U$9:$U$4391)),Data!$N$9:$N$4391),1-'Monthly Exceedance'!$A12) -> 1640 | CI12: =_xlfn.PERCENTILE.INC(IF((MONTH(Data!$B$9:$B$4391)=CI$2)*(ISNUMBER(Data!$U$9:$U$4391)),Data!$N$9:$N$4391),1-'Monthly Exceedance'!$A12) -> 1670 | CJ12: =_xlfn.PERCENTILE.INC(IF((MONTH(Data!$B$9:$B$4391)=CJ$2)*(ISNUMBER(Data!$U$9:$U$4391)),Data!$N$9:$N$4391),1-'Monthly Exceedance'!$A12) -> 1530 | CK12: =_xlfn.PERCENTILE.INC(IF((MONTH(Data!$B$9:$B$4391)=CK$2)*(ISNUMBER(Data!$U$9:$U$4391)),Data!$N$9:$N$4391),1-'Monthly Exceedance'!$A12) -> 1728.4 | CL12: =_xlfn.PERCENTILE.INC(IF((MONTH(Data!$B$9:$B$4391)=CL$2)*(ISNUMBER(Data!$U$9:$U$4391)),Data!$N$9:$N$4391),1-'Monthly Exceedance'!$A12) -> 1760 | CM12: =_xlfn.PERCENTILE.INC(IF((MONTH(Data!$B$9:$B$4391)=CM$2)*(ISNUMBER(Data!$U$9:$U$4391)),Data!$N$9:$N$4391),1-'Monthly Exceedance'!$A12) -> 1800 | CN12: =_xlfn.PERCENTILE.INC(IF((MONTH(Data!$B$9:$B$4391)=CN$2)*(ISNUMBER(Data!$U$9:$U$4391)),Data!$N$9:$N$4391),1-'Monthly Exceedance'!$A12) -> 1910 | CO12: =_xlfn.PERCENTILE.INC(IF((MONTH(Data!$B$9:$B$4391)=CO$2)*(ISNUMBER(Data!$U$9:$U$4391)),Data!$N$9:$N$4391),1-'Monthly Exceedance'!$A12) -> 1890 | CP12: =_xlfn.PERCENTILE.INC(IF((MONTH(Data!$B$9:$B$4391)=CP$2)*(ISNUMBER(Data!$U$9:$U$4391)),Data!$N$9:$N$4391),1-'Monthly Exceedance'!$A12) -> 1892.8 | CQ12: =_xlfn.PERCENTILE.INC(IF((MONTH(Data!$B$9:$B$4391)=CQ$2)*(ISNUMBER(Data!$U$9:$U$4391)),Data!$N$9:$N$4391),1-'Monthly Exceedance'!$A12) -> 1760 | CR12: =_xlfn.PERCENTILE.INC(IF((MONTH(Data!$B$9:$B$4391)=CR$2)*(ISNUMBER(Data!$U$9:$U$4391)),Data!$N$9:$N$4391),1-'Monthly Exceedance'!$A12) -> 1722.8 | CS12: =_xlfn.PERCENTILE.INC(IF((MONTH(Data!$B$9:$B$4391)=CS$2)*(ISNUMBER(Data!$U$9:$U$4391)),Data!$N$9:$N$4391),1-'Monthly Exceedance'!$A12) -> 1583.2
A13: 0.09 | B13: =_xlfn.PERCENTILE.INC(IF((MONTH(Data!$B$9:$B$4391)=B$2)*(ISNUMBER(Data!$I$9:$I$4391)),Data!$I$9:$I$4391),1-'Monthly Exceedance'!$A13) -> 70.88333619 | C13: =_xlfn.PERCENTILE.INC(IF((MONTH(Data!$B$9:$B$4391)=C$2)*(ISNUMBER(Data!$I$9:$I$4391)),Data!$I$9:$I$4391),1-'Monthly Exceedance'!$A13) -> 96.38291779 | D13: =_xlfn.PERCENTILE.INC(IF((MONTH(Data!$B$9:$B$4391)=D$2)*(ISNUMBER(Data!$I$9:$I$4391)),Data!$I$9:$I$4391),1-'Monthly Exceedance'!$A13) -> 83.72133469 | E13: =_xlfn.PERCENTILE.INC(IF((MONTH(Data!$B$9:$B$4391)=E$2)*(ISNUMBER(Data!$I$9:$I$4391)),Data!$I$9:$I$4391),1-'Monthly Exceedance'!$A13) -> 68.52083193 | F13: =_xlfn.PERCENTILE.INC(IF((MONTH(Data!$B$9:$B$4391)=F$2)*(ISNUMBER(Data!$I$9:$I$4391)),Data!$I$9:$I$4391),1-'Monthly Exceedance'!$A13) -> 27.9219997 | G13: =_xlfn.PERCENTILE.INC(IF((MONTH(Data!$B$9:$B$4391)=G$2)*(ISNUMBER(Data!$I$9:$I$4391)),Data!$I$9:$I$4391),1-'Monthly Exceedance'!$A13) -> 11.47266707 | H13: =_xlfn.PERCENTILE.INC(IF((MONTH(Data!$B$9:$B$4391)=H$2)*(ISNUMBER(Data!$I$9:$I$4391)),Data!$I$9:$I$4391),1-'Monthly Exceedance'!$A13) -> 2.943933402 | I13: =_xlfn.PERCENTILE.INC(IF((MONTH(Data!$B$9:$B$4391)=I$2)*(ISNUMBER(Data!$I$9:$I$4391)),Data!$I$9:$I$4391),1-'Monthly Exceedance'!$A13) -> 1.290533315 | J13: =_xlfn.PERCENTILE.INC(IF((MONTH(Data!$B$9:$B$4391)=J$2)*(ISNUMBER(Data!$I$9:$I$4391)),Data!$I$9:$I$4391),1-'Monthly Exceedance'!$A13) -> 0.4367300152 | K13: =_xlfn.PERCENTILE.INC(IF((MONTH(Data!$B$9:$B$4391)=K$2)*(ISNUMBER(Data!$I$9:$I$4391)),Data!$I$9:$I$4391),1-'Monthly Exceedance'!$A13) -> 1.631933371 | L13: =_xlfn.PERCENTILE.INC(IF((MONTH(Data!$B$9:$B$4391)=L$2)*(ISNUMBER(Data!$I$9:$I$4391)),Data!$I$9:$I$4391),1-'Monthly Exceedance'!$A13) -> 3.4644833 | M13: =_xlfn.PERCENTILE.INC(IF((MONTH(Data!$B$9:$B$4391)=M$2)*(ISNUMBER(Data!$I$9:$I$4391)),Data!$I$9:$I$4391),1-'Monthly Exceedance'!$A13) -> 13.42305976 | O13: 0.09 | P13: =_xlfn.PERCENTILE.INC(IF((MONTH(Data!$B$9:$B$4391)=P$2)*(ISNUMBER(Data!$S$9:$S$4391)),Data!$S$9:$S$4391),1-'Monthly Exceedance'!$A13) -> 50 | Q13: =_xlfn.PERCENTILE.INC(IF((MONTH(Data!$B$9:$B$4391)=Q$2)*(ISNUMBER(Data!$S$9:$S$4391)),Data!$S$9:$S$4391),1-'Monthly Exceedance'!$A13) -> 52.51248316 | R13: =_xlfn.PERCENTILE.INC(IF((MONTH(Data!$B$9:$B$4391)=R$2)*(ISNUMBER(Data!$S$9:$S$4391)),Data!$S$9:$S$4391),1-'Monthly Exceedance'!$A13) -> 101.00001 | S13: =_xlfn.PERCENTILE.INC(IF((MONTH(Data!$B$9:$B$4391)=S$2)*(ISNUMBER(Data!$S$9:$S$4391)),Data!$S$9:$S$4391),1-'Monthly Exceedance'!$A13) -> 65.49833352 | T13: =_xlfn.PERCENTILE.INC(IF((MONTH(Data!$B$9:$B$4391)=T$2)*(ISNUMBER(Data!$S$9:$S$4391)),Data!$S$9:$S$4391),1-'Monthly Exceedance'!$A13) -> 33.56756477 | U13: =_xlfn.PERCENTILE.INC(IF((MONTH(Data!$B$9:$B$4391)=U$2)*(ISNUMBER(Data!$S$9:$S$4391)),Data!$S$9:$S$4391),1-'Monthly Exceedance'!$A13) -> 43.04328028 | V13: =_xlfn.PERCENTILE.INC(IF((MONTH(Data!$B$9:$B$4391)=V$2)*(ISNUMBER(Data!$S$9:$S$4391)),Data!$S$9:$S$4391),1-'Monthly Exceedance'!$A13) -> 32.01410907 | W13: =_xlfn.PERCENTILE.INC(IF((MONTH(Data!$B$9:$B$4391)=W$2)*(ISNUMBER(Data!$S$9:$S$4391)),Data!$S$9:$S$4391),1-'Monthly Exceedance'!$A13) -> 15.19999981 | X13: =_xlfn.PERCENTILE.INC(IF((MONTH(Data!$B$9:$B$4391)=X$2)*(ISNUMBER(Data!$S$9:$S$4391)),Data!$S$9:$S$4391),1-'Monthly Exceedance'!$A13) -> 12 | Y13: =_xlfn.PERCENTILE.INC(IF((MONTH(Data!$B$9:$B$4391)=Y$2)*(ISNUMBER(Data!$S$9:$S$4391)),Data!$S$9:$S$4391),1-'Monthly Exceedance'!$A13) -> 38.41200007 | Z13: =_xlfn.PERCENTILE.INC(IF((MONTH(Data!$B$9:$B$4391)=Z$2)*(ISNUMBER(Data!$S$9:$S$4391)),Data!$S$9:$S$4391),1-'Monthly Exceedance'!$A13) -> 100.2688868 | AA13: =_xlfn.PERCENTILE.INC(IF((MONTH(Data!$B$9:$B$4391)=AA$2)*(ISNUMBER(Data!$S$9:$S$4391)),Data!$S$9:$S$4391),1-'Monthly Exceedance'!$A13) -> 32.64700113 | AC13: 0.09 | AD13: =_xlfn.PERCENTILE.INC(IF((MONTH(Data!$B$9:$B$4391)=AD$2)*(ISNUMBER(Data!$O$9:$O$4391)),Data!$O$9:$O$4391),1-'Monthly Exceedance'!$A13) -> 1711.1 | AE13: =_xlfn.PERCENTILE.INC(IF((MONTH(Data!$B$9:$B$4391)=AE$2)*(ISNUMBER(Data!$O$9:$O$4391)),Data!$O$9:$O$4391),1-'Monthly Exceedance'!$A13) -> 1823.95025 | AF13: =_xlfn.PERCENTILE.INC(IF((MONTH(Data!$B$9:$B$4391)=AF$2)*(ISNUMBER(Data!$O$9:$O$4391)),Data!$O$9:$O$4391),1-'Monthly Exceedance'!$A13) -> 1601.72325 | AG13: =_xlfn.PERCENTILE.INC(IF((MONTH(Data!$B$9:$B$4391)=AG$2)*(ISNUMBER(Data!$O$9:$O$4391)),Data!$O$9:$O$4391),1-'Monthly Exceedance'!$A13) -> 1842.208 | AH13: =_xlfn.PERCENTILE.INC(IF((MONTH(Data!$B$9:$B$4391)=AH$2)*(ISNUMBER(Data!$O$9:$O$4391)),Data!$O$9:$O$4391),1-'Monthly Exceedance'!$A13) -> 1938.831625 | AI13: =_xlfn.PERCENTILE.INC(IF((MONTH(Data!$B$9:$B$4391)=AI$2)*(ISNUMBER(Data!$O$9:$O$4391)),Data!$O$9:$O$4391),1-'Monthly Exceedance'!$A13) -> 1863.799625 | AJ13: =_xlfn.PERCENTILE.INC(IF((MONTH(Data!$B$9:$B$4391)=AJ$2)*(ISNUMBER(Data!$O$9:$O$4391)),Data!$O$9:$O$4391),1-'Monthly Exceedance'!$A13) -> 1975.138334 | AK13: =_xlfn.PERCENTILE.INC(IF((MONTH(Data!$B$9:$B$4391)=AK$2)*(ISNUMBER(Data!$O$9:$O$4391)),Data!$O$9:$O$4391),1-'Monthly Exceedance'!$A13) -> 1955.970292 | AL13: =_xlfn.PERCENTILE.INC(IF((MONTH(Data!$B$9:$B$4391)=AL$2)*(ISNUMBER(Data!$O$9:$O$4391)),Data!$O$9:$O$4391),1-'Monthly Exceedance'!$A13) -> 1930.583042 | AM13: =_xlfn.PERCENTILE.INC(IF((MONTH(Data!$B$9:$B$4391)=AM$2)*(ISNUMBER(Data!$O$9:$O$4391)),Data!$O$9:$O$4391),1-'Monthly Exceedance'!$A13) -> 1821.586 | AN13: =_xlfn.PERCENTILE.INC(IF((MONTH(Data!$B$9:$B$4391)=AN$2)*(ISNUMBER(Data!$O$9:$O$4391)),Data!$O$9:$O$4391),1-'Monthly Exceedance'!$A13) -> 1880 | AO13: =_xlfn.PERCENTILE.INC(IF((MONTH(Data!$B$9:$B$4391)=AO$2)*(ISNUMBER(Data!$O$9:$O$4391)),Data!$O$9:$O$4391),1-'Monthly Exceedance'!$A13) -> 1818.3 | AQ13: 0.09 | AR13: =_xlfn.PERCENTILE.INC(IF((MONTH(Data!$B$9:$B$4391)=AR$2)*(ISNUMBER(Data!$T$9:$T$4391)),Data!$T$9:$T$4391),1-'Monthly Exceedance'!$A13) -> 1720.170833 | AS13: =_xlfn.PERCENTILE.INC(IF((MONTH(Data!$B$9:$B$4391)=AS$2)*(ISNUMBER(Data!$T$9:$T$4391)),Data!$T$9:$T$4391),1-'Monthly Exceedance'!$A13) -> 1858.061575 | AT13: =_xlfn.PERCENTILE.INC(IF((MONTH(Data!$B$9:$B$4391)=AT$2)*(ISNUMBER(Data!$T$9:$T$4391)),Data!$T$9:$T$4391),1-'Monthly Exceedance'!$A13) -> 1617.051638 | AU13: =_xlfn.PERCENTILE.INC(IF((MONTH(Data!$B$9:$B$4391)=AU$2)*(ISNUMBER(Data!$T$9:$T$4391)),Data!$T$9:$T$4391),1-'Monthly Exceedance'!$A13) -> 1860.440254 | AV13: =_xlfn.PERCENTILE.INC(IF((MONTH(Data!$B$9:$B$4391)=AV$2)*(ISNUMBER(Data!$T$9:$T$4391)),Data!$T$9:$T$4391),1-'Monthly Exceedance'!$A13) -> 1945.938525 | AW13: =_xlfn.PERCENTILE.INC(IF((MONTH(Data!$B$9:$B$4391)=AW$2)*(ISNUMBER(Data!$T$9:$T$4391)),Data!$T$9:$T$4391),1-'Monthly Exceedance'!$A13) -> 1864.468063 | AX13: =_xlfn.PERCENTILE.INC(IF((MONTH(Data!$B$9:$B$4391)=AX$2)*(ISNUMBER(Data!$T$9:$T$4391)),Data!$T$9:$T$4391),1-'Monthly Exceedance'!$A13) -> 1976.034847 | AY13: =_xlfn.PERCENTILE.INC(IF((MONTH(Data!$B$9:$B$4391)=AY$2)*(ISNUMBER(Data!$T$9:$T$4391)),Data!$T$9:$T$4391),1-'Monthly Exceedance'!$A13) -> 1955.970292 | AZ13: =_xlfn.PERCENTILE.INC(IF((MONTH(Data!$B$9:$B$4391)=AZ$2)*(ISNUMBER(Data!$T$9:$T$4391)),Data!$T$9:$T$4391),1-'Monthly Exceedance'!$A13) -> 1932.663 | BA13: =_xlfn.PERCENTILE.INC(IF((MONTH(Data!$B$9:$B$4391)=BA$2)*(ISNUMBER(Data!$T$9:$T$4391)),Data!$T$9:$T$4391),1-'Monthly Exceedance'!$A13) -> 1822.04228 | BB13: =_xlfn.PERCENTILE.INC(IF((MONTH(Data!$B$9:$B$4391)=BB$2)*(ISNUMBER(Data!$T$9:$T$4391)),Data!$T$9:$T$4391),1-'Monthly Exceedance'!$A13) -> 1884.082096 | BC13: =_xlfn.PERCENTILE.INC(IF((MONTH(Data!$B$9:$B$4391)=BC$2)*(ISNUMBER(Data!$T$9:$T$4391)),Data!$T$9:$T$4391),1-'Monthly Exceedance'!$A13) -> 1878.832702 | BE13: 0.09 | BF13: =_xlfn.PERCENTILE.INC(IF((MONTH(Data!$B$9:$B$4391)=BF$2)*(ISNUMBER(Data!$R$9:$R$4391)),Data!$R$9:$R$4391),1-'Monthly Exceedance'!$A13) -> 1621.84525 | BG13: =_xlfn.PERCENTILE.INC(IF((MONTH(Data!$B$9:$B$4391)=BG$2)*(ISNUMBER(Data!$R$9:$R$4391)),Data!$R$9:$R$4391),1-'Monthly Exceedance'!$A13) -> 1660.563323 | BH13: =_xlfn.PERCENTILE.INC(IF((MONTH(Data!$B$9:$B$4391)=BH$2)*(ISNUMBER(Data!$R$9:$R$4391)),Data!$R$9:$R$4391),1-'Monthly Exceedance'!$A13) -> 1516.642604 | BI13: =_xlfn.PERCENTILE.INC(IF((MONTH(Data!$B$9:$B$4391)=BI$2)*(ISNUMBER(Data!$R$9:$R$4391)),Data!$R$9:$R$4391),1-'Monthly Exceedance'!$A13) -> 1657.745339 | BJ13: =_xlfn.PERCENTILE.INC(IF((MONTH(Data!$B$9:$B$4391)=BJ$2)*(ISNUMBER(Data!$R$9:$R$4391)),Data!$R$9:$R$4391),1-'Monthly Exceedance'!$A13) -> 1726.100688 | BK13: =_xlfn.PERCENTILE.INC(IF((MONTH(Data!$B$9:$B$4391)=BK$2)*(ISNUMBER(Data!$R$9:$R$4391)),Data!$R$9:$R$4391),1-'Monthly Exceedance'!$A13) -> 1782.40796 | BL13: =_xlfn.PERCENTILE.INC(IF((MONTH(Data!$B$9:$B$4391)=BL$2)*(ISNUMBER(Data!$R$9:$R$4391)),Data!$R$9:$R$4391),1-'Monthly Exceedance'!$A13) -> 1901.017599 | BM13: =_xlfn.PERCENTILE.INC(IF((MONTH(Data!$B$9:$B$4391)=BM$2)*(ISNUMBER(Data!$R$9:$R$4391)),Data!$R$9:$R$4391),1-'Monthly Exceedance'!$A13) -> 1883.025 | BN13: =_xlfn.PERCENTILE.INC(IF((MONTH(Data!$B$9:$B$4391)=BN$2)*(ISNUMBER(Data!$R$9:$R$4391)),Data!$R$9:$R$4391),1-'Monthly Exceedance'!$A13) -> 1889.037667 | BO13: =_xlfn.PERCENTILE.INC(IF((MONTH(Data!$B$9:$B$4391)=BO$2)*(ISNUMBER(Data!$R$9:$R$4391)),Data!$R$9:$R$4391),1-'Monthly Exceedance'!$A13) -> 1737.809125 | BP13: =_xlfn.PERCENTILE.INC(IF((MONTH(Data!$B$9:$B$4391)=BP$2)*(ISNUMBER(Data!$R$9:$R$4391)),Data!$R$9:$R$4391),1-'Monthly Exceedance'!$A13) -> 1701.5125 | BQ13: =_xlfn.PERCENTILE.INC(IF((MONTH(Data!$B$9:$B$4391)=BQ$2)*(ISNUMBER(Data!$R$9:$R$4391)),Data!$R$9:$R$4391),1-'Monthly Exceedance'!$A13) -> 1557.782628 | BS13: 0.09 | BT13: =_xlfn.PERCENTILE.INC(IF((MONTH(Data!$B$9:$B$4391)=BT$2)*(ISNUMBER(Data!$U$9:$U$4391)),Data!$U$9:$U$4391),1-'Monthly Exceedance'!$A13) -> 1643.466447 | BU13: =_xlfn.PERCENTILE.INC(IF((MONTH(Data!$B$9:$B$4391)=BU$2)*(ISNUMBER(Data!$U$9:$U$4391)),Data!$U$9:$U$4391),1-'Monthly Exceedance'!$A13) -> 1683.5125 | BV13: =_xlfn.PERCENTILE.INC(IF((MONTH(Data!$B$9:$B$4391)=BV$2)*(ISNUMBER(Data!$U$9:$U$4391)),Data!$U$9:$U$4391),1-'Monthly Exceedance'!$A13) -> 1558.941333 | BW13: =_xlfn.PERCENTILE.INC(IF((MONTH(Data!$B$9:$B$4391)=BW$2)*(ISNUMBER(Data!$U$9:$U$4391)),Data!$U$9:$U$4391),1-'Monthly Exceedance'!$A13) -> 1687.843628 | BX13: =_xlfn.PERCENTILE.INC(IF((MONTH(Data!$B$9:$B$4391)=BX$2)*(ISNUMBER(Data!$U$9:$U$4391)),Data!$U$9:$U$4391),1-'Monthly Exceedance'!$A13) -> 1749.256583 | BY13: =_xlfn.PERCENTILE.INC(IF((MONTH(Data!$B$9:$B$4391)=BY$2)*(ISNUMBER(Data!$U$9:$U$4391)),Data!$U$9:$U$4391),1-'Monthly Exceedance'!$A13) -> 1817.564541 | BZ13: =_xlfn.PERCENTILE.INC(IF((MONTH(Data!$B$9:$B$4391)=BZ$2)*(ISNUMBER(Data!$U$9:$U$4391)),Data!$U$9:$U$4391),1-'Monthly Exceedance'!$A13) -> 1913.937458 | CA13: =_xlfn.PERCENTILE.INC(IF((MONTH(Data!$B$9:$B$4391)=CA$2)*(ISNUMBER(Data!$U$9:$U$4391)),Data!$U$9:$U$4391),1-'Monthly Exceedance'!$A13) -> 1895.818 | CB13: =_xlfn.PERCENTILE.INC(IF((MONTH(Data!$B$9:$B$4391)=CB$2)*(ISNUMBER(Data!$U$9:$U$4391)),Data!$U$9:$U$4391),1-'Monthly Exceedance'!$A13) -> 1911.5125 | CC13: =_xlfn.PERCENTILE.INC(IF((MONTH(Data!$B$9:$B$4391)=CC$2)*(ISNUMBER(Data!$U$9:$U$4391)),Data!$U$9:$U$4391),1-'Monthly Exceedance'!$A13) -> 1749.909042 | CD13: =_xlfn.PERCENTILE.INC(IF((MONTH(Data!$B$9:$B$4391)=CD$2)*(ISNUMBER(Data!$U$9:$U$4391)),Data!$U$9:$U$4391),1-'Monthly Exceedance'!$A13) -> 1730.341376 | CE13: =_xlfn.PERCENTILE.INC(IF((MONTH(Data!$B$9:$B$4391)=CE$2)*(ISNUMBER(Data!$U$9:$U$4391)),Data!$U$9:$U$4391),1-'Monthly Exceedance'!$A13) -> 1595.134636 | CG13: 0.09 | CH13: =_xlfn.PERCENTILE.INC(IF((MONTH(Data!$B$9:$B$4391)=CH$2)*(ISNUMBER(Data!$U$9:$U$4391)),Data!$N$9:$N$4391),1-'Monthly Exceedance'!$A13) -> 1620 | CI13: =_xlfn.PERCENTILE.INC(IF((MONTH(Data!$B$9:$B$4391)=CI$2)*(ISNUMBER(Data!$U$9:$U$4391)),Data!$N$9:$N$4391),1-'Monthly Exceedance'!$A13) -> 1660 | CJ13: =_xlfn.PERCENTILE.INC(IF((MONTH(Data!$B$9:$B$4391)=CJ$2)*(ISNUMBER(Data!$U$9:$U$4391)),Data!$N$9:$N$4391),1-'Monthly Exceedance'!$A13) -> 1516.1 | CK13: =_xlfn.PERCENTILE.INC(IF((MONTH(Data!$B$9:$B$4391)=CK$2)*(ISNUMBER(Data!$U$9:$U$4391)),Data!$N$9:$N$4391),1-'Monthly Exceedance'!$A13) -> 1656.9 | CL13: =_xlfn.PERCENTILE.INC(IF((MONTH(Data!$B$9:$B$4391)=CL$2)*(ISNUMBER(Data!$U$9:$U$4391)),Data!$N$9:$N$4391),1-'Monthly Exceedance'!$A13) -> 1726.1 | CM13: =_xlfn.PERCENTILE.INC(IF((MONTH(Data!$B$9:$B$4391)=CM$2)*(ISNUMBER(Data!$U$9:$U$4391)),Data!$N$9:$N$4391),1-'Monthly Exceedance'!$A13) -> 1780 | CN13: =_xlfn.PERCENTILE.INC(IF((MONTH(Data!$B$9:$B$4391)=CN$2)*(ISNUMBER(Data!$U$9:$U$4391)),Data!$N$9:$N$4391),1-'Monthly Exceedance'!$A13) -> 1900 | CO13: =_xlfn.PERCENTILE.INC(IF((MONTH(Data!$B$9:$B$4391)=CO$2)*(ISNUMBER(Data!$U$9:$U$4391)),Data!$N$9:$N$4391),1-'Monthly Exceedance'!$A13) -> 1880 | CP13: =_xlfn.PERCENTILE.INC(IF((MONTH(Data!$B$9:$B$4391)=CP$2)*(ISNUMBER(Data!$U$9:$U$4391)),Data!$N$9:$N$4391),1-'Monthly Exceedance'!$A13) -> 1886.9 | CQ13: =_xlfn.PERCENTILE.INC(IF((MONTH(Data!$B$9:$B$4391)=CQ$2)*(ISNUMBER(Data!$U$9:$U$4391)),Data!$N$9:$N$4391),1-'Monthly Exceedance'!$A13) -> 1736.1 | CR13: =_xlfn.PERCENTILE.INC(IF((MONTH(Data!$B$9:$B$4391)=CR$2)*(ISNUMBER(Data!$U$9:$U$4391)),Data!$N$9:$N$4391),1-'Monthly Exceedance'!$A13) -> 1700 | CS13: =_xlfn.PERCENTILE.INC(IF((MONTH(Data!$B$9:$B$4391)=CS$2)*(ISNUMBER(Data!$U$9:$U$4391)),Data!$N$9:$N$4391),1-'Monthly Exceedance'!$A13) -> 1556.1
